Workbook

Sheet Instructions
B2: यह प्रोग्राम मैंने Paymanger Info Group पर समय समय पर डाली गई पोस्टो से सीख कर आपके लिए तेयार किया है तथा Rajsevak.com पर विभिन्न फोर्मेट्स का भी काफी सहयोग मिला है
A3: 1 | B3: यह प्रोग्राम मेंने सभी विभागो से सम्बंधित लगभग सभी प्रकार के आदेश जो अमुमन अलग अलग जगह पर हमारे कम्प्युटर मे सेव रह्ते है ओर बार बार काम मे आते है, को एक ही जगह पर उपलब्ध करवाने का प्रयास किया गया है एव सेवा नियमो व अवकाश नियमो कि जानकरी, कार्यालय आदेश, पेंशन केस, पेंशन पर मिलने वाले परिलाभ कि जानकरी तथा प्रपत्र, सेवारत कार्मिक कि मृत्यु होने पर अनुकम्पा नियुक्ति के नियम, आवेदन प्रपत्र, विभिन्न प्रकर के कवरिंग लेटर, प्रपत्र, भौतिक सत्यापन प्रपत्र, प्रभार वितरण सूची, IFMS, Rajkosh,NSDL,SSO ID,E-grass Challan आदि पर डीडीओ द्वारा की जाने वाली कार्यवाही की सम्पूर्ण जानकारी, 03 Power, Paymanager All Bills, Pay Fixation on ACP,DPC,Probation Rules, राज्य बीमा व जीपीएफ के अंतिम भुगतान की प्रक्रिया आदि की जानकरी उपलब्ध करवाने का प्रयास किया गया है लगभग 200 शीटस बनाई गई है
A4: 2 | B4: Software को खोलते ही आपके Computer Screen पर उपर की तरफ Enable Macro के लिए कहेगा उसको Enable करना है वरना software नही चलेगा ।
A5: Imprt- | B5: Click Here for read instructions for Enable Macro
A6: Note- | B6: यदि एक बार Macro Enable करने के बाद काम करते समय Macro Problem आये तो Programme को Save करके बंद करे और दुबारा चलाये
A7: 3 | B7: उपर बाई तरफ होम का बटन है उसे क्लिक करने से वेलकम पेज खुलेगा उसपर विभिन्न प्रकार के लिंक है जिनको क्लिक करने से आप सम्बंधित पेज पर पन्हुच जायेंगे !
A8: 4 | B8: सर्वप्रथम आपके कम्प्युटर मे Krutidev 010 Font एंव Google Hindi Tools का होंना अनिवार्य है एव सिस्ट्म का Date Formae DD/MM/YYYY करना है
A9: 5 | B9: जो भी आदेश आप जनरेट करे उसकी SAVE AS से एक PDF File बनाकर अपने सिस्ट्म मे सेव कर ले ताकि जब भी आवश्यकता हो तब उसका प्रिंट निकाल सके
A10: 6 | B10: Welcome नाम की एक शीट है जिसपर आपको सभी प्रकार के आदेशो का लिंक मिलेगा जिसपर क्लिक करने से आप उस शीट पर पहुंच जायेंगे
B11: ओर प्रत्येक शीट पर HOME बटन है जहाँ क्लिक करने से आप वापस होम पर आ जायेंगे
A12: 7 | B12: Master नाम कि शीट मे आपको सभी जानकरी Google Hindi Tools का उपयोग करके ही भरनी है सबसे पहले कार्यालय शील हेतू HOD की पोस्ट का चयन करे, उसके बाद कार्यालय का नाम चुने
B13: केवल पीले रंग की सेल मे ही लिखना है | F13: कार्यालय का स्थान, ब्लोक व जिला लिखे, सत्र का चयन करे बोनस वर्ष व राशि, ट्रेजरी का नाम लिखे, डिस्पेच क्र्मांक के लिए चयन करे
B14: मास्टर टेबल मे पोस्ट का नाम, ओफिस का नाम, कक्षा, नियुक्ति का प्रकार,विषय, सत्र, डिस्पेच क्रमांक व अधिनस्थ कार्यालय का नाम आदि ! यदि आपका विभाग शिक्षा विभाग से भिन्न हो तो आप पदो का नाम, अधिनस्थ
B15: कार्यालयो का नाम जिनके आप डीडीओ है तो Google Hindi Tools का उपयोग करके बदल सकते है आवश्यक हो तो List मे लिखे नामो के नीचे ओर नाम जोड सकते है या कम कर सकते है
A16: 8 | B16: EmpDetail मे कार्मिक कि पूरी जानकारी मेंनुअली भरे । पूर्व मे भरी हुई सूचनाओ को मिटाकर आपके कार्यालय के कार्मिको की सूचनाए भरे ।
A17: 9 | B17: प्रत्येक शीट मे पीले रंग की शेल मे ही लिखना है एंव EmpDetail मे कार्मिक के क्रमांक को शीट के प्रथम कालम मे डालने पर उससे सम्बंधित विवरण अपने आप आ जायेगा
B18: कार्मिक का क्रमांक एक से अधिक बार भी लिखा जा सकता है | H18: कुछ शीट्स मे comments box दिये गये है उनको पढकर आप बदलाव कर सकते है ।
A19: 10 | B19: कुछ शीटो मे शीट के दाहिनी ओर आदेश क्रमांक लिखे गये है यदि आवश्यकता हो तो उनमे परिवर्तन मास्टर शीट मे किया जा सकता है या ओर जोड सकते है। कार्मिक विवरण मे परिवर्तन EmpDetail Sheet मे हि होगा
A20: 11 | B20: Google Hindi Font Link- के लिए यहाँ क्लिक करे | H20: Google Hindi Input Tools
A21: 12 | B21: Krutidev 010 Font Link- के लिए यहाँ क्लिक करे | H21: Krutidev 010 Fonts
A22: 13 | B22: प्रत्येक शीट मे Date के कालम मे फोरमुला लिखा है आप चाहे तो उसमे तारीख भी बदल सकते है या Formula "=Today()" को कापी कर Paste कर सकते है
A23: 14 | B23: किसी भी प्रकार की त्रुटी, समस्या या सुझाव हेतु आप मेरे Whatsapp पर मेसेज कर सकते है कृपया फ़ोन नही करे आपकी समस्या का समधान 100 प्रतिशत किया जायेगा ।
A24: 15 | B24: प्रोग्राम मे किसी भी प्रकार की त्रुटी या विभिन्नता होने पर विभाग के नियम ही सर्वोपरी होंगे ।
A25: 16 | B25: इस प्रोग्राम को बनाने का मेरा मूल उद्देश्य आपके व राज्य सरकार के श्रम, समय व धन बचाने का प्रयास है ।
H27: Designed & Developed By-
H28: Chaturbhuj Jat
I29: Teacher
H30: Govt Sr Sec Sch Chogai,Tonk
H31: Mob.No.- 9829303549
G32: Email- chaturbhujjat76@gmail.com

Sheet Welcome (hidden)
A1: OFFICE UTILITY SOFT | I1: lacaf/kr cVu ij fDyd djsa
A19: Designed & Developed By-
H20: अपडेट वर्जन हेतू यहाँ क्लिक करे-- | M20: Help-
B21: Chaturbhuj Jat | M21: Mob. No- | N21: 9829303549
B22: Teacher, GSSS Chogai Tonk | M22: Email- | N22: chaturbhujjat76@gmail.com
B23: Mob- 9829303549

Sheet Master (hidden)
B1: Office Seal | D1: bl 'khV ij fy[kus ds fy, dsoy Google Hindi Tolls dk gh mi;ksx djsa | F1: Master Data Form
A2: Post | B2: प्रधानाचार्य | C2: Office Place | D2: चौगाई | E2: Select Session | F2: Bonus Year | G2: कार्यालय& | H2: =B3&"]"&D2&"]"&D3 -> राजकीय उच्च माध्यमिक विद्यालय ]चौगाई]टोंक
A3: office | B3: राजकीय उच्च माध्यमिक विद्यालय | C3: Block | D3: टोंक | E3: 2021-22 | G3: Select for Despetch No | H3: राउमावि/ | I3: =D2 -> चौगाई | J3: /संस्था/ | L3: Office ID- | M3: 27306
A4: Place | B4: =D2&"]"&D4 -> चौगाई]टोंक | C4: District | D4: टोंक | F4: 2019-2020 | G4: Name of Treasury | H4: पीपलू | I4: Bonus Rate | J4: 6774 | L4: DDO CODE- | M4: 27306
A5: S.No. | B5: Post Name (Press Alt+Shift Key then Write) | C5: Pay Metric Level | D5: Name Of Office (Press Alt+Shift Key then write ) | E5: Class | F5: Saction | G5: नियुक्ति का प्रकार | H5: Name of Subjects In Your School | I5: Session | J5: For Dispetch NO | L5: Name of Subordinate or Self Office
A6: 1 | B6: प्रधानाचार्य | C6: L-1 | D6: राजकीय उच्च माध्यमिक विद्यालय | E6: 1,A | F6: A | G6: सीधी भर्ती | H6: हिंदी | I6: 2014-15 | J6: राउमावि/ | K6: /संस्था/ | L6: राउमावि चौगाई
A7: 2 | B7: प्रधानाध्यापक | C7: L-2 | D7: राजकीय बालिका उच्च माध्यमिक विद्यालय | E7: 2,A | F7: A | G7: सीधी भर्ती आरपीएससी | H7: अंग्रेजी | I7: 2015-16 | J7: राबाउमावि/ | K7: /लेखा/ | L7: राउप्रावि मोहिनी
A8: 3 | B8: व्याख्याता | C8: L-3 | D8: राजकीय माध्यमिक विद्यालय | E8: 3,A | F8: A | G8: सीधी भर्ती नोन आरपीएससी | H8: गणित | I8: 2016-17 | J8: रामावि/ | K8: /परीक्षा/ | L8: राउप्रावि सोंदीफल
A9: 4 | B9: कृषि प्रमुख | C9: L-4 | D9: राजकीय बालिका माध्यमिक विद्यालय | E9: 4,A | F9: B | G9: सीधी भर्ती जिला परिषद | H9: विज्ञान | I9: 2017-18 | J9: राबामावि/ | K9: /सामान्य/ | L9: राउप्रावि गोरधनपुरा
A10: 5 | B10: व्याख्याता कृषि | C10: L-5 | D10: राजकीय उच्च प्राथमिक विद्यालय | E10: 5,A | F10: C | G10: पदौन्नति | H10: संस्कृत | I10: 2018-19 | J10: बीईईओ/ | K10: /भण्डार/ | L10: राप्रावि रसूलपुरा
A11: 6 | B11: व्याख्याता शारीरिक शिक्षा | C11: L-6 | D11: राजकीय बालिका उच्च प्राथमिक विद्यालय | E11: 6,A | F11: D | G11: पंचायतराज | H11: सामाजिक विज्ञान | I11: 2019-20 | J11: पीईईओ/ | K11: /पुस्तकालय/ | L11: राप्रावि जहूरपुरा
A12: 7 | B12: पुस्तकालय अध्यक्ष ग्रेड I | C12: L-7 | D12: राजकीय प्राथमिक विद्यालय | E12: 7,A | F12: A | G12: अनुकम्पा नियुक्ति | H12: पर्यावरण अध्ययन | I12: 2020-21 | J12: जिशिअ/मु/माध्य/ | L12: राप्रावि जानकीवल्लभपुरा
A13: 8 | B13: वरिष्ठ अध्यापक | C13: L-8 | D13: राजकीय बालिका प्राथमिक विद्यालय | E13: 8,A | F13: B | G13: विधवा परित्यक्ता | H13: हिंदी अनिवार्य | I13: 2021-22 | J13: मुब्लाकशिअ/ | L13: राप्रावि बैरवा ढाणी सोन्दीफल
A14: 9 | B14: कृषि अध्यापक | C14: L-9 | D14: पदेन पंचायत प्रारम्भिक शिक्षा अधिकारी राउमावि | E14: 9,A | F14: C | G14: विक्लांग | H14: हिंदी साहित्य | I14: 2022-23 | J14: मुजिशिअ/प्राशि/ | L14: राप्रावि मोहिनी ढाणी बाढ
A15: 10 | B15: वरिष्ठ शारीरिक शिक्षक | C15: L-10 | D15: पदेन पंचायत प्रारम्भिक शिक्षा अधिकारी रामावि | E15: 9,B | F15: D | G15: भूतपूर्व सैनिक | H15: अंग्रेजी अनिवार्य | I15: 2023-24 | J15: मुजिशिअ/माशि/ | L15: तहसीलदार भू अभिलेख निवाई
A16: 11 | B16: पुस्तकालय अध्यक्ष ग्रेड II | C16: L-11 | D16: मुख्य ब्लॉक प्रारम्भिक शिक्षा अधिकारी | E16: 9,C | F16: A | H16: अंग्रेजी साहित्य | I16: 2024-25 | J16: भू.अ./ | L16: राउमावि बोरखंडी कला
A17: 12 | B17: अध्यापक ग्रेड III | C17: L-12 | D17: मुख्य जिला शिक्षा अधिकारी | E17: 10,A | F17: B | H17: संस्कृत साहित्य | I17: 2025-26 | L17: रामावि नयाटीला
A18: 13 | B18: प्रबोधक | C18: L-13 | D18: संयुक्त निदेशक स्कूल शिक्षा | E18: 10,B | F18: C | H18: इतिहास | I18: 2026-27 | L18: राउमावि बगडवा
A19: 14 | B19: शारीरिक शिक्षक | C19: L-14 | D19: निदेशक माध्यमिक शिक्षा राजस्थान. बीकानेर | E19: 10,C | F19: D | H19: भूगोल | I19: 2027-28 | L19: राउमावि बरोनी टोंक
A20: 15 | B20: प्रबोधक शारीरिक शिक्षक | C20: L-15 | D20: उप निदेशक माध्यमिक शिक्षा अजमेर वृत अजमेर | E20: 11,A | F20: A | H20: राजनिति विज्ञान | I20: 2028-29
A21: 16 | B21: प्रशिक्षु शिक्षक | C21: L-16 | D21: मुख्य जिला शिक्षा अधिकारी माध्यमिक शिक्षा | E21: 11,B | F21: B | H21: अर्थशास्त्र | I21: 2029-30
A22: 17 | B22: पुस्तकालय अध्यक्ष ग्रेड III | C22: L-17 | D22: मुख्य जिला शिक्षा अधिकारी प्रारम्भिक शिक्षा | E22: 11,C | F22: C | H22: चित्रकला
A23: 18 | B23: विशेष शिक्षक | C23: L-18 | D23: तहसीलदार भू अभिलेख | E23: 12,A | F23: D | H23: दर्शनशास्त्र
A24: 19 | B24: सहायक प्रशासनिक अधिकारी | C24: L-19 | E24: 3A-4A | H24: जीव विज्ञान
A25: 20 | B25: वरिष्ठ सहायक | C25: L-20 | E25: 1A-2A | H25: रसायन विज्ञान
A26: 21 | B26: कनिष्ठ सहायक | C26: L-21 | H26: भौतिकशास्त्र
A27: 22 | B27: प्रयोग शाला सहायक | C27: L-22 | H27: कृषि विज्ञान
A28: 23 | B28: प्रयोग शाला सेवक | C28: L-23 | H28: लेखाशास्त्र
A29: 24 | B29: जमादार | C29: L-24 | H29: समा उत्पा कार्य
A30: 25 | B30: सहायक कर्मचारी | H30: कला शिक्षा
A31: 26 | B31: संस्थापन अधिकारी | H31: स्वा शा शि
A32: 27 | B32: प्रशासनिक अधिकारी | H32: पुस्तकालय
A33: 28 | B33: अतिरिक्त प्रशासनिक अधिकारी | H33: सूचना प्रोद्योगिकी
A34: 29 | B34: मुख्य जिला शिक्षा अधिकारी | H34: आजादी के बाद का भारत
A35: 30 | B35: अतिरिक्त जिला शिक्षा अधिकारी
A36: 31 | B36: मुख्य ब्लॉक प्रारम्भिक शिक्षा अधिकारी
A37: 32 | B37: ए सी बी ई ओ प्रथम
A38: 33 | B38: ए सी बी ई ओ दवितीय
A39: 34 | B39: संयुक्त निदेशक स्कूल शिक्षा
A40: 35 | B40: कनिष्ठ लेखाकार
A41: 36 | B41: सहायक लेखाधिकारी प्रथम
A42: 37 | B42: सहायक लेखाधिकारी द्वितीय
A43: 38 | B43: आशुलिपिक
A44: 39 | B44: जिला शिक्षा अधिकारी
A45: 40 | B45: उप जिला शिक्षा अधिकारी शा शि
A46: 41 | B46: पदेन पंचायत प्रारम्भिक शिक्षा अधिकारी
B47: तहसीलदार
B48: पटवारी
B49: भू अभिलेख निरीक्षक
A58: Existing Running Pay Band | F58: PB-5200-20200 | M58: PB-2 (9300-34800) | S58: PB-3 (15600-39100) | X58: PB-4 (37400-67000)
A59: exsiting GP | B59: 1700 | C59: 1750 | D59: 1900 | E59: 2000 | F59: 2400 | G59: 2400 | H59: 2400 | I59: 2800 | J59: 2800 | K59: 3600 | L59: 4200 | M59: 4800 | N59: 5400 | O59: 5400 | P59: 6000 | Q59: 6600 | R59: 6800 | S59: 7200 | T59: 7600 | U59: 8200 | V59: 8700 | W59: 8900 | X59: 9500 | Y59: 10000
A60: existing GP no. | B60: 2 | C60: 3 | D60: 4 | E60: 5 | F60: 9 | G60: 9A | H60: 9B | I60: 10 | J60: 10A | K60: 11 | L60: 12 | M60: 14 | N60: 15 | O60: 15 | P60: 16 | Q60: 17 | R60: 18 | S60: 19 | T60: 20 | U60: 21 | V60: 22 | W60: 23 | X60: 23A | Y60: 24
A61: levels | B61: L-1 | C61: L-2 | D61: L-3 | E61: L-4 | F61: L-5 | G61: L-6 | H61: L-7 | I61: L-8 | J61: L-9 | K61: L-10 | L61: L-11 | M61: L-12 | N61: L-13 | O61: L-14 | P61: L-15 | Q61: L-16 | R61: L-17 | S61: L-18 | T61: L-19 | U61: L-20 | V61: L-21 | W61: L-22 | X61: L-23 | Y61: L-24
A62: 1 | B62: 17700 | C62: 17900 | D62: 18200 | E62: 19200 | F62: 20800 | G62: 21500 | H62: 22400 | I62: 26300 | J62: 28700 | K62: 33800 | L62: 37800 | M62: 44300 | N62: 53100 | O62: 56100 | P62: 60700 | Q62: 67300 | R62: 71000 | S62: 75300 | T62: 79900 | U62: 88900 | V62: 123100 | W62: 129700 | X62: 145800 | Y62: 148800
A63: 2 | B63: 18200 | C63: 18400 | D63: 18700 | E63: 19800 | F63: 21400 | G63: 22100 | H63: 23100 | I63: 27100 | J63: 29600 | K63: 34800 | L63: 38900 | M63: 45600 | N63: 54700 | O63: 57800 | P63: 62500 | Q63: 69300 | R63: 73100 | S63: 77600 | T63: 82300 | U63: 91600 | V63: 126800 | W63: 133600 | X63: 150200 | Y63: 153300
A64: 3 | B64: 18700 | C64: 19000 | D64: 19300 | E64: 20400 | F64: 22000 | G64: 22800 | H64: 23800 | I64: 27900 | J64: 30500 | K64: 35800 | L64: 40100 | M64: 47000 | N64: 56300 | O64: 59500 | P64: 64400 | Q64: 71400 | R64: 75300 | S64: 79900 | T64: 84800 | U64: 94300 | V64: 130600 | W64: 137600 | X64: 154700 | Y64: 157900
A65: 4 | B65: 19300 | C65: 19600 | D65: 19900 | E65: 21000 | F65: 22700 | G65: 23500 | H65: 24500 | I65: 28700 | J65: 31400 | K65: 36900 | L65: 41300 | M65: 48400 | N65: 58000 | O65: 61300 | P65: 66300 | Q65: 73500 | R65: 77600 | S65: 82300 | T65: 87300 | U65: 97100 | V65: 134500 | W65: 141700 | X65: 159300 | Y65: 162600
A66: 5 | B66: 19900 | C66: 20200 | D66: 20500 | E66: 21600 | F66: 23400 | G66: 24200 | H66: 25200 | I66: 29600 | J66: 32300 | K66: 38000 | L66: 42500 | M66: 49900 | N66: 59700 | O66: 63100 | P66: 68300 | Q66: 75700 | R66: 79900 | S66: 84800 | T66: 89900 | U66: 100000 | V66: 138500 | W66: 146000 | X66: 164100 | Y66: 167500
A67: 6 | B67: 20500 | C67: 20800 | D67: 21200 | E67: 22200 | F67: 24100 | G67: 24900 | H67: 26000 | I67: 30500 | J67: 33300 | K67: 39100 | L67: 43800 | M67: 51400 | N67: 61500 | O67: 65000 | P67: 70300 | Q67: 78000 | R67: 82300 | S67: 87300 | T67: 92600 | U67: 103000 | V67: 142700 | W67: 150400 | X67: 169000 | Y67: 172500
A68: 7 | B68: 21100 | C68: 21400 | D68: 21700 | E68: 22900 | F68: 24800 | G68: 25600 | H68: 26800 | I68: 31400 | J68: 34300 | K68: 40300 | L68: 45100 | M68: 52900 | N68: 63300 | O68: 67000 | P68: 72400 | Q68: 80300 | R68: 84800 | S68: 89900 | T68: 95400 | U68: 106100 | V68: 147000 | W68: 154900 | X68: 174100 | Y68: 177700
A69: 8 | B69: 21700 | C69: 22000 | D69: 22400 | E69: 23600 | F69: 25500 | G69: 26400 | H69: 27600 | I69: 32300 | J69: 35300 | K69: 41500 | L69: 46500 | M69: 54500 | N69: 65200 | O69: 69000 | P69: 74600 | Q69: 82700 | R69: 87300 | S69: 92600 | T69: 98300 | U69: 109300 | V69: 151400 | W69: 159500 | X69: 179300 | Y69: 183000
A70: 9 | B70: 22400 | C70: 22700 | D70: 23100 | E70: 24300 | F70: 26300 | G70: 27200 | H70: 28400 | I70: 33300 | J70: 36400 | K70: 42700 | L70: 47900 | M70: 56100 | N70: 67200 | O70: 71100 | P70: 76800 | Q70: 85200 | R70: 89900 | S70: 95400 | T70: 101200 | U70: 112600 | V70: 155900 | W70: 164300 | X70: 184700 | Y70: 188500
A71: 10 | B71: 23100 | C71: 23400 | D71: 23800 | E71: 25000 | F71: 27100 | G71: 28000 | H71: 29300 | I71: 34300 | J71: 37500 | K71: 44000 | L71: 49300 | M71: 57800 | N71: 69200 | O71: 73200 | P71: 79100 | Q71: 87800 | R71: 92600 | S71: 98300 | T71: 104200 | U71: 116000 | V71: 160600 | W71: 169200 | X71: 190200 | Y71: 194200
A72: 11 | B72: 23800 | C72: 24100 | D72: 24500 | E72: 25800 | F72: 27900 | G72: 28800 | H72: 30200 | I72: 35300 | J72: 38600 | K72: 45300 | L72: 50800 | M72: 59500 | N72: 71300 | O72: 75400 | P72: 81500 | Q72: 90400 | R72: 95400 | S72: 101200 | T72: 107300 | U72: 119500 | V72: 165400 | W72: 174300 | X72: 195900 | Y72: 200000
A73: 12 | B73: 24500 | C73: 24800 | D73: 25200 | E73: 26600 | F73: 28700 | G73: 29700 | H73: 31100 | I73: 36400 | J73: 39800 | K73: 46700 | L73: 52300 | M73: 61300 | N73: 73400 | O73: 77700 | P73: 83900 | Q73: 93100 | R73: 98300 | S73: 104200 | T73: 110500 | U73: 123100 | V73: 170400 | W73: 179500 | X73: 201800 | Y73: 206000
A74: 13 | B74: 25200 | C74: 25500 | D74: 26000 | E74: 27400 | F74: 29600 | G74: 30600 | H74: 32000 | I74: 37500 | J74: 41000 | K74: 48100 | L74: 53900 | M74: 63100 | N74: 75600 | O74: 80000 | P74: 86400 | Q74: 95900 | R74: 101200 | S74: 107300 | T74: 113800 | U74: 126800 | V74: 175500 | W74: 184900 | X74: 207900 | Y74: 212200
A75: 14 | B75: 26000 | C75: 26300 | D75: 26800 | E75: 28200 | F75: 30500 | G75: 31500 | H75: 33000 | I75: 38600 | J75: 42200 | K75: 49500 | L75: 55500 | M75: 65000 | N75: 77900 | O75: 82400 | P75: 89000 | Q75: 98800 | R75: 104200 | S75: 110500 | T75: 117200 | U75: 130600 | V75: 180800 | W75: 190400 | X75: 214100 | Y75: 218600
A76: 15 | B76: 26800 | C76: 27100 | D76: 27600 | E76: 29000 | F76: 31400 | G76: 32400 | H76: 34000 | I76: 39800 | J76: 43500 | K76: 51000 | L76: 57200 | M76: 67000 | N76: 80200 | O76: 84900 | P76: 91700 | Q76: 101800 | R76: 107300 | S76: 113800 | T76: 120700 | U76: 134500 | V76: 186200 | W76: 196100
A77: 16 | B77: 27600 | C77: 27900 | D77: 28400 | E77: 29900 | F77: 32300 | G77: 33400 | H77: 35000 | I77: 41000 | J77: 44800 | K77: 52500 | L77: 58900 | M77: 69000 | N77: 82600 | O77: 87400 | P77: 94500 | Q77: 104900 | R77: 110500 | S77: 117200 | T77: 124300 | U77: 138500 | V77: 191800 | W77: 202000
A78: 17 | B78: 28400 | C78: 28700 | D78: 29300 | E78: 30800 | F78: 33300 | G78: 34400 | H78: 36100 | I78: 42200 | J78: 46100 | K78: 54100 | L78: 60700 | M78: 71100 | N78: 85100 | O78: 90000 | P78: 97300 | Q78: 108000 | R78: 113800 | S78: 120700 | T78: 128000 | U78: 142700 | V78: 197600 | W78: 208100
A79: 18 | B79: 29300 | C79: 29600 | D79: 30200 | E79: 31700 | F79: 34300 | G79: 35400 | H79: 37200 | I79: 43500 | J79: 47500 | K79: 55700 | L79: 62500 | M79: 73200 | N79: 87700 | O79: 92700 | P79: 100200 | Q79: 111200 | R79: 117200 | S79: 124300 | T79: 131800 | U79: 147000 | V79: 203500
A80: 19 | B80: 30200 | C80: 30500 | D80: 31100 | E80: 32700 | F80: 35300 | G80: 36500 | H80: 38300 | I80: 44800 | J80: 48900 | K80: 57400 | L80: 64400 | M80: 75400 | N80: 90300 | O80: 95500 | P80: 103200 | Q80: 114500 | R80: 120700 | S80: 128000 | T80: 135800 | U80: 151400
A81: 20 | B81: 31100 | C81: 31400 | D81: 32000 | E81: 33700 | F81: 36400 | G81: 37600 | H81: 39400 | I81: 46100 | J81: 50400 | K81: 59100 | L81: 66300 | M81: 77700 | N81: 93000 | O81: 98400 | P81: 106300 | Q81: 117900 | R81: 124300 | S81: 131800 | T81: 139900 | U81: 155900
A82: 21 | B82: 32000 | C82: 32300 | D82: 33000 | E82: 34700 | F82: 37500 | G82: 38700 | H82: 40600 | I82: 47500 | J82: 51900 | K82: 60900 | L82: 68300 | M82: 80000 | N82: 95800 | O82: 101400 | P82: 109500 | Q82: 121400 | R82: 128000 | S82: 135800 | T82: 144100 | U82: 160600
A83: 22 | B83: 33000 | C83: 33300 | D83: 34000 | E83: 35700 | F83: 38600 | G83: 39900 | H83: 41800 | I83: 48900 | J83: 53500 | K83: 62700 | L83: 70300 | M83: 82400 | N83: 98700 | O83: 104400 | P83: 112800 | Q83: 125000 | R83: 131800 | S83: 139900 | T83: 148400 | U83: 165400
A84: 23 | B84: 34000 | C84: 34300 | D84: 35000 | E84: 36800 | F84: 39800 | G84: 41100 | H84: 43100 | I84: 50400 | J84: 55100 | K84: 64600 | L84: 72400 | M84: 84900 | N84: 101700 | O84: 107500 | P84: 116200 | Q84: 128800 | R84: 135800 | S84: 144100 | T84: 152900 | U84: 170400
A85: 24 | B85: 35000 | C85: 35300 | D85: 36100 | E85: 37900 | F85: 41000 | G85: 42300 | H85: 44400 | I85: 51900 | J85: 56800 | K85: 66500 | L85: 74600 | M85: 87400 | N85: 104800 | O85: 110700 | P85: 119700 | Q85: 132700 | R85: 139900 | S85: 148400 | T85: 157500 | U85: 175500
A86: 25 | B86: 36100 | C86: 36400 | D86: 37200 | E86: 39000 | F86: 42200 | G86: 43600 | H86: 45700 | I86: 53500 | J86: 58500 | K86: 68500 | L86: 76800 | M86: 90000 | N86: 107900 | O86: 114000 | P86: 123300 | Q86: 136700 | R86: 144100 | S86: 152900 | T86: 162200 | U86: 180800
A87: 26 | B87: 37200 | C87: 37500 | D87: 38300 | E87: 40200 | F87: 43500 | G87: 44900 | H87: 47100 | I87: 55100 | J87: 60300 | K87: 70600 | L87: 79100 | M87: 92700 | N87: 111100 | O87: 117400 | P87: 127000 | Q87: 140800 | R87: 148400 | S87: 157500 | T87: 167100 | U87: 186200
A88: 27 | B88: 38300 | C88: 38600 | D88: 39400 | E88: 41400 | F88: 44800 | G88: 46200 | H88: 48500 | I88: 56800 | J88: 62100 | K88: 72700 | L88: 81500 | M88: 95500 | N88: 114400 | O88: 120900 | P88: 130800 | Q88: 145000 | R88: 152900 | S88: 162200 | T88: 172100 | U88: 191800
A89: 28 | B89: 39400 | C89: 39800 | D89: 40600 | E89: 42600 | F89: 46100 | G89: 47600 | H89: 50000 | I89: 58500 | J89: 64000 | K89: 74900 | L89: 83900 | M89: 98400 | N89: 117800 | O89: 124500 | P89: 134700 | Q89: 149400 | R89: 157500 | S89: 167100 | T89: 177300 | U89: 197600
A90: 29 | B90: 40600 | C90: 41000 | D90: 41800 | E90: 43900 | F90: 47500 | G90: 49000 | H90: 51500 | I90: 60300 | J90: 65900 | K90: 77100 | L90: 86400 | M90: 101400 | N90: 121300 | O90: 128200 | P90: 138700 | Q90: 153900 | R90: 162200 | S90: 172100 | T90: 182600 | U90: 203500
A91: 30 | B91: 41800 | C91: 42200 | D91: 43100 | E91: 45200 | F91: 48900 | G91: 50500 | H91: 53000 | I91: 62100 | J91: 67900 | K91: 79400 | L91: 89000 | M91: 104400 | N91: 124900 | O91: 132000 | P91: 142900 | Q91: 158500 | R91: 147100 | S91: 177300 | T91: 188100
A92: 31 | B92: 43100 | C92: 43500 | D92: 44400 | E92: 46600 | F92: 50400 | G92: 52000 | H92: 54600 | I92: 64000 | J92: 69900 | K92: 81800 | L92: 91700 | M92: 107500 | N92: 128600 | O92: 136000 | P92: 147200 | Q92: 163300 | R92: 172100 | S92: 182600 | T92: 193700
A93: 32 | B93: 44400 | C93: 44800 | D93: 45700 | E93: 48000 | F93: 51900 | G93: 53600 | H93: 56200 | I93: 65900 | J93: 72000 | K93: 84300 | L93: 94500 | M93: 110700 | N93: 132500 | O93: 140100 | P93: 151600 | Q93: 168200 | R93: 177300 | S93: 188100 | T93: 199500
A94: 33 | B94: 45700 | C94: 46100 | D94: 47100 | E94: 49400 | F94: 53500 | G94: 55200 | H94: 57900 | I94: 67900 | J94: 74200 | K94: 86800 | L94: 97300 | M94: 114000 | N94: 136600 | O94: 144300 | P94: 156100 | Q94: 173200 | R94: 182600 | S94: 193700
A95: 34 | B95: 47100 | C95: 47500 | D95: 48500 | E95: 50900 | F95: 55100 | G95: 56900 | H95: 59600 | I95: 69900 | J95: 76400 | K95: 89400 | L95: 100200 | M95: 117400 | N95: 140600 | O95: 148600 | P95: 160800 | Q95: 178400 | R95: 188100 | S95: 199500
A96: 35 | B96: 48500 | C96: 48900 | D96: 50000 | E96: 52400 | F96: 56800 | G96: 58600 | H96: 61400 | I96: 72000 | J96: 78700 | K96: 92100 | L96: 103200 | M96: 120900 | N96: 144800 | O96: 153100 | P96: 165600 | Q96: 183800 | R96: 193700
A97: 36 | B97: 50000 | C97: 50400 | D97: 51500 | E97: 54000 | F97: 58500 | G97: 60400 | H97: 63200 | I97: 74200 | J97: 81100 | K97: 94900 | L97: 106300 | M97: 124500 | N97: 149100 | O97: 157700 | P97: 170600 | Q97: 189300 | R97: 199500
A98: 37 | B98: 51500 | C98: 51900 | D98: 53000 | E98: 55600 | F98: 60300 | G98: 62200 | H98: 65100 | I98: 76400 | J98: 83500 | K98: 97700 | L98: 109500 | M98: 128200 | N98: 153600 | O98: 162400 | P98: 175700 | Q98: 195000
A99: 38 | B99: 53000 | C99: 53500 | D99: 54600 | E99: 57300 | F99: 62100 | G99: 64100 | H99: 67100 | I99: 78800 | J99: 86000 | K99: 100600 | L99: 112800 | M99: 132000 | N99: 158200 | O99: 167300 | P99: 181000
A100: 39 | B100: 54600 | C100: 55100 | D100: 56200 | E100: 59000 | F100: 64000 | G100: 66000 | H100: 69100 | I100: 81100 | J100: 88600 | K100: 103600 | L100: 116200 | M100: 136000 | N100: 162900 | O100: 172300 | P100: 186400
A101: 40 | B101: 56200 | C101: 56800 | D101: 57900 | E101: 60800 | F101: 65900 | G101: 68000 | H101: 71200 | I101: 83500 | J101: 91300 | K101: 106700 | L101: 119700 | M101: 140100 | N101: 167800 | O101: 177500 | P101: 192000

Sheet EmpDetail (hidden)
H1: =Master!G2&Master!H2 -> कार्यालय&राजकीय उच्च माध्यमिक विद्यालय ]चौगाई]टोंक
D2: Sesion- | E2: =Master!E3 -> 2021-22 | J2: dkfeZd fooj.k
A3: Ø-la- | B3: uke dfeZd | C3: in uke | D3: inLFkkiu LFkku | E3: tUe fnukad | F3: izFke fu;qfDr fnukad | G3: fu;fer fu;qfä fnukad | H3: orZeku in ij dk;Z xzg.k fnukad | I3: orZeku dk;kZy; esa dk;Zxzg.k fnukad | J3: is eSfVªDl esa ysoy | K3: ewy osru | L3: ih ih | M3: fu;qfä dk izdkj | N3: ek/;fed ;ksX;rk vtZu o"kZ | O3: mPp ek/;fed ;ksX;rk vtZu o"kZ | P3: Lukrd ;ksX;rk vtZu o"kZ | Q3: vf/k Lukrd ;ksX;rk vtZu o"kZ | R3: iz'kSf{kd@rdfudh ;ksX;rk | S3: o"kZ | T3: cSad uke o czkap uke | U3: cSad [kkrk la[;k | V3: dkfeZd vkbZ Mh | W3: lsokfuo`fRr frfFk | X3: ,l vkbZ uacj | Y3: thih,Q uacj | Z3: izku uacj | AA3: nks o"kZ ls de lsok okyk dkfeZd izkscs'kuj | AB3: isu uacj | AD3: LFkkbZ irk | AE3: bZesy vkbZMh | AF3: ekcbZy u0
A4: 1 | B4: fd'ku yky cSjok | C4: प्रधानाचार्य | D4: राउमावि चौगाई | E4: 1962-01-10 | J4: L-16 | K4: 95900 | L4: 0 | M4: पदौन्नति | R4: B.Ed | T4: SBI Pratap Nagar Jaipur | U4: 61096187775 | V4: RJBR199704016633 | W4: =IF(E4="","",DATE(YEAR(E4-1)+60,(MONTH(E4-1))+1,0)) -> 2022-01-31 | X4: 650878 | Y4: 683687 | Z4: 0 | AB4: ACGPB4554L | AD4: ch 415 egs'k uxj Vksad QkVd t;iqj | AF4: 9414912440
A5: 2 | B5: iwj.k pUn y{kdkj | C5: व्याख्याता | D5: राउमावि चौगाई | E5: 1971-07-08 | J5: L-12 | K5: 56100 | L5: 0 | M5: पदौन्नति | R5: B.Ed | T5: SBI Malpura | U5: 5166051766 | V5: RJTO200536022261 | W5: =IF(E5="","",DATE(YEAR(E5-1)+60,(MONTH(E5-1))+1,0)) -> 2031-07-31 | X5: 1013612 | Y5: 0 | Z5: 110081614411 | AB5: ACSPL2673C | AD5: eqiks ykok rglhy ekyiqjk Vksad | AF5: 9928579257
A6: 3 | B6: jktsUnz dqekj tSu | C6: व्याख्याता | D6: राउमावि चौगाई | E6: 1968-09-14 | J6: L-12 | K6: 63100 | L6: 0 | M6: पदौन्नति | R6: B.Ed | T6: BANK OF Baroda Niwai | U6: 1210100009311 | V6: RJTO199236014090 | W6: 2028-09-30 | X6: 718827 | Y6: 635130 | Z6: 0 | AB6: AEPPJ8465H | AD6: nhun;ky dkWyksuh fuokbZ Vksad | AF6: 9252619438
A7: 4 | B7: fd'ku yky cSjok | C7: व्याख्याता | D7: राउमावि चौगाई | E7: 1974-07-07 | J7: L-12 | K7: 54500 | L7: 0 | M7: पदौन्नति | R7: B.Ed | T7: SBI Malpura | U7: 51066051608 | V7: RJTO200536020709 | W7: 2034-07-31 | X7: 1054537 | Y7: 0 | Z7: 110021866597 | AB7: ALCPB0824G | AD7: xzk0 cEcksjh iks0 lksMk rglhy ekyiqjk Vksad | AF7: 9829216208
A8: 5 | B8: lR;ukjk;.k 'kekZ | C8: वरिष्ठ अध्यापक | D8: राउमावि चौगाई | E8: 1962-07-01 | J8: L-13 | K8: 71300 | L8: 0 | M8: पदौन्नति | R8: B.Ed | T8: SBI Malpura | U8: 61073161492 | V8: RJTO198836010114 | W8: 2022-06-30 | X8: 747349 | Y8: 579955 | Z8: 0 | AB8: AFEPS7778C | AD8: eqiks ykok rglhy ekyiqjk Vksad | AF8: 9784023094
A9: 6 | B9: iq"ik tSu | C9: वरिष्ठ अध्यापक | D9: राउमावि चौगाई | E9: 1964-04-10 | J9: L-13 | K9: 73400 | L9: 0 | M9: पदौन्नति | R9: B.Ed | T9: SBI Malpura | U9: 51066027835 | V9: RJTO198636012024 | W9: 2024-04-30 | X9: 718827 | Y9: 602011 | Z9: 0 | AB9: ABHPJ4882D | AD9: 55 izrki uxj ekyiqjk ft0 Vksad | AF9: 9460133496
A10: 7 | B10: vk'kkjke eh.kk | C10: वरिष्ठ अध्यापक | D10: राउमावि चौगाई | E10: 1978-06-11 | J10: L-11 | K10: 52300 | L10: 0 | M10: पदौन्नति | R10: B.Ed | T10: SBI Tonk | U10: 61006465900 | V10: RJJW200522007351 | W10: 2038-06-30 | X10: 962396 | Y10: 0 | Z10: 110061749020 | AB10: ANQPM0064M | AD10: oS'kkyh uxj Vksad | AF10: 8290677300
A11: 8 | B11: t;iky flag | C11: वरिष्ठ अध्यापक | D11: राउमावि चौगाई | E11: 1972-02-02 | J11: L-12 | K11: 63100 | L11: 0 | M11: पदौन्नति | R11: B.Ed | T11: BRGB | U11: 41640100005500 | V11: RJTO199636014861 | W11: 2032-02-29 | X11: 941874 | Y11: 849803 | Z11: 0 | AB11: AKDPS1712Q | AD11: t;iqj | AF11: 9772579009
A12: 9 | B12: jkeizlkn jsxj | C12: वरिष्ठ अध्यापक | D12: राउमावि चौगाई | E12: 1978-06-01 | J12: L-11 | K12: 46500 | L12: 0 | M12: पदौन्नति | R12: B.Ed | T12: SBI Diggi | U12: 61141039012 | V12: RJTO200736007478 | W12: 2038-05-31 | X12: 1089365 | Y12: 0 | Z12: 110041614234 | AB12: BCBPP8558E | AD12: eqiks fMXxh ekyiqjk Vksad | AF12: 9252189004
A13: 10 | B13: egsUnz dqekj tkV | C13: शारीरिक शिक्षक | D13: राउमावि चौगाई | E13: 1976-01-30 | J13: L-12 | K13: 61300 | L13: 0 | M13: सीधी भर्ती | R13: B.Ed | T13: SBI TB Tonk | U13: 61018235247 | V13: RJTO199836017112 | W13: 2036-01-31 | X13: 941203 | Y13: 847557 | Z13: 0 | AB13: AFWPJ2407B | AD13: xzke xksj/kuiqjk iks ykok rg ihiyw Vksad | AE13: mahendradahiya76@gmail.com | AF13: 9929234523
A14: 11 | B14: NksVw yky jsxj | C14: अध्यापक ग्रेड III | D14: राउमावि चौगाई | E14: 1967-07-10 | J14: L-13 | K14: 65200 | L14: 0 | M14: सीधी भर्ती जिला परिषद | R14: B.Ed | T14: SBI TB Tonk | U14: 61018235269 | V14: RJTO199336017828 | W14: 2027-07-31 | X14: 770325 | Y14: 781753 | Z14: 0 | AB14: ADVPR9509B | AD14: xzkiks cksj[k.Mh dyk ihiyw | AF14: 9928053215
A15: 12 | B15: dUgS;k yky egkoj | C15: अध्यापक ग्रेड III | D15: राउमावि चौगाई | E15: 1962-04-05 | J15: L-13 | K15: 65200 | L15: 0 | M15: सीधी भर्ती जिला परिषद | R15: B.Ed | T15: SBI TB Tonk | U15: 61017388885 | V15: RJTO199336010989 | W15: 2022-04-30 | X15: 870219 | Y15: 847233 | Z15: 0 | AB15: AHBPM4917C | AD15: eqiks ykok rglhy ekyiqjk Vksad | AF15: 6377180556
A16: 13 | B16: prqHkqZt tkV | C16: अध्यापक ग्रेड III | D16: राउमावि चौगाई | E16: 1976-04-04 | F16: 2005-04-13 | G16: 2005-04-13 | H16: 2005-04-13 | I16: 2008-07-02 | J16: L-11 | K16: 52300 | L16: 0 | M16: सीधी भर्ती आरपीएससी | N16: 1992 | O16: 1994 | P16: 1997 | Q16: 2008 | R16: B.Ed | S16: 1999 | T16: SBI TB Tonk | U16: 51077382140 | V16: RJTO200536028883 | W16: 2036-04-30 | X16: 868676 | Y16: 0 | Z16: 110011864700 | AB16: AHJPJ2211Q | AD16: xzke ckykiqjk iks ykok ekyiqjk | AE16: chaturbhujjat76@gmail.com | AF16: 9829303549
A17: 14 | B17: vklsQk [kku | C17: अध्यापक ग्रेड III | D17: राउमावि चौगाई | E17: 1971-01-10 | J17: L-11 | K17: 52300 | L17: 0 | M17: सीधी भर्ती जिला परिषद | R17: B.Ed | T17: SBI Tonk | U17: 61075470544 | V17: RJTO200436002236 | W17: 2031-01-31 | X17: 1016167 | Y17: 0 | Z17: 110061924124 | AB17: AOXPK9103K | AD17: cjdkrh uxj ikap cRrh jksM Vksad | AF17: 8233194038
A18: 15 | B18: lq'khyk cSjok | C18: कनिष्ठ सहायक | D18: राउमावि चौगाई | E18: 1995-01-01 | J18: L-5 | K18: 14600 | L18: 0 | M18: सीधी भर्ती नोन आरपीएससी | R18: B.Ed | T18: SBI Pratap Nagar Jaipur | U18: 61126184286 | V18: RJTO202036016697 | W18: 2054-12-31 | X18: 0 | Y18: 0 | Z18: 110184890667 | AA18: Probation | AB18: BZWPB4606D | AD18: 956 U;w lkaxkusj jksM nsoh uxj lksMkyk ft0 t;iqj | AF18: 9166343031
A19: 16 | B19: txnh'k izlkn rsyh | C19: सहायक कर्मचारी | D19: राउमावि चौगाई | E19: 1962-06-04 | J19: L-5 | K19: 34700 | L19: 0 | M19: सीधी भर्ती | R19: B.Ed | T19: Bank of Baroda Piploo | U19: 12880100005699 | V19: RJTO199236015113 | W19: 2022-06-30 | X19: 654004 | Y19: 680993 | Z19: 0 | AB19: ADLPT4551B | AD19: xzkiks lansMk rglhy ihiyw ft0 Vksad | AF19: 9680761111
A20: 17 | B20: jfoUnz dqekj tSu | C20: अध्यापक ग्रेड III | D20: राउप्रावि मोहिनी | E20: 1967-08-24 | J20: L-12 | K20: 65200 | L20: 0 | M20: सीधी भर्ती जिला परिषद | R20: B.Ed | T20: SBI TB Tonk | U20: 61018112167 | V20: RJTO199336008373 | W20: 2027-08-31 | X20: 747869 | Y20: 846397 | Z20: 0 | AB20: ACXPJ6922F | AD20: xzkiks ykok rglhy ekyiqjk Vksad | AF20: 9610704779
A21: 18 | B21: ';ke lqUnj ckxkSM | C21: अध्यापक ग्रेड III | D21: राउप्रावि मोहिनी | E21: 1983-08-10 | J21: L-10 | K21: 40300 | L21: 0 | M21: सीधी भर्ती आरपीएससी | R21: B.Ed | T21: SBI TB Tonk | U21: 61089447521 | V21: RJTO201236016994 | W21: 2043-08-31 | X21: 1268061 | Y21: 0 | Z21: 110044207450 | AB21: CADPB5237K | AD21: xzke eksfguh rglhy ihiyw Vksad | AF21: 9887950370
A22: 19 | B22: d`".kk 'kekZ | C22: प्रबोधक | D22: राउप्रावि मोहिनी | E22: 1972-08-06 | J22: L-11 | K22: 45100 | L22: 0 | M22: सीधी भर्ती जिला परिषद | R22: B.Ed | T22: SBI TB Tonk | U22: 61121720121 | V22: RJTO200836030644 | W22: 2032-08-31 | X22: 1140336 | Y22: 0 | Z22: 110061626026 | AB22: EAPPS9162G | AD22: xzk0iks0 leysVh rglhy egqvk ft0 nkSlk | AF22: 9414664595
A23: 20 | B23: /keZsUnz pkS/kjh | C23: अध्यापक ग्रेड III | D23: राउप्रावि गोरधनपुरा | E23: 1990-03-05 | J23: L-10 | K23: 40300 | L23: 0 | M23: सीधी भर्ती आरपीएससी | R23: B.Ed | T23: SBI TB Tonk | U23: 61167150655 | V23: RJTO201236011120 | W23: 2050-03-31 | X23: 1324303 | Y23: 0 | Z23: 110037612389 | AB23: CMIPD2058P | AD23: xzk0 tkudhoYyHk iqjk rglhy ihiyw Vksad | AF23: 9667545462
A24: 21 | B24: izgykn ekyh | C24: प्रबोधक | D24: राउप्रावि गोरधनपुरा | E24: 1974-08-07 | J24: L-11 | K24: 46500 | L24: 0 | M24: सीधी भर्ती जिला परिषद | R24: B.Ed | T24: SBI TB Tonk | U24: 61017389141 | V24: RJTO200836022671 | W24: 2034-08-31 | X24: 1140023 | Y24: 0 | Z24: 110091621432 | AB24: CIDPP7483D | AD24: xzke eksfguh rglhy ihiyw Vksad | AF24: 7568066321
A25: 22 | B25: jken;ky xqtZj | C25: प्रबोधक | D25: राउप्रावि सोंदीफल | E25: 1977-08-18 | J25: L-11 | K25: 45100 | L25: 0 | M25: सीधी भर्ती जिला परिषद | R25: B.Ed | T25: SBI TB Tonk | U25: 61055845962 | V25: RJTO200836007535 | W25: 2037-08-31 | X25: 1089892 | Y25: 0 | Z25: 110051615567 | AB25: AYOPG9964F | AD25: xzke u;kVhyk iks0 cksj[k.Mh rglhy ihiyw Vksad | AF25: 9950586769
A26: 23 | B26: vkSeizdk'k tkV | C26: अध्यापक ग्रेड III | D26: राउप्रावि सोंदीफल | E26: 1982-10-31 | J26: L-11 | K26: 45100 | L26: 0 | M26: सीधी भर्ती आरपीएससी | R26: B.Ed | T26: SBI TB Tonk | U26: 61041958358 | V26: RJTO200836025577 | W26: 2042-10-31 | X26: 1089403 | Y26: 0 | Z26: 110031626358 | AB26: APRPJ3922L | AD26: xzke dY;k.kiqjk iks cksj[k.Mh ihiyw Vksad | AF26: 9001835498
A27: 24 | B27: vthr flag | C27: अध्यापक ग्रेड III | D27: राप्रावि जानकीवल्लभपुरा | E27: 1987-08-08 | J27: L-10 | K27: 40300 | L27: 0 | M27: सीधी भर्ती आरपीएससी | R27: B.Ed | T27: SBI TB Tonk | U27: 61205589420 | V27: RJTO201336044586 | W27: 2047-08-31 | X27: 1324009 | Y27: 0 | Z27: 110077611157 | AB27: GHHPS0967Q | AD27: xzkiks0 f>jkuk rglhy ihiyw Vksad | AF27: 9887161511
A28: 25 | B28: eq[rkj eha;k | C28: प्रबोधक | D28: राप्रावि जानकीवल्लभपुरा | E28: 1976-07-04 | J28: L-11 | K28: 45100 | L28: 0 | M28: सीधी भर्ती जिला परिषद | R28: B.Ed | T28: SBI TB Tonk | U28: 61058599669 | V28: RJTO200836019528 | W28: 2036-07-31 | X28: 1140087 | Y28: 0 | Z28: 110041615271 | AB28: AYOPM7276L | AD28: xzk0 lqusyk gkthiqjk iks0 nsoiqjk ft0 Vksad | AF28: 8875445566
A29: 26 | B29: eks0 tehy | C29: प्रबोधक | D29: राप्रावि रसूलपुरा | E29: 1968-09-15 | J29: L-11 | K29: 45100 | L29: 0 | M29: सीधी भर्ती जिला परिषद | R29: B.Ed | T29: SBI TB Tonk | U29: 61056714971 | V29: RJTO200836021360 | W29: 2028-09-30 | X29: 1089931 | Y29: 0 | Z29: 110031615277 | AB29: AXCPK1916C | AD29: xzkiks MkjMk rqdhZ rglhy ihiyw Vksad | AF29: 9414681713
A30: 27 | B30: lkaojey tkV | C30: अध्यापक ग्रेड III | D30: राप्रावि रसूलपुरा | E30: 1992-03-03 | J30: L-10 | K30: 38000 | L30: 0 | M30: सीधी भर्ती नोन आरपीएससी | R30: B.Ed | T30: SBI TB Tonk | U30: 61271074682 | V30: RJTO201536033743 | W30: 2052-03-31 | X30: 1325417 | Y30: 0 | Z30: 110181593092 | AB30: BCBPJ3389K | AD30: xzkiks dk'khiqjk rglhy ihiyw Vksad | AF30: 9667110145
A31: 28 | B31: pkS/kjh eksuk jkekorkj | C31: अध्यापक ग्रेड III | D31: राप्रावि मोहिनी ढाणी बाढ | E31: 1990-01-05 | J31: L-10 | K31: 38000 | L31: 0 | M31: सीधी भर्ती नोन आरपीएससी | R31: B.Ed | T31: SBI TB Tonk | U31: 61272377620 | V31: RJTO201536033520 | W31: 2050-01-31 | X31: 1325552 | Y31: 0 | Z31: 110191543848 | AB31: AOIPC3138F | AD31: xzke eksfguh rglhy ihiyw Vksad | AF31: 8094600886
A32: 29 | B32: rkjkpUn tk;loky | C32: प्रबोधक | D32: राप्रावि मोहिनी ढाणी बाढ | E32: 1976-11-11 | J32: L-11 | K32: 41300 | L32: 0 | M32: सीधी भर्ती जिला परिषद | R32: B.Ed | T32: SBI TB Tonk | U32: 61055592066 | V32: RJTO200836022672 | W32: 2036-11-30 | X32: 1140016 | Y32: 0 | Z32: 110051615519 | AB32: BDKPJ6559D | AD32: xzkiks pkSxkbZ rglhy ihiyw ftyk Vksad | AF32: 9166967817
A33: 30 | B33: jketl ;kno | C33: अध्यापक ग्रेड III | D33: राप्रावि बैरवा ढाणी सोन्दीफल | E33: 1970-06-12 | J33: L-12 | K33: 63100 | L33: 0 | M33: सीधी भर्ती जिला परिषद | R33: B.Ed | T33: SBI TB Tonk | U33: 61019435472 | V33: RJTO199436007983 | W33: 2030-06-30 | X33: 748575 | Y33: 845816 | Z33: 0 | AB33: AASPY7179G | AD33: xzkiks cksj[k.Mh rglhy ihiyw Vksad | AF33: 8824745056
A34: 31 | B34: dtksMey eh.kk | C34: अध्यापक ग्रेड III | D34: राप्रावि बैरवा ढाणी सोन्दीफल | E34: 1990-07-01 | J34: L-10 | K34: 38000 | L34: 0 | M34: सीधी भर्ती जिला परिषद | R34: B.Ed | T34: SBI TB Tonk | U34: 61134498929 | V34: RJTO201536032956 | W34: 2050-06-30 | X34: 1325329 | Y34: 0 | Z34: 110101542035 | AB34: BXMPM7839M | AD34: xzk0 leniqjk iks0 cksj[k.Mh dykW rglhy ihiyw ft0 Vksad | AF34: 9166474635
A35: 32 | B35: /kaut; xkSRre | C35: अध्यापक ग्रेड III | D35: राउप्रावि गोरधनपुरा | E35: 1986-08-25 | F35: 2018-04-03 | G35: 2020-04-03 | H35: 2018-04-03 | I35: 2018-08-31 | J35: L-10 | K35: 34800 | L35: 0 | M35: सीधी भर्ती जिला परिषद | R35: B.Ed | T35: SBI Diggi | U35: 61033657191 | V35: RJBW201808014066 | W35: 2046-08-31 | X35: 1447211 | Y35: 0 | Z35: 110112693054 | AB35: AOWPG8480N | AD35: xzkiks fMXxh rglhy ekyiqjk Vksad | AF35: 9667531214
A36: 33 | B36: d`".kk xaxoky | C36: अध्यापक ग्रेड III | D36: राउप्रावि गोरधनपुरा | E36: 1995-06-20 | F36: 2018-12-21 | G36: 2020-12-21 | H36: 2018-12-21 | I36: 2018-12-21 | J36: L-10 | K36: 33800 | L36: 0 | M36: सीधी भर्ती जिला परिषद | R36: B.Ed | T36: SBI Niwai | U36: 61148796699 | V36: RJTO201836053346 | W36: 2055-06-30 | X36: 1447209 | Y36: 0 | Z36: 110153207446 | AB36: CSEPG6332F | AD36: ,QlhvkbZ xksnke ds ikl fuokbZ Vksad | AF36: 8005747070
A37: 34 | B37: n'kjFk dqekj ;kno | C37: अध्यापक ग्रेड III | D37: राउप्रावि सोंदीफल | E37: 1991-01-01 | F37: 2018-09-29 | G37: 2020-09-29 | H37: 2018-09-29 | I37: 2018-09-29 | J37: L-10 | K37: 23700 | L37: 0 | M37: सीधी भर्ती जिला परिषद | R37: B.Ed | T37: SBI Tonk | U37: 32480142484 | V37: RJTO201836032921 | W37: 2050-12-31 | X37: 0 | Y37: 0 | Z37: 110082740763 | AA37: Probation | AB37: AIJPY4777B | AD37: xzk0 taokyh iks0 ukusj rglhy ihiyw ft0 Vksad | AF37: 9251862658
A38: 35 | B38: d`".k yky tkV | C38: अध्यापक ग्रेड III | D38: राउप्रावि सोंदीफल | E38: 1990-07-18 | F38: 2018-10-02 | G38: 2020-10-02 | H38: 2018-10-02 | I38: 2018-10-02 | J38: L-10 | K38: 33800 | L38: 0 | M38: सीधी भर्ती जिला परिषद | R38: B.Ed | T38: SBI TB Tonk | U38: 51104741759 | V38: RJTO201836032954 | W38: 2050-07-31 | X38: 1447215 | Y38: 0 | Z38: 110102966759 | AB38: BFMPJ9260B | AD38: xzkiks pkSxkbZa rglhy ihiyw Vksad | AF38: 8696014039
A39: 36 | B39: nhisUnz dqekj iztkir | C39: अध्यापक ग्रेड III | D39: राउप्रावि सोंदीफल | E39: 1994-07-12 | F39: 2018-12-28 | G39: 2020-12-28 | H39: 2018-12-28 | I39: 2019-03-08 | J39: L-10 | K39: 33800 | L39: 0 | M39: सीधी भर्ती जिला परिषद | R39: B.Ed | T39: SBI | U39: 38529450856 | V39: RJSM201832057043 | W39: 2054-07-31 | X39: 1447214 | Y39: 0 | Z39: 111103230035 | AB39: ESNPP1895K | AD39: xzk0iks0 cksjMh rglhy teokjkex< ft0 t;iqj | AF39: 9887592568
A40: 37 | B40: uohu dqekj | C40: अध्यापक ग्रेड III | D40: राउप्रावि मोहिनी | E40: 1995-04-13 | F40: 2018-12-21 | G40: 2020-12-21 | H40: 2018-12-21 | I40: 2019-03-09 | J40: L-10 | K40: 33800 | L40: 0 | M40: सीधी भर्ती जिला परिषद | R40: B.Ed | T40: SBI | U40: 20163229184 | V40: RJKO201827053311 | W40: 2055-04-30 | X40: 1447212 | Y40: 0 | Z40: 110133359860 | AB40: GMVPK0622K | AD40: xzk0 Jh;klj dyk ok;k uqvk ft0 >qu>quq | AF40: 8094336985
A41: 38 | B41: ehrs'k dqekj 'kekZ | C41: अध्यापक ग्रेड III | D41: राउप्रावि मोहिनी | E41: 1989-08-13 | F41: 2018-04-02 | G41: 2020-04-02 | H41: 2018-04-02 | I41: 2018-09-13 | J41: L-10 | K41: 34800 | L41: 0 | M41: सीधी भर्ती जिला परिषद | R41: B.Ed | T41: SBI | U41: 61030857272 | V41: RJBW201808013741 | W41: 2049-08-31 | X41: 1447213 | Y41: 0 | Z41: 110142729623 | AB41: BRDPS2559F | AD41: uUn fogkj dkWyksuh cLlh ft0 t;iqj | AF41: 9928476888
A42: 39 | B42: eUtw eh.kk | C42: वरिष्ठ अध्यापक | D42: राउप्रावि गोरधनपुरा | E42: 1991-01-06 | F42: 2018-09-28 | G42: 2020-09-29 | H42: 2018-09-28 | I42: 2020-09-29 | J42: L-10 | K42: 33800 | L42: 0 | M42: सीधी भर्ती आरपीएससी | R42: B.Ed | T42: SBI | U42: 37975429233 | V42: RJDA201813019900 | W42: 2051-01-31 | X42: 1447210 | Y42: 0 | Z42: 111102907638 | AA42: Probation | AB42: EKJPM1951B | AD42: nkSlk | AF42: 7737946347
A43: 40 | B43: eatw pkS/kjh | C43: वरिष्ठ अध्यापक | D43: राउप्रावि सोंदीफल | E43: 1991-08-04 | F43: 2020-09-29 | G43: 2020-09-29 | H43: 2020-09-29 | I43: 2020-09-29 | J43: L-11 | K43: 26500 | L43: 0 | M43: सीधी भर्ती आरपीएससी | R43: B.Ed | T43: SBI Jaipur | U43: 51106823696 | V43: RJTO202036032569 | W43: 2051-08-31 | X43: 0 | Y43: 0 | Z43: 110135080896 | AA43: Probation | AB43: CBYPC2010D | AD43: t;iqj | AF43: 9694544544
A44: 41
A45: 42
A46: 43
A47: 44
A48: 45
A49: 46
A50: 47
A51: 48
A52: 49
A53: 50
A54: 51
A55: 52
A56: 53
A57: 54
A58: 55
A59: 56
A60: 57
A61: 58
A62: 59
A63: 60
A64: 61
A65: 62
A66: 63
A67: 64
A68: 65
A69: 66 | W69: =IF(E69="","",DATE(YEAR(E69-1)+60,(MONTH(E69-1))+1,0)) -> 
A70: 67
A71: 68
A72: 69
A73: 70
A74: 71
A75: 72
A76: 73
A77: 74
A78: 75
A79: 76
A80: 77
A81: 78
A82: 79
A83: 80
A84: 81
A85: 82
A86: 83
A87: 84
A88: 85
A89: 86
A90: 87
A91: 88
A92: 89
A93: 90
A94: 91
A95: 92
A96: 93
A97: 94
A98: 95
A99: 96
A100: 97
A101: 98
A102: 99
A103: 100

Sheet Leave Sanction (hidden)
B1: =Master!G2&Master!H2 -> कार्यालय&राजकीय उच्च माध्यमिक विद्यालय ]चौगाई]टोंक | P1: EARNED LEAVE RSR-91,92 | S1: निजी कार्य
B2: dk;kZy; vkns'k | P2: HALF PAY LEAVE RSR-93(1),94 | S2: स्वयं की बीमारी
P3: COMMUTED LEAVE RSR-93(2),94 | S3: प्रसूति
B4: fuEukafdr dkfeZdksa dks Lo;a ds vkosnu ij muds uke ds lEeq[k vafdr fooj.kkuqlkj jktLFkku flfoy lsok fu;eksa ds vuq:i | P4: EXTRA ORDINARY LEAVE RSR-96 | S4: पितृत्व
B5: vodk'k Lohd`r fd;k tkrk gS ,oa lacaf/kr dkfeZd ds vodk'k [kkrs ls de djus dh Lohd`fr iznku dh tkrh gS A | P5: MATERNATY LEAVE RSR-103 | S5: अन्य कार्य
A6: dkfeZd Ø-la- | B6: Ø-la- | C6: uke dkfeZd | D6: in | E6: inLFkkiu LFkku | F6: vodk'k | G6: vof/k | H6: fnol | J6: vodk'k dk izdkj o fu;e | K6: vodk'k dk dkj.k | P6: PATERNITY LEAVE RSR-103A | S6: अध्ययन अवकाश
A7: 40 | B7: =IF(C7="","",1) -> 1 | C7: =IF(ISNA(VLOOKUP($A7,$L$7:$O$106,2,FALSE)),"",VLOOKUP($A7,$L$7:$O$106,2,FALSE)) -> eatw pkS/kjh | D7: =IF(ISNA(VLOOKUP($A7,$L$7:$O$106,3,FALSE)),"",VLOOKUP($A7,$L$7:$O$106,3,FALSE)) -> वरिष्ठ अध्यापक | E7: =IF(ISNA(VLOOKUP($A7,$L$7:$O$106,4,FALSE)),"",VLOOKUP($A7,$L$7:$O$106,4,FALSE)) -> राउप्रावि सोंदीफल | F7: 2020-11-19 | G7: 2021-05-17 | H7: =IF(F7="","",(G7-F7)+1) -> 180 | I7: =IF(H7="","",IF(J7="COMMUTED LEAVE RSR-93(2),94",H7*2&"HPL","")) ->  | J7: MATERNATY LEAVE RSR-103 | K7: प्रसूति | L7: =EmpDetail!A4 -> 1 | M7: =EmpDetail!B4 -> fd'ku yky cSjok | N7: =EmpDetail!C4 -> प्रधानाचार्य | O7: =EmpDetail!D4 -> राउमावि चौगाई | P7: Leave not Due RSR-93(3),94 | S7: सन्तान देखभाल या परीक्षा
B8: =IF(C8="","",B7+1) ->  | C8: =IF(ISNA(VLOOKUP($A8,$L$7:$O$106,2,FALSE)),"",VLOOKUP($A8,$L$7:$O$106,2,FALSE)) ->  | D8: =IF(ISNA(VLOOKUP($A8,$L$7:$O$106,3,FALSE)),"",VLOOKUP($A8,$L$7:$O$106,3,FALSE)) ->  | E8: =IF(ISNA(VLOOKUP($A8,$L$7:$O$106,4,FALSE)),"",VLOOKUP($A8,$L$7:$O$106,4,FALSE)) ->  | H8: =IF(F8="","",(G8-F8)+1) ->  | I8: =IF(H8="","",IF(J8="COMMUTED LEAVE RSR-93(2),94",H8*2&"HPL","")) ->  | L8: =EmpDetail!A5 -> 2 | M8: =EmpDetail!B5 -> iwj.k pUn y{kdkj | N8: =EmpDetail!C5 -> व्याख्याता | O8: =EmpDetail!D5 -> राउमावि चौगाई | P8: Child Adoption Leave RSR-103B | S8: संतान दत्तक ग्रहण
B9: =IF(C9="","",B8+1) ->  | L9: =EmpDetail!A6 -> 3 | M9: =EmpDetail!B6 -> jktsUnz dqekj tSu | N9: =EmpDetail!C6 -> व्याख्याता | O9: =EmpDetail!D6 -> राउमावि चौगाई | P9: Chid Care Leave RSR-103C | S9: विशेष असर्मथता
L10: =EmpDetail!A7 -> 4 | M10: =EmpDetail!B7 -> fd'ku yky cSjok | N10: =EmpDetail!C7 -> व्याख्याता | O10: =EmpDetail!D7 -> राउमावि चौगाई | P10: Special Disability Leave RSR-99-102 | S10: बन्धयाकरण
L11: =EmpDetail!A8 -> 5 | M11: =EmpDetail!B8 -> lR;ukjk;.k 'kekZ | N11: =EmpDetail!C8 -> वरिष्ठ अध्यापक | O11: =EmpDetail!D8 -> राउमावि चौगाई | P11: Study Leave RSR-109-121 | S11: क्षतिपुर्ति अवकाश
L12: =EmpDetail!A9 -> 6 | M12: =EmpDetail!B9 -> iq"ik tSu | N12: =EmpDetail!C9 -> वरिष्ठ अध्यापक | O12: =EmpDetail!D9 -> राउमावि चौगाई | P12: Non Puerperal/Vasectomy Leave RSR-Vol-2 Apedx-1(III) | S12: सन्क्रामक रोग
L13: =EmpDetail!A10 -> 7 | M13: =EmpDetail!B10 -> vk'kkjke eh.kk | N13: =EmpDetail!C10 -> वरिष्ठ अध्यापक | O13: =EmpDetail!D10 -> राउमावि चौगाई | P13: Special Casual Leave RSR-Vol-2 Apedx-1(III) | S13: विशेष कार्य
L14: =EmpDetail!A11 -> 8 | M14: =EmpDetail!B11 -> t;iky flag | N14: =EmpDetail!C11 -> वरिष्ठ अध्यापक | O14: =EmpDetail!D11 -> राउमावि चौगाई | P14: Compensation Leave RSR-Vol-2 Apedx-1(IIIA)
L15: =EmpDetail!A12 -> 9 | M15: =EmpDetail!B12 -> jkeizlkn jsxj | N15: =EmpDetail!C12 -> वरिष्ठ अध्यापक | O15: =EmpDetail!D12 -> राउमावि चौगाई | P15: Quarentine Leave RSR-Vol-2 Apedx-1(IV)
L16: =EmpDetail!A13 -> 10 | M16: =EmpDetail!B13 -> egsUnz dqekj tkV | N16: =EmpDetail!C13 -> शारीरिक शिक्षक | O16: =EmpDetail!D13 -> राउमावि चौगाई
L17: =EmpDetail!A14 -> 11 | M17: =EmpDetail!B14 -> NksVw yky jsxj | N17: =EmpDetail!C14 -> अध्यापक ग्रेड III | O17: =EmpDetail!D14 -> राउमावि चौगाई
L18: =EmpDetail!A15 -> 12 | M18: =EmpDetail!B15 -> dUgS;k yky egkoj | N18: =EmpDetail!C15 -> अध्यापक ग्रेड III | O18: =EmpDetail!D15 -> राउमावि चौगाई
L19: =EmpDetail!A16 -> 13 | M19: =EmpDetail!B16 -> prqHkqZt tkV | N19: =EmpDetail!C16 -> अध्यापक ग्रेड III | O19: =EmpDetail!D16 -> राउमावि चौगाई
L20: =EmpDetail!A17 -> 14 | M20: =EmpDetail!B17 -> vklsQk [kku | N20: =EmpDetail!C17 -> अध्यापक ग्रेड III | O20: =EmpDetail!D17 -> राउमावि चौगाई
L21: =EmpDetail!A18 -> 15 | M21: =EmpDetail!B18 -> lq'khyk cSjok | N21: =EmpDetail!C18 -> कनिष्ठ सहायक | O21: =EmpDetail!D18 -> राउमावि चौगाई
L22: =EmpDetail!A19 -> 16 | M22: =EmpDetail!B19 -> txnh'k izlkn rsyh | N22: =EmpDetail!C19 -> सहायक कर्मचारी | O22: =EmpDetail!D19 -> राउमावि चौगाई
J23: =Master!B2 -> प्रधानाचार्य | L23: =EmpDetail!A20 -> 17 | M23: =EmpDetail!B20 -> jfoUnz dqekj tSu | N23: =EmpDetail!C20 -> अध्यापक ग्रेड III | O23: =EmpDetail!D20 -> राउप्रावि मोहिनी
J24: =Master!B3 -> राजकीय उच्च माध्यमिक विद्यालय | L24: =EmpDetail!A21 -> 18 | M24: =EmpDetail!B21 -> ';ke lqUnj ckxkSM | N24: =EmpDetail!C21 -> अध्यापक ग्रेड III | O24: =EmpDetail!D21 -> राउप्रावि मोहिनी
J25: =Master!B4 -> चौगाई]टोंक | L25: =EmpDetail!A22 -> 19 | M25: =EmpDetail!B22 -> d`".kk 'kekZ | N25: =EmpDetail!C22 -> प्रबोधक | O25: =EmpDetail!D22 -> राउप्रावि मोहिनी
B26: Øekad& | C26: =Master!H3&Master!I3&Master!J3&Master!E3&"/" -> राउमावि/चौगाई/संस्था/2021-22/ | J26: fnukad& | K26: =TODAY() -> 2021-06-19 | L26: =EmpDetail!A23 -> 20 | M26: =EmpDetail!B23 -> /keZsUnz pkS/kjh | N26: =EmpDetail!C23 -> अध्यापक ग्रेड III | O26: =EmpDetail!D23 -> राउप्रावि गोरधनपुरा
C27: izfrfyfi lwpukFkZ ,oa ikyukFkZ | L27: =EmpDetail!A24 -> 21 | M27: =EmpDetail!B24 -> izgykn ekyh | N27: =EmpDetail!C24 -> प्रबोधक | O27: =EmpDetail!D24 -> राउप्रावि गोरधनपुरा
B28: 1 | C28: dks"kkf/kdkjh@mi dks"kkf/kdkjh | D28: =Master!H4 -> पीपलू | L28: =EmpDetail!A25 -> 22 | M28: =EmpDetail!B25 -> jken;ky xqtZj | N28: =EmpDetail!C25 -> प्रबोधक | O28: =EmpDetail!D25 -> राउप्रावि सोंदीफल
B29: 2 | C29: ys[kk 'kk[kk LFkkuh; dk;kZy;@fo|ky; | L29: =EmpDetail!A26 -> 23 | M29: =EmpDetail!B26 -> vkSeizdk'k tkV | N29: =EmpDetail!C26 -> अध्यापक ग्रेड III | O29: =EmpDetail!D26 -> राउप्रावि सोंदीफल
B30: 3 | C30: dkfeZd O;fDrxr iaftdk | L30: =EmpDetail!A27 -> 24 | M30: =EmpDetail!B27 -> vthr flag | N30: =EmpDetail!C27 -> अध्यापक ग्रेड III | O30: =EmpDetail!D27 -> राप्रावि जानकीवल्लभपुरा
B31: 4 | C31: lEcfU/kr dkfeZd | J31: =J23 -> प्रधानाचार्य | L31: =EmpDetail!A28 -> 25 | M31: =EmpDetail!B28 -> eq[rkj eha;k | N31: =EmpDetail!C28 -> प्रबोधक | O31: =EmpDetail!D28 -> राप्रावि जानकीवल्लभपुरा
J32: =J24 -> राजकीय उच्च माध्यमिक विद्यालय | L32: =EmpDetail!A29 -> 26 | M32: =EmpDetail!B29 -> eks0 tehy | N32: =EmpDetail!C29 -> प्रबोधक | O32: =EmpDetail!D29 -> राप्रावि रसूलपुरा
J33: =J25 -> चौगाई]टोंक | L33: =EmpDetail!A30 -> 27 | M33: =EmpDetail!B30 -> lkaojey tkV | N33: =EmpDetail!C30 -> अध्यापक ग्रेड III | O33: =EmpDetail!D30 -> राप्रावि रसूलपुरा
L34: =EmpDetail!A31 -> 28 | M34: =EmpDetail!B31 -> pkS/kjh eksuk jkekorkj | N34: =EmpDetail!C31 -> अध्यापक ग्रेड III | O34: =EmpDetail!D31 -> राप्रावि मोहिनी ढाणी बाढ
L35: =EmpDetail!A32 -> 29 | M35: =EmpDetail!B32 -> rkjkpUn tk;loky | N35: =EmpDetail!C32 -> प्रबोधक | O35: =EmpDetail!D32 -> राप्रावि मोहिनी ढाणी बाढ
L36: =EmpDetail!A33 -> 30 | M36: =EmpDetail!B33 -> jketl ;kno | N36: =EmpDetail!C33 -> अध्यापक ग्रेड III | O36: =EmpDetail!D33 -> राप्रावि बैरवा ढाणी सोन्दीफल
L37: =EmpDetail!A34 -> 31 | M37: =EmpDetail!B34 -> dtksMey eh.kk | N37: =EmpDetail!C34 -> अध्यापक ग्रेड III | O37: =EmpDetail!D34 -> राप्रावि बैरवा ढाणी सोन्दीफल
L38: =EmpDetail!A35 -> 32 | M38: =EmpDetail!B35 -> /kaut; xkSRre | N38: =EmpDetail!C35 -> अध्यापक ग्रेड III | O38: =EmpDetail!D35 -> राउप्रावि गोरधनपुरा
L39: =EmpDetail!A36 -> 33 | M39: =EmpDetail!B36 -> d`".kk xaxoky | N39: =EmpDetail!C36 -> अध्यापक ग्रेड III | O39: =EmpDetail!D36 -> राउप्रावि गोरधनपुरा
L40: =EmpDetail!A37 -> 34 | M40: =EmpDetail!B37 -> n'kjFk dqekj ;kno | N40: =EmpDetail!C37 -> अध्यापक ग्रेड III | O40: =EmpDetail!D37 -> राउप्रावि सोंदीफल
L41: =EmpDetail!A38 -> 35 | M41: =EmpDetail!B38 -> d`".k yky tkV | N41: =EmpDetail!C38 -> अध्यापक ग्रेड III | O41: =EmpDetail!D38 -> राउप्रावि सोंदीफल
L42: =EmpDetail!A39 -> 36 | M42: =EmpDetail!B39 -> nhisUnz dqekj iztkir | N42: =EmpDetail!C39 -> अध्यापक ग्रेड III | O42: =EmpDetail!D39 -> राउप्रावि सोंदीफल
L43: =EmpDetail!A40 -> 37 | M43: =EmpDetail!B40 -> uohu dqekj | N43: =EmpDetail!C40 -> अध्यापक ग्रेड III | O43: =EmpDetail!D40 -> राउप्रावि मोहिनी
L44: =EmpDetail!A41 -> 38 | M44: =EmpDetail!B41 -> ehrs'k dqekj 'kekZ | N44: =EmpDetail!C41 -> अध्यापक ग्रेड III | O44: =EmpDetail!D41 -> राउप्रावि मोहिनी
L45: =EmpDetail!A42 -> 39 | M45: =EmpDetail!B42 -> eUtw eh.kk | N45: =EmpDetail!C42 -> वरिष्ठ अध्यापक | O45: =EmpDetail!D42 -> राउप्रावि गोरधनपुरा
L46: =EmpDetail!A43 -> 40 | M46: =EmpDetail!B43 -> eatw pkS/kjh | N46: =EmpDetail!C43 -> वरिष्ठ अध्यापक | O46: =EmpDetail!D43 -> राउप्रावि सोंदीफल
L47: =EmpDetail!A44 -> 41 | M47: =EmpDetail!B44 -> 0 | N47: =EmpDetail!C44 -> 0 | O47: =EmpDetail!D44 -> 0
L48: =EmpDetail!A45 -> 42 | M48: =EmpDetail!B45 -> 0 | N48: =EmpDetail!C45 -> 0 | O48: =EmpDetail!D45 -> 0
L49: =EmpDetail!A46 -> 43 | M49: =EmpDetail!B46 -> 0 | N49: =EmpDetail!#REF! ->  | O49: =EmpDetail!#REF! -> 
L50: =EmpDetail!A47 -> 44 | M50: =EmpDetail!B47 -> 0 | N50: =EmpDetail!C47 -> 0 | O50: =EmpDetail!D47 -> 0
L51: =EmpDetail!A48 -> 45 | M51: =EmpDetail!B48 -> 0 | N51: =EmpDetail!C48 -> 0 | O51: =EmpDetail!D48 -> 0
L52: =EmpDetail!A49 -> 46 | M52: =EmpDetail!B49 -> 0 | N52: =EmpDetail!C49 -> 0 | O52: =EmpDetail!D49 -> 0
L53: =EmpDetail!A50 -> 47 | M53: =EmpDetail!B50 -> 0 | N53: =EmpDetail!C50 -> 0 | O53: =EmpDetail!D50 -> 0
L54: =EmpDetail!A51 -> 48 | M54: =EmpDetail!B51 -> 0 | N54: =EmpDetail!C51 -> 0 | O54: =EmpDetail!D51 -> 0
L55: =EmpDetail!A52 -> 49 | M55: =EmpDetail!B52 -> 0 | N55: =EmpDetail!C52 -> 0 | O55: =EmpDetail!D52 -> 0
L56: =EmpDetail!A53 -> 50 | M56: =EmpDetail!B53 -> 0 | N56: =EmpDetail!C53 -> 0 | O56: =EmpDetail!D53 -> 0
L57: =EmpDetail!A54 -> 51 | M57: =EmpDetail!B54 -> 0 | N57: =EmpDetail!C54 -> 0 | O57: =EmpDetail!D54 -> 0
L58: =EmpDetail!A55 -> 52 | M58: =EmpDetail!B55 -> 0 | N58: =EmpDetail!C55 -> 0 | O58: =EmpDetail!D55 -> 0
L59: =EmpDetail!A56 -> 53 | M59: =EmpDetail!B56 -> 0 | N59: =EmpDetail!C56 -> 0 | O59: =EmpDetail!D56 -> 0
L60: =EmpDetail!A57 -> 54 | M60: =EmpDetail!B57 -> 0 | N60: =EmpDetail!C57 -> 0 | O60: =EmpDetail!D57 -> 0
L61: =EmpDetail!A58 -> 55 | M61: =EmpDetail!B58 -> 0 | N61: =EmpDetail!C58 -> 0 | O61: =EmpDetail!D58 -> 0
L62: =EmpDetail!A59 -> 56 | M62: =EmpDetail!B59 -> 0 | N62: =EmpDetail!C59 -> 0 | O62: =EmpDetail!D59 -> 0
L63: =EmpDetail!A60 -> 57 | M63: =EmpDetail!B60 -> 0 | N63: =EmpDetail!C60 -> 0 | O63: =EmpDetail!D60 -> 0
L64: =EmpDetail!A61 -> 58 | M64: =EmpDetail!B61 -> 0 | N64: =EmpDetail!C61 -> 0 | O64: =EmpDetail!D61 -> 0
L65: =EmpDetail!A62 -> 59 | M65: =EmpDetail!B62 -> 0 | N65: =EmpDetail!C62 -> 0 | O65: =EmpDetail!D62 -> 0
L66: =EmpDetail!A63 -> 60 | M66: =EmpDetail!B63 -> 0 | N66: =EmpDetail!C63 -> 0 | O66: =EmpDetail!D63 -> 0
L67: =EmpDetail!A64 -> 61 | M67: =EmpDetail!B64 -> 0 | N67: =EmpDetail!C64 -> 0 | O67: =EmpDetail!D64 -> 0
L68: =EmpDetail!A65 -> 62 | M68: =EmpDetail!B65 -> 0 | N68: =EmpDetail!C65 -> 0 | O68: =EmpDetail!D65 -> 0
L69: =EmpDetail!A66 -> 63 | M69: =EmpDetail!B66 -> 0 | N69: =EmpDetail!C66 -> 0 | O69: =EmpDetail!D66 -> 0
L70: =EmpDetail!A67 -> 64 | M70: =EmpDetail!B67 -> 0 | N70: =EmpDetail!C67 -> 0 | O70: =EmpDetail!D67 -> 0
L71: =EmpDetail!A68 -> 65 | M71: =EmpDetail!B68 -> 0 | N71: =EmpDetail!C68 -> 0 | O71: =EmpDetail!D68 -> 0
L72: =EmpDetail!A69 -> 66 | M72: =EmpDetail!B69 -> 0 | N72: =EmpDetail!C69 -> 0 | O72: =EmpDetail!D69 -> 0
L73: =EmpDetail!A70 -> 67 | M73: =EmpDetail!B70 -> 0 | N73: =EmpDetail!C70 -> 0 | O73: =EmpDetail!D70 -> 0
L74: =EmpDetail!A71 -> 68 | M74: =EmpDetail!B71 -> 0 | N74: =EmpDetail!C71 -> 0 | O74: =EmpDetail!D71 -> 0
L75: =EmpDetail!A72 -> 69 | M75: =EmpDetail!B72 -> 0 | N75: =EmpDetail!C72 -> 0 | O75: =EmpDetail!D72 -> 0
L76: =EmpDetail!A73 -> 70 | M76: =EmpDetail!B73 -> 0 | N76: =EmpDetail!C73 -> 0 | O76: =EmpDetail!D73 -> 0
L77: =EmpDetail!A74 -> 71 | M77: =EmpDetail!B74 -> 0 | N77: =EmpDetail!C74 -> 0 | O77: =EmpDetail!D74 -> 0
L78: =EmpDetail!A75 -> 72 | M78: =EmpDetail!B75 -> 0 | N78: =EmpDetail!C75 -> 0 | O78: =EmpDetail!D75 -> 0
L79: =EmpDetail!A76 -> 73 | M79: =EmpDetail!B76 -> 0 | N79: =EmpDetail!C76 -> 0 | O79: =EmpDetail!D76 -> 0
L80: =EmpDetail!A77 -> 74 | M80: =EmpDetail!B77 -> 0 | N80: =EmpDetail!C77 -> 0 | O80: =EmpDetail!D77 -> 0
L81: =EmpDetail!A78 -> 75 | M81: =EmpDetail!B78 -> 0 | N81: =EmpDetail!C78 -> 0 | O81: =EmpDetail!D78 -> 0
L82: =EmpDetail!A79 -> 76 | M82: =EmpDetail!B79 -> 0 | N82: =EmpDetail!C79 -> 0 | O82: =EmpDetail!D79 -> 0
L83: =EmpDetail!A80 -> 77 | M83: =EmpDetail!B80 -> 0 | N83: =EmpDetail!C80 -> 0 | O83: =EmpDetail!D80 -> 0
L84: =EmpDetail!A81 -> 78 | M84: =EmpDetail!B81 -> 0 | N84: =EmpDetail!C81 -> 0 | O84: =EmpDetail!D81 -> 0
L85: =EmpDetail!A82 -> 79 | M85: =EmpDetail!B82 -> 0 | N85: =EmpDetail!C82 -> 0 | O85: =EmpDetail!D82 -> 0
L86: =EmpDetail!A83 -> 80 | M86: =EmpDetail!B83 -> 0 | N86: =EmpDetail!C83 -> 0 | O86: =EmpDetail!D83 -> 0
L87: =EmpDetail!A84 -> 81 | M87: =EmpDetail!B84 -> 0 | N87: =EmpDetail!C84 -> 0 | O87: =EmpDetail!D84 -> 0
L88: =EmpDetail!A85 -> 82 | M88: =EmpDetail!B85 -> 0 | N88: =EmpDetail!C85 -> 0 | O88: =EmpDetail!D85 -> 0
L89: =EmpDetail!A86 -> 83 | M89: =EmpDetail!B86 -> 0 | N89: =EmpDetail!C86 -> 0 | O89: =EmpDetail!D86 -> 0
L90: =EmpDetail!A87 -> 84 | M90: =EmpDetail!B87 -> 0 | N90: =EmpDetail!C87 -> 0 | O90: =EmpDetail!D87 -> 0
L91: =EmpDetail!A88 -> 85 | M91: =EmpDetail!B88 -> 0 | N91: =EmpDetail!C88 -> 0 | O91: =EmpDetail!D88 -> 0
L92: =EmpDetail!A89 -> 86 | M92: =EmpDetail!B89 -> 0 | N92: =EmpDetail!C89 -> 0 | O92: =EmpDetail!D89 -> 0
L93: =EmpDetail!A90 -> 87 | M93: =EmpDetail!B90 -> 0 | N93: =EmpDetail!C90 -> 0 | O93: =EmpDetail!D90 -> 0
L94: =EmpDetail!A91 -> 88 | M94: =EmpDetail!B91 -> 0 | N94: =EmpDetail!C91 -> 0 | O94: =EmpDetail!D91 -> 0
L95: =EmpDetail!A92 -> 89 | M95: =EmpDetail!B92 -> 0 | N95: =EmpDetail!C92 -> 0 | O95: =EmpDetail!D92 -> 0
L96: =EmpDetail!A93 -> 90 | M96: =EmpDetail!B93 -> 0 | N96: =EmpDetail!C93 -> 0 | O96: =EmpDetail!D93 -> 0
L97: =EmpDetail!A94 -> 91 | M97: =EmpDetail!B94 -> 0 | N97: =EmpDetail!C94 -> 0 | O97: =EmpDetail!D94 -> 0
L98: =EmpDetail!A95 -> 92 | M98: =EmpDetail!B95 -> 0 | N98: =EmpDetail!C95 -> 0 | O98: =EmpDetail!D95 -> 0
L99: =EmpDetail!A96 -> 93 | M99: =EmpDetail!B96 -> 0 | N99: =EmpDetail!C96 -> 0 | O99: =EmpDetail!D96 -> 0
L100: =EmpDetail!A97 -> 94 | M100: =EmpDetail!B97 -> 0 | N100: =EmpDetail!C97 -> 0 | O100: =EmpDetail!D97 -> 0
L101: =EmpDetail!A98 -> 95 | M101: =EmpDetail!B98 -> 0 | N101: =EmpDetail!C98 -> 0 | O101: =EmpDetail!D98 -> 0
L102: =EmpDetail!A99 -> 96 | M102: =EmpDetail!B99 -> 0 | N102: =EmpDetail!C99 -> 0 | O102: =EmpDetail!D99 -> 0
L103: =EmpDetail!A100 -> 97 | M103: =EmpDetail!B100 -> 0 | N103: =EmpDetail!C100 -> 0 | O103: =EmpDetail!D100 -> 0
L104: =EmpDetail!A101 -> 98 | M104: =EmpDetail!B101 -> 0 | N104: =EmpDetail!C101 -> 0 | O104: =EmpDetail!D101 -> 0
L105: =EmpDetail!A102 -> 99 | M105: =EmpDetail!B102 -> 0 | N105: =EmpDetail!C102 -> 0 | O105: =EmpDetail!D102 -> 0
L106: =EmpDetail!A103 -> 100 | M106: =EmpDetail!B103 -> 0 | N106: =EmpDetail!C103 -> 0 | O106: =EmpDetail!D103 -> 0

Sheet PL on Joining (hidden)
B1: =Master!G2&Master!H2 -> कार्यालय&राजकीय उच्च माध्यमिक विद्यालय ]चौगाई]टोंक
E3: dk;kZy; vkns'k
B5: jkT; ljdkj ds vkns'k dzekad&,Q&2¼6½,l-Mh@xzqi&2 fnukad&17-03-1981 ,oa jktLFkku flfoy lfoZlst ¼in xzg.k dky½ fu;e 1981 ds fu;e 4¼1½ o 6 ,oa
B6: foRr foHkkx ds ifji= fnukad 02-08-2005 ds fcUnq la[;k ¼c½ ds vuqlkj fuEukafdr dkfeZdksa dk muds uke ds lEeq[k vafdr fooj.kkuqlkj in xzg.k dky dk miHkksx ugha
B7: djus ds cnys esa mikftZr vodk'k dk LoRo muds vodk'k [kkrs esa tksM+us dh Lohd`fr iznku dh tkrh gSA
A8: dkfeZd Ø-la- | B8: Ø-la- | C8: uke dfeZd | D8: in uke | E8: inLFkkiu LFkku | F8: ysoy | G8: in xzg.k dky fn;s tus dk dkj.k | H8: iwoZ in R;kx dk fnukad | I8: e/;kUg iwoZ@ i'pkr | J8: orZeku in xzg.k dk fnukad | K8: e/;kUg iwoZ@ i'pkr | L8: iwoZ inLFkkiu ls orZeku inLFkkiu LFkku dh nwjh fdeh esa | M8: ns; mikftZr vodk'k | S8: Used Days | U8: Date Releave Define | V8: Date Joining Define | W8: PL Earned
A9: 9 | B9: =IF(C9="","",1) -> 1 | C9: =IF(ISNA(VLOOKUP($A9,$N$9:$R$108,2,FALSE)),"",VLOOKUP($A9,$N$7:$R$108,2,FALSE)) -> jkeizlkn jsxj | D9: =IF(ISNA(VLOOKUP($A9,$N$9:$R$108,3,FALSE)),"",VLOOKUP($A9,$N$7:$R$108,3,FALSE)) -> वरिष्ठ अध्यापक | E9: =IF(ISNA(VLOOKUP($A9,$N$9:$R$108,4,FALSE)),"",VLOOKUP($A9,$N$7:$R$108,4,FALSE)) -> राउमावि चौगाई | F9: =IF(ISNA(VLOOKUP($A9,$N$9:$R$108,5,FALSE)),"",VLOOKUP($A9,$N$7:$R$108,5,FALSE)) -> L-11 | G9: स्थानांतरण | H9: 2020-10-01 | I9: After Noon | J9: 2020-10-02 | K9: Before Noon | L9: 500 | M9: =IF(C9="","",W9-S9) -> 1900-01-10 | N9: =EmpDetail!A4 -> 1 | O9: =EmpDetail!B4 -> fd'ku yky cSjok | P9: =EmpDetail!C4 -> प्रधानाचार्य | Q9: =EmpDetail!D4 -> राउमावि चौगाई | R9: =EmpDetail!J4 -> L-16 | S9: =IF(H9=J9,0,V9-U9) -> 0 | U9: =IF(I9="After Noon",H9+1,H9) -> 2020-10-02 | V9: =IF(K9="After Noon",J9+1,J9) -> 2020-10-02 | W9: =IF(L9<=500,10,IF(L9<=999,12,IF(L9<=10000,15,0)))*IF(L9>2,1,0) -> 10
B10: =IF(C10="","",B9+1) ->  | C10: =IF(ISNA(VLOOKUP($A10,$N$9:$R$108,2,FALSE)),"",VLOOKUP($A10,$N$7:$R$108,2,FALSE)) ->  | D10: =IF(ISNA(VLOOKUP($A10,$N$9:$R$108,3,FALSE)),"",VLOOKUP($A10,$N$7:$R$108,3,FALSE)) ->  | E10: =IF(ISNA(VLOOKUP($A10,$N$9:$R$108,4,FALSE)),"",VLOOKUP($A10,$N$7:$R$108,4,FALSE)) ->  | F10: =IF(ISNA(VLOOKUP($A10,$N$9:$R$108,5,FALSE)),"",VLOOKUP($A10,$N$7:$R$108,5,FALSE)) ->  | G10: स्थानांतरण | H10: 2020-10-01 | I10: After Noon | J10: 2020-10-03 | K10: Before Noon | L10: 125 | M10: =IF(C10="","",W10-S10) ->  | N10: =EmpDetail!A5 -> 2 | O10: =EmpDetail!B5 -> iwj.k pUn y{kdkj | P10: =EmpDetail!C5 -> व्याख्याता | Q10: =EmpDetail!D5 -> राउमावि चौगाई | R10: =EmpDetail!J5 -> L-12 | S10: =IF(H10=J10,0,V10-U10) -> 1 | U10: =IF(I10="After Noon",H10+1,H10) -> 2020-10-02 | V10: =IF(K10="After Noon",J10+1,J10) -> 2020-10-03 | W10: =IF(L10<=500,10,IF(L10<=999,12,IF(L10<=10000,15,0)))*IF(L10>2,1,0) -> 10
G11: स्थानांतरण | H11: 2020-10-01 | I11: After Noon | J11: 2020-10-02 | K11: Before Noon | L11: 23 | N11: =EmpDetail!A6 -> 3 | O11: =EmpDetail!B6 -> jktsUnz dqekj tSu | P11: =EmpDetail!C6 -> व्याख्याता | Q11: =EmpDetail!D6 -> राउमावि चौगाई | R11: =EmpDetail!J6 -> L-12 | S11: 0 | U11: 2020-10-02 | V11: 2020-10-02 | W11: 10
N12: =EmpDetail!A7 -> 4 | O12: =EmpDetail!B7 -> fd'ku yky cSjok | P12: =EmpDetail!C7 -> व्याख्याता | Q12: =EmpDetail!D7 -> राउमावि चौगाई | R12: =EmpDetail!J7 -> L-12 | S12: 0 | U12: 00:00:00 | V12: 00:00:00 | W12: 0
N13: =EmpDetail!A8 -> 5 | O13: =EmpDetail!B8 -> lR;ukjk;.k 'kekZ | P13: =EmpDetail!C8 -> वरिष्ठ अध्यापक | Q13: =EmpDetail!D8 -> राउमावि चौगाई | R13: =EmpDetail!J8 -> L-13 | S13: 0 | U13: 00:00:00 | V13: 00:00:00 | W13: 0
N14: =EmpDetail!A9 -> 6 | O14: =EmpDetail!B9 -> iq"ik tSu | P14: =EmpDetail!C9 -> वरिष्ठ अध्यापक | Q14: =EmpDetail!D9 -> राउमावि चौगाई | R14: =EmpDetail!J9 -> L-13 | S14: 0 | U14: 00:00:00 | V14: 00:00:00 | W14: 0
N15: =EmpDetail!A10 -> 7 | O15: =EmpDetail!B10 -> vk'kkjke eh.kk | P15: =EmpDetail!C10 -> वरिष्ठ अध्यापक | Q15: =EmpDetail!D10 -> राउमावि चौगाई | R15: =EmpDetail!J10 -> L-11 | S15: 0 | U15: 00:00:00 | V15: 00:00:00 | W15: 0
N16: =EmpDetail!A11 -> 8 | O16: =EmpDetail!B11 -> t;iky flag | P16: =EmpDetail!C11 -> वरिष्ठ अध्यापक | Q16: =EmpDetail!D11 -> राउमावि चौगाई | R16: =EmpDetail!J11 -> L-12
L17: =Master!B2 -> प्रधानाचार्य | N17: =EmpDetail!A12 -> 9 | O17: =EmpDetail!B12 -> jkeizlkn jsxj | P17: =EmpDetail!C12 -> वरिष्ठ अध्यापक | Q17: =EmpDetail!D12 -> राउमावि चौगाई | R17: =EmpDetail!J12 -> L-11
L18: =Master!B3 -> राजकीय उच्च माध्यमिक विद्यालय | N18: =EmpDetail!A13 -> 10 | O18: =EmpDetail!B13 -> egsUnz dqekj tkV | P18: =EmpDetail!C13 -> शारीरिक शिक्षक | Q18: =EmpDetail!D13 -> राउमावि चौगाई | R18: =EmpDetail!J13 -> L-12
L19: =Master!B4 -> चौगाई]टोंक | N19: =EmpDetail!A14 -> 11 | O19: =EmpDetail!B14 -> NksVw yky jsxj | P19: =EmpDetail!C14 -> अध्यापक ग्रेड III | Q19: =EmpDetail!D14 -> राउमावि चौगाई | R19: =EmpDetail!J14 -> L-13
B20: Øekad& | C20: =Master!H3&Master!I3&Master!J3&Master!E3&"/" -> राउमावि/चौगाई/संस्था/2021-22/ | L20: fnukad& | M20: =TODAY() -> 2021-06-19 | N20: =EmpDetail!A15 -> 12 | O20: =EmpDetail!B15 -> dUgS;k yky egkoj | P20: =EmpDetail!C15 -> अध्यापक ग्रेड III | Q20: =EmpDetail!D15 -> राउमावि चौगाई | R20: =EmpDetail!J15 -> L-13
C21: izfrfyfi lwpukFkZ ,oa ikyukFkZ | N21: =EmpDetail!A16 -> 13 | O21: =EmpDetail!B16 -> prqHkqZt tkV | P21: =EmpDetail!C16 -> अध्यापक ग्रेड III | Q21: =EmpDetail!D16 -> राउमावि चौगाई | R21: =EmpDetail!J16 -> L-11
B22: 1 | C22: dks"kkf/kdkjh@mi dks"kkf/kdkjh | D22: =Master!H4 -> पीपलू | N22: =EmpDetail!A17 -> 14 | O22: =EmpDetail!B17 -> vklsQk [kku | P22: =EmpDetail!C17 -> अध्यापक ग्रेड III | Q22: =EmpDetail!D17 -> राउमावि चौगाई | R22: =EmpDetail!J17 -> L-11
B23: 2 | C23: ys[kk 'kk[kk LFkkuh; dk;kZy; | N23: =EmpDetail!A18 -> 15 | O23: =EmpDetail!B18 -> lq'khyk cSjok | P23: =EmpDetail!C18 -> कनिष्ठ सहायक | Q23: =EmpDetail!D18 -> राउमावि चौगाई | R23: =EmpDetail!J18 -> L-5
B24: 3 | C24: dkfeZd O;fDrxr iaftdk | N24: =EmpDetail!A19 -> 16 | O24: =EmpDetail!B19 -> txnh'k izlkn rsyh | P24: =EmpDetail!C19 -> सहायक कर्मचारी | Q24: =EmpDetail!D19 -> राउमावि चौगाई | R24: =EmpDetail!J19 -> L-5
B25: 4 | C25: lEcfU/kr dkfeZd | N25: =EmpDetail!A20 -> 17 | O25: =EmpDetail!B20 -> jfoUnz dqekj tSu | P25: =EmpDetail!C20 -> अध्यापक ग्रेड III | Q25: =EmpDetail!D20 -> राउप्रावि मोहिनी | R25: =EmpDetail!J20 -> L-12
L26: =L17 -> प्रधानाचार्य | N26: =EmpDetail!A21 -> 18 | O26: =EmpDetail!B21 -> ';ke lqUnj ckxkSM | P26: =EmpDetail!C21 -> अध्यापक ग्रेड III | Q26: =EmpDetail!D21 -> राउप्रावि मोहिनी | R26: =EmpDetail!J21 -> L-10
L27: =L18 -> राजकीय उच्च माध्यमिक विद्यालय | N27: =EmpDetail!A22 -> 19 | O27: =EmpDetail!B22 -> d`".kk 'kekZ | P27: =EmpDetail!C22 -> प्रबोधक | Q27: =EmpDetail!D22 -> राउप्रावि मोहिनी | R27: =EmpDetail!J22 -> L-11
L28: =L19 -> चौगाई]टोंक | N28: =EmpDetail!A23 -> 20 | O28: =EmpDetail!B23 -> /keZsUnz pkS/kjh | P28: =EmpDetail!C23 -> अध्यापक ग्रेड III | Q28: =EmpDetail!D23 -> राउप्रावि गोरधनपुरा | R28: =EmpDetail!J23 -> L-10
N29: =EmpDetail!A24 -> 21 | O29: =EmpDetail!B24 -> izgykn ekyh | P29: =EmpDetail!C24 -> प्रबोधक | Q29: =EmpDetail!D24 -> राउप्रावि गोरधनपुरा | R29: =EmpDetail!J24 -> L-11
N30: =EmpDetail!A25 -> 22 | O30: =EmpDetail!B25 -> jken;ky xqtZj | P30: =EmpDetail!C25 -> प्रबोधक | Q30: =EmpDetail!D25 -> राउप्रावि सोंदीफल | R30: =EmpDetail!J25 -> L-11
N31: =EmpDetail!A26 -> 23 | O31: =EmpDetail!B26 -> vkSeizdk'k tkV | P31: =EmpDetail!C26 -> अध्यापक ग्रेड III | Q31: =EmpDetail!D26 -> राउप्रावि सोंदीफल | R31: =EmpDetail!J26 -> L-11
N32: =EmpDetail!A27 -> 24 | O32: =EmpDetail!B27 -> vthr flag | P32: =EmpDetail!C27 -> अध्यापक ग्रेड III | Q32: =EmpDetail!D27 -> राप्रावि जानकीवल्लभपुरा | R32: =EmpDetail!J27 -> L-10
N33: =EmpDetail!A28 -> 25 | O33: =EmpDetail!B28 -> eq[rkj eha;k | P33: =EmpDetail!C28 -> प्रबोधक | Q33: =EmpDetail!D28 -> राप्रावि जानकीवल्लभपुरा | R33: =EmpDetail!J28 -> L-11
N34: =EmpDetail!A29 -> 26 | O34: =EmpDetail!B29 -> eks0 tehy | P34: =EmpDetail!C29 -> प्रबोधक | Q34: =EmpDetail!D29 -> राप्रावि रसूलपुरा | R34: =EmpDetail!J29 -> L-11
N35: =EmpDetail!A30 -> 27 | O35: =EmpDetail!B30 -> lkaojey tkV | P35: =EmpDetail!C30 -> अध्यापक ग्रेड III | Q35: =EmpDetail!D30 -> राप्रावि रसूलपुरा | R35: =EmpDetail!J30 -> L-10
N36: =EmpDetail!A31 -> 28 | O36: =EmpDetail!B31 -> pkS/kjh eksuk jkekorkj | P36: =EmpDetail!C31 -> अध्यापक ग्रेड III | Q36: =EmpDetail!D31 -> राप्रावि मोहिनी ढाणी बाढ | R36: =EmpDetail!J31 -> L-10
N37: =EmpDetail!A32 -> 29 | O37: =EmpDetail!B32 -> rkjkpUn tk;loky | P37: =EmpDetail!C32 -> प्रबोधक | Q37: =EmpDetail!D32 -> राप्रावि मोहिनी ढाणी बाढ | R37: =EmpDetail!J32 -> L-11
N38: =EmpDetail!A33 -> 30 | O38: =EmpDetail!B33 -> jketl ;kno | P38: =EmpDetail!C33 -> अध्यापक ग्रेड III | Q38: =EmpDetail!D33 -> राप्रावि बैरवा ढाणी सोन्दीफल | R38: =EmpDetail!J33 -> L-12
N39: =EmpDetail!A34 -> 31 | O39: =EmpDetail!B34 -> dtksMey eh.kk | P39: =EmpDetail!C34 -> अध्यापक ग्रेड III | Q39: =EmpDetail!D34 -> राप्रावि बैरवा ढाणी सोन्दीफल | R39: =EmpDetail!J34 -> L-10
N40: =EmpDetail!A35 -> 32 | O40: =EmpDetail!B35 -> /kaut; xkSRre | P40: =EmpDetail!C35 -> अध्यापक ग्रेड III | Q40: =EmpDetail!D35 -> राउप्रावि गोरधनपुरा | R40: =EmpDetail!J35 -> L-10
N41: =EmpDetail!A36 -> 33 | O41: =EmpDetail!B36 -> d`".kk xaxoky | P41: =EmpDetail!C36 -> अध्यापक ग्रेड III | Q41: =EmpDetail!D36 -> राउप्रावि गोरधनपुरा | R41: =EmpDetail!J36 -> L-10
N42: =EmpDetail!A37 -> 34 | O42: =EmpDetail!B37 -> n'kjFk dqekj ;kno | P42: =EmpDetail!C37 -> अध्यापक ग्रेड III | Q42: =EmpDetail!D37 -> राउप्रावि सोंदीफल | R42: =EmpDetail!J37 -> L-10
N43: =EmpDetail!A38 -> 35 | O43: =EmpDetail!B38 -> d`".k yky tkV | P43: =EmpDetail!C38 -> अध्यापक ग्रेड III | Q43: =EmpDetail!D38 -> राउप्रावि सोंदीफल | R43: =EmpDetail!J38 -> L-10
N44: =EmpDetail!A39 -> 36 | O44: =EmpDetail!B39 -> nhisUnz dqekj iztkir | P44: =EmpDetail!C39 -> अध्यापक ग्रेड III | Q44: =EmpDetail!D39 -> राउप्रावि सोंदीफल | R44: =EmpDetail!J39 -> L-10
N45: =EmpDetail!A40 -> 37 | O45: =EmpDetail!B40 -> uohu dqekj | P45: =EmpDetail!C40 -> अध्यापक ग्रेड III | Q45: =EmpDetail!D40 -> राउप्रावि मोहिनी | R45: =EmpDetail!J40 -> L-10
N46: =EmpDetail!A41 -> 38 | O46: =EmpDetail!B41 -> ehrs'k dqekj 'kekZ | P46: =EmpDetail!C41 -> अध्यापक ग्रेड III | Q46: =EmpDetail!D41 -> राउप्रावि मोहिनी | R46: =EmpDetail!J41 -> L-10
N47: =EmpDetail!A42 -> 39 | O47: =EmpDetail!B42 -> eUtw eh.kk | P47: =EmpDetail!C42 -> वरिष्ठ अध्यापक | Q47: =EmpDetail!D42 -> राउप्रावि गोरधनपुरा | R47: =EmpDetail!J42 -> L-10
N48: =EmpDetail!A43 -> 40 | O48: =EmpDetail!B43 -> eatw pkS/kjh | P48: =EmpDetail!C43 -> वरिष्ठ अध्यापक | Q48: =EmpDetail!D43 -> राउप्रावि सोंदीफल | R48: =EmpDetail!J43 -> L-11
N49: =EmpDetail!A44 -> 41 | O49: =EmpDetail!B44 -> 0 | P49: =EmpDetail!C44 -> 0 | Q49: =EmpDetail!D44 -> 0 | R49: =EmpDetail!J44 -> 0
N50: =EmpDetail!A45 -> 42 | O50: =EmpDetail!B45 -> 0 | P50: =EmpDetail!C45 -> 0 | Q50: =EmpDetail!D45 -> 0 | R50: =EmpDetail!J45 -> 0
N51: =EmpDetail!A46 -> 43 | O51: =EmpDetail!B46 -> 0 | P51: =EmpDetail!#REF! ->  | Q51: =EmpDetail!#REF! ->  | R51: =EmpDetail!J46 -> 0
N52: =EmpDetail!A47 -> 44 | O52: =EmpDetail!B47 -> 0 | P52: =EmpDetail!C47 -> 0 | Q52: =EmpDetail!D47 -> 0 | R52: =EmpDetail!J47 -> 0
N53: =EmpDetail!A48 -> 45 | O53: =EmpDetail!B48 -> 0 | P53: =EmpDetail!C48 -> 0 | Q53: =EmpDetail!D48 -> 0 | R53: =EmpDetail!J48 -> 0
N54: =EmpDetail!A49 -> 46 | O54: =EmpDetail!B49 -> 0 | P54: =EmpDetail!C49 -> 0 | Q54: =EmpDetail!D49 -> 0 | R54: =EmpDetail!J49 -> 0
N55: =EmpDetail!A50 -> 47 | O55: =EmpDetail!B50 -> 0 | P55: =EmpDetail!C50 -> 0 | Q55: =EmpDetail!D50 -> 0 | R55: =EmpDetail!J50 -> 0
N56: =EmpDetail!A51 -> 48 | O56: =EmpDetail!B51 -> 0 | P56: =EmpDetail!C51 -> 0 | Q56: =EmpDetail!D51 -> 0 | R56: =EmpDetail!J51 -> 0
N57: =EmpDetail!A52 -> 49 | O57: =EmpDetail!B52 -> 0 | P57: =EmpDetail!C52 -> 0 | Q57: =EmpDetail!D52 -> 0 | R57: =EmpDetail!J52 -> 0
N58: =EmpDetail!A53 -> 50 | O58: =EmpDetail!B53 -> 0 | P58: =EmpDetail!C53 -> 0 | Q58: =EmpDetail!D53 -> 0 | R58: =EmpDetail!J53 -> 0
N59: =EmpDetail!A54 -> 51 | O59: =EmpDetail!B54 -> 0 | P59: =EmpDetail!C54 -> 0 | Q59: =EmpDetail!D54 -> 0 | R59: =EmpDetail!J54 -> 0
N60: =EmpDetail!A55 -> 52 | O60: =EmpDetail!B55 -> 0 | P60: =EmpDetail!C55 -> 0 | Q60: =EmpDetail!D55 -> 0 | R60: =EmpDetail!J55 -> 0
N61: =EmpDetail!A56 -> 53 | O61: =EmpDetail!B56 -> 0 | P61: =EmpDetail!C56 -> 0 | Q61: =EmpDetail!D56 -> 0 | R61: =EmpDetail!J56 -> 0
N62: =EmpDetail!A57 -> 54 | O62: =EmpDetail!B57 -> 0 | P62: =EmpDetail!C57 -> 0 | Q62: =EmpDetail!D57 -> 0 | R62: =EmpDetail!J57 -> 0
N63: =EmpDetail!A58 -> 55 | O63: =EmpDetail!B58 -> 0 | P63: =EmpDetail!C58 -> 0 | Q63: =EmpDetail!D58 -> 0 | R63: =EmpDetail!J58 -> 0
N64: =EmpDetail!A59 -> 56 | O64: =EmpDetail!B59 -> 0 | P64: =EmpDetail!C59 -> 0 | Q64: =EmpDetail!D59 -> 0 | R64: =EmpDetail!J59 -> 0
N65: =EmpDetail!A60 -> 57 | O65: =EmpDetail!B60 -> 0 | P65: =EmpDetail!C60 -> 0 | Q65: =EmpDetail!D60 -> 0 | R65: =EmpDetail!J60 -> 0
N66: =EmpDetail!A61 -> 58 | O66: =EmpDetail!B61 -> 0 | P66: =EmpDetail!C61 -> 0 | Q66: =EmpDetail!D61 -> 0 | R66: =EmpDetail!J61 -> 0
N67: =EmpDetail!A62 -> 59 | O67: =EmpDetail!B62 -> 0 | P67: =EmpDetail!C62 -> 0 | Q67: =EmpDetail!D62 -> 0 | R67: =EmpDetail!J62 -> 0
N68: =EmpDetail!A63 -> 60 | O68: =EmpDetail!B63 -> 0 | P68: =EmpDetail!C63 -> 0 | Q68: =EmpDetail!D63 -> 0 | R68: =EmpDetail!J63 -> 0
N69: =EmpDetail!A64 -> 61 | O69: =EmpDetail!B64 -> 0 | P69: =EmpDetail!C64 -> 0 | Q69: =EmpDetail!D64 -> 0 | R69: =EmpDetail!J64 -> 0
N70: =EmpDetail!A65 -> 62 | O70: =EmpDetail!B65 -> 0 | P70: =EmpDetail!C65 -> 0 | Q70: =EmpDetail!D65 -> 0 | R70: =EmpDetail!J65 -> 0
N71: =EmpDetail!A66 -> 63 | O71: =EmpDetail!B66 -> 0 | P71: =EmpDetail!C66 -> 0 | Q71: =EmpDetail!D66 -> 0 | R71: =EmpDetail!J66 -> 0
N72: =EmpDetail!A67 -> 64 | O72: =EmpDetail!B67 -> 0 | P72: =EmpDetail!C67 -> 0 | Q72: =EmpDetail!D67 -> 0 | R72: =EmpDetail!J67 -> 0
N73: =EmpDetail!A68 -> 65 | O73: =EmpDetail!B68 -> 0 | P73: =EmpDetail!C68 -> 0 | Q73: =EmpDetail!D68 -> 0 | R73: =EmpDetail!J68 -> 0
N74: =EmpDetail!A69 -> 66 | O74: =EmpDetail!B69 -> 0 | P74: =EmpDetail!C69 -> 0 | Q74: =EmpDetail!D69 -> 0 | R74: =EmpDetail!J69 -> 0
N75: =EmpDetail!A70 -> 67 | O75: =EmpDetail!B70 -> 0 | P75: =EmpDetail!C70 -> 0 | Q75: =EmpDetail!D70 -> 0 | R75: =EmpDetail!J70 -> 0
N76: =EmpDetail!A71 -> 68 | O76: =EmpDetail!B71 -> 0 | P76: =EmpDetail!C71 -> 0 | Q76: =EmpDetail!D71 -> 0 | R76: =EmpDetail!J71 -> 0
N77: =EmpDetail!A72 -> 69 | O77: =EmpDetail!B72 -> 0 | P77: =EmpDetail!C72 -> 0 | Q77: =EmpDetail!D72 -> 0 | R77: =EmpDetail!J72 -> 0
N78: =EmpDetail!A73 -> 70 | O78: =EmpDetail!B73 -> 0 | P78: =EmpDetail!C73 -> 0 | Q78: =EmpDetail!D73 -> 0 | R78: =EmpDetail!J73 -> 0
N79: =EmpDetail!A74 -> 71 | O79: =EmpDetail!B74 -> 0 | P79: =EmpDetail!C74 -> 0 | Q79: =EmpDetail!D74 -> 0 | R79: =EmpDetail!J74 -> 0
N80: =EmpDetail!A75 -> 72 | O80: =EmpDetail!B75 -> 0 | P80: =EmpDetail!C75 -> 0 | Q80: =EmpDetail!D75 -> 0 | R80: =EmpDetail!J75 -> 0
N81: =EmpDetail!A76 -> 73 | O81: =EmpDetail!B76 -> 0 | P81: =EmpDetail!C76 -> 0 | Q81: =EmpDetail!D76 -> 0 | R81: =EmpDetail!J76 -> 0
N82: =EmpDetail!A77 -> 74 | O82: =EmpDetail!B77 -> 0 | P82: =EmpDetail!C77 -> 0 | Q82: =EmpDetail!D77 -> 0 | R82: =EmpDetail!J77 -> 0
N83: =EmpDetail!A78 -> 75 | O83: =EmpDetail!B78 -> 0 | P83: =EmpDetail!C78 -> 0 | Q83: =EmpDetail!D78 -> 0 | R83: =EmpDetail!J78 -> 0
N84: =EmpDetail!A79 -> 76 | O84: =EmpDetail!B79 -> 0 | P84: =EmpDetail!C79 -> 0 | Q84: =EmpDetail!D79 -> 0 | R84: =EmpDetail!J79 -> 0
N85: =EmpDetail!A80 -> 77 | O85: =EmpDetail!B80 -> 0 | P85: =EmpDetail!C80 -> 0 | Q85: =EmpDetail!D80 -> 0 | R85: =EmpDetail!J80 -> 0
N86: =EmpDetail!A81 -> 78 | O86: =EmpDetail!B81 -> 0 | P86: =EmpDetail!C81 -> 0 | Q86: =EmpDetail!D81 -> 0 | R86: =EmpDetail!J81 -> 0
N87: =EmpDetail!A82 -> 79 | O87: =EmpDetail!B82 -> 0 | P87: =EmpDetail!C82 -> 0 | Q87: =EmpDetail!D82 -> 0 | R87: =EmpDetail!J82 -> 0
N88: =EmpDetail!A83 -> 80 | O88: =EmpDetail!B83 -> 0 | P88: =EmpDetail!C83 -> 0 | Q88: =EmpDetail!D83 -> 0 | R88: =EmpDetail!J83 -> 0
N89: =EmpDetail!A84 -> 81 | O89: =EmpDetail!B84 -> 0 | P89: =EmpDetail!C84 -> 0 | Q89: =EmpDetail!D84 -> 0 | R89: =EmpDetail!J84 -> 0
N90: =EmpDetail!A85 -> 82 | O90: =EmpDetail!B85 -> 0 | P90: =EmpDetail!C85 -> 0 | Q90: =EmpDetail!D85 -> 0 | R90: =EmpDetail!J85 -> 0
N91: =EmpDetail!A86 -> 83 | O91: =EmpDetail!B86 -> 0 | P91: =EmpDetail!C86 -> 0 | Q91: =EmpDetail!D86 -> 0 | R91: =EmpDetail!J86 -> 0
N92: =EmpDetail!A87 -> 84 | O92: =EmpDetail!B87 -> 0 | P92: =EmpDetail!C87 -> 0 | Q92: =EmpDetail!D87 -> 0 | R92: =EmpDetail!J87 -> 0
N93: =EmpDetail!A88 -> 85 | O93: =EmpDetail!B88 -> 0 | P93: =EmpDetail!C88 -> 0 | Q93: =EmpDetail!D88 -> 0 | R93: =EmpDetail!J88 -> 0
N94: =EmpDetail!A89 -> 86 | O94: =EmpDetail!B89 -> 0 | P94: =EmpDetail!C89 -> 0 | Q94: =EmpDetail!D89 -> 0 | R94: =EmpDetail!J89 -> 0
N95: =EmpDetail!A90 -> 87 | O95: =EmpDetail!B90 -> 0 | P95: =EmpDetail!C90 -> 0 | Q95: =EmpDetail!D90 -> 0 | R95: =EmpDetail!J90 -> 0
N96: =EmpDetail!A91 -> 88 | O96: =EmpDetail!B91 -> 0 | P96: =EmpDetail!C91 -> 0 | Q96: =EmpDetail!D91 -> 0 | R96: =EmpDetail!J91 -> 0
N97: =EmpDetail!A92 -> 89 | O97: =EmpDetail!B92 -> 0 | P97: =EmpDetail!C92 -> 0 | Q97: =EmpDetail!D92 -> 0 | R97: =EmpDetail!J92 -> 0
N98: =EmpDetail!A93 -> 90 | O98: =EmpDetail!B93 -> 0 | P98: =EmpDetail!C93 -> 0 | Q98: =EmpDetail!D93 -> 0 | R98: =EmpDetail!J93 -> 0
N99: =EmpDetail!A94 -> 91 | O99: =EmpDetail!B94 -> 0 | P99: =EmpDetail!C94 -> 0 | Q99: =EmpDetail!D94 -> 0 | R99: =EmpDetail!J94 -> 0
N100: =EmpDetail!A95 -> 92 | O100: =EmpDetail!B95 -> 0 | P100: =EmpDetail!C95 -> 0 | Q100: =EmpDetail!D95 -> 0 | R100: =EmpDetail!J95 -> 0
N101: =EmpDetail!A96 -> 93 | O101: =EmpDetail!B96 -> 0 | P101: =EmpDetail!C96 -> 0 | Q101: =EmpDetail!D96 -> 0 | R101: =EmpDetail!J96 -> 0
N102: =EmpDetail!A97 -> 94 | O102: =EmpDetail!B97 -> 0 | P102: =EmpDetail!C97 -> 0 | Q102: =EmpDetail!D97 -> 0 | R102: =EmpDetail!J97 -> 0
N103: =EmpDetail!A98 -> 95 | O103: =EmpDetail!B98 -> 0 | P103: =EmpDetail!C98 -> 0 | Q103: =EmpDetail!D98 -> 0 | R103: =EmpDetail!J98 -> 0
N104: =EmpDetail!A99 -> 96 | O104: =EmpDetail!B99 -> 0 | P104: =EmpDetail!C99 -> 0 | Q104: =EmpDetail!D99 -> 0 | R104: =EmpDetail!J99 -> 0
N105: =EmpDetail!A100 -> 97 | O105: =EmpDetail!B100 -> 0 | P105: =EmpDetail!C100 -> 0 | Q105: =EmpDetail!D100 -> 0 | R105: =EmpDetail!J100 -> 0
N106: =EmpDetail!A101 -> 98 | O106: =EmpDetail!B101 -> 0 | P106: =EmpDetail!C101 -> 0 | Q106: =EmpDetail!D101 -> 0 | R106: =EmpDetail!J101 -> 0
N107: =EmpDetail!A102 -> 99 | O107: =EmpDetail!B102 -> 0 | P107: =EmpDetail!C102 -> 0 | Q107: =EmpDetail!D102 -> 0 | R107: =EmpDetail!J102 -> 0
N108: =EmpDetail!A103 -> 100 | O108: =EmpDetail!B103 -> 0 | P108: =EmpDetail!C103 -> 0 | Q108: =EmpDetail!D103 -> 0 | R108: =EmpDetail!J103 -> 0

Sheet PL on Duty (hidden)
B1: =Master!G2&Master!H2 -> कार्यालय&राजकीय उच्च माध्यमिक विद्यालय ]चौगाई]टोंक
F3: dk;kZy; vkns'k
B5: jktLFkku lsok fu;eksa ds fu;e 92¼ch½ ds rgr vodk'k dky esa dk;Z djus ds ,sot esa fuEukafdr dkfeZdksa dks muds uke ds lEeq[k vafdr fooj.kkuqlkj mikftZr vodk'k dk
B6: LoRo buds vodk'k ys[ks esa tksM+us dh Lohd`fr iznku dh tkrh gSA
A8: dkfeZd Øe | B8: Ø-la- | C8: uke dfeZd | D8: in uke | E8: is&ysoy | F8: inLFkkiu LFkku | G8: vodk'k dk fooj.k | H8: fd;s x;s dk;Z dk fooj.k | I8: dc ls | J8: dc rd | K8: dqy dk;Z fnol | L8: ns; mikftZr vodk'k
A9: 32 | B9: =IF(C9="","",1) -> 1 | C9: =IF(ISNA(VLOOKUP($A9,$M$9:$Q$108,2,FALSE)),"",VLOOKUP($A9,$M$9:$Q$108,2,FALSE)) -> /kaut; xkSRre | D9: =IF(ISNA(VLOOKUP($A9,$M$9:$Q$108,3,FALSE)),"",VLOOKUP($A9,$M$9:$Q$108,3,FALSE)) -> अध्यापक ग्रेड III | E9: =IF(ISNA(VLOOKUP($A9,$M$9:$Q$108,5,FALSE)),"",VLOOKUP($A9,$M$9:$Q$108,5,FALSE)) -> L-10 | F9: =IF(ISNA(VLOOKUP($A9,$M$9:$Q$108,4,FALSE)),"",VLOOKUP($A9,$M$9:$Q$108,4,FALSE)) -> राउप्रावि गोरधनपुरा | G9: ग्रीष्मकालीन | H9: dksfoM 19 osyusl dsUnz izHkkjh o losZ dk;Z | I9: 2020-05-17 | J9: 2020-06-17 | K9: =IF(I9="","",J9-I9+1) -> 32 | L9: =IF(K9="","",ROUNDDOWN(K9/3,0)) -> 1900-01-10 | M9: 1 | N9: =EmpDetail!B4 -> fd'ku yky cSjok | O9: =EmpDetail!C4 -> प्रधानाचार्य | P9: =EmpDetail!D4 -> राउमावि चौगाई | Q9: =EmpDetail!J4 -> L-16
B10: =IF(C10="","",B9+1) ->  | C10: =IF(ISNA(VLOOKUP($A10,$M$9:$Q$108,2,FALSE)),"",VLOOKUP($A10,$M$9:$Q$108,2,FALSE)) ->  | D10: =IF(ISNA(VLOOKUP($A10,$M$9:$Q$108,3,FALSE)),"",VLOOKUP($A10,$M$9:$Q$108,3,FALSE)) ->  | E10: =IF(ISNA(VLOOKUP($A10,$M$9:$Q$108,5,FALSE)),"",VLOOKUP($A10,$M$9:$Q$108,5,FALSE)) ->  | F10: =IF(ISNA(VLOOKUP($A10,$M$9:$Q$108,4,FALSE)),"",VLOOKUP($A10,$M$9:$Q$108,4,FALSE)) ->  | K10: =IF(I10="","",J10-I10+1) ->  | L10: =IF(K10="","",ROUNDDOWN(K10/3,0)) ->  | M10: 2 | N10: =EmpDetail!B5 -> iwj.k pUn y{kdkj | O10: =EmpDetail!C5 -> व्याख्याता | P10: =EmpDetail!D5 -> राउमावि चौगाई | Q10: =EmpDetail!J5 -> L-12
B11: =IF(C11="","",B10+1) ->  | M11: 3 | N11: =EmpDetail!B6 -> jktsUnz dqekj tSu | O11: =EmpDetail!C6 -> व्याख्याता | P11: =EmpDetail!D6 -> राउमावि चौगाई | Q11: =EmpDetail!J6 -> L-12
M12: 4 | N12: =EmpDetail!B7 -> fd'ku yky cSjok | O12: =EmpDetail!C7 -> व्याख्याता | P12: =EmpDetail!D7 -> राउमावि चौगाई | Q12: =EmpDetail!J7 -> L-12
M13: 5 | N13: =EmpDetail!B8 -> lR;ukjk;.k 'kekZ | O13: =EmpDetail!C8 -> वरिष्ठ अध्यापक | P13: =EmpDetail!D8 -> राउमावि चौगाई | Q13: =EmpDetail!J8 -> L-13
M14: 6 | N14: =EmpDetail!B9 -> iq"ik tSu | O14: =EmpDetail!C9 -> वरिष्ठ अध्यापक | P14: =EmpDetail!D9 -> राउमावि चौगाई | Q14: =EmpDetail!J9 -> L-13
M15: 7 | N15: =EmpDetail!B10 -> vk'kkjke eh.kk | O15: =EmpDetail!C10 -> वरिष्ठ अध्यापक | P15: =EmpDetail!D10 -> राउमावि चौगाई | Q15: =EmpDetail!J10 -> L-11
M16: 8 | N16: =EmpDetail!B11 -> t;iky flag | O16: =EmpDetail!C11 -> वरिष्ठ अध्यापक | P16: =EmpDetail!D11 -> राउमावि चौगाई | Q16: =EmpDetail!J11 -> L-12
M17: 9 | N17: =EmpDetail!B12 -> jkeizlkn jsxj | O17: =EmpDetail!C12 -> वरिष्ठ अध्यापक | P17: =EmpDetail!D12 -> राउमावि चौगाई | Q17: =EmpDetail!J12 -> L-11
M18: 10 | N18: =EmpDetail!B13 -> egsUnz dqekj tkV | O18: =EmpDetail!C13 -> शारीरिक शिक्षक | P18: =EmpDetail!D13 -> राउमावि चौगाई | Q18: =EmpDetail!J13 -> L-12
M19: 11 | N19: =EmpDetail!B14 -> NksVw yky jsxj | O19: =EmpDetail!C14 -> अध्यापक ग्रेड III | P19: =EmpDetail!D14 -> राउमावि चौगाई | Q19: =EmpDetail!J14 -> L-13
J20: =Master!B2 -> प्रधानाचार्य | M20: 12 | N20: =EmpDetail!B15 -> dUgS;k yky egkoj | O20: =EmpDetail!C15 -> अध्यापक ग्रेड III | P20: =EmpDetail!D15 -> राउमावि चौगाई | Q20: =EmpDetail!J15 -> L-13
J21: =Master!B3 -> राजकीय उच्च माध्यमिक विद्यालय | M21: 13 | N21: =EmpDetail!B16 -> prqHkqZt tkV | O21: =EmpDetail!C16 -> अध्यापक ग्रेड III | P21: =EmpDetail!D16 -> राउमावि चौगाई | Q21: =EmpDetail!J16 -> L-11
J22: =Master!B4 -> चौगाई]टोंक | M22: 14 | N22: =EmpDetail!B17 -> vklsQk [kku | O22: =EmpDetail!C17 -> अध्यापक ग्रेड III | P22: =EmpDetail!D17 -> राउमावि चौगाई | Q22: =EmpDetail!J17 -> L-11
B23: Øekad& | C23: =Master!H3&Master!I3&Master!J3&Master!E3&"/" -> राउमावि/चौगाई/संस्था/2021-22/ | K23: fnukad& | L23: =TODAY() -> 2021-06-19 | M23: 15 | N23: =EmpDetail!B18 -> lq'khyk cSjok | O23: =EmpDetail!C18 -> कनिष्ठ सहायक | P23: =EmpDetail!D18 -> राउमावि चौगाई | Q23: =EmpDetail!J18 -> L-5
C24: izfrfyfi lwpukFkZ ,oa ikyukFkZ | M24: 16 | N24: =EmpDetail!B19 -> txnh'k izlkn rsyh | O24: =EmpDetail!C19 -> सहायक कर्मचारी | P24: =EmpDetail!D19 -> राउमावि चौगाई | Q24: =EmpDetail!J19 -> L-5
B25: 1 | C25: dks"kkf/kdkjh@mi dks"kkf/kdkjh | D25: =Master!H4 -> पीपलू | M25: 17 | N25: =EmpDetail!B20 -> jfoUnz dqekj tSu | O25: =EmpDetail!C20 -> अध्यापक ग्रेड III | P25: =EmpDetail!D20 -> राउप्रावि मोहिनी | Q25: =EmpDetail!J20 -> L-12
B26: 2 | C26: ys[kk 'kk[kk LFkkuh; dk;kZy; | M26: 18 | N26: =EmpDetail!B21 -> ';ke lqUnj ckxkSM | O26: =EmpDetail!C21 -> अध्यापक ग्रेड III | P26: =EmpDetail!D21 -> राउप्रावि मोहिनी | Q26: =EmpDetail!J21 -> L-10
B27: 3 | C27: dkfeZd O;fDrxr iaftdk | M27: 19 | N27: =EmpDetail!B22 -> d`".kk 'kekZ | O27: =EmpDetail!C22 -> प्रबोधक | P27: =EmpDetail!D22 -> राउप्रावि मोहिनी | Q27: =EmpDetail!J22 -> L-11
B28: 4 | C28: lEcfU/kr dkfeZd | M28: 20 | N28: =EmpDetail!B23 -> /keZsUnz pkS/kjh | O28: =EmpDetail!C23 -> अध्यापक ग्रेड III | P28: =EmpDetail!D23 -> राउप्रावि गोरधनपुरा | Q28: =EmpDetail!J23 -> L-10
J29: =J20 -> प्रधानाचार्य | M29: 21 | N29: =EmpDetail!B24 -> izgykn ekyh | O29: =EmpDetail!C24 -> प्रबोधक | P29: =EmpDetail!D24 -> राउप्रावि गोरधनपुरा | Q29: =EmpDetail!J24 -> L-11
J30: =J21 -> राजकीय उच्च माध्यमिक विद्यालय | M30: 22 | N30: =EmpDetail!B25 -> jken;ky xqtZj | O30: =EmpDetail!C25 -> प्रबोधक | P30: =EmpDetail!D25 -> राउप्रावि सोंदीफल | Q30: =EmpDetail!J25 -> L-11
J31: =J22 -> चौगाई]टोंक | M31: 23 | N31: =EmpDetail!B26 -> vkSeizdk'k tkV | O31: =EmpDetail!C26 -> अध्यापक ग्रेड III | P31: =EmpDetail!D26 -> राउप्रावि सोंदीफल | Q31: =EmpDetail!J26 -> L-11
M32: 24 | N32: =EmpDetail!B27 -> vthr flag | O32: =EmpDetail!C27 -> अध्यापक ग्रेड III | P32: =EmpDetail!D27 -> राप्रावि जानकीवल्लभपुरा | Q32: =EmpDetail!J27 -> L-10
M33: 25 | N33: =EmpDetail!B28 -> eq[rkj eha;k | O33: =EmpDetail!C28 -> प्रबोधक | P33: =EmpDetail!D28 -> राप्रावि जानकीवल्लभपुरा | Q33: =EmpDetail!J28 -> L-11
M34: 26 | N34: =EmpDetail!B29 -> eks0 tehy | O34: =EmpDetail!C29 -> प्रबोधक | P34: =EmpDetail!D29 -> राप्रावि रसूलपुरा | Q34: =EmpDetail!J29 -> L-11
M35: 27 | N35: =EmpDetail!B30 -> lkaojey tkV | O35: =EmpDetail!C30 -> अध्यापक ग्रेड III | P35: =EmpDetail!D30 -> राप्रावि रसूलपुरा | Q35: =EmpDetail!J30 -> L-10
M36: 28 | N36: =EmpDetail!B31 -> pkS/kjh eksuk jkekorkj | O36: =EmpDetail!C31 -> अध्यापक ग्रेड III | P36: =EmpDetail!D31 -> राप्रावि मोहिनी ढाणी बाढ | Q36: =EmpDetail!J31 -> L-10
M37: 29 | N37: =EmpDetail!B32 -> rkjkpUn tk;loky | O37: =EmpDetail!C32 -> प्रबोधक | P37: =EmpDetail!D32 -> राप्रावि मोहिनी ढाणी बाढ | Q37: =EmpDetail!J32 -> L-11
M38: 30 | N38: =EmpDetail!B33 -> jketl ;kno | O38: =EmpDetail!C33 -> अध्यापक ग्रेड III | P38: =EmpDetail!D33 -> राप्रावि बैरवा ढाणी सोन्दीफल | Q38: =EmpDetail!J33 -> L-12
M39: 31 | N39: =EmpDetail!B34 -> dtksMey eh.kk | O39: =EmpDetail!C34 -> अध्यापक ग्रेड III | P39: =EmpDetail!D34 -> राप्रावि बैरवा ढाणी सोन्दीफल | Q39: =EmpDetail!J34 -> L-10
M40: 32 | N40: =EmpDetail!B35 -> /kaut; xkSRre | O40: =EmpDetail!C35 -> अध्यापक ग्रेड III | P40: =EmpDetail!D35 -> राउप्रावि गोरधनपुरा | Q40: =EmpDetail!J35 -> L-10
M41: 33 | N41: =EmpDetail!B36 -> d`".kk xaxoky | O41: =EmpDetail!C36 -> अध्यापक ग्रेड III | P41: =EmpDetail!D36 -> राउप्रावि गोरधनपुरा | Q41: =EmpDetail!J36 -> L-10
M42: 34 | N42: =EmpDetail!B37 -> n'kjFk dqekj ;kno | O42: =EmpDetail!C37 -> अध्यापक ग्रेड III | P42: =EmpDetail!D37 -> राउप्रावि सोंदीफल | Q42: =EmpDetail!J37 -> L-10
M43: 35 | N43: =EmpDetail!B38 -> d`".k yky tkV | O43: =EmpDetail!C38 -> अध्यापक ग्रेड III | P43: =EmpDetail!D38 -> राउप्रावि सोंदीफल | Q43: =EmpDetail!J38 -> L-10
M44: 36 | N44: =EmpDetail!B39 -> nhisUnz dqekj iztkir | O44: =EmpDetail!C39 -> अध्यापक ग्रेड III | P44: =EmpDetail!D39 -> राउप्रावि सोंदीफल | Q44: =EmpDetail!J39 -> L-10
M45: 37 | N45: =EmpDetail!B40 -> uohu dqekj | O45: =EmpDetail!C40 -> अध्यापक ग्रेड III | P45: =EmpDetail!D40 -> राउप्रावि मोहिनी | Q45: =EmpDetail!J40 -> L-10
M46: 38 | N46: =EmpDetail!B41 -> ehrs'k dqekj 'kekZ | O46: =EmpDetail!C41 -> अध्यापक ग्रेड III | P46: =EmpDetail!D41 -> राउप्रावि मोहिनी | Q46: =EmpDetail!J41 -> L-10
M47: 39 | N47: =EmpDetail!B42 -> eUtw eh.kk | O47: =EmpDetail!C42 -> वरिष्ठ अध्यापक | P47: =EmpDetail!D42 -> राउप्रावि गोरधनपुरा | Q47: =EmpDetail!J42 -> L-10
M48: 40 | N48: =EmpDetail!B43 -> eatw pkS/kjh | O48: =EmpDetail!C43 -> वरिष्ठ अध्यापक | P48: =EmpDetail!D43 -> राउप्रावि सोंदीफल | Q48: =EmpDetail!J43 -> L-11
M49: 41 | N49: =EmpDetail!B44 -> 0 | O49: =EmpDetail!C44 -> 0 | P49: =EmpDetail!D44 -> 0 | Q49: =EmpDetail!J44 -> 0
M50: 42 | N50: =EmpDetail!B45 -> 0 | O50: =EmpDetail!C45 -> 0 | P50: =EmpDetail!D45 -> 0 | Q50: =EmpDetail!J45 -> 0
M51: 43 | N51: =EmpDetail!B46 -> 0 | O51: =EmpDetail!#REF! ->  | P51: =EmpDetail!#REF! ->  | Q51: =EmpDetail!J46 -> 0
M52: 44 | N52: =EmpDetail!B47 -> 0 | O52: =EmpDetail!C47 -> 0 | P52: =EmpDetail!D47 -> 0 | Q52: =EmpDetail!J47 -> 0
M53: 45 | N53: =EmpDetail!B48 -> 0 | O53: =EmpDetail!C48 -> 0 | P53: =EmpDetail!D48 -> 0 | Q53: =EmpDetail!J48 -> 0
M54: 46 | N54: =EmpDetail!B49 -> 0 | O54: =EmpDetail!C49 -> 0 | P54: =EmpDetail!D49 -> 0 | Q54: =EmpDetail!J49 -> 0
M55: 47 | N55: =EmpDetail!B50 -> 0 | O55: =EmpDetail!C50 -> 0 | P55: =EmpDetail!D50 -> 0 | Q55: =EmpDetail!J50 -> 0
M56: 48 | N56: =EmpDetail!B51 -> 0 | O56: =EmpDetail!C51 -> 0 | P56: =EmpDetail!D51 -> 0 | Q56: =EmpDetail!J51 -> 0
M57: 49 | N57: =EmpDetail!B52 -> 0 | O57: =EmpDetail!C52 -> 0 | P57: =EmpDetail!D52 -> 0 | Q57: =EmpDetail!J52 -> 0
M58: 50 | N58: =EmpDetail!B53 -> 0 | O58: =EmpDetail!C53 -> 0 | P58: =EmpDetail!D53 -> 0 | Q58: =EmpDetail!J53 -> 0
M59: 51 | N59: =EmpDetail!B54 -> 0 | O59: =EmpDetail!C54 -> 0 | P59: =EmpDetail!D54 -> 0 | Q59: =EmpDetail!J54 -> 0
M60: 52 | N60: =EmpDetail!B55 -> 0 | O60: =EmpDetail!C55 -> 0 | P60: =EmpDetail!D55 -> 0 | Q60: =EmpDetail!J55 -> 0
M61: 53 | N61: =EmpDetail!B56 -> 0 | O61: =EmpDetail!C56 -> 0 | P61: =EmpDetail!D56 -> 0 | Q61: =EmpDetail!J56 -> 0
M62: 54 | N62: =EmpDetail!B57 -> 0 | O62: =EmpDetail!C57 -> 0 | P62: =EmpDetail!D57 -> 0 | Q62: =EmpDetail!J57 -> 0
M63: 55 | N63: =EmpDetail!B58 -> 0 | O63: =EmpDetail!C58 -> 0 | P63: =EmpDetail!D58 -> 0 | Q63: =EmpDetail!J58 -> 0
M64: 56 | N64: =EmpDetail!B59 -> 0 | O64: =EmpDetail!C59 -> 0 | P64: =EmpDetail!D59 -> 0 | Q64: =EmpDetail!J59 -> 0
M65: 57 | N65: =EmpDetail!B60 -> 0 | O65: =EmpDetail!C60 -> 0 | P65: =EmpDetail!D60 -> 0 | Q65: =EmpDetail!J60 -> 0
M66: 58 | N66: =EmpDetail!B61 -> 0 | O66: =EmpDetail!C61 -> 0 | P66: =EmpDetail!D61 -> 0 | Q66: =EmpDetail!J61 -> 0
M67: 59 | N67: =EmpDetail!B62 -> 0 | O67: =EmpDetail!C62 -> 0 | P67: =EmpDetail!D62 -> 0 | Q67: =EmpDetail!J62 -> 0
M68: 60 | N68: =EmpDetail!B63 -> 0 | O68: =EmpDetail!C63 -> 0 | P68: =EmpDetail!D63 -> 0 | Q68: =EmpDetail!J63 -> 0
M69: 61 | N69: =EmpDetail!B64 -> 0 | O69: =EmpDetail!C64 -> 0 | P69: =EmpDetail!D64 -> 0 | Q69: =EmpDetail!J64 -> 0
M70: 62 | N70: =EmpDetail!B65 -> 0 | O70: =EmpDetail!C65 -> 0 | P70: =EmpDetail!D65 -> 0 | Q70: =EmpDetail!J65 -> 0
M71: 63 | N71: =EmpDetail!B66 -> 0 | O71: =EmpDetail!C66 -> 0 | P71: =EmpDetail!D66 -> 0 | Q71: =EmpDetail!J66 -> 0
M72: 64 | N72: =EmpDetail!B67 -> 0 | O72: =EmpDetail!C67 -> 0 | P72: =EmpDetail!D67 -> 0 | Q72: =EmpDetail!J67 -> 0
M73: 65 | N73: =EmpDetail!B68 -> 0 | O73: =EmpDetail!C68 -> 0 | P73: =EmpDetail!D68 -> 0 | Q73: =EmpDetail!J68 -> 0
M74: 66 | N74: =EmpDetail!B69 -> 0 | O74: =EmpDetail!C69 -> 0 | P74: =EmpDetail!D69 -> 0 | Q74: =EmpDetail!J69 -> 0
M75: 67 | N75: =EmpDetail!B70 -> 0 | O75: =EmpDetail!C70 -> 0 | P75: =EmpDetail!D70 -> 0 | Q75: =EmpDetail!J70 -> 0
M76: 68 | N76: =EmpDetail!B71 -> 0 | O76: =EmpDetail!C71 -> 0 | P76: =EmpDetail!D71 -> 0 | Q76: =EmpDetail!J71 -> 0
M77: 69 | N77: =EmpDetail!B72 -> 0 | O77: =EmpDetail!C72 -> 0 | P77: =EmpDetail!D72 -> 0 | Q77: =EmpDetail!J72 -> 0
M78: 70 | N78: =EmpDetail!B73 -> 0 | O78: =EmpDetail!C73 -> 0 | P78: =EmpDetail!D73 -> 0 | Q78: =EmpDetail!J73 -> 0
M79: 71 | N79: =EmpDetail!B74 -> 0 | O79: =EmpDetail!C74 -> 0 | P79: =EmpDetail!D74 -> 0 | Q79: =EmpDetail!J74 -> 0
M80: 72 | N80: =EmpDetail!B75 -> 0 | O80: =EmpDetail!C75 -> 0 | P80: =EmpDetail!D75 -> 0 | Q80: =EmpDetail!J75 -> 0
M81: 73 | N81: =EmpDetail!B76 -> 0 | O81: =EmpDetail!C76 -> 0 | P81: =EmpDetail!D76 -> 0 | Q81: =EmpDetail!J76 -> 0
M82: 74 | N82: =EmpDetail!B77 -> 0 | O82: =EmpDetail!C77 -> 0 | P82: =EmpDetail!D77 -> 0 | Q82: =EmpDetail!J77 -> 0
M83: 75 | N83: =EmpDetail!B78 -> 0 | O83: =EmpDetail!C78 -> 0 | P83: =EmpDetail!D78 -> 0 | Q83: =EmpDetail!J78 -> 0
M84: 76 | N84: =EmpDetail!B79 -> 0 | O84: =EmpDetail!C79 -> 0 | P84: =EmpDetail!D79 -> 0 | Q84: =EmpDetail!J79 -> 0
M85: 77 | N85: =EmpDetail!B80 -> 0 | O85: =EmpDetail!C80 -> 0 | P85: =EmpDetail!D80 -> 0 | Q85: =EmpDetail!J80 -> 0
M86: 78 | N86: =EmpDetail!B81 -> 0 | O86: =EmpDetail!C81 -> 0 | P86: =EmpDetail!D81 -> 0 | Q86: =EmpDetail!J81 -> 0
M87: 79 | N87: =EmpDetail!B82 -> 0 | O87: =EmpDetail!C82 -> 0 | P87: =EmpDetail!D82 -> 0 | Q87: =EmpDetail!J82 -> 0
M88: 80 | N88: =EmpDetail!B83 -> 0 | O88: =EmpDetail!C83 -> 0 | P88: =EmpDetail!D83 -> 0 | Q88: =EmpDetail!J83 -> 0
M89: 81 | N89: =EmpDetail!B84 -> 0 | O89: =EmpDetail!C84 -> 0 | P89: =EmpDetail!D84 -> 0 | Q89: =EmpDetail!J84 -> 0
M90: 82 | N90: =EmpDetail!B85 -> 0 | O90: =EmpDetail!C85 -> 0 | P90: =EmpDetail!D85 -> 0 | Q90: =EmpDetail!J85 -> 0
M91: 83 | N91: =EmpDetail!B86 -> 0 | O91: =EmpDetail!C86 -> 0 | P91: =EmpDetail!D86 -> 0 | Q91: =EmpDetail!J86 -> 0
M92: 84 | N92: =EmpDetail!B87 -> 0 | O92: =EmpDetail!C87 -> 0 | P92: =EmpDetail!D87 -> 0 | Q92: =EmpDetail!J87 -> 0
M93: 85 | N93: =EmpDetail!B88 -> 0 | O93: =EmpDetail!C88 -> 0 | P93: =EmpDetail!D88 -> 0 | Q93: =EmpDetail!J88 -> 0
M94: 86 | N94: =EmpDetail!B89 -> 0 | O94: =EmpDetail!C89 -> 0 | P94: =EmpDetail!D89 -> 0 | Q94: =EmpDetail!J89 -> 0
M95: 87 | N95: =EmpDetail!B90 -> 0 | O95: =EmpDetail!C90 -> 0 | P95: =EmpDetail!D90 -> 0 | Q95: =EmpDetail!J90 -> 0
M96: 88 | N96: =EmpDetail!B91 -> 0 | O96: =EmpDetail!C91 -> 0 | P96: =EmpDetail!D91 -> 0 | Q96: =EmpDetail!J91 -> 0
M97: 89 | N97: =EmpDetail!B92 -> 0 | O97: =EmpDetail!C92 -> 0 | P97: =EmpDetail!D92 -> 0 | Q97: =EmpDetail!J92 -> 0
M98: 90 | N98: =EmpDetail!B93 -> 0 | O98: =EmpDetail!C93 -> 0 | P98: =EmpDetail!D93 -> 0 | Q98: =EmpDetail!J93 -> 0
M99: 91 | N99: =EmpDetail!B94 -> 0 | O99: =EmpDetail!C94 -> 0 | P99: =EmpDetail!D94 -> 0 | Q99: =EmpDetail!J94 -> 0
M100: 92 | N100: =EmpDetail!B95 -> 0 | O100: =EmpDetail!C95 -> 0 | P100: =EmpDetail!D95 -> 0 | Q100: =EmpDetail!J95 -> 0
M101: 93 | N101: =EmpDetail!B96 -> 0 | O101: =EmpDetail!C96 -> 0 | P101: =EmpDetail!D96 -> 0 | Q101: =EmpDetail!J96 -> 0
M102: 94 | N102: =EmpDetail!B97 -> 0 | O102: =EmpDetail!C97 -> 0 | P102: =EmpDetail!D97 -> 0 | Q102: =EmpDetail!J97 -> 0
M103: 95 | N103: =EmpDetail!B98 -> 0 | O103: =EmpDetail!C98 -> 0 | P103: =EmpDetail!D98 -> 0 | Q103: =EmpDetail!J98 -> 0
M104: 96 | N104: =EmpDetail!B99 -> 0 | O104: =EmpDetail!C99 -> 0 | P104: =EmpDetail!D99 -> 0 | Q104: =EmpDetail!J99 -> 0
M105: 97 | N105: =EmpDetail!B100 -> 0 | O105: =EmpDetail!C100 -> 0 | P105: =EmpDetail!D100 -> 0 | Q105: =EmpDetail!J100 -> 0
M106: 98 | N106: =EmpDetail!B101 -> 0 | O106: =EmpDetail!C101 -> 0 | P106: =EmpDetail!D101 -> 0 | Q106: =EmpDetail!J101 -> 0
M107: 99 | N107: =EmpDetail!B102 -> 0 | O107: =EmpDetail!C102 -> 0 | P107: =EmpDetail!D102 -> 0 | Q107: =EmpDetail!J102 -> 0
M108: 100 | N108: =EmpDetail!B103 -> 0 | O108: =EmpDetail!C103 -> 0 | P108: =EmpDetail!D103 -> 0 | Q108: =EmpDetail!J103 -> 0

Sheet Surrendar (hidden)
B1: =Master!G2&Master!H2 -> कार्यालय&राजकीय उच्च माध्यमिक विद्यालय ]चौगाई]टोंक
F3: dk;kZy; vkns'k
B5: jkT; ljdkj ds foRr foHkkx ds Order No.F.15(1)FD/Rules/2017 Dated: 30.10.2017 & Revised Order No.F.15(1)FD/Rules/2017 Dated: 09.12.2017
B6: ="ds vuqlj.k esa bl dk;kZy; ds v/khu dk;Zjr fuEukafdr dkfeZdksa dks Lo;a ds vkosnu ij muds uke ds lEEq[k vafdrkuqlkj fnol dk mikftZr vodk'k foRrh; l=& "&Master!E3&" ds fy, fu;e 91 , ds rgr" -> ds vuqlj.k esa bl dk;kZy; ds v/khu dk;Zjr fuEukafdr dkfeZdksa dks Lo;a ds vkosnu ij muds uke ds lEEq[k vafdrkuqlkj fnol dk mikftZr vodk'k foRrh; l=& 2021-22 ds fy, fu;e 91 , ds rgr
B7: jkT; ljdkj ds fgr esas lefiZr dj brus gh fnuksa ds mikftZr vodk'k ds cnys esa jktLFkku lsok fu;eksa ds fu;e 97 ds rgr vodk'k osru ds leku udn Hkxrku dh Lohd`fr iznku dh tkrh gSA
B8: lefiZr mikftZr vodk'k dk vadu lsok iqfLrdk esa yky L;kgh ls dj fn;k x;k gSA
A9: dkfeZd Øe | B9: Ø-la- | C9: uke dfeZd | D9: in uke | E9: is esfVªd ysoy | F9: inLFkkiu LFkku | G9: vkosnu dh fnukad | H9: [kkrs esa miyC/k mikftZr vodk'k | I9: lefiZr mikftZr vodk'k | J9: leiZ.k ds i'pkr 'ks"k mik0 vodk'k | K9: vkosnu fnukad dks ewy osru
A10: 4 | B10: =IF(C10="","",1) -> 1 | C10: =IF(ISNA(VLOOKUP($A10,$L$10:$Q$109,2,FALSE)),"",VLOOKUP($A10,$L$10:$Q$109,2,FALSE)) -> fd'ku yky cSjok | D10: =IF(ISNA(VLOOKUP($A10,$L$10:$Q$109,3,FALSE)),"",VLOOKUP($A10,$L$10:$Q$109,3,FALSE)) -> व्याख्याता | E10: =IF(ISNA(VLOOKUP($A10,$L$10:$Q$109,4,FALSE)),"",VLOOKUP($A10,$L$10:$Q$109,4,FALSE)) -> L-12 | F10: =IF(ISNA(VLOOKUP($A10,$L$10:$Q$109,5,FALSE)),"",VLOOKUP($A10,$L$10:$Q$109,5,FALSE)) -> राउमावि चौगाई | G10: 2021-03-22 | H10: 315 | I10: 15 | J10: =IF(H10="","",H10-I10) -> 300 | K10: =IF(ISNA(VLOOKUP($A10,$L$10:$Q$109,6,FALSE)),"",VLOOKUP($A10,$L$10:$Q$109,6,FALSE)) -> 54500 | L10: 1 | M10: =EmpDetail!B4 -> fd'ku yky cSjok | N10: =EmpDetail!C4 -> प्रधानाचार्य | O10: =EmpDetail!J4 -> L-16 | P10: =EmpDetail!D4 -> राउमावि चौगाई | Q10: =EmpDetail!K4 -> 95900
B11: =IF(C11="","",B10+1) ->  | C11: =IF(ISNA(VLOOKUP($A11,$L$10:$Q$109,2,FALSE)),"",VLOOKUP($A11,$L$10:$Q$109,2,FALSE)) ->  | D11: =IF(ISNA(VLOOKUP($A11,$L$10:$Q$109,3,FALSE)),"",VLOOKUP($A11,$L$10:$Q$109,3,FALSE)) ->  | E11: =IF(ISNA(VLOOKUP($A11,$L$10:$Q$109,4,FALSE)),"",VLOOKUP($A11,$L$10:$Q$109,4,FALSE)) ->  | F11: =IF(ISNA(VLOOKUP($A11,$L$10:$Q$109,5,FALSE)),"",VLOOKUP($A11,$L$10:$Q$109,5,FALSE)) ->  | J11: =IF(H11="","",H11-I11) ->  | K11: =IF(ISNA(VLOOKUP($A11,$L$10:$Q$109,6,FALSE)),"",VLOOKUP($A11,$L$10:$Q$109,6,FALSE)) ->  | L11: 2 | M11: =EmpDetail!B5 -> iwj.k pUn y{kdkj | N11: =EmpDetail!C5 -> व्याख्याता | O11: =EmpDetail!J5 -> L-12 | P11: =EmpDetail!D5 -> राउमावि चौगाई | Q11: =EmpDetail!K5 -> 56100
B12: =IF(C12="","",B11+1) ->  | L12: 3 | M12: =EmpDetail!B6 -> jktsUnz dqekj tSu | N12: =EmpDetail!C6 -> व्याख्याता | O12: =EmpDetail!J6 -> L-12 | P12: =EmpDetail!D6 -> राउमावि चौगाई | Q12: =EmpDetail!K6 -> 63100
L13: 4 | M13: =EmpDetail!B7 -> fd'ku yky cSjok | N13: =EmpDetail!C7 -> व्याख्याता | O13: =EmpDetail!J7 -> L-12 | P13: =EmpDetail!D7 -> राउमावि चौगाई | Q13: =EmpDetail!K7 -> 54500
L14: 5 | M14: =EmpDetail!B8 -> lR;ukjk;.k 'kekZ | N14: =EmpDetail!C8 -> वरिष्ठ अध्यापक | O14: =EmpDetail!J8 -> L-13 | P14: =EmpDetail!D8 -> राउमावि चौगाई | Q14: =EmpDetail!K8 -> 71300
L15: 6 | M15: =EmpDetail!B9 -> iq"ik tSu | N15: =EmpDetail!C9 -> वरिष्ठ अध्यापक | O15: =EmpDetail!J9 -> L-13 | P15: =EmpDetail!D9 -> राउमावि चौगाई | Q15: =EmpDetail!K9 -> 73400
L16: 7 | M16: =EmpDetail!B10 -> vk'kkjke eh.kk | N16: =EmpDetail!C10 -> वरिष्ठ अध्यापक | O16: =EmpDetail!J10 -> L-11 | P16: =EmpDetail!D10 -> राउमावि चौगाई | Q16: =EmpDetail!K10 -> 52300
L17: 8 | M17: =EmpDetail!B11 -> t;iky flag | N17: =EmpDetail!C11 -> वरिष्ठ अध्यापक | O17: =EmpDetail!J11 -> L-12 | P17: =EmpDetail!D11 -> राउमावि चौगाई | Q17: =EmpDetail!K11 -> 63100
L18: 9 | M18: =EmpDetail!B12 -> jkeizlkn jsxj | N18: =EmpDetail!C12 -> वरिष्ठ अध्यापक | O18: =EmpDetail!J12 -> L-11 | P18: =EmpDetail!D12 -> राउमावि चौगाई | Q18: =EmpDetail!K12 -> 46500
L19: 10 | M19: =EmpDetail!B13 -> egsUnz dqekj tkV | N19: =EmpDetail!C13 -> शारीरिक शिक्षक | O19: =EmpDetail!J13 -> L-12 | P19: =EmpDetail!D13 -> राउमावि चौगाई | Q19: =EmpDetail!K13 -> 61300
L20: 11 | M20: =EmpDetail!B14 -> NksVw yky jsxj | N20: =EmpDetail!C14 -> अध्यापक ग्रेड III | O20: =EmpDetail!J14 -> L-13 | P20: =EmpDetail!D14 -> राउमावि चौगाई | Q20: =EmpDetail!K14 -> 65200
L21: 12 | M21: =EmpDetail!B15 -> dUgS;k yky egkoj | N21: =EmpDetail!C15 -> अध्यापक ग्रेड III | O21: =EmpDetail!J15 -> L-13 | P21: =EmpDetail!D15 -> राउमावि चौगाई | Q21: =EmpDetail!K15 -> 65200
L22: 13 | M22: =EmpDetail!B16 -> prqHkqZt tkV | N22: =EmpDetail!C16 -> अध्यापक ग्रेड III | O22: =EmpDetail!J16 -> L-11 | P22: =EmpDetail!D16 -> राउमावि चौगाई | Q22: =EmpDetail!K16 -> 52300
L23: 14 | M23: =EmpDetail!B17 -> vklsQk [kku | N23: =EmpDetail!C17 -> अध्यापक ग्रेड III | O23: =EmpDetail!J17 -> L-11 | P23: =EmpDetail!D17 -> राउमावि चौगाई | Q23: =EmpDetail!K17 -> 52300
L24: 15 | M24: =EmpDetail!B18 -> lq'khyk cSjok | N24: =EmpDetail!C18 -> कनिष्ठ सहायक | O24: =EmpDetail!J18 -> L-5 | P24: =EmpDetail!D18 -> राउमावि चौगाई | Q24: =EmpDetail!K18 -> 14600
L25: 16 | M25: =EmpDetail!B19 -> txnh'k izlkn rsyh | N25: =EmpDetail!C19 -> सहायक कर्मचारी | O25: =EmpDetail!J19 -> L-5 | P25: =EmpDetail!D19 -> राउमावि चौगाई | Q25: =EmpDetail!K19 -> 34700
I26: =Master!B2 -> प्रधानाचार्य | L26: 17 | M26: =EmpDetail!B20 -> jfoUnz dqekj tSu | N26: =EmpDetail!C20 -> अध्यापक ग्रेड III | O26: =EmpDetail!J20 -> L-12 | P26: =EmpDetail!D20 -> राउप्रावि मोहिनी | Q26: =EmpDetail!K20 -> 65200
I27: =Master!B3 -> राजकीय उच्च माध्यमिक विद्यालय | L27: 18 | M27: =EmpDetail!B21 -> ';ke lqUnj ckxkSM | N27: =EmpDetail!C21 -> अध्यापक ग्रेड III | O27: =EmpDetail!J21 -> L-10 | P27: =EmpDetail!D21 -> राउप्रावि मोहिनी | Q27: =EmpDetail!K21 -> 40300
I28: =Master!B4 -> चौगाई]टोंक | L28: 19 | M28: =EmpDetail!B22 -> d`".kk 'kekZ | N28: =EmpDetail!C22 -> प्रबोधक | O28: =EmpDetail!J22 -> L-11 | P28: =EmpDetail!D22 -> राउप्रावि मोहिनी | Q28: =EmpDetail!K22 -> 45100
B29: Øekad& | C29: =Master!H3&Master!I3&Master!J3&Master!E3&"/" -> राउमावि/चौगाई/संस्था/2021-22/ | J29: fnukad& | K29: =TODAY() -> 2021-06-19 | L29: 20 | M29: =EmpDetail!B23 -> /keZsUnz pkS/kjh | N29: =EmpDetail!C23 -> अध्यापक ग्रेड III | O29: =EmpDetail!J23 -> L-10 | P29: =EmpDetail!D23 -> राउप्रावि गोरधनपुरा | Q29: =EmpDetail!K23 -> 40300
C30: izfrfyfi lwpukFkZ ,oa ikyukFkZ | L30: 21 | M30: =EmpDetail!B24 -> izgykn ekyh | N30: =EmpDetail!C24 -> प्रबोधक | O30: =EmpDetail!J24 -> L-11 | P30: =EmpDetail!D24 -> राउप्रावि गोरधनपुरा | Q30: =EmpDetail!K24 -> 46500
B31: 1 | C31: dks"kkf/kdkjh@mi dks"kkf/kdkjh | D31: =Master!H4 -> पीपलू | L31: 22 | M31: =EmpDetail!B25 -> jken;ky xqtZj | N31: =EmpDetail!C25 -> प्रबोधक | O31: =EmpDetail!J25 -> L-11 | P31: =EmpDetail!D25 -> राउप्रावि सोंदीफल | Q31: =EmpDetail!K25 -> 45100
B32: 2 | C32: ys[kk 'kk[kk LFkkuh; dk;kZy; | L32: 23 | M32: =EmpDetail!B26 -> vkSeizdk'k tkV | N32: =EmpDetail!C26 -> अध्यापक ग्रेड III | O32: =EmpDetail!J26 -> L-11 | P32: =EmpDetail!D26 -> राउप्रावि सोंदीफल | Q32: =EmpDetail!K26 -> 45100
B33: 3 | C33: dkfeZd O;fDrxr iaftdk | L33: 24 | M33: =EmpDetail!B27 -> vthr flag | N33: =EmpDetail!C27 -> अध्यापक ग्रेड III | O33: =EmpDetail!J27 -> L-10 | P33: =EmpDetail!D27 -> राप्रावि जानकीवल्लभपुरा | Q33: =EmpDetail!K27 -> 40300
B34: 4 | C34: lEcfU/kr dkfeZd | L34: 25 | M34: =EmpDetail!B28 -> eq[rkj eha;k | N34: =EmpDetail!C28 -> प्रबोधक | O34: =EmpDetail!J28 -> L-11 | P34: =EmpDetail!D28 -> राप्रावि जानकीवल्लभपुरा | Q34: =EmpDetail!K28 -> 45100
I35: =I26 -> प्रधानाचार्य | L35: 26 | M35: =EmpDetail!B29 -> eks0 tehy | N35: =EmpDetail!C29 -> प्रबोधक | O35: =EmpDetail!J29 -> L-11 | P35: =EmpDetail!D29 -> राप्रावि रसूलपुरा | Q35: =EmpDetail!K29 -> 45100
I36: =I27 -> राजकीय उच्च माध्यमिक विद्यालय | L36: 27 | M36: =EmpDetail!B30 -> lkaojey tkV | N36: =EmpDetail!C30 -> अध्यापक ग्रेड III | O36: =EmpDetail!J30 -> L-10 | P36: =EmpDetail!D30 -> राप्रावि रसूलपुरा | Q36: =EmpDetail!K30 -> 38000
I37: =I28 -> चौगाई]टोंक | L37: 28 | M37: =EmpDetail!B31 -> pkS/kjh eksuk jkekorkj | N37: =EmpDetail!C31 -> अध्यापक ग्रेड III | O37: =EmpDetail!J31 -> L-10 | P37: =EmpDetail!D31 -> राप्रावि मोहिनी ढाणी बाढ | Q37: =EmpDetail!K31 -> 38000
L38: 29 | M38: =EmpDetail!B32 -> rkjkpUn tk;loky | N38: =EmpDetail!C32 -> प्रबोधक | O38: =EmpDetail!J32 -> L-11 | P38: =EmpDetail!D32 -> राप्रावि मोहिनी ढाणी बाढ | Q38: =EmpDetail!K32 -> 41300
L39: 30 | M39: =EmpDetail!B33 -> jketl ;kno | N39: =EmpDetail!C33 -> अध्यापक ग्रेड III | O39: =EmpDetail!J33 -> L-12 | P39: =EmpDetail!D33 -> राप्रावि बैरवा ढाणी सोन्दीफल | Q39: =EmpDetail!K33 -> 63100
L40: 31 | M40: =EmpDetail!B34 -> dtksMey eh.kk | N40: =EmpDetail!C34 -> अध्यापक ग्रेड III | O40: =EmpDetail!J34 -> L-10 | P40: =EmpDetail!D34 -> राप्रावि बैरवा ढाणी सोन्दीफल | Q40: =EmpDetail!K34 -> 38000
L41: 32 | M41: =EmpDetail!B35 -> /kaut; xkSRre | N41: =EmpDetail!C35 -> अध्यापक ग्रेड III | O41: =EmpDetail!J35 -> L-10 | P41: =EmpDetail!D35 -> राउप्रावि गोरधनपुरा | Q41: =EmpDetail!K35 -> 34800
L42: 33 | M42: =EmpDetail!B36 -> d`".kk xaxoky | N42: =EmpDetail!C36 -> अध्यापक ग्रेड III | O42: =EmpDetail!J36 -> L-10 | P42: =EmpDetail!D36 -> राउप्रावि गोरधनपुरा | Q42: =EmpDetail!K36 -> 33800
L43: 34 | M43: =EmpDetail!B37 -> n'kjFk dqekj ;kno | N43: =EmpDetail!C37 -> अध्यापक ग्रेड III | O43: =EmpDetail!J37 -> L-10 | P43: =EmpDetail!D37 -> राउप्रावि सोंदीफल | Q43: =EmpDetail!K37 -> 23700
L44: 35 | M44: =EmpDetail!B38 -> d`".k yky tkV | N44: =EmpDetail!C38 -> अध्यापक ग्रेड III | O44: =EmpDetail!J38 -> L-10 | P44: =EmpDetail!D38 -> राउप्रावि सोंदीफल | Q44: =EmpDetail!K38 -> 33800
L45: 36 | M45: =EmpDetail!B39 -> nhisUnz dqekj iztkir | N45: =EmpDetail!C39 -> अध्यापक ग्रेड III | O45: =EmpDetail!J39 -> L-10 | P45: =EmpDetail!D39 -> राउप्रावि सोंदीफल | Q45: =EmpDetail!K39 -> 33800
L46: 37 | M46: =EmpDetail!B40 -> uohu dqekj | N46: =EmpDetail!C40 -> अध्यापक ग्रेड III | O46: =EmpDetail!J40 -> L-10 | P46: =EmpDetail!D40 -> राउप्रावि मोहिनी | Q46: =EmpDetail!K40 -> 33800
L47: 38 | M47: =EmpDetail!B41 -> ehrs'k dqekj 'kekZ | N47: =EmpDetail!C41 -> अध्यापक ग्रेड III | O47: =EmpDetail!J41 -> L-10 | P47: =EmpDetail!D41 -> राउप्रावि मोहिनी | Q47: =EmpDetail!K41 -> 34800
L48: 39 | M48: =EmpDetail!B42 -> eUtw eh.kk | N48: =EmpDetail!C42 -> वरिष्ठ अध्यापक | O48: =EmpDetail!J42 -> L-10 | P48: =EmpDetail!D42 -> राउप्रावि गोरधनपुरा | Q48: =EmpDetail!K42 -> 33800
L49: 40 | M49: =EmpDetail!B43 -> eatw pkS/kjh | N49: =EmpDetail!C43 -> वरिष्ठ अध्यापक | O49: =EmpDetail!J43 -> L-11 | P49: =EmpDetail!D43 -> राउप्रावि सोंदीफल | Q49: =EmpDetail!K43 -> 26500
L50: 41 | M50: =EmpDetail!B44 -> 0 | N50: =EmpDetail!C44 -> 0 | O50: =EmpDetail!J44 -> 0 | P50: =EmpDetail!D44 -> 0 | Q50: =EmpDetail!K44 -> 0
L51: 42 | M51: =EmpDetail!B45 -> 0 | N51: =EmpDetail!C45 -> 0 | O51: =EmpDetail!J45 -> 0 | P51: =EmpDetail!D45 -> 0 | Q51: =EmpDetail!K45 -> 0
L52: 43 | M52: =EmpDetail!B46 -> 0 | N52: =EmpDetail!#REF! ->  | O52: =EmpDetail!J46 -> 0 | P52: =EmpDetail!#REF! ->  | Q52: =EmpDetail!K46 -> 0
L53: 44 | M53: =EmpDetail!B47 -> 0 | N53: =EmpDetail!C47 -> 0 | O53: =EmpDetail!J47 -> 0 | P53: =EmpDetail!D47 -> 0 | Q53: =EmpDetail!K47 -> 0
L54: 45 | M54: =EmpDetail!B48 -> 0 | N54: =EmpDetail!C48 -> 0 | O54: =EmpDetail!J48 -> 0 | P54: =EmpDetail!D48 -> 0 | Q54: =EmpDetail!K48 -> 0
L55: 46 | M55: =EmpDetail!B49 -> 0 | N55: =EmpDetail!C49 -> 0 | O55: =EmpDetail!J49 -> 0 | P55: =EmpDetail!D49 -> 0 | Q55: =EmpDetail!K49 -> 0
L56: 47 | M56: =EmpDetail!B50 -> 0 | N56: =EmpDetail!C50 -> 0 | O56: =EmpDetail!J50 -> 0 | P56: =EmpDetail!D50 -> 0 | Q56: =EmpDetail!K50 -> 0
L57: 48 | M57: =EmpDetail!B51 -> 0 | N57: =EmpDetail!C51 -> 0 | O57: =EmpDetail!J51 -> 0 | P57: =EmpDetail!D51 -> 0 | Q57: =EmpDetail!K51 -> 0
L58: 49 | M58: =EmpDetail!B52 -> 0 | N58: =EmpDetail!C52 -> 0 | O58: =EmpDetail!J52 -> 0 | P58: =EmpDetail!D52 -> 0 | Q58: =EmpDetail!K52 -> 0
L59: 50 | M59: =EmpDetail!B53 -> 0 | N59: =EmpDetail!C53 -> 0 | O59: =EmpDetail!J53 -> 0 | P59: =EmpDetail!D53 -> 0 | Q59: =EmpDetail!K53 -> 0
L60: 51 | M60: =EmpDetail!B54 -> 0 | N60: =EmpDetail!C54 -> 0 | O60: =EmpDetail!J54 -> 0 | P60: =EmpDetail!D54 -> 0 | Q60: =EmpDetail!K54 -> 0
L61: 52 | M61: =EmpDetail!B55 -> 0 | N61: =EmpDetail!C55 -> 0 | O61: =EmpDetail!J55 -> 0 | P61: =EmpDetail!D55 -> 0 | Q61: =EmpDetail!K55 -> 0
L62: 53 | M62: =EmpDetail!B56 -> 0 | N62: =EmpDetail!C56 -> 0 | O62: =EmpDetail!J56 -> 0 | P62: =EmpDetail!D56 -> 0 | Q62: =EmpDetail!K56 -> 0
L63: 54 | M63: =EmpDetail!B57 -> 0 | N63: =EmpDetail!C57 -> 0 | O63: =EmpDetail!J57 -> 0 | P63: =EmpDetail!D57 -> 0 | Q63: =EmpDetail!K57 -> 0
L64: 55 | M64: =EmpDetail!B58 -> 0 | N64: =EmpDetail!C58 -> 0 | O64: =EmpDetail!J58 -> 0 | P64: =EmpDetail!D58 -> 0 | Q64: =EmpDetail!K58 -> 0
L65: 56 | M65: =EmpDetail!B59 -> 0 | N65: =EmpDetail!C59 -> 0 | O65: =EmpDetail!J59 -> 0 | P65: =EmpDetail!D59 -> 0 | Q65: =EmpDetail!K59 -> 0
L66: 57 | M66: =EmpDetail!B60 -> 0 | N66: =EmpDetail!C60 -> 0 | O66: =EmpDetail!J60 -> 0 | P66: =EmpDetail!D60 -> 0 | Q66: =EmpDetail!K60 -> 0
L67: 58 | M67: =EmpDetail!B61 -> 0 | N67: =EmpDetail!C61 -> 0 | O67: =EmpDetail!J61 -> 0 | P67: =EmpDetail!D61 -> 0 | Q67: =EmpDetail!K61 -> 0
L68: 59 | M68: =EmpDetail!B62 -> 0 | N68: =EmpDetail!C62 -> 0 | O68: =EmpDetail!J62 -> 0 | P68: =EmpDetail!D62 -> 0 | Q68: =EmpDetail!K62 -> 0
L69: 60 | M69: =EmpDetail!B63 -> 0 | N69: =EmpDetail!C63 -> 0 | O69: =EmpDetail!J63 -> 0 | P69: =EmpDetail!D63 -> 0 | Q69: =EmpDetail!K63 -> 0
L70: 61 | M70: =EmpDetail!B64 -> 0 | N70: =EmpDetail!C64 -> 0 | O70: =EmpDetail!J64 -> 0 | P70: =EmpDetail!D64 -> 0 | Q70: =EmpDetail!K64 -> 0
L71: 62 | M71: =EmpDetail!B65 -> 0 | N71: =EmpDetail!C65 -> 0 | O71: =EmpDetail!J65 -> 0 | P71: =EmpDetail!D65 -> 0 | Q71: =EmpDetail!K65 -> 0
L72: 63 | M72: =EmpDetail!B66 -> 0 | N72: =EmpDetail!C66 -> 0 | O72: =EmpDetail!J66 -> 0 | P72: =EmpDetail!D66 -> 0 | Q72: =EmpDetail!K66 -> 0
L73: 64 | M73: =EmpDetail!B67 -> 0 | N73: =EmpDetail!C67 -> 0 | O73: =EmpDetail!J67 -> 0 | P73: =EmpDetail!D67 -> 0 | Q73: =EmpDetail!K67 -> 0
L74: 65 | M74: =EmpDetail!B68 -> 0 | N74: =EmpDetail!C68 -> 0 | O74: =EmpDetail!J68 -> 0 | P74: =EmpDetail!D68 -> 0 | Q74: =EmpDetail!K68 -> 0
L75: 66 | M75: =EmpDetail!B69 -> 0 | N75: =EmpDetail!C69 -> 0 | O75: =EmpDetail!J69 -> 0 | P75: =EmpDetail!D69 -> 0 | Q75: =EmpDetail!K69 -> 0
L76: 67 | M76: =EmpDetail!B70 -> 0 | N76: =EmpDetail!C70 -> 0 | O76: =EmpDetail!J70 -> 0 | P76: =EmpDetail!D70 -> 0 | Q76: =EmpDetail!K70 -> 0
L77: 68 | M77: =EmpDetail!B71 -> 0 | N77: =EmpDetail!C71 -> 0 | O77: =EmpDetail!J71 -> 0 | P77: =EmpDetail!D71 -> 0 | Q77: =EmpDetail!K71 -> 0
L78: 69 | M78: =EmpDetail!B72 -> 0 | N78: =EmpDetail!C72 -> 0 | O78: =EmpDetail!J72 -> 0 | P78: =EmpDetail!D72 -> 0 | Q78: =EmpDetail!K72 -> 0
L79: 70 | M79: =EmpDetail!B73 -> 0 | N79: =EmpDetail!C73 -> 0 | O79: =EmpDetail!J73 -> 0 | P79: =EmpDetail!D73 -> 0 | Q79: =EmpDetail!K73 -> 0
L80: 71 | M80: =EmpDetail!B74 -> 0 | N80: =EmpDetail!C74 -> 0 | O80: =EmpDetail!J74 -> 0 | P80: =EmpDetail!D74 -> 0 | Q80: =EmpDetail!K74 -> 0
L81: 72 | M81: =EmpDetail!B75 -> 0 | N81: =EmpDetail!C75 -> 0 | O81: =EmpDetail!J75 -> 0 | P81: =EmpDetail!D75 -> 0 | Q81: =EmpDetail!K75 -> 0
L82: 73 | M82: =EmpDetail!B76 -> 0 | N82: =EmpDetail!C76 -> 0 | O82: =EmpDetail!J76 -> 0 | P82: =EmpDetail!D76 -> 0 | Q82: =EmpDetail!K76 -> 0
L83: 74 | M83: =EmpDetail!B77 -> 0 | N83: =EmpDetail!C77 -> 0 | O83: =EmpDetail!J77 -> 0 | P83: =EmpDetail!D77 -> 0 | Q83: =EmpDetail!K77 -> 0
L84: 75 | M84: =EmpDetail!B78 -> 0 | N84: =EmpDetail!C78 -> 0 | O84: =EmpDetail!J78 -> 0 | P84: =EmpDetail!D78 -> 0 | Q84: =EmpDetail!K78 -> 0
L85: 76 | M85: =EmpDetail!B79 -> 0 | N85: =EmpDetail!C79 -> 0 | O85: =EmpDetail!J79 -> 0 | P85: =EmpDetail!D79 -> 0 | Q85: =EmpDetail!K79 -> 0
L86: 77 | M86: =EmpDetail!B80 -> 0 | N86: =EmpDetail!C80 -> 0 | O86: =EmpDetail!J80 -> 0 | P86: =EmpDetail!D80 -> 0 | Q86: =EmpDetail!K80 -> 0
L87: 78 | M87: =EmpDetail!B81 -> 0 | N87: =EmpDetail!C81 -> 0 | O87: =EmpDetail!J81 -> 0 | P87: =EmpDetail!D81 -> 0 | Q87: =EmpDetail!K81 -> 0
L88: 79 | M88: =EmpDetail!B82 -> 0 | N88: =EmpDetail!C82 -> 0 | O88: =EmpDetail!J82 -> 0 | P88: =EmpDetail!D82 -> 0 | Q88: =EmpDetail!K82 -> 0
L89: 80 | M89: =EmpDetail!B83 -> 0 | N89: =EmpDetail!C83 -> 0 | O89: =EmpDetail!J83 -> 0 | P89: =EmpDetail!D83 -> 0 | Q89: =EmpDetail!K83 -> 0
L90: 81 | M90: =EmpDetail!B84 -> 0 | N90: =EmpDetail!C84 -> 0 | O90: =EmpDetail!J84 -> 0 | P90: =EmpDetail!D84 -> 0 | Q90: =EmpDetail!K84 -> 0
L91: 82 | M91: =EmpDetail!B85 -> 0 | N91: =EmpDetail!C85 -> 0 | O91: =EmpDetail!J85 -> 0 | P91: =EmpDetail!D85 -> 0 | Q91: =EmpDetail!K85 -> 0
L92: 83 | M92: =EmpDetail!B86 -> 0 | N92: =EmpDetail!C86 -> 0 | O92: =EmpDetail!J86 -> 0 | P92: =EmpDetail!D86 -> 0 | Q92: =EmpDetail!K86 -> 0
L93: 84 | M93: =EmpDetail!B87 -> 0 | N93: =EmpDetail!C87 -> 0 | O93: =EmpDetail!J87 -> 0 | P93: =EmpDetail!D87 -> 0 | Q93: =EmpDetail!K87 -> 0
L94: 85 | M94: =EmpDetail!B88 -> 0 | N94: =EmpDetail!C88 -> 0 | O94: =EmpDetail!J88 -> 0 | P94: =EmpDetail!D88 -> 0 | Q94: =EmpDetail!K88 -> 0
L95: 86 | M95: =EmpDetail!B89 -> 0 | N95: =EmpDetail!C89 -> 0 | O95: =EmpDetail!J89 -> 0 | P95: =EmpDetail!D89 -> 0 | Q95: =EmpDetail!K89 -> 0
L96: 87 | M96: =EmpDetail!B90 -> 0 | N96: =EmpDetail!C90 -> 0 | O96: =EmpDetail!J90 -> 0 | P96: =EmpDetail!D90 -> 0 | Q96: =EmpDetail!K90 -> 0
L97: 88 | M97: =EmpDetail!B91 -> 0 | N97: =EmpDetail!C91 -> 0 | O97: =EmpDetail!J91 -> 0 | P97: =EmpDetail!D91 -> 0 | Q97: =EmpDetail!K91 -> 0
L98: 89 | M98: =EmpDetail!B92 -> 0 | N98: =EmpDetail!C92 -> 0 | O98: =EmpDetail!J92 -> 0 | P98: =EmpDetail!D92 -> 0 | Q98: =EmpDetail!K92 -> 0
L99: 90 | M99: =EmpDetail!B93 -> 0 | N99: =EmpDetail!C93 -> 0 | O99: =EmpDetail!J93 -> 0 | P99: =EmpDetail!D93 -> 0 | Q99: =EmpDetail!K93 -> 0
L100: 91 | M100: =EmpDetail!B94 -> 0 | N100: =EmpDetail!C94 -> 0 | O100: =EmpDetail!J94 -> 0 | P100: =EmpDetail!D94 -> 0 | Q100: =EmpDetail!K94 -> 0
L101: 92 | M101: =EmpDetail!B95 -> 0 | N101: =EmpDetail!C95 -> 0 | O101: =EmpDetail!J95 -> 0 | P101: =EmpDetail!D95 -> 0 | Q101: =EmpDetail!K95 -> 0
L102: 93 | M102: =EmpDetail!B96 -> 0 | N102: =EmpDetail!C96 -> 0 | O102: =EmpDetail!J96 -> 0 | P102: =EmpDetail!D96 -> 0 | Q102: =EmpDetail!K96 -> 0
L103: 94 | M103: =EmpDetail!B97 -> 0 | N103: =EmpDetail!C97 -> 0 | O103: =EmpDetail!J97 -> 0 | P103: =EmpDetail!D97 -> 0 | Q103: =EmpDetail!K97 -> 0
L104: 95 | M104: =EmpDetail!B98 -> 0 | N104: =EmpDetail!C98 -> 0 | O104: =EmpDetail!J98 -> 0 | P104: =EmpDetail!D98 -> 0 | Q104: =EmpDetail!K98 -> 0
L105: 96 | M105: =EmpDetail!B99 -> 0 | N105: =EmpDetail!C99 -> 0 | O105: =EmpDetail!J99 -> 0 | P105: =EmpDetail!D99 -> 0 | Q105: =EmpDetail!K99 -> 0
L106: 97 | M106: =EmpDetail!B100 -> 0 | N106: =EmpDetail!C100 -> 0 | O106: =EmpDetail!J100 -> 0 | P106: =EmpDetail!D100 -> 0 | Q106: =EmpDetail!K100 -> 0
L107: 98 | M107: =EmpDetail!B101 -> 0 | N107: =EmpDetail!C101 -> 0 | O107: =EmpDetail!J101 -> 0 | P107: =EmpDetail!D101 -> 0 | Q107: =EmpDetail!K101 -> 0
L108: 99 | M108: =EmpDetail!B102 -> 0 | N108: =EmpDetail!C102 -> 0 | O108: =EmpDetail!J102 -> 0 | P108: =EmpDetail!D102 -> 0 | Q108: =EmpDetail!K102 -> 0
L109: 100 | M109: =EmpDetail!B103 -> 0 | N109: =EmpDetail!C103 -> 0 | O109: =EmpDetail!J103 -> 0 | P109: =EmpDetail!D103 -> 0 | Q109: =EmpDetail!K103 -> 0

Sheet Bonus (hidden)
B1: =Master!G2&Master!H2 -> कार्यालय&राजकीय उच्च माध्यमिक विद्यालय ]चौगाई]टोंक
E2: dk;kZy; vkns'k
B3: jktLFkku ljdkj foÙk foHkkx ds vkns'k Øekad& ,Q-6¼5½,QMh@¼:Yl½2009@t;iqj fnukad | F3: 2020-11-10 | G3: dh vuqikyuk esa bl dk;kZy; ds v/khu
B4: dk;Zjr fuEukafdr dkfeZdksa dks ¼jkT; lsok ds vf/kdkfj;ksa dks NksM+ dj½ ftUgksaus jktdh; lsok esa | F4: 2020-03-31 | G4: dks 6 ekg ,oa vf/kd dh lsok iw.kZ dj yh gS dks
B5: foÙkh; o"kZ& | C5: =Master!F4 -> 2019-2020 | D5: ds fy, muds uke ds lEeq[k vafdr fooj.kkuqlkj rnFkZ cksul jkf'k Lohd`r dh tkrh gSA ;g jkf'k lEcfU/kr dks Hkqxrku dh tkosA
A7: dkfeZd Øe | B7: Øe la0 | C7: uke dfeZd | D7: in uke | E7: inLFkkiu LFkku | G7: is&ysoy | H7: osru | I7: cksul dh vkuqifrd vof/k | J7: ns; cksul | K7: ns; cksul | L7: ns; cksul | M7: ns; cksul | N7: ns; cksul | O7: ns; cksul | P7: ns; cksul | Q7: ns; cksul | R7: ns; cksul | S7: ns; cksul
A8: 6 | B8: =IF(C8="","",1) -> 1 | C8: =IF(ISNA(VLOOKUP($A8,$K$8:$P$107,2,FALSE)),"",VLOOKUP($A8,$K$8:$P$107,2,FALSE)) -> iq"ik tSu | D8: =IF(ISNA(VLOOKUP($A8,$K$8:$P$107,3,FALSE)),"",VLOOKUP($A8,$K$8:$P$107,3,FALSE)) -> वरिष्ठ अध्यापक | E8: =IF(ISNA(VLOOKUP($A8,$K$8:$P$107,4,FALSE)),"",VLOOKUP($A8,$K$8:$P$107,4,FALSE)) -> राउमावि चौगाई | G8: =IF(ISNA(VLOOKUP($A8,$K$8:$P$107,5,FALSE)),"",VLOOKUP($A8,$K$8:$P$107,5,FALSE)) -> L-13 | H8: =IF(ISNA(VLOOKUP($A8,$K$8:$P$107,6,FALSE)),"",VLOOKUP($A8,$K$8:$P$107,6,FALSE)) -> 73400 | J8: =IF(C8="","",S8) -> 0 | K8: =EmpDetail!A4 -> 1 | L8: =EmpDetail!B4 -> fd'ku yky cSjok | M8: =EmpDetail!C4 -> प्रधानाचार्य | N8: =EmpDetail!D4 -> राउमावि चौगाई | O8: =EmpDetail!J4 -> L-16 | P8: =EmpDetail!K4 -> 95900 | Q8: =Master!J$4 -> 6774 | R8: =IF(I8="",Q8,ROUNDUP(Q8*I8/12,0)) -> 6774 | S8: =IF(G8="L-13",0,R8) -> 0
A9: 7 | B9: =IF(C9="","",B8+1) -> 2 | C9: =IF(ISNA(VLOOKUP($A9,$K$8:$P$107,2,FALSE)),"",VLOOKUP($A9,$K$8:$P$107,2,FALSE)) -> vk'kkjke eh.kk | D9: =IF(ISNA(VLOOKUP($A9,$K$8:$P$107,3,FALSE)),"",VLOOKUP($A9,$K$8:$P$107,3,FALSE)) -> वरिष्ठ अध्यापक | E9: =IF(ISNA(VLOOKUP($A9,$K$8:$P$107,4,FALSE)),"",VLOOKUP($A9,$K$8:$P$107,4,FALSE)) -> राउमावि चौगाई | G9: =IF(ISNA(VLOOKUP($A9,$K$8:$P$107,5,FALSE)),"",VLOOKUP($A9,$K$8:$P$107,5,FALSE)) -> L-11 | H9: =IF(ISNA(VLOOKUP($A9,$K$8:$P$107,6,FALSE)),"",VLOOKUP($A9,$K$8:$P$107,6,FALSE)) -> 52300 | J9: =IF(C9="","",S9) -> 6774 | K9: =EmpDetail!A5 -> 2 | L9: =EmpDetail!B5 -> iwj.k pUn y{kdkj | M9: =EmpDetail!C5 -> व्याख्याता | N9: =EmpDetail!D5 -> राउमावि चौगाई | O9: =EmpDetail!J5 -> L-12 | P9: =EmpDetail!K5 -> 56100 | Q9: =Master!J$4 -> 6774 | R9: =IF(I9="",Q9,ROUNDUP(Q9*I9/12,0)) -> 6774 | S9: =IF(G9="L-13",0,R9) -> 6774
A10: 8 | B10: =IF(C10="","",B9+1) -> 3 | C10: t;iky flag | D10: वरिष्ठ अध्यापक | E10: राउमावि चौगाई | G10: L-12 | H10: 63100 | J10: 6774 | K10: =EmpDetail!A6 -> 3 | L10: =EmpDetail!B6 -> jktsUnz dqekj tSu | M10: =EmpDetail!C6 -> व्याख्याता | N10: =EmpDetail!D6 -> राउमावि चौगाई | O10: =EmpDetail!J6 -> L-12 | P10: =EmpDetail!K6 -> 63100 | Q10: =Master!J$4 -> 6774 | R10: 6774 | S10: 6774
A11: 9 | B11: 4 | C11: jkeizlkn jsxj | D11: वरिष्ठ अध्यापक | E11: राउमावि चौगाई | G11: L-11 | H11: 46500 | J11: 6774 | K11: =EmpDetail!A7 -> 4 | L11: =EmpDetail!B7 -> fd'ku yky cSjok | M11: =EmpDetail!C7 -> व्याख्याता | N11: =EmpDetail!D7 -> राउमावि चौगाई | O11: =EmpDetail!J7 -> L-12 | P11: =EmpDetail!K7 -> 54500 | Q11: =Master!J$4 -> 6774 | R11: 6774 | S11: 6774
A12: 11 | B12: 5 | C12: NksVw yky jsxj | D12: अध्यापक ग्रेड III | E12: राउमावि चौगाई | G12: L-13 | H12: 65200 | J12: 0 | K12: =EmpDetail!A8 -> 5 | L12: =EmpDetail!B8 -> lR;ukjk;.k 'kekZ | M12: =EmpDetail!C8 -> वरिष्ठ अध्यापक | N12: =EmpDetail!D8 -> राउमावि चौगाई | O12: =EmpDetail!J8 -> L-13 | P12: =EmpDetail!K8 -> 71300 | Q12: =Master!J$4 -> 6774 | R12: 6774 | S12: 0
A13: 12 | B13: 6 | C13: dUgS;k yky egkoj | D13: अध्यापक ग्रेड III | E13: राउमावि चौगाई | G13: L-13 | H13: 65200 | J13: 0 | K13: =EmpDetail!A9 -> 6 | L13: =EmpDetail!B9 -> iq"ik tSu | M13: =EmpDetail!C9 -> वरिष्ठ अध्यापक | N13: =EmpDetail!D9 -> राउमावि चौगाई | O13: =EmpDetail!J9 -> L-13 | P13: =EmpDetail!K9 -> 73400 | Q13: =Master!J$4 -> 6774 | R13: 6774 | S13: 0
A14: 13 | B14: 7 | C14: prqHkqZt tkV | D14: अध्यापक ग्रेड III | E14: राउमावि चौगाई | G14: L-11 | H14: 52300 | J14: 6774 | K14: =EmpDetail!A10 -> 7 | L14: =EmpDetail!B10 -> vk'kkjke eh.kk | M14: =EmpDetail!C10 -> वरिष्ठ अध्यापक | N14: =EmpDetail!D10 -> राउमावि चौगाई | O14: =EmpDetail!J10 -> L-11 | P14: =EmpDetail!K10 -> 52300 | Q14: =Master!J$4 -> 6774 | R14: 6774 | S14: 6774
A15: 15 | B15: 8 | C15: lq'khyk cSjok | D15: कनिष्ठ सहायक | E15: राउमावि चौगाई | G15: L-5 | H15: 14600 | J15: 6774 | K15: =EmpDetail!A11 -> 8 | L15: =EmpDetail!B11 -> t;iky flag | M15: =EmpDetail!C11 -> वरिष्ठ अध्यापक | N15: =EmpDetail!D11 -> राउमावि चौगाई | O15: =EmpDetail!J11 -> L-12 | P15: =EmpDetail!K11 -> 63100 | Q15: =Master!J$4 -> 6774 | R15: 6774 | S15: 6774
K16: =EmpDetail!A12 -> 9 | L16: =EmpDetail!B12 -> jkeizlkn jsxj | M16: =EmpDetail!C12 -> वरिष्ठ अध्यापक | N16: =EmpDetail!D12 -> राउमावि चौगाई | O16: =EmpDetail!J12 -> L-11 | P16: =EmpDetail!K12 -> 46500 | Q16: =Master!J$4 -> 6774 | R16: 6774 | S16: 6774
K17: =EmpDetail!A13 -> 10 | L17: =EmpDetail!B13 -> egsUnz dqekj tkV | M17: =EmpDetail!C13 -> शारीरिक शिक्षक | N17: =EmpDetail!D13 -> राउमावि चौगाई | O17: =EmpDetail!J13 -> L-12 | P17: =EmpDetail!K13 -> 61300 | Q17: =Master!J$4 -> 6774 | R17: 6774 | S17: 6774
K18: =EmpDetail!A14 -> 11 | L18: =EmpDetail!B14 -> NksVw yky jsxj | M18: =EmpDetail!C14 -> अध्यापक ग्रेड III | N18: =EmpDetail!D14 -> राउमावि चौगाई | O18: =EmpDetail!J14 -> L-13 | P18: =EmpDetail!K14 -> 65200 | Q18: =Master!J$4 -> 6774 | R18: 6774 | S18: 6774
K19: =EmpDetail!A15 -> 12 | L19: =EmpDetail!B15 -> dUgS;k yky egkoj | M19: =EmpDetail!C15 -> अध्यापक ग्रेड III | N19: =EmpDetail!D15 -> राउमावि चौगाई | O19: =EmpDetail!J15 -> L-13 | P19: =EmpDetail!K15 -> 65200 | Q19: =Master!J$4 -> 6774 | R19: 6774 | S19: 6774
K20: =EmpDetail!A16 -> 13 | L20: =EmpDetail!B16 -> prqHkqZt tkV | M20: =EmpDetail!C16 -> अध्यापक ग्रेड III | N20: =EmpDetail!D16 -> राउमावि चौगाई | O20: =EmpDetail!J16 -> L-11 | P20: =EmpDetail!K16 -> 52300 | Q20: =Master!J$4 -> 6774 | R20: 6774 | S20: 6774
K21: =EmpDetail!A17 -> 14 | L21: =EmpDetail!B17 -> vklsQk [kku | M21: =EmpDetail!C17 -> अध्यापक ग्रेड III | N21: =EmpDetail!D17 -> राउमावि चौगाई | O21: =EmpDetail!J17 -> L-11 | P21: =EmpDetail!K17 -> 52300 | Q21: =Master!J$4 -> 6774 | R21: 6774 | S21: 6774
K22: =EmpDetail!A18 -> 15 | L22: =EmpDetail!B18 -> lq'khyk cSjok | M22: =EmpDetail!C18 -> कनिष्ठ सहायक | N22: =EmpDetail!D18 -> राउमावि चौगाई | O22: =EmpDetail!J18 -> L-5 | P22: =EmpDetail!K18 -> 14600 | Q22: =Master!J$4 -> 6774 | R22: 6774 | S22: 6774
K23: =EmpDetail!A19 -> 16 | L23: =EmpDetail!B19 -> txnh'k izlkn rsyh | M23: =EmpDetail!C19 -> सहायक कर्मचारी | N23: =EmpDetail!D19 -> राउमावि चौगाई | O23: =EmpDetail!J19 -> L-5 | P23: =EmpDetail!K19 -> 34700 | Q23: =Master!J$4 -> 6774 | R23: 6774 | S23: 6774
K24: =EmpDetail!A20 -> 17 | L24: =EmpDetail!B20 -> jfoUnz dqekj tSu | M24: =EmpDetail!C20 -> अध्यापक ग्रेड III | N24: =EmpDetail!D20 -> राउप्रावि मोहिनी | O24: =EmpDetail!J20 -> L-12 | P24: =EmpDetail!K20 -> 65200 | Q24: =Master!J$4 -> 6774 | R24: 6774 | S24: 6774
K25: =EmpDetail!A21 -> 18 | L25: =EmpDetail!B21 -> ';ke lqUnj ckxkSM | M25: =EmpDetail!C21 -> अध्यापक ग्रेड III | N25: =EmpDetail!D21 -> राउप्रावि मोहिनी | O25: =EmpDetail!J21 -> L-10 | P25: =EmpDetail!K21 -> 40300 | Q25: =Master!J$4 -> 6774 | R25: 6774 | S25: 6774
K26: =EmpDetail!A22 -> 19 | L26: =EmpDetail!B22 -> d`".kk 'kekZ | M26: =EmpDetail!C22 -> प्रबोधक | N26: =EmpDetail!D22 -> राउप्रावि मोहिनी | O26: =EmpDetail!J22 -> L-11 | P26: =EmpDetail!K22 -> 45100 | Q26: =Master!J$4 -> 6774 | R26: 6774 | S26: 6774
K27: =EmpDetail!A23 -> 20 | L27: =EmpDetail!B23 -> /keZsUnz pkS/kjh | M27: =EmpDetail!C23 -> अध्यापक ग्रेड III | N27: =EmpDetail!D23 -> राउप्रावि गोरधनपुरा | O27: =EmpDetail!J23 -> L-10 | P27: =EmpDetail!K23 -> 40300 | Q27: =Master!J$4 -> 6774 | R27: 6774 | S27: 6774
K28: =EmpDetail!A24 -> 21 | L28: =EmpDetail!B24 -> izgykn ekyh | M28: =EmpDetail!C24 -> प्रबोधक | N28: =EmpDetail!D24 -> राउप्रावि गोरधनपुरा | O28: =EmpDetail!J24 -> L-11 | P28: =EmpDetail!K24 -> 46500 | Q28: =Master!J$4 -> 6774 | R28: 6774 | S28: 6774
K29: =EmpDetail!A25 -> 22 | L29: =EmpDetail!B25 -> jken;ky xqtZj | M29: =EmpDetail!C25 -> प्रबोधक | N29: =EmpDetail!D25 -> राउप्रावि सोंदीफल | O29: =EmpDetail!J25 -> L-11 | P29: =EmpDetail!K25 -> 45100 | Q29: =Master!J$4 -> 6774 | R29: 6774 | S29: 6774
K30: =EmpDetail!A26 -> 23 | L30: =EmpDetail!B26 -> vkSeizdk'k tkV | M30: =EmpDetail!C26 -> अध्यापक ग्रेड III | N30: =EmpDetail!D26 -> राउप्रावि सोंदीफल | O30: =EmpDetail!J26 -> L-11 | P30: =EmpDetail!K26 -> 45100 | Q30: =Master!J$4 -> 6774 | R30: 6774 | S30: 6774
K31: =EmpDetail!A27 -> 24 | L31: =EmpDetail!B27 -> vthr flag | M31: =EmpDetail!C27 -> अध्यापक ग्रेड III | N31: =EmpDetail!D27 -> राप्रावि जानकीवल्लभपुरा | O31: =EmpDetail!J27 -> L-10 | P31: =EmpDetail!K27 -> 40300 | Q31: =Master!J$4 -> 6774 | R31: 6774 | S31: 6774
K32: =EmpDetail!A28 -> 25 | L32: =EmpDetail!B28 -> eq[rkj eha;k | M32: =EmpDetail!C28 -> प्रबोधक | N32: =EmpDetail!D28 -> राप्रावि जानकीवल्लभपुरा | O32: =EmpDetail!J28 -> L-11 | P32: =EmpDetail!K28 -> 45100 | Q32: =Master!J$4 -> 6774 | R32: 6774 | S32: 6774
K33: =EmpDetail!A29 -> 26 | L33: =EmpDetail!B29 -> eks0 tehy | M33: =EmpDetail!C29 -> प्रबोधक | N33: =EmpDetail!D29 -> राप्रावि रसूलपुरा | O33: =EmpDetail!J29 -> L-11 | P33: =EmpDetail!K29 -> 45100 | Q33: =Master!J$4 -> 6774 | R33: 6774 | S33: 6774
K34: =EmpDetail!A30 -> 27 | L34: =EmpDetail!B30 -> lkaojey tkV | M34: =EmpDetail!C30 -> अध्यापक ग्रेड III | N34: =EmpDetail!D30 -> राप्रावि रसूलपुरा | O34: =EmpDetail!J30 -> L-10 | P34: =EmpDetail!K30 -> 38000 | Q34: =Master!J$4 -> 6774 | R34: 6774 | S34: 6774
K35: =EmpDetail!A31 -> 28 | L35: =EmpDetail!B31 -> pkS/kjh eksuk jkekorkj | M35: =EmpDetail!C31 -> अध्यापक ग्रेड III | N35: =EmpDetail!D31 -> राप्रावि मोहिनी ढाणी बाढ | O35: =EmpDetail!J31 -> L-10 | P35: =EmpDetail!K31 -> 38000 | Q35: =Master!J$4 -> 6774 | R35: 6774 | S35: 6774
K36: =EmpDetail!A32 -> 29 | L36: =EmpDetail!B32 -> rkjkpUn tk;loky | M36: =EmpDetail!C32 -> प्रबोधक | N36: =EmpDetail!D32 -> राप्रावि मोहिनी ढाणी बाढ | O36: =EmpDetail!J32 -> L-11 | P36: =EmpDetail!K32 -> 41300 | Q36: =Master!J$4 -> 6774 | R36: 6774 | S36: 6774
K37: =EmpDetail!A33 -> 30 | L37: =EmpDetail!B33 -> jketl ;kno | M37: =EmpDetail!C33 -> अध्यापक ग्रेड III | N37: =EmpDetail!D33 -> राप्रावि बैरवा ढाणी सोन्दीफल | O37: =EmpDetail!J33 -> L-12 | P37: =EmpDetail!K33 -> 63100 | Q37: =Master!J$4 -> 6774 | R37: 6774 | S37: 6774
K38: =EmpDetail!A34 -> 31 | L38: =EmpDetail!B34 -> dtksMey eh.kk | M38: =EmpDetail!C34 -> अध्यापक ग्रेड III | N38: =EmpDetail!D34 -> राप्रावि बैरवा ढाणी सोन्दीफल | O38: =EmpDetail!J34 -> L-10 | P38: =EmpDetail!K34 -> 38000 | Q38: =Master!J$4 -> 6774 | R38: 6774 | S38: 6774
K39: =EmpDetail!A35 -> 32 | L39: =EmpDetail!B35 -> /kaut; xkSRre | M39: =EmpDetail!C35 -> अध्यापक ग्रेड III | N39: =EmpDetail!D35 -> राउप्रावि गोरधनपुरा | O39: =EmpDetail!J35 -> L-10 | P39: =EmpDetail!K35 -> 34800 | Q39: =Master!J$4 -> 6774 | R39: 6774 | S39: 6774
K40: =EmpDetail!A36 -> 33 | L40: =EmpDetail!B36 -> d`".kk xaxoky | M40: =EmpDetail!C36 -> अध्यापक ग्रेड III | N40: =EmpDetail!D36 -> राउप्रावि गोरधनपुरा | O40: =EmpDetail!J36 -> L-10 | P40: =EmpDetail!K36 -> 33800 | Q40: =Master!J$4 -> 6774 | R40: 6774 | S40: 6774
K41: =EmpDetail!A37 -> 34 | L41: =EmpDetail!B37 -> n'kjFk dqekj ;kno | M41: =EmpDetail!C37 -> अध्यापक ग्रेड III | N41: =EmpDetail!D37 -> राउप्रावि सोंदीफल | O41: =EmpDetail!J37 -> L-10 | P41: =EmpDetail!K37 -> 23700 | Q41: =Master!J$4 -> 6774 | R41: 6774 | S41: 6774
K42: =EmpDetail!A38 -> 35 | L42: =EmpDetail!B38 -> d`".k yky tkV | M42: =EmpDetail!C38 -> अध्यापक ग्रेड III | N42: =EmpDetail!D38 -> राउप्रावि सोंदीफल | O42: =EmpDetail!J38 -> L-10 | P42: =EmpDetail!K38 -> 33800 | Q42: =Master!J$4 -> 6774 | R42: 6774 | S42: 6774
K43: =EmpDetail!A39 -> 36 | L43: =EmpDetail!B39 -> nhisUnz dqekj iztkir | M43: =EmpDetail!C39 -> अध्यापक ग्रेड III | N43: =EmpDetail!D39 -> राउप्रावि सोंदीफल | O43: =EmpDetail!J39 -> L-10 | P43: =EmpDetail!K39 -> 33800 | Q43: =Master!J$4 -> 6774 | R43: 6774 | S43: 6774
K44: =EmpDetail!A40 -> 37 | L44: =EmpDetail!B40 -> uohu dqekj | M44: =EmpDetail!C40 -> अध्यापक ग्रेड III | N44: =EmpDetail!D40 -> राउप्रावि मोहिनी | O44: =EmpDetail!J40 -> L-10 | P44: =EmpDetail!K40 -> 33800 | Q44: =Master!J$4 -> 6774 | R44: 6774 | S44: 6774
K45: =EmpDetail!A41 -> 38 | L45: =EmpDetail!B41 -> ehrs'k dqekj 'kekZ | M45: =EmpDetail!C41 -> अध्यापक ग्रेड III | N45: =EmpDetail!D41 -> राउप्रावि मोहिनी | O45: =EmpDetail!J41 -> L-10 | P45: =EmpDetail!K41 -> 34800 | Q45: =Master!J$4 -> 6774 | R45: 6774 | S45: 6774
K46: =EmpDetail!A42 -> 39 | L46: =EmpDetail!B42 -> eUtw eh.kk | M46: =EmpDetail!C42 -> वरिष्ठ अध्यापक | N46: =EmpDetail!D42 -> राउप्रावि गोरधनपुरा | O46: =EmpDetail!J42 -> L-10 | P46: =EmpDetail!K42 -> 33800 | Q46: =Master!J$4 -> 6774 | R46: 6774 | S46: 6774
K47: =EmpDetail!A43 -> 40 | L47: =EmpDetail!B43 -> eatw pkS/kjh | M47: =EmpDetail!C43 -> वरिष्ठ अध्यापक | N47: =EmpDetail!D43 -> राउप्रावि सोंदीफल | O47: =EmpDetail!J43 -> L-11 | P47: =EmpDetail!K43 -> 26500 | Q47: =Master!J$4 -> 6774 | R47: 6774 | S47: 6774
K48: =EmpDetail!A44 -> 41 | L48: =EmpDetail!B44 -> 0 | M48: =EmpDetail!C44 -> 0 | N48: =EmpDetail!D44 -> 0 | O48: =EmpDetail!J44 -> 0 | P48: =EmpDetail!K44 -> 0 | Q48: =Master!J$4 -> 6774 | R48: 6774 | S48: 6774
K49: =EmpDetail!A45 -> 42 | L49: =EmpDetail!B45 -> 0 | M49: =EmpDetail!C45 -> 0 | N49: =EmpDetail!D45 -> 0 | O49: =EmpDetail!J45 -> 0 | P49: =EmpDetail!K45 -> 0 | Q49: =Master!J$4 -> 6774 | R49: 6774 | S49: 6774
K50: =EmpDetail!A46 -> 43 | L50: =EmpDetail!B46 -> 0 | M50: =EmpDetail!#REF! ->  | N50: =EmpDetail!#REF! ->  | O50: =EmpDetail!J46 -> 0 | P50: =EmpDetail!K46 -> 0 | Q50: =Master!J$4 -> 6774 | R50: 6774 | S50: 6774
K51: =EmpDetail!A47 -> 44 | L51: =EmpDetail!B47 -> 0 | M51: =EmpDetail!C47 -> 0 | N51: =EmpDetail!D47 -> 0 | O51: =EmpDetail!J47 -> 0 | P51: =EmpDetail!K47 -> 0 | Q51: =Master!J$4 -> 6774 | R51: 6774 | S51: 6774
K52: =EmpDetail!A48 -> 45 | L52: =EmpDetail!B48 -> 0 | M52: =EmpDetail!C48 -> 0 | N52: =EmpDetail!D48 -> 0 | O52: =EmpDetail!J48 -> 0 | P52: =EmpDetail!K48 -> 0 | Q52: =Master!J$4 -> 6774 | R52: 6774 | S52: 6774
K53: =EmpDetail!A49 -> 46 | L53: =EmpDetail!B49 -> 0 | M53: =EmpDetail!C49 -> 0 | N53: =EmpDetail!D49 -> 0 | O53: =EmpDetail!J49 -> 0 | P53: =EmpDetail!K49 -> 0 | Q53: =Master!J$4 -> 6774 | R53: 6774 | S53: 6774
K54: =EmpDetail!A50 -> 47 | L54: =EmpDetail!B50 -> 0 | M54: =EmpDetail!C50 -> 0 | N54: =EmpDetail!D50 -> 0 | O54: =EmpDetail!J50 -> 0 | P54: =EmpDetail!K50 -> 0 | Q54: =Master!J$4 -> 6774 | R54: 6774 | S54: 6774
K55: =EmpDetail!A51 -> 48 | L55: =EmpDetail!B51 -> 0 | M55: =EmpDetail!C51 -> 0 | N55: =EmpDetail!D51 -> 0 | O55: =EmpDetail!J51 -> 0 | P55: =EmpDetail!K51 -> 0 | Q55: =Master!J$4 -> 6774 | R55: 6774 | S55: 6774
K56: =EmpDetail!A52 -> 49 | L56: =EmpDetail!B52 -> 0 | M56: =EmpDetail!C52 -> 0 | N56: =EmpDetail!D52 -> 0 | O56: =EmpDetail!J52 -> 0 | P56: =EmpDetail!K52 -> 0 | Q56: =Master!J$4 -> 6774 | R56: 6774 | S56: 6774
C57: ;ksx | J57: =SUM(J8:J56) -> 33870 | K57: =SUM(K8:K56) -> 1225 | L57: 0 | O57: 0 | P57: 1887100 | Q57: 331926 | R57: 331926 | S57: 311604
K58: =EmpDetail!A54 -> 51 | L58: =EmpDetail!B54 -> 0 | M58: =EmpDetail!C54 -> 0 | N58: =EmpDetail!D54 -> 0 | O58: =EmpDetail!J54 -> 0 | P58: =EmpDetail!K54 -> 0
K59: =EmpDetail!A55 -> 52 | L59: =EmpDetail!B55 -> 0 | M59: =EmpDetail!C55 -> 0 | N59: =EmpDetail!D55 -> 0 | O59: =EmpDetail!J55 -> 0 | P59: =EmpDetail!K55 -> 0
I60: =Master!B2 -> प्रधानाचार्य | K60: =EmpDetail!A56 -> 53 | L60: =EmpDetail!B56 -> 0 | M60: =EmpDetail!C56 -> 0 | N60: =EmpDetail!D56 -> 0 | O60: =EmpDetail!J56 -> 0 | P60: =EmpDetail!K56 -> 0
I61: =Master!B3 -> राजकीय उच्च माध्यमिक विद्यालय | K61: =EmpDetail!A57 -> 54 | L61: =EmpDetail!B57 -> 0 | M61: =EmpDetail!C57 -> 0 | N61: =EmpDetail!D57 -> 0 | O61: =EmpDetail!J57 -> 0 | P61: =EmpDetail!K57 -> 0
I62: =Master!B4 -> चौगाई]टोंक | K62: =EmpDetail!A58 -> 55 | L62: =EmpDetail!B58 -> 0 | M62: =EmpDetail!C58 -> 0 | N62: =EmpDetail!D58 -> 0 | O62: =EmpDetail!J58 -> 0 | P62: =EmpDetail!K58 -> 0
B63: Øekad& | C63: =Master!H3&Master!I3&Master!J3&Master!E3&"/" -> राउमावि/चौगाई/संस्था/2021-22/ | H63: fnukad& | I63: fnukad& | J63: =TODAY() -> 2021-06-19 | K63: =EmpDetail!A59 -> 56 | L63: =EmpDetail!B59 -> 0 | M63: =EmpDetail!C59 -> 0 | N63: =EmpDetail!D59 -> 0 | O63: =EmpDetail!J59 -> 0 | P63: =EmpDetail!K59 -> 0
C64: izfrfyfi lwpukFkZ ,oa ikyukFkZ | K64: =EmpDetail!A60 -> 57 | L64: =EmpDetail!B60 -> 0 | M64: =EmpDetail!C60 -> 0 | N64: =EmpDetail!D60 -> 0 | O64: =EmpDetail!J60 -> 0 | P64: =EmpDetail!K60 -> 0
B65: 1 | C65: dks"kkf/kdkjh@mi dks"kkf/kdkjh | D65: =Master!H4 -> पीपलू | K65: =EmpDetail!A61 -> 58 | L65: =EmpDetail!B61 -> 0 | M65: =EmpDetail!C61 -> 0 | N65: =EmpDetail!D61 -> 0 | O65: =EmpDetail!J61 -> 0 | P65: =EmpDetail!K61 -> 0
B66: 2 | C66: ys[kk 'kk[kk LFkkuh; dk;kZy; | K66: =EmpDetail!A62 -> 59 | L66: =EmpDetail!B62 -> 0 | M66: =EmpDetail!C62 -> 0 | N66: =EmpDetail!D62 -> 0 | O66: =EmpDetail!J62 -> 0 | P66: =EmpDetail!K62 -> 0
B67: 3 | C67: dkfeZd O;fDrxr iaftdk | K67: =EmpDetail!A63 -> 60 | L67: =EmpDetail!B63 -> 0 | M67: =EmpDetail!C63 -> 0 | N67: =EmpDetail!D63 -> 0 | O67: =EmpDetail!J63 -> 0 | P67: =EmpDetail!K63 -> 0
B68: 4 | C68: lEcfU/kr dkfeZd | I68: =I60 -> प्रधानाचार्य | K68: =EmpDetail!A64 -> 61 | L68: =EmpDetail!B64 -> 0 | M68: =EmpDetail!C64 -> 0 | N68: =EmpDetail!D64 -> 0 | O68: =EmpDetail!J64 -> 0 | P68: =EmpDetail!K64 -> 0
I69: =I61 -> राजकीय उच्च माध्यमिक विद्यालय | K69: =EmpDetail!A65 -> 62 | L69: =EmpDetail!B65 -> 0 | M69: =EmpDetail!C65 -> 0 | N69: =EmpDetail!D65 -> 0 | O69: =EmpDetail!J65 -> 0 | P69: =EmpDetail!K65 -> 0
I70: =I62 -> चौगाई]टोंक | K70: =EmpDetail!A66 -> 63 | L70: =EmpDetail!B66 -> 0 | M70: =EmpDetail!C66 -> 0 | N70: =EmpDetail!D66 -> 0 | O70: =EmpDetail!J66 -> 0 | P70: =EmpDetail!K66 -> 0
K71: =EmpDetail!A67 -> 64 | L71: =EmpDetail!B67 -> 0 | M71: =EmpDetail!C67 -> 0 | N71: =EmpDetail!D67 -> 0 | O71: =EmpDetail!J67 -> 0 | P71: =EmpDetail!K67 -> 0
K72: =EmpDetail!A68 -> 65 | L72: =EmpDetail!B68 -> 0 | M72: =EmpDetail!C68 -> 0 | N72: =EmpDetail!D68 -> 0 | O72: =EmpDetail!J68 -> 0 | P72: =EmpDetail!K68 -> 0
K73: =EmpDetail!A69 -> 66 | L73: =EmpDetail!B69 -> 0 | M73: =EmpDetail!C69 -> 0 | N73: =EmpDetail!D69 -> 0 | O73: =EmpDetail!J69 -> 0 | P73: =EmpDetail!K69 -> 0
K74: =EmpDetail!A70 -> 67 | L74: =EmpDetail!B70 -> 0 | M74: =EmpDetail!C70 -> 0 | N74: =EmpDetail!D70 -> 0 | O74: =EmpDetail!J70 -> 0 | P74: =EmpDetail!K70 -> 0
K75: =EmpDetail!A71 -> 68 | L75: =EmpDetail!B71 -> 0 | M75: =EmpDetail!C71 -> 0 | N75: =EmpDetail!D71 -> 0 | O75: =EmpDetail!J71 -> 0 | P75: =EmpDetail!K71 -> 0
K76: =EmpDetail!A72 -> 69 | L76: =EmpDetail!B72 -> 0 | M76: =EmpDetail!C72 -> 0 | N76: =EmpDetail!D72 -> 0 | O76: =EmpDetail!J72 -> 0 | P76: =EmpDetail!K72 -> 0
K77: =EmpDetail!A73 -> 70 | L77: =EmpDetail!B73 -> 0 | M77: =EmpDetail!C73 -> 0 | N77: =EmpDetail!D73 -> 0 | O77: =EmpDetail!J73 -> 0 | P77: =EmpDetail!K73 -> 0
K78: =EmpDetail!A74 -> 71 | L78: =EmpDetail!B74 -> 0 | M78: =EmpDetail!C74 -> 0 | N78: =EmpDetail!D74 -> 0 | O78: =EmpDetail!J74 -> 0 | P78: =EmpDetail!K74 -> 0
K79: =EmpDetail!A75 -> 72 | L79: =EmpDetail!B75 -> 0 | M79: =EmpDetail!C75 -> 0 | N79: =EmpDetail!D75 -> 0 | O79: =EmpDetail!J75 -> 0 | P79: =EmpDetail!K75 -> 0
K80: =EmpDetail!A76 -> 73 | L80: =EmpDetail!B76 -> 0 | M80: =EmpDetail!C76 -> 0 | N80: =EmpDetail!D76 -> 0 | O80: =EmpDetail!J76 -> 0 | P80: =EmpDetail!K76 -> 0
K81: =EmpDetail!A77 -> 74 | L81: =EmpDetail!B77 -> 0 | M81: =EmpDetail!C77 -> 0 | N81: =EmpDetail!D77 -> 0 | O81: =EmpDetail!J77 -> 0 | P81: =EmpDetail!K77 -> 0
K82: =EmpDetail!A78 -> 75 | L82: =EmpDetail!B78 -> 0 | M82: =EmpDetail!C78 -> 0 | N82: =EmpDetail!D78 -> 0 | O82: =EmpDetail!J78 -> 0 | P82: =EmpDetail!K78 -> 0
K83: =EmpDetail!A79 -> 76 | L83: =EmpDetail!B79 -> 0 | M83: =EmpDetail!C79 -> 0 | N83: =EmpDetail!D79 -> 0 | O83: =EmpDetail!J79 -> 0 | P83: =EmpDetail!K79 -> 0
K84: =EmpDetail!A80 -> 77 | L84: =EmpDetail!B80 -> 0 | M84: =EmpDetail!C80 -> 0 | N84: =EmpDetail!D80 -> 0 | O84: =EmpDetail!J80 -> 0 | P84: =EmpDetail!K80 -> 0
K85: =EmpDetail!A81 -> 78 | L85: =EmpDetail!B81 -> 0 | M85: =EmpDetail!C81 -> 0 | N85: =EmpDetail!D81 -> 0 | O85: =EmpDetail!J81 -> 0 | P85: =EmpDetail!K81 -> 0
K86: =EmpDetail!A82 -> 79 | L86: =EmpDetail!B82 -> 0 | M86: =EmpDetail!C82 -> 0 | N86: =EmpDetail!D82 -> 0 | O86: =EmpDetail!J82 -> 0 | P86: =EmpDetail!K82 -> 0
K87: =EmpDetail!A83 -> 80 | L87: =EmpDetail!B83 -> 0 | M87: =EmpDetail!C83 -> 0 | N87: =EmpDetail!D83 -> 0 | O87: =EmpDetail!J83 -> 0 | P87: =EmpDetail!K83 -> 0
K88: =EmpDetail!A84 -> 81 | L88: =EmpDetail!B84 -> 0 | M88: =EmpDetail!C84 -> 0 | N88: =EmpDetail!D84 -> 0 | O88: =EmpDetail!J84 -> 0 | P88: =EmpDetail!K84 -> 0
K89: =EmpDetail!A85 -> 82 | L89: =EmpDetail!B85 -> 0 | M89: =EmpDetail!C85 -> 0 | N89: =EmpDetail!D85 -> 0 | O89: =EmpDetail!J85 -> 0 | P89: =EmpDetail!K85 -> 0
K90: =EmpDetail!A86 -> 83 | L90: =EmpDetail!B86 -> 0 | M90: =EmpDetail!C86 -> 0 | N90: =EmpDetail!D86 -> 0 | O90: =EmpDetail!J86 -> 0 | P90: =EmpDetail!K86 -> 0
K91: =EmpDetail!A87 -> 84 | L91: =EmpDetail!B87 -> 0 | M91: =EmpDetail!C87 -> 0 | N91: =EmpDetail!D87 -> 0 | O91: =EmpDetail!J87 -> 0 | P91: =EmpDetail!K87 -> 0
K92: =EmpDetail!A88 -> 85 | L92: =EmpDetail!B88 -> 0 | M92: =EmpDetail!C88 -> 0 | N92: =EmpDetail!D88 -> 0 | O92: =EmpDetail!J88 -> 0 | P92: =EmpDetail!K88 -> 0
K93: =EmpDetail!A89 -> 86 | L93: =EmpDetail!B89 -> 0 | M93: =EmpDetail!C89 -> 0 | N93: =EmpDetail!D89 -> 0 | O93: =EmpDetail!J89 -> 0 | P93: =EmpDetail!K89 -> 0
K94: =EmpDetail!A90 -> 87 | L94: =EmpDetail!B90 -> 0 | M94: =EmpDetail!C90 -> 0 | N94: =EmpDetail!D90 -> 0 | O94: =EmpDetail!J90 -> 0 | P94: =EmpDetail!K90 -> 0
K95: =EmpDetail!A91 -> 88 | L95: =EmpDetail!B91 -> 0 | M95: =EmpDetail!C91 -> 0 | N95: =EmpDetail!D91 -> 0 | O95: =EmpDetail!J91 -> 0 | P95: =EmpDetail!K91 -> 0
K96: =EmpDetail!A92 -> 89 | L96: =EmpDetail!B92 -> 0 | M96: =EmpDetail!C92 -> 0 | N96: =EmpDetail!D92 -> 0 | O96: =EmpDetail!J92 -> 0 | P96: =EmpDetail!K92 -> 0
K97: =EmpDetail!A93 -> 90 | L97: =EmpDetail!B93 -> 0 | M97: =EmpDetail!C93 -> 0 | N97: =EmpDetail!D93 -> 0 | O97: =EmpDetail!J93 -> 0 | P97: =EmpDetail!K93 -> 0
K98: =EmpDetail!A94 -> 91 | L98: =EmpDetail!B94 -> 0 | M98: =EmpDetail!C94 -> 0 | N98: =EmpDetail!D94 -> 0 | O98: =EmpDetail!J94 -> 0 | P98: =EmpDetail!K94 -> 0
K99: =EmpDetail!A95 -> 92 | L99: =EmpDetail!B95 -> 0 | M99: =EmpDetail!C95 -> 0 | N99: =EmpDetail!D95 -> 0 | O99: =EmpDetail!J95 -> 0 | P99: =EmpDetail!K95 -> 0
K100: =EmpDetail!A96 -> 93 | L100: =EmpDetail!B96 -> 0 | M100: =EmpDetail!C96 -> 0 | N100: =EmpDetail!D96 -> 0 | O100: =EmpDetail!J96 -> 0 | P100: =EmpDetail!K96 -> 0
K101: =EmpDetail!A97 -> 94 | L101: =EmpDetail!B97 -> 0 | M101: =EmpDetail!C97 -> 0 | N101: =EmpDetail!D97 -> 0 | O101: =EmpDetail!J97 -> 0 | P101: =EmpDetail!K97 -> 0
K102: =EmpDetail!A98 -> 95 | L102: =EmpDetail!B98 -> 0 | M102: =EmpDetail!C98 -> 0 | N102: =EmpDetail!D98 -> 0 | O102: =EmpDetail!J98 -> 0 | P102: =EmpDetail!K98 -> 0
K103: =EmpDetail!A99 -> 96 | L103: =EmpDetail!B99 -> 0 | M103: =EmpDetail!C99 -> 0 | N103: =EmpDetail!D99 -> 0 | O103: =EmpDetail!J99 -> 0 | P103: =EmpDetail!K99 -> 0
K104: =EmpDetail!A100 -> 97 | L104: =EmpDetail!B100 -> 0 | M104: =EmpDetail!C100 -> 0 | N104: =EmpDetail!D100 -> 0 | O104: =EmpDetail!J100 -> 0 | P104: =EmpDetail!K100 -> 0
K105: =EmpDetail!A101 -> 98 | L105: =EmpDetail!B101 -> 0 | M105: =EmpDetail!C101 -> 0 | N105: =EmpDetail!D101 -> 0 | O105: =EmpDetail!J101 -> 0 | P105: =EmpDetail!K101 -> 0
K106: =EmpDetail!A102 -> 99 | L106: =EmpDetail!B102 -> 0 | M106: =EmpDetail!C102 -> 0 | N106: =EmpDetail!D102 -> 0 | O106: =EmpDetail!J102 -> 0 | P106: =EmpDetail!K102 -> 0
K107: =EmpDetail!A103 -> 100 | L107: =EmpDetail!B103 -> 0 | M107: =EmpDetail!C103 -> 0 | N107: =EmpDetail!D103 -> 0 | O107: =EmpDetail!J103 -> 0 | P107: =EmpDetail!K103 -> 0

Sheet AGI (hidden)
B1: =Master!G2&Master!H2 -> कार्यालय&राजकीय उच्च माध्यमिक विद्यालय ]चौगाई]टोंक
D2: lkef;d osru o`f) izek.k&i=
B3: jkT; ljdkj ds foRr foHkkx ds Order No.F.15(1)FD/Rules/2017 Dated: 30.10.2017 & Revised Order No.F.15(1)FD/Rules/2017 Dated: 09.12.2017 ds vuqlj.k esa bl dk;kZy;
B4: ds v/khu dk;Zjr fuEu dkfeZdksa dks muds uke ds lEeq[k vafdr frfFk ls okf"kZd osru o`f} Lohd`r dh tkdj rnuqlkj osru ,oa fu;ekuqlkj vU; HkRrs vkgfjr djus dh ,rn~}kjk Lohd`fr iznku
B5: dh tkrh gS A osru o`f} tqykbZ ekg dh izFke rkjh[k dks dkfeZd ds vkdfLed vodk'k ds vfrfjDr vU; vodk'k ij gksus dh fLFkfr esa osru o`f} dk ykHk dk;Zxzg.k djus dh frfFk ls ns; gksxk A
A6: dkfeZd Ø0 la0 ntZ djsa | B6: Ø-la- | C6: uke dfeZd | D6: in uke | E6: inLFkkiu LFkku | F6: is eSfVªDl esa ysoy | G6: orZeku osru | H6: orZeku osru izkIr djus dh rkjh[k | I6: okf"kZd osru o`f) frfFk | J6: Hkkoh osru | K6: ih ih | L6: fo'ks"k fooj.k
B7: 1 | C7: 2 | D7: 3 | E7: 4 | F7: 5 | G7: 6 | H7: 7 | I7: 8 | J7: 9 | K7: 10 | L7: 11 | S7: NEXT PAY
A8: 1 | B8: =IF(C8="","",1) -> 1 | C8: =IF(ISNA(VLOOKUP($A8,$M$8:$R$107,2,FALSE)),"",VLOOKUP($A8,$M$8:$R$107,2,FALSE)) -> fd'ku yky cSjok | D8: =IF(ISNA(VLOOKUP($A8,$M$8:$R$107,3,FALSE)),"",VLOOKUP($A8,$M$8:$R$107,3,FALSE)) -> प्रधानाचार्य | E8: =IF(ISNA(VLOOKUP($A8,$M$8:$R$107,4,FALSE)),"",VLOOKUP($A8,$M$8:$R$107,4,FALSE)) -> राउमावि चौगाई | F8: =IF(ISNA(VLOOKUP($A8,$M$8:$R$107,5,FALSE)),"",VLOOKUP($A8,$M$8:$R$107,5,FALSE)) -> L-16 | G8: =IF(ISNA(VLOOKUP($A8,$M$8:$R$107,6,FALSE)),"",VLOOKUP($A8,$M$8:$R$107,6,FALSE)) -> 95900 | H8: =IF(AND(G8=""),"",IF(G8<=0,"",(CONCATENATE("01-07-",(YEAR(TODAY())-1))))) -> 01-07-2020 | I8: =IF(AND(G8=""),"",IF(G8<=0,"",(CONCATENATE("01-07-",(YEAR(TODAY())))))) -> 01-07-2021 | J8: =IF(AND(G8=""),"",ROUND(ROUND(G8*3%,0),-2)+G8) -> 98800 | M8: 1 | N8: =EmpDetail!B4 -> fd'ku yky cSjok | O8: =EmpDetail!C4 -> प्रधानाचार्य | P8: =EmpDetail!D4 -> राउमावि चौगाई | Q8: =EmpDetail!J4 -> L-16 | R8: =EmpDetail!K4 -> 95900
A9: 2 | B9: =IF(C9="","",B8+1) -> 2 | C9: =IF(ISNA(VLOOKUP($A9,$M$8:$R$107,2,FALSE)),"",VLOOKUP($A9,$M$8:$R$107,2,FALSE)) -> iwj.k pUn y{kdkj | D9: =IF(ISNA(VLOOKUP($A9,$M$8:$R$107,3,FALSE)),"",VLOOKUP($A9,$M$8:$R$107,3,FALSE)) -> व्याख्याता | E9: =IF(ISNA(VLOOKUP($A9,$M$8:$R$107,4,FALSE)),"",VLOOKUP($A9,$M$8:$R$107,4,FALSE)) -> राउमावि चौगाई | F9: =IF(ISNA(VLOOKUP($A9,$M$8:$R$107,5,FALSE)),"",VLOOKUP($A9,$M$8:$R$107,5,FALSE)) -> L-12 | G9: =IF(ISNA(VLOOKUP($A9,$M$8:$R$107,6,FALSE)),"",VLOOKUP($A9,$M$8:$R$107,6,FALSE)) -> 56100 | H9: =IF(AND(G9=""),"",IF(G9<=0,"",(CONCATENATE("01-07-",(YEAR(TODAY())-1))))) -> 01-07-2020 | I9: =IF(AND(G9=""),"",IF(G9<=0,"",(CONCATENATE("01-07-",(YEAR(TODAY())))))) -> 01-07-2021 | J9: =IF(AND(G9=""),"",ROUND(ROUND(G9*3%,0),-2)+G9) -> 57800 | M9: 2 | N9: =EmpDetail!B5 -> iwj.k pUn y{kdkj | O9: =EmpDetail!C5 -> व्याख्याता | P9: =EmpDetail!D5 -> राउमावि चौगाई | Q9: =EmpDetail!J5 -> L-12 | R9: =EmpDetail!K5 -> 56100
A10: 3 | B10: =IF(C10="","",B9+1) -> 3 | C10: jktsUnz dqekj tSu | D10: व्याख्याता | E10: राउमावि चौगाई | F10: L-12 | G10: 63100 | H10: 01-07-2020 | I10: 01-07-2021 | J10: 65000 | M10: 3 | N10: =EmpDetail!B6 -> jktsUnz dqekj tSu | O10: =EmpDetail!C6 -> व्याख्याता | P10: =EmpDetail!D6 -> राउमावि चौगाई | Q10: =EmpDetail!J6 -> L-12 | R10: =EmpDetail!K6 -> 63100
A11: 4 | B11: 4 | C11: fd'ku yky cSjok | D11: व्याख्याता | E11: राउमावि चौगाई | F11: L-12 | G11: 54500 | H11: 01-07-2020 | I11: 01-07-2021 | J11: 56100 | M11: 4 | N11: =EmpDetail!B7 -> fd'ku yky cSjok | O11: =EmpDetail!C7 -> व्याख्याता | P11: =EmpDetail!D7 -> राउमावि चौगाई | Q11: =EmpDetail!J7 -> L-12 | R11: =EmpDetail!K7 -> 54500
A12: 5 | B12: 5 | C12: lR;ukjk;.k 'kekZ | D12: वरिष्ठ अध्यापक | E12: राउमावि चौगाई | F12: L-13 | G12: 71300 | H12: 01-07-2020 | I12: 01-07-2021 | J12: 73400 | M12: 5 | N12: =EmpDetail!B8 -> lR;ukjk;.k 'kekZ | O12: =EmpDetail!C8 -> वरिष्ठ अध्यापक | P12: =EmpDetail!D8 -> राउमावि चौगाई | Q12: =EmpDetail!J8 -> L-13 | R12: =EmpDetail!K8 -> 71300
A13: 6 | B13: 6 | C13: iq"ik tSu | D13: वरिष्ठ अध्यापक | E13: राउमावि चौगाई | F13: L-13 | G13: 73400 | H13: 01-07-2020 | I13: 01-07-2021 | J13: 75600 | M13: 6 | N13: =EmpDetail!B9 -> iq"ik tSu | O13: =EmpDetail!C9 -> वरिष्ठ अध्यापक | P13: =EmpDetail!D9 -> राउमावि चौगाई | Q13: =EmpDetail!J9 -> L-13 | R13: =EmpDetail!K9 -> 73400
A14: 7 | B14: 7 | C14: vk'kkjke eh.kk | D14: वरिष्ठ अध्यापक | E14: राउमावि चौगाई | F14: L-11 | G14: 52300 | H14: 01-07-2020 | I14: 01-07-2021 | J14: 53900 | M14: 7 | N14: =EmpDetail!B10 -> vk'kkjke eh.kk | O14: =EmpDetail!C10 -> वरिष्ठ अध्यापक | P14: =EmpDetail!D10 -> राउमावि चौगाई | Q14: =EmpDetail!J10 -> L-11 | R14: =EmpDetail!K10 -> 52300
A15: 8 | B15: 8 | C15: t;iky flag | D15: वरिष्ठ अध्यापक | E15: राउमावि चौगाई | F15: L-12 | G15: 63100 | H15: 01-07-2020 | I15: 01-07-2021 | J15: 65000 | M15: 8 | N15: =EmpDetail!B11 -> t;iky flag | O15: =EmpDetail!C11 -> वरिष्ठ अध्यापक | P15: =EmpDetail!D11 -> राउमावि चौगाई | Q15: =EmpDetail!J11 -> L-12 | R15: =EmpDetail!K11 -> 63100
A16: 9 | B16: 9 | C16: jkeizlkn jsxj | D16: वरिष्ठ अध्यापक | E16: राउमावि चौगाई | F16: L-11 | G16: 46500 | H16: 01-07-2020 | I16: 01-07-2021 | J16: 47900 | M16: 9 | N16: =EmpDetail!B12 -> jkeizlkn jsxj | O16: =EmpDetail!C12 -> वरिष्ठ अध्यापक | P16: =EmpDetail!D12 -> राउमावि चौगाई | Q16: =EmpDetail!J12 -> L-11 | R16: =EmpDetail!K12 -> 46500
A17: 10 | B17: 10 | C17: egsUnz dqekj tkV | D17: शारीरिक शिक्षक | E17: राउमावि चौगाई | F17: L-12 | G17: 61300 | H17: 01-07-2020 | I17: 01-07-2021 | J17: 63100 | M17: 10 | N17: =EmpDetail!B13 -> egsUnz dqekj tkV | O17: =EmpDetail!C13 -> शारीरिक शिक्षक | P17: =EmpDetail!D13 -> राउमावि चौगाई | Q17: =EmpDetail!J13 -> L-12 | R17: =EmpDetail!K13 -> 61300
A18: 11 | B18: 11 | C18: NksVw yky jsxj | D18: अध्यापक ग्रेड III | E18: राउमावि चौगाई | F18: L-13 | G18: 65200 | H18: 01-07-2020 | I18: 01-07-2021 | J18: 67200 | M18: 11 | N18: =EmpDetail!B14 -> NksVw yky jsxj | O18: =EmpDetail!C14 -> अध्यापक ग्रेड III | P18: =EmpDetail!D14 -> राउमावि चौगाई | Q18: =EmpDetail!J14 -> L-13 | R18: =EmpDetail!K14 -> 65200
A19: 12 | B19: 12 | C19: dUgS;k yky egkoj | D19: अध्यापक ग्रेड III | E19: राउमावि चौगाई | F19: L-13 | G19: 65200 | H19: 01-07-2020 | I19: 01-07-2021 | J19: 67200 | M19: 12 | N19: =EmpDetail!B15 -> dUgS;k yky egkoj | O19: =EmpDetail!C15 -> अध्यापक ग्रेड III | P19: =EmpDetail!D15 -> राउमावि चौगाई | Q19: =EmpDetail!J15 -> L-13 | R19: =EmpDetail!K15 -> 65200
A20: 13 | B20: 13 | C20: prqHkqZt tkV | D20: अध्यापक ग्रेड III | E20: राउमावि चौगाई | F20: L-11 | G20: 52300 | H20: 01-07-2020 | I20: 01-07-2021 | J20: 53900 | M20: 13 | N20: =EmpDetail!B16 -> prqHkqZt tkV | O20: =EmpDetail!C16 -> अध्यापक ग्रेड III | P20: =EmpDetail!D16 -> राउमावि चौगाई | Q20: =EmpDetail!J16 -> L-11 | R20: =EmpDetail!K16 -> 52300
A21: 15 | B21: 14 | C21: lq'khyk cSjok | D21: कनिष्ठ सहायक | E21: राउमावि चौगाई | F21: L-5 | G21: 14600 | H21: =IF(AND(G21=""),"",IF(G21<=0,"",(CONCATENATE("01-07-",(YEAR(TODAY())-1))))) -> 01-07-2020 | I21: =IF(AND(G21=""),"",IF(G21<=0,"",(CONCATENATE("01-07-",(YEAR(TODAY())))))) -> 01-07-2021 | J21: 15000 | M21: 14 | N21: =EmpDetail!B17 -> vklsQk [kku | O21: =EmpDetail!C17 -> अध्यापक ग्रेड III | P21: =EmpDetail!D17 -> राउमावि चौगाई | Q21: =EmpDetail!J17 -> L-11 | R21: =EmpDetail!K17 -> 52300
M22: 15 | N22: =EmpDetail!B18 -> lq'khyk cSjok | O22: =EmpDetail!C18 -> कनिष्ठ सहायक | P22: =EmpDetail!D18 -> राउमावि चौगाई | Q22: =EmpDetail!J18 -> L-5 | R22: =EmpDetail!K18 -> 14600
M23: 16 | N23: =EmpDetail!B19 -> txnh'k izlkn rsyh | O23: =EmpDetail!C19 -> सहायक कर्मचारी | P23: =EmpDetail!D19 -> राउमावि चौगाई | Q23: =EmpDetail!J19 -> L-5 | R23: =EmpDetail!K19 -> 34700
M24: 17 | N24: =EmpDetail!B20 -> jfoUnz dqekj tSu | O24: =EmpDetail!C20 -> अध्यापक ग्रेड III | P24: =EmpDetail!D20 -> राउप्रावि मोहिनी | Q24: =EmpDetail!J20 -> L-12 | R24: =EmpDetail!K20 -> 65200
M25: 18 | N25: =EmpDetail!B21 -> ';ke lqUnj ckxkSM | O25: =EmpDetail!C21 -> अध्यापक ग्रेड III | P25: =EmpDetail!D21 -> राउप्रावि मोहिनी | Q25: =EmpDetail!J21 -> L-10 | R25: =EmpDetail!K21 -> 40300
M26: 19 | N26: =EmpDetail!B22 -> d`".kk 'kekZ | O26: =EmpDetail!C22 -> प्रबोधक | P26: =EmpDetail!D22 -> राउप्रावि मोहिनी | Q26: =EmpDetail!J22 -> L-11 | R26: =EmpDetail!K22 -> 45100
M27: 20 | N27: =EmpDetail!B23 -> /keZsUnz pkS/kjh | O27: =EmpDetail!C23 -> अध्यापक ग्रेड III | P27: =EmpDetail!D23 -> राउप्रावि गोरधनपुरा | Q27: =EmpDetail!J23 -> L-10 | R27: =EmpDetail!K23 -> 40300
M28: 21 | N28: =EmpDetail!B24 -> izgykn ekyh | O28: =EmpDetail!C24 -> प्रबोधक | P28: =EmpDetail!D24 -> राउप्रावि गोरधनपुरा | Q28: =EmpDetail!J24 -> L-11 | R28: =EmpDetail!K24 -> 46500
M29: 22 | N29: =EmpDetail!B25 -> jken;ky xqtZj | O29: =EmpDetail!C25 -> प्रबोधक | P29: =EmpDetail!D25 -> राउप्रावि सोंदीफल | Q29: =EmpDetail!J25 -> L-11 | R29: =EmpDetail!K25 -> 45100
M30: 23 | N30: =EmpDetail!B26 -> vkSeizdk'k tkV | O30: =EmpDetail!C26 -> अध्यापक ग्रेड III | P30: =EmpDetail!D26 -> राउप्रावि सोंदीफल | Q30: =EmpDetail!J26 -> L-11 | R30: =EmpDetail!K26 -> 45100
M31: 24 | N31: =EmpDetail!B27 -> vthr flag | O31: =EmpDetail!C27 -> अध्यापक ग्रेड III | P31: =EmpDetail!D27 -> राप्रावि जानकीवल्लभपुरा | Q31: =EmpDetail!J27 -> L-10 | R31: =EmpDetail!K27 -> 40300
M32: 25 | N32: =EmpDetail!B28 -> eq[rkj eha;k | O32: =EmpDetail!C28 -> प्रबोधक | P32: =EmpDetail!D28 -> राप्रावि जानकीवल्लभपुरा | Q32: =EmpDetail!J28 -> L-11 | R32: =EmpDetail!K28 -> 45100
M33: 26 | N33: =EmpDetail!B29 -> eks0 tehy | O33: =EmpDetail!C29 -> प्रबोधक | P33: =EmpDetail!D29 -> राप्रावि रसूलपुरा | Q33: =EmpDetail!J29 -> L-11 | R33: =EmpDetail!K29 -> 45100
M34: 27 | N34: =EmpDetail!B30 -> lkaojey tkV | O34: =EmpDetail!C30 -> अध्यापक ग्रेड III | P34: =EmpDetail!D30 -> राप्रावि रसूलपुरा | Q34: =EmpDetail!J30 -> L-10 | R34: =EmpDetail!K30 -> 38000
M35: 28 | N35: =EmpDetail!B31 -> pkS/kjh eksuk jkekorkj | O35: =EmpDetail!C31 -> अध्यापक ग्रेड III | P35: =EmpDetail!D31 -> राप्रावि मोहिनी ढाणी बाढ | Q35: =EmpDetail!J31 -> L-10 | R35: =EmpDetail!K31 -> 38000
M36: 29 | N36: =EmpDetail!B32 -> rkjkpUn tk;loky | O36: =EmpDetail!C32 -> प्रबोधक | P36: =EmpDetail!D32 -> राप्रावि मोहिनी ढाणी बाढ | Q36: =EmpDetail!J32 -> L-11 | R36: =EmpDetail!K32 -> 41300
M37: 30 | N37: =EmpDetail!B33 -> jketl ;kno | O37: =EmpDetail!C33 -> अध्यापक ग्रेड III | P37: =EmpDetail!D33 -> राप्रावि बैरवा ढाणी सोन्दीफल | Q37: =EmpDetail!J33 -> L-12 | R37: =EmpDetail!K33 -> 63100
M38: 31 | N38: =EmpDetail!B34 -> dtksMey eh.kk | O38: =EmpDetail!C34 -> अध्यापक ग्रेड III | P38: =EmpDetail!D34 -> राप्रावि बैरवा ढाणी सोन्दीफल | Q38: =EmpDetail!J34 -> L-10 | R38: =EmpDetail!K34 -> 38000
M39: 32 | N39: =EmpDetail!B35 -> /kaut; xkSRre | O39: =EmpDetail!C35 -> अध्यापक ग्रेड III | P39: =EmpDetail!D35 -> राउप्रावि गोरधनपुरा | Q39: =EmpDetail!J35 -> L-10 | R39: =EmpDetail!K35 -> 34800
M40: 33 | N40: =EmpDetail!B36 -> d`".kk xaxoky | O40: =EmpDetail!C36 -> अध्यापक ग्रेड III | P40: =EmpDetail!D36 -> राउप्रावि गोरधनपुरा | Q40: =EmpDetail!J36 -> L-10 | R40: =EmpDetail!K36 -> 33800
M41: 34 | N41: =EmpDetail!B37 -> n'kjFk dqekj ;kno | O41: =EmpDetail!C37 -> अध्यापक ग्रेड III | P41: =EmpDetail!D37 -> राउप्रावि सोंदीफल | Q41: =EmpDetail!J37 -> L-10 | R41: =EmpDetail!K37 -> 23700
M42: 35 | N42: =EmpDetail!B38 -> d`".k yky tkV | O42: =EmpDetail!C38 -> अध्यापक ग्रेड III | P42: =EmpDetail!D38 -> राउप्रावि सोंदीफल | Q42: =EmpDetail!J38 -> L-10 | R42: =EmpDetail!K38 -> 33800
M43: 36 | N43: =EmpDetail!B39 -> nhisUnz dqekj iztkir | O43: =EmpDetail!C39 -> अध्यापक ग्रेड III | P43: =EmpDetail!D39 -> राउप्रावि सोंदीफल | Q43: =EmpDetail!J39 -> L-10 | R43: =EmpDetail!K39 -> 33800
M44: 37 | N44: =EmpDetail!B40 -> uohu dqekj | O44: =EmpDetail!C40 -> अध्यापक ग्रेड III | P44: =EmpDetail!D40 -> राउप्रावि मोहिनी | Q44: =EmpDetail!J40 -> L-10 | R44: =EmpDetail!K40 -> 33800
M45: 38 | N45: =EmpDetail!B41 -> ehrs'k dqekj 'kekZ | O45: =EmpDetail!C41 -> अध्यापक ग्रेड III | P45: =EmpDetail!D41 -> राउप्रावि मोहिनी | Q45: =EmpDetail!J41 -> L-10 | R45: =EmpDetail!K41 -> 34800
M46: 39 | N46: =EmpDetail!B42 -> eUtw eh.kk | O46: =EmpDetail!C42 -> वरिष्ठ अध्यापक | P46: =EmpDetail!D42 -> राउप्रावि गोरधनपुरा | Q46: =EmpDetail!J42 -> L-10 | R46: =EmpDetail!K42 -> 33800
M47: 40 | N47: =EmpDetail!B43 -> eatw pkS/kjh | O47: =EmpDetail!C43 -> वरिष्ठ अध्यापक | P47: =EmpDetail!D43 -> राउप्रावि सोंदीफल | Q47: =EmpDetail!J43 -> L-11 | R47: =EmpDetail!K43 -> 26500
M48: 41 | N48: =EmpDetail!B44 -> 0 | O48: =EmpDetail!C44 -> 0 | P48: =EmpDetail!D44 -> 0 | Q48: =EmpDetail!J44 -> 0 | R48: =EmpDetail!K44 -> 0
M49: 42 | N49: =EmpDetail!B45 -> 0 | O49: =EmpDetail!C45 -> 0 | P49: =EmpDetail!D45 -> 0 | Q49: =EmpDetail!J45 -> 0 | R49: =EmpDetail!K45 -> 0
M50: 43 | N50: =EmpDetail!B46 -> 0 | O50: =EmpDetail!#REF! ->  | P50: =EmpDetail!#REF! ->  | Q50: =EmpDetail!J46 -> 0 | R50: =EmpDetail!K46 -> 0
M51: 44 | N51: =EmpDetail!B47 -> 0 | O51: =EmpDetail!C47 -> 0 | P51: =EmpDetail!D47 -> 0 | Q51: =EmpDetail!J47 -> 0 | R51: =EmpDetail!K47 -> 0
M52: 45 | N52: =EmpDetail!B48 -> 0 | O52: =EmpDetail!C48 -> 0 | P52: =EmpDetail!D48 -> 0 | Q52: =EmpDetail!J48 -> 0 | R52: =EmpDetail!K48 -> 0
M53: 46 | N53: =EmpDetail!B49 -> 0 | O53: =EmpDetail!C49 -> 0 | P53: =EmpDetail!D49 -> 0 | Q53: =EmpDetail!J49 -> 0 | R53: =EmpDetail!K49 -> 0
M54: 47 | N54: =EmpDetail!B50 -> 0 | O54: =EmpDetail!C50 -> 0 | P54: =EmpDetail!D50 -> 0 | Q54: =EmpDetail!J50 -> 0 | R54: =EmpDetail!K50 -> 0
M55: 48 | N55: =EmpDetail!B51 -> 0 | O55: =EmpDetail!C51 -> 0 | P55: =EmpDetail!D51 -> 0 | Q55: =EmpDetail!J51 -> 0 | R55: =EmpDetail!K51 -> 0
M56: 49 | N56: =EmpDetail!B52 -> 0 | O56: =EmpDetail!C52 -> 0 | P56: =EmpDetail!D52 -> 0 | Q56: =EmpDetail!J52 -> 0 | R56: =EmpDetail!K52 -> 0
M57: 50 | N57: =EmpDetail!B53 -> 0 | O57: =EmpDetail!C53 -> 0 | P57: =EmpDetail!D53 -> 0 | Q57: =EmpDetail!J53 -> 0 | R57: =EmpDetail!K53 -> 0
C58: izekf.kr fd;k tkrk gS fd mijksDr dkfeZdksa esa ls fdlh Hkh dkfeZd }kjk ,sls fdlh vodk'k dk miHkksx ugha fd;k x;k gS ftlls mldh okf"kZd osru o`f) izHkkfor gksrh gksA | M58: 51 | N58: =EmpDetail!B54 -> 0 | O58: =EmpDetail!C54 -> 0 | P58: =EmpDetail!D54 -> 0 | Q58: =EmpDetail!J54 -> 0 | R58: =EmpDetail!K54 -> 0
M59: 52 | N59: =EmpDetail!B55 -> 0 | O59: =EmpDetail!C55 -> 0 | P59: =EmpDetail!D55 -> 0 | Q59: =EmpDetail!J55 -> 0 | R59: =EmpDetail!K55 -> 0
J60: =Master!B2 -> प्रधानाचार्य | M60: 53 | N60: =EmpDetail!B56 -> 0 | O60: =EmpDetail!C56 -> 0 | P60: =EmpDetail!D56 -> 0 | Q60: =EmpDetail!J56 -> 0 | R60: =EmpDetail!K56 -> 0
J61: =Master!B3 -> राजकीय उच्च माध्यमिक विद्यालय | M61: 54 | N61: =EmpDetail!B57 -> 0 | O61: =EmpDetail!C57 -> 0 | P61: =EmpDetail!D57 -> 0 | Q61: =EmpDetail!J57 -> 0 | R61: =EmpDetail!K57 -> 0
J62: =Master!B4 -> चौगाई]टोंक | M62: 55 | N62: =EmpDetail!B58 -> 0 | O62: =EmpDetail!C58 -> 0 | P62: =EmpDetail!D58 -> 0 | Q62: =EmpDetail!J58 -> 0 | R62: =EmpDetail!K58 -> 0
B63: Øekad& | C63: =Master!H3&Master!I3&Master!J3&Master!E3&"/" -> राउमावि/चौगाई/संस्था/2021-22/ | K63: fnukad& | L63: =TODAY() -> 2021-06-19 | M63: 56 | N63: =EmpDetail!B59 -> 0 | O63: =EmpDetail!C59 -> 0 | P63: =EmpDetail!D59 -> 0 | Q63: =EmpDetail!J59 -> 0 | R63: =EmpDetail!K59 -> 0
C64: izfrfyfi lwpukFkZ ,oa ikyukFkZ | M64: 57 | N64: =EmpDetail!B60 -> 0 | O64: =EmpDetail!C60 -> 0 | P64: =EmpDetail!D60 -> 0 | Q64: =EmpDetail!J60 -> 0 | R64: =EmpDetail!K60 -> 0
B65: 1 | C65: dks"kkf/kdkjh@mi dks"kkf/kdkjh | D65: =Master!H4 -> पीपलू | M65: 58 | N65: =EmpDetail!B61 -> 0 | O65: =EmpDetail!C61 -> 0 | P65: =EmpDetail!D61 -> 0 | Q65: =EmpDetail!J61 -> 0 | R65: =EmpDetail!K61 -> 0
B66: 2 | C66: ys[kk 'kk[kk LFkkuh; dk;kZy; | M66: 59 | N66: =EmpDetail!B62 -> 0 | O66: =EmpDetail!C62 -> 0 | P66: =EmpDetail!D62 -> 0 | Q66: =EmpDetail!J62 -> 0 | R66: =EmpDetail!K62 -> 0
B67: 3 | C67: dkfeZd O;fDrxr iaftdk | M67: 60 | N67: =EmpDetail!B63 -> 0 | O67: =EmpDetail!C63 -> 0 | P67: =EmpDetail!D63 -> 0 | Q67: =EmpDetail!J63 -> 0 | R67: =EmpDetail!K63 -> 0
B68: 4 | C68: lEcfU/kr dkfeZd | J68: =J60 -> प्रधानाचार्य | M68: 61 | N68: =EmpDetail!B64 -> 0 | O68: =EmpDetail!C64 -> 0 | P68: =EmpDetail!D64 -> 0 | Q68: =EmpDetail!J64 -> 0 | R68: =EmpDetail!K64 -> 0
J69: =J61 -> राजकीय उच्च माध्यमिक विद्यालय | M69: 62 | N69: =EmpDetail!B65 -> 0 | O69: =EmpDetail!C65 -> 0 | P69: =EmpDetail!D65 -> 0 | Q69: =EmpDetail!J65 -> 0 | R69: =EmpDetail!K65 -> 0
J70: =J62 -> चौगाई]टोंक | M70: 63 | N70: =EmpDetail!B66 -> 0 | O70: =EmpDetail!C66 -> 0 | P70: =EmpDetail!D66 -> 0 | Q70: =EmpDetail!J66 -> 0 | R70: =EmpDetail!K66 -> 0
M71: 64 | N71: =EmpDetail!B67 -> 0 | O71: =EmpDetail!C67 -> 0 | P71: =EmpDetail!D67 -> 0 | Q71: =EmpDetail!J67 -> 0 | R71: =EmpDetail!K67 -> 0
M72: 65 | N72: =EmpDetail!B68 -> 0 | O72: =EmpDetail!C68 -> 0 | P72: =EmpDetail!D68 -> 0 | Q72: =EmpDetail!J68 -> 0 | R72: =EmpDetail!K68 -> 0
M73: 66 | N73: =EmpDetail!B69 -> 0 | O73: =EmpDetail!C69 -> 0 | P73: =EmpDetail!D69 -> 0 | Q73: =EmpDetail!J69 -> 0 | R73: =EmpDetail!K69 -> 0
M74: 67 | N74: =EmpDetail!B70 -> 0 | O74: =EmpDetail!C70 -> 0 | P74: =EmpDetail!D70 -> 0 | Q74: =EmpDetail!J70 -> 0 | R74: =EmpDetail!K70 -> 0
M75: 68 | N75: =EmpDetail!B71 -> 0 | O75: =EmpDetail!C71 -> 0 | P75: =EmpDetail!D71 -> 0 | Q75: =EmpDetail!J71 -> 0 | R75: =EmpDetail!K71 -> 0
M76: 69 | N76: =EmpDetail!B72 -> 0 | O76: =EmpDetail!C72 -> 0 | P76: =EmpDetail!D72 -> 0 | Q76: =EmpDetail!J72 -> 0 | R76: =EmpDetail!K72 -> 0
M77: 70 | N77: =EmpDetail!B73 -> 0 | O77: =EmpDetail!C73 -> 0 | P77: =EmpDetail!D73 -> 0 | Q77: =EmpDetail!J73 -> 0 | R77: =EmpDetail!K73 -> 0
M78: 71 | N78: =EmpDetail!B74 -> 0 | O78: =EmpDetail!C74 -> 0 | P78: =EmpDetail!D74 -> 0 | Q78: =EmpDetail!J74 -> 0 | R78: =EmpDetail!K74 -> 0
M79: 72 | N79: =EmpDetail!B75 -> 0 | O79: =EmpDetail!C75 -> 0 | P79: =EmpDetail!D75 -> 0 | Q79: =EmpDetail!J75 -> 0 | R79: =EmpDetail!K75 -> 0
M80: 73 | N80: =EmpDetail!B76 -> 0 | O80: =EmpDetail!C76 -> 0 | P80: =EmpDetail!D76 -> 0 | Q80: =EmpDetail!J76 -> 0 | R80: =EmpDetail!K76 -> 0
M81: 74 | N81: =EmpDetail!B77 -> 0 | O81: =EmpDetail!C77 -> 0 | P81: =EmpDetail!D77 -> 0 | Q81: =EmpDetail!J77 -> 0 | R81: =EmpDetail!K77 -> 0
M82: 75 | N82: =EmpDetail!B78 -> 0 | O82: =EmpDetail!C78 -> 0 | P82: =EmpDetail!D78 -> 0 | Q82: =EmpDetail!J78 -> 0 | R82: =EmpDetail!K78 -> 0
M83: 76 | N83: =EmpDetail!B79 -> 0 | O83: =EmpDetail!C79 -> 0 | P83: =EmpDetail!D79 -> 0 | Q83: =EmpDetail!J79 -> 0 | R83: =EmpDetail!K79 -> 0
M84: 77 | N84: =EmpDetail!B80 -> 0 | O84: =EmpDetail!C80 -> 0 | P84: =EmpDetail!D80 -> 0 | Q84: =EmpDetail!J80 -> 0 | R84: =EmpDetail!K80 -> 0
M85: 78 | N85: =EmpDetail!B81 -> 0 | O85: =EmpDetail!C81 -> 0 | P85: =EmpDetail!D81 -> 0 | Q85: =EmpDetail!J81 -> 0 | R85: =EmpDetail!K81 -> 0
M86: 79 | N86: =EmpDetail!B82 -> 0 | O86: =EmpDetail!C82 -> 0 | P86: =EmpDetail!D82 -> 0 | Q86: =EmpDetail!J82 -> 0 | R86: =EmpDetail!K82 -> 0
M87: 80 | N87: =EmpDetail!B83 -> 0 | O87: =EmpDetail!C83 -> 0 | P87: =EmpDetail!D83 -> 0 | Q87: =EmpDetail!J83 -> 0 | R87: =EmpDetail!K83 -> 0
M88: 81 | N88: =EmpDetail!B84 -> 0 | O88: =EmpDetail!C84 -> 0 | P88: =EmpDetail!D84 -> 0 | Q88: =EmpDetail!J84 -> 0 | R88: =EmpDetail!K84 -> 0
M89: 82 | N89: =EmpDetail!B85 -> 0 | O89: =EmpDetail!C85 -> 0 | P89: =EmpDetail!D85 -> 0 | Q89: =EmpDetail!J85 -> 0 | R89: =EmpDetail!K85 -> 0
M90: 83 | N90: =EmpDetail!B86 -> 0 | O90: =EmpDetail!C86 -> 0 | P90: =EmpDetail!D86 -> 0 | Q90: =EmpDetail!J86 -> 0 | R90: =EmpDetail!K86 -> 0
M91: 84 | N91: =EmpDetail!B87 -> 0 | O91: =EmpDetail!C87 -> 0 | P91: =EmpDetail!D87 -> 0 | Q91: =EmpDetail!J87 -> 0 | R91: =EmpDetail!K87 -> 0
M92: 85 | N92: =EmpDetail!B88 -> 0 | O92: =EmpDetail!C88 -> 0 | P92: =EmpDetail!D88 -> 0 | Q92: =EmpDetail!J88 -> 0 | R92: =EmpDetail!K88 -> 0
M93: 86 | N93: =EmpDetail!B89 -> 0 | O93: =EmpDetail!C89 -> 0 | P93: =EmpDetail!D89 -> 0 | Q93: =EmpDetail!J89 -> 0 | R93: =EmpDetail!K89 -> 0
M94: 87 | N94: =EmpDetail!B90 -> 0 | O94: =EmpDetail!C90 -> 0 | P94: =EmpDetail!D90 -> 0 | Q94: =EmpDetail!J90 -> 0 | R94: =EmpDetail!K90 -> 0
M95: 88 | N95: =EmpDetail!B91 -> 0 | O95: =EmpDetail!C91 -> 0 | P95: =EmpDetail!D91 -> 0 | Q95: =EmpDetail!J91 -> 0 | R95: =EmpDetail!K91 -> 0
M96: 89 | N96: =EmpDetail!B92 -> 0 | O96: =EmpDetail!C92 -> 0 | P96: =EmpDetail!D92 -> 0 | Q96: =EmpDetail!J92 -> 0 | R96: =EmpDetail!K92 -> 0
M97: 90 | N97: =EmpDetail!B93 -> 0 | O97: =EmpDetail!C93 -> 0 | P97: =EmpDetail!D93 -> 0 | Q97: =EmpDetail!J93 -> 0 | R97: =EmpDetail!K93 -> 0
M98: 91 | N98: =EmpDetail!B94 -> 0 | O98: =EmpDetail!C94 -> 0 | P98: =EmpDetail!D94 -> 0 | Q98: =EmpDetail!J94 -> 0 | R98: =EmpDetail!K94 -> 0
M99: 92 | N99: =EmpDetail!B95 -> 0 | O99: =EmpDetail!C95 -> 0 | P99: =EmpDetail!D95 -> 0 | Q99: =EmpDetail!J95 -> 0 | R99: =EmpDetail!K95 -> 0
M100: 93 | N100: =EmpDetail!B96 -> 0 | O100: =EmpDetail!C96 -> 0 | P100: =EmpDetail!D96 -> 0 | Q100: =EmpDetail!J96 -> 0 | R100: =EmpDetail!K96 -> 0
M101: 94 | N101: =EmpDetail!B97 -> 0 | O101: =EmpDetail!C97 -> 0 | P101: =EmpDetail!D97 -> 0 | Q101: =EmpDetail!J97 -> 0 | R101: =EmpDetail!K97 -> 0
M102: 95 | N102: =EmpDetail!B98 -> 0 | O102: =EmpDetail!C98 -> 0 | P102: =EmpDetail!D98 -> 0 | Q102: =EmpDetail!J98 -> 0 | R102: =EmpDetail!K98 -> 0
M103: 96 | N103: =EmpDetail!B99 -> 0 | O103: =EmpDetail!C99 -> 0 | P103: =EmpDetail!D99 -> 0 | Q103: =EmpDetail!J99 -> 0 | R103: =EmpDetail!K99 -> 0
M104: 97 | N104: =EmpDetail!B100 -> 0 | O104: =EmpDetail!C100 -> 0 | P104: =EmpDetail!D100 -> 0 | Q104: =EmpDetail!J100 -> 0 | R104: =EmpDetail!K100 -> 0
M105: 98 | N105: =EmpDetail!B101 -> 0 | O105: =EmpDetail!C101 -> 0 | P105: =EmpDetail!D101 -> 0 | Q105: =EmpDetail!J101 -> 0 | R105: =EmpDetail!K101 -> 0
M106: 99 | N106: =EmpDetail!B102 -> 0 | O106: =EmpDetail!C102 -> 0 | P106: =EmpDetail!D102 -> 0 | Q106: =EmpDetail!J102 -> 0 | R106: =EmpDetail!K102 -> 0
M107: 100 | N107: =EmpDetail!B103 -> 0 | O107: =EmpDetail!C103 -> 0 | P107: =EmpDetail!D103 -> 0 | Q107: =EmpDetail!J103 -> 0 | R107: =EmpDetail!K103 -> 0

Sheet ACP Pay (hidden)
B1: =Master!G2&Master!H2 -> कार्यालय&राजकीय उच्च माध्यमिक विद्यालय ]चौगाई]टोंक | X1: निदेशक माध्यमिक शिक्षा राजस्थान] बीकानेर के आदेश क्रमांक&
H2: dk;kZy; vkns'k | X2: उप निदेशक माध्यमिक शिक्षा अजमेर] के आदेश क्रमांक&
X3: जिला शिक्षा अधिकारी माध्यमिक शिक्षा टोंक के आदेश क्रमांक&
D4: जिला शिक्षा अधिकारी मुख्यालय माध्य0 शिक्षा टोंक के आदेश क्रमांक& | E4: ftf'kv@eq@izk-f'k-@laLFkk&3@Vksad@2021@854&857 | K4: fnukad& | L4: 2021-02-22 | M4: dh vuqikyuk esa | X4: जिला शिक्षा अधिकारी प्रारम्भिक शिक्षा टोंक के आदेश क्रमांक&
B5: fuEukafdr dkfeZdksa dks muds uke ds lEeq[k vafdr fooj.kkuqlkj jkT; ljdkj ds vkns'k dzekad& ,Q-15 ,Q-Mh-@:Yl@2017 fnukad&30-010--2017 o 09-12-2017 ds vuqlkj flfoy lsok iqujhf{kr osru eku 2017 | X5: जिला शिक्षा अधिकारी मुख्यालय माध्य0 शिक्षा टोंक के आदेश क्रमांक&
B6: ds fu;e 14 o 15 ds vuqlj.k esa vk'okflr dSfj;j izksxzs'ku Lohd`r fd;s tkus ij jktLFkku lsok fu;eksa ds fu;e 26 ,A ds vuqlkj.k esa osru fu/kkZj.k fuEukuqlkj fd;k tkrk gSA budh vkxkeh osru o`f) fnukad dkWye la[;k 13 esa vafdrkuqlkj jgsxh A | X6: श्रीमान जिला कलेक्टर महोदय भू अ टोंक के आदेश क्रमांक&
A7: dkfeZd Øe | B7: Ø-la- | C7: uke dfeZd | D7: in uke | E7: inLFkkiu LFkku | F7: fu;fer fu;qfä fnukad | G7: ,lhih 9]18 ;k 27 | H7: ,lhih Lohd`fr fnukad | I7: orZeku osru dk ysoy | J7: orZeku osru | K7: orZeku osru ij ,d osru o`f) | L7: ,lhih ij Lohd`r ysoy | M7: ,lhih ij fu/kkZfjr osru | N7: vkxkeh osru o`f) frfFk | O7: fo0fo0
B8: 1 | C8: 2 | D8: 3 | E8: 4 | F8: 5 | G8: 6 | H8: 7 | I8: 8 | J8: 9 | K8: 10 | L8: 11 | M8: 12 | N8: 13 | O8: 14
A9: 3 | B9: =IF(C9="","",1) -> 1 | C9: =IF(ISNA(VLOOKUP($A9,$P$9:$V$108,2,FALSE)),"",VLOOKUP($A9,$P$9:$V$108,2,FALSE)) -> jktsUnz dqekj tSu | D9: =IF(ISNA(VLOOKUP($A9,$P$9:$V$108,3,FALSE)),"",VLOOKUP($A9,$P$9:$V$108,3,FALSE)) -> व्याख्याता | E9: =IF(ISNA(VLOOKUP($A9,$P$9:$V$108,4,FALSE)),"",VLOOKUP($A9,$P$9:$V$108,4,FALSE)) -> राउमावि चौगाई | F9: =IF(ISNA(VLOOKUP($A9,$P$9:$V$108,5,FALSE)),"",VLOOKUP($A9,$P$9:$V$108,5,FALSE)) -> 00:00:00 | G9: 27 | H9: 2020-12-19 | I9: =IF(ISNA(VLOOKUP($A9,$P$9:$V$108,6,FALSE)),"",VLOOKUP($A9,$P$9:$V$108,6,FALSE)) -> L-12 | J9: =IF(ISNA(VLOOKUP($A9,$P$9:$V$108,7,FALSE)),"",VLOOKUP($A9,$P$9:$V$108,7,FALSE)) -> 63100 | K9: =IF(W9="","",W9) -> 1900 | L9: L-13 | M9: 65200 | N9: 2021-07-01 | O9: izFke fu;qfDr e/;kUg i'pkr | P9: 1 | Q9: =EmpDetail!B4 -> fd'ku yky cSjok | R9: =EmpDetail!C4 -> प्रधानाचार्य | S9: =EmpDetail!D4 -> राउमावि चौगाई | T9: =EmpDetail!F4 -> 00:00:00 | U9: =EmpDetail!J4 -> L-16 | V9: =EmpDetail!K4 -> 95900 | W9: =IF(AND(J9=""),"",ROUND(ROUND(J9*3%,0),-2)) -> 1900
B10: =IF(C10="","",B9+1) ->  | C10: =IF(ISNA(VLOOKUP($A10,$P$9:$V$108,2,FALSE)),"",VLOOKUP($A10,$P$9:$V$108,2,FALSE)) ->  | D10: =IF(ISNA(VLOOKUP($A10,$P$9:$V$108,3,FALSE)),"",VLOOKUP($A10,$P$9:$V$108,3,FALSE)) ->  | E10: =IF(ISNA(VLOOKUP($A10,$P$9:$V$108,4,FALSE)),"",VLOOKUP($A10,$P$9:$V$108,4,FALSE)) ->  | F10: =IF(ISNA(VLOOKUP($A10,$P$9:$V$108,5,FALSE)),"",VLOOKUP($A10,$P$9:$V$108,5,FALSE)) ->  | I10: =IF(ISNA(VLOOKUP($A10,$P$9:$V$108,6,FALSE)),"",VLOOKUP($A10,$P$9:$V$108,6,FALSE)) ->  | J10: =IF(ISNA(VLOOKUP($A10,$P$9:$V$108,7,FALSE)),"",VLOOKUP($A10,$P$9:$V$108,7,FALSE)) ->  | K10: =IF(W10="","",W10) ->  | P10: 2 | Q10: =EmpDetail!B5 -> iwj.k pUn y{kdkj | R10: =EmpDetail!C5 -> व्याख्याता | S10: =EmpDetail!D5 -> राउमावि चौगाई | T10: =EmpDetail!F5 -> 00:00:00 | U10: =EmpDetail!J5 -> L-12 | V10: =EmpDetail!K5 -> 56100 | W10: =IF(AND(J10=""),"",ROUND(ROUND(J10*3%,0),-2)) -> 
B11: =IF(C11="","",B10+1) ->  | P11: 3 | Q11: =EmpDetail!B6 -> jktsUnz dqekj tSu | R11: =EmpDetail!C6 -> व्याख्याता | S11: =EmpDetail!D6 -> राउमावि चौगाई | T11: =EmpDetail!F6 -> 00:00:00 | U11: =EmpDetail!J6 -> L-12 | V11: =EmpDetail!K6 -> 63100
P12: 4 | Q12: =EmpDetail!B7 -> fd'ku yky cSjok | R12: =EmpDetail!C7 -> व्याख्याता | S12: =EmpDetail!D7 -> राउमावि चौगाई | T12: =EmpDetail!F7 -> 00:00:00 | U12: =EmpDetail!J7 -> L-12 | V12: =EmpDetail!K7 -> 54500
P13: 5 | Q13: =EmpDetail!B8 -> lR;ukjk;.k 'kekZ | R13: =EmpDetail!C8 -> वरिष्ठ अध्यापक | S13: =EmpDetail!D8 -> राउमावि चौगाई | T13: =EmpDetail!F8 -> 00:00:00 | U13: =EmpDetail!J8 -> L-13 | V13: =EmpDetail!K8 -> 71300
P14: 6 | Q14: =EmpDetail!B9 -> iq"ik tSu | R14: =EmpDetail!C9 -> वरिष्ठ अध्यापक | S14: =EmpDetail!D9 -> राउमावि चौगाई | T14: =EmpDetail!F9 -> 00:00:00 | U14: =EmpDetail!J9 -> L-13 | V14: =EmpDetail!K9 -> 73400
P15: 7 | Q15: =EmpDetail!B10 -> vk'kkjke eh.kk | R15: =EmpDetail!C10 -> वरिष्ठ अध्यापक | S15: =EmpDetail!D10 -> राउमावि चौगाई | T15: =EmpDetail!F10 -> 00:00:00 | U15: =EmpDetail!J10 -> L-11 | V15: =EmpDetail!K10 -> 52300
P16: 8 | Q16: =EmpDetail!B11 -> t;iky flag | R16: =EmpDetail!C11 -> वरिष्ठ अध्यापक | S16: =EmpDetail!D11 -> राउमावि चौगाई | T16: =EmpDetail!F11 -> 00:00:00 | U16: =EmpDetail!J11 -> L-12 | V16: =EmpDetail!K11 -> 63100
P17: 9 | Q17: =EmpDetail!B12 -> jkeizlkn jsxj | R17: =EmpDetail!C12 -> वरिष्ठ अध्यापक | S17: =EmpDetail!D12 -> राउमावि चौगाई | T17: =EmpDetail!F12 -> 00:00:00 | U17: =EmpDetail!J12 -> L-11 | V17: =EmpDetail!K12 -> 46500
P18: 10 | Q18: =EmpDetail!B13 -> egsUnz dqekj tkV | R18: =EmpDetail!C13 -> शारीरिक शिक्षक | S18: =EmpDetail!D13 -> राउमावि चौगाई | T18: =EmpDetail!F13 -> 00:00:00 | U18: =EmpDetail!J13 -> L-12 | V18: =EmpDetail!K13 -> 61300
M19: =Master!B2 -> प्रधानाचार्य | P19: 11 | Q19: =EmpDetail!B14 -> NksVw yky jsxj | R19: =EmpDetail!C14 -> अध्यापक ग्रेड III | S19: =EmpDetail!D14 -> राउमावि चौगाई | T19: =EmpDetail!F14 -> 00:00:00 | U19: =EmpDetail!J14 -> L-13 | V19: =EmpDetail!K14 -> 65200
M20: =Master!B3 -> राजकीय उच्च माध्यमिक विद्यालय | P20: 12 | Q20: =EmpDetail!B15 -> dUgS;k yky egkoj | R20: =EmpDetail!C15 -> अध्यापक ग्रेड III | S20: =EmpDetail!D15 -> राउमावि चौगाई | T20: =EmpDetail!F15 -> 00:00:00 | U20: =EmpDetail!J15 -> L-13 | V20: =EmpDetail!K15 -> 65200
M21: =Master!B4 -> चौगाई]टोंक | P21: 13 | Q21: =EmpDetail!B16 -> prqHkqZt tkV | R21: =EmpDetail!C16 -> अध्यापक ग्रेड III | S21: =EmpDetail!D16 -> राउमावि चौगाई | T21: =EmpDetail!F16 -> 2005-04-13 | U21: =EmpDetail!J16 -> L-11 | V21: =EmpDetail!K16 -> 52300
B22: Øekad& | C22: =Master!H3&Master!I3&Master!J3&Master!E3&"/" -> राउमावि/चौगाई/संस्था/2021-22/ | N22: fnukad& | O22: =TODAY() -> 2021-06-19 | P22: 14 | Q22: =EmpDetail!B17 -> vklsQk [kku | R22: =EmpDetail!C17 -> अध्यापक ग्रेड III | S22: =EmpDetail!D17 -> राउमावि चौगाई | T22: =EmpDetail!F17 -> 00:00:00 | U22: =EmpDetail!J17 -> L-11 | V22: =EmpDetail!K17 -> 52300
C23: izfrfyfi lwpukFkZ ,oa ikyukFkZ | P23: 15 | Q23: =EmpDetail!B18 -> lq'khyk cSjok | R23: =EmpDetail!C18 -> कनिष्ठ सहायक | S23: =EmpDetail!D18 -> राउमावि चौगाई | T23: =EmpDetail!F18 -> 00:00:00 | U23: =EmpDetail!J18 -> L-5 | V23: =EmpDetail!K18 -> 14600
B24: 1 | C24: dks"kkf/kdkjh@mi dks"kkf/kdkjh | D24: =Master!H4 -> पीपलू | P24: 16 | Q24: =EmpDetail!B19 -> txnh'k izlkn rsyh | R24: =EmpDetail!C19 -> सहायक कर्मचारी | S24: =EmpDetail!D19 -> राउमावि चौगाई | T24: =EmpDetail!F19 -> 00:00:00 | U24: =EmpDetail!J19 -> L-5 | V24: =EmpDetail!K19 -> 34700
B25: 2 | C25: ys[kk 'kk[kk LFkkuh; dk;kZy; | P25: 17 | Q25: =EmpDetail!B20 -> jfoUnz dqekj tSu | R25: =EmpDetail!C20 -> अध्यापक ग्रेड III | S25: =EmpDetail!D20 -> राउप्रावि मोहिनी | T25: =EmpDetail!F20 -> 00:00:00 | U25: =EmpDetail!J20 -> L-12 | V25: =EmpDetail!K20 -> 65200
B26: 3 | C26: dkfeZd O;fDrxr iaftdk | P26: 18 | Q26: =EmpDetail!B21 -> ';ke lqUnj ckxkSM | R26: =EmpDetail!C21 -> अध्यापक ग्रेड III | S26: =EmpDetail!D21 -> राउप्रावि मोहिनी | T26: =EmpDetail!F21 -> 00:00:00 | U26: =EmpDetail!J21 -> L-10 | V26: =EmpDetail!K21 -> 40300
B27: 4 | C27: lEcfU/kr dkfeZd | M27: =M19 -> प्रधानाचार्य | P27: 19 | Q27: =EmpDetail!B22 -> d`".kk 'kekZ | R27: =EmpDetail!C22 -> प्रबोधक | S27: =EmpDetail!D22 -> राउप्रावि मोहिनी | T27: =EmpDetail!F22 -> 00:00:00 | U27: =EmpDetail!J22 -> L-11 | V27: =EmpDetail!K22 -> 45100
M28: =M20 -> राजकीय उच्च माध्यमिक विद्यालय | P28: 20 | Q28: =EmpDetail!B23 -> /keZsUnz pkS/kjh | R28: =EmpDetail!C23 -> अध्यापक ग्रेड III | S28: =EmpDetail!D23 -> राउप्रावि गोरधनपुरा | T28: =EmpDetail!F23 -> 00:00:00 | U28: =EmpDetail!J23 -> L-10 | V28: =EmpDetail!K23 -> 40300
M29: =M21 -> चौगाई]टोंक | P29: 21 | Q29: =EmpDetail!B24 -> izgykn ekyh | R29: =EmpDetail!C24 -> प्रबोधक | S29: =EmpDetail!D24 -> राउप्रावि गोरधनपुरा | T29: =EmpDetail!F24 -> 00:00:00 | U29: =EmpDetail!J24 -> L-11 | V29: =EmpDetail!K24 -> 46500
P30: 22 | Q30: =EmpDetail!B25 -> jken;ky xqtZj | R30: =EmpDetail!C25 -> प्रबोधक | S30: =EmpDetail!D25 -> राउप्रावि सोंदीफल | T30: =EmpDetail!F25 -> 00:00:00 | U30: =EmpDetail!J25 -> L-11 | V30: =EmpDetail!K25 -> 45100
P31: 23 | Q31: =EmpDetail!B26 -> vkSeizdk'k tkV | R31: =EmpDetail!C26 -> अध्यापक ग्रेड III | S31: =EmpDetail!D26 -> राउप्रावि सोंदीफल | T31: =EmpDetail!F26 -> 00:00:00 | U31: =EmpDetail!J26 -> L-11 | V31: =EmpDetail!K26 -> 45100
P32: 24 | Q32: =EmpDetail!B27 -> vthr flag | R32: =EmpDetail!C27 -> अध्यापक ग्रेड III | S32: =EmpDetail!D27 -> राप्रावि जानकीवल्लभपुरा | T32: =EmpDetail!F27 -> 00:00:00 | U32: =EmpDetail!J27 -> L-10 | V32: =EmpDetail!K27 -> 40300
P33: 25 | Q33: =EmpDetail!B28 -> eq[rkj eha;k | R33: =EmpDetail!C28 -> प्रबोधक | S33: =EmpDetail!D28 -> राप्रावि जानकीवल्लभपुरा | T33: =EmpDetail!F28 -> 00:00:00 | U33: =EmpDetail!J28 -> L-11 | V33: =EmpDetail!K28 -> 45100
P34: 26 | Q34: =EmpDetail!B29 -> eks0 tehy | R34: =EmpDetail!C29 -> प्रबोधक | S34: =EmpDetail!D29 -> राप्रावि रसूलपुरा | T34: =EmpDetail!F29 -> 00:00:00 | U34: =EmpDetail!J29 -> L-11 | V34: =EmpDetail!K29 -> 45100
P35: 27 | Q35: =EmpDetail!B30 -> lkaojey tkV | R35: =EmpDetail!C30 -> अध्यापक ग्रेड III | S35: =EmpDetail!D30 -> राप्रावि रसूलपुरा | T35: =EmpDetail!F30 -> 00:00:00 | U35: =EmpDetail!J30 -> L-10 | V35: =EmpDetail!K30 -> 38000
P36: 28 | Q36: =EmpDetail!B31 -> pkS/kjh eksuk jkekorkj | R36: =EmpDetail!C31 -> अध्यापक ग्रेड III | S36: =EmpDetail!D31 -> राप्रावि मोहिनी ढाणी बाढ | T36: =EmpDetail!F31 -> 00:00:00 | U36: =EmpDetail!J31 -> L-10 | V36: =EmpDetail!K31 -> 38000
P37: 29 | Q37: =EmpDetail!B32 -> rkjkpUn tk;loky | R37: =EmpDetail!C32 -> प्रबोधक | S37: =EmpDetail!D32 -> राप्रावि मोहिनी ढाणी बाढ | T37: =EmpDetail!F32 -> 00:00:00 | U37: =EmpDetail!J32 -> L-11 | V37: =EmpDetail!K32 -> 41300
P38: 30 | Q38: =EmpDetail!B33 -> jketl ;kno | R38: =EmpDetail!C33 -> अध्यापक ग्रेड III | S38: =EmpDetail!D33 -> राप्रावि बैरवा ढाणी सोन्दीफल | T38: =EmpDetail!F33 -> 00:00:00 | U38: =EmpDetail!J33 -> L-12 | V38: =EmpDetail!K33 -> 63100
P39: 31 | Q39: =EmpDetail!B34 -> dtksMey eh.kk | R39: =EmpDetail!C34 -> अध्यापक ग्रेड III | S39: =EmpDetail!D34 -> राप्रावि बैरवा ढाणी सोन्दीफल | T39: =EmpDetail!F34 -> 00:00:00 | U39: =EmpDetail!J34 -> L-10 | V39: =EmpDetail!K34 -> 38000
P40: 32 | Q40: =EmpDetail!B35 -> /kaut; xkSRre | R40: =EmpDetail!C35 -> अध्यापक ग्रेड III | S40: =EmpDetail!D35 -> राउप्रावि गोरधनपुरा | T40: =EmpDetail!F35 -> 2018-04-03 | U40: =EmpDetail!J35 -> L-10 | V40: =EmpDetail!K35 -> 34800
P41: 33 | Q41: =EmpDetail!B36 -> d`".kk xaxoky | R41: =EmpDetail!C36 -> अध्यापक ग्रेड III | S41: =EmpDetail!D36 -> राउप्रावि गोरधनपुरा | T41: =EmpDetail!F36 -> 2018-12-21 | U41: =EmpDetail!J36 -> L-10 | V41: =EmpDetail!K36 -> 33800
P42: 34 | Q42: =EmpDetail!B37 -> n'kjFk dqekj ;kno | R42: =EmpDetail!C37 -> अध्यापक ग्रेड III | S42: =EmpDetail!D37 -> राउप्रावि सोंदीफल | T42: =EmpDetail!F37 -> 2018-09-29 | U42: =EmpDetail!J37 -> L-10 | V42: =EmpDetail!K37 -> 23700
P43: 35 | Q43: =EmpDetail!B38 -> d`".k yky tkV | R43: =EmpDetail!C38 -> अध्यापक ग्रेड III | S43: =EmpDetail!D38 -> राउप्रावि सोंदीफल | T43: =EmpDetail!F38 -> 2018-10-02 | U43: =EmpDetail!J38 -> L-10 | V43: =EmpDetail!K38 -> 33800
P44: 36 | Q44: =EmpDetail!B39 -> nhisUnz dqekj iztkir | R44: =EmpDetail!C39 -> अध्यापक ग्रेड III | S44: =EmpDetail!D39 -> राउप्रावि सोंदीफल | T44: =EmpDetail!F43 -> 2020-09-29 | U44: =EmpDetail!J39 -> L-10 | V44: =EmpDetail!K39 -> 33800
P45: 37 | Q45: =EmpDetail!B40 -> uohu dqekj | R45: =EmpDetail!C40 -> अध्यापक ग्रेड III | S45: =EmpDetail!D40 -> राउप्रावि मोहिनी | T45: =EmpDetail!F42 -> 2018-09-28 | U45: =EmpDetail!J40 -> L-10 | V45: =EmpDetail!K40 -> 33800
P46: 38 | Q46: =EmpDetail!B41 -> ehrs'k dqekj 'kekZ | R46: =EmpDetail!C41 -> अध्यापक ग्रेड III | S46: =EmpDetail!D41 -> राउप्रावि मोहिनी | T46: =EmpDetail!G40 -> 2020-12-21 | U46: =EmpDetail!J41 -> L-10 | V46: =EmpDetail!K41 -> 34800
P47: 39 | Q47: =EmpDetail!B42 -> eUtw eh.kk | R47: =EmpDetail!C42 -> वरिष्ठ अध्यापक | S47: =EmpDetail!D42 -> राउप्रावि गोरधनपुरा | T47: =EmpDetail!F39 -> 2018-12-28 | U47: =EmpDetail!J42 -> L-10 | V47: =EmpDetail!K42 -> 33800
P48: 40 | Q48: =EmpDetail!B43 -> eatw pkS/kjh | R48: =EmpDetail!C43 -> वरिष्ठ अध्यापक | S48: =EmpDetail!D43 -> राउप्रावि सोंदीफल | T48: =EmpDetail!F41 -> 2018-04-02 | U48: =EmpDetail!J43 -> L-11 | V48: =EmpDetail!K43 -> 26500
P49: 41 | Q49: =EmpDetail!B44 -> 0 | R49: =EmpDetail!C44 -> 0 | S49: =EmpDetail!D44 -> 0 | T49: =EmpDetail!F44 -> 00:00:00 | U49: =EmpDetail!J44 -> 0 | V49: =EmpDetail!K44 -> 0
P50: 42 | Q50: =EmpDetail!B45 -> 0 | R50: =EmpDetail!C45 -> 0 | S50: =EmpDetail!D45 -> 0 | T50: =EmpDetail!F45 -> 00:00:00 | U50: =EmpDetail!J45 -> 0 | V50: =EmpDetail!K45 -> 0
P51: 43 | Q51: =EmpDetail!B46 -> 0 | R51: =EmpDetail!#REF! ->  | S51: =EmpDetail!#REF! ->  | T51: =EmpDetail!F46 -> 00:00:00 | U51: =EmpDetail!J46 -> 0 | V51: =EmpDetail!K46 -> 0
P52: 44 | Q52: =EmpDetail!B47 -> 0 | R52: =EmpDetail!C47 -> 0 | S52: =EmpDetail!D47 -> 0 | T52: =EmpDetail!F47 -> 00:00:00 | U52: =EmpDetail!J47 -> 0 | V52: =EmpDetail!K47 -> 0
P53: 45 | Q53: =EmpDetail!B48 -> 0 | R53: =EmpDetail!C48 -> 0 | S53: =EmpDetail!D48 -> 0 | T53: =EmpDetail!F48 -> 00:00:00 | U53: =EmpDetail!J48 -> 0 | V53: =EmpDetail!K48 -> 0
P54: 46 | Q54: =EmpDetail!B49 -> 0 | R54: =EmpDetail!C49 -> 0 | S54: =EmpDetail!D49 -> 0 | T54: =EmpDetail!F49 -> 00:00:00 | U54: =EmpDetail!J49 -> 0 | V54: =EmpDetail!K49 -> 0
P55: 47 | Q55: =EmpDetail!B50 -> 0 | R55: =EmpDetail!C50 -> 0 | S55: =EmpDetail!D50 -> 0 | T55: =EmpDetail!F50 -> 00:00:00 | U55: =EmpDetail!J50 -> 0 | V55: =EmpDetail!K50 -> 0
P56: 48 | Q56: =EmpDetail!B51 -> 0 | R56: =EmpDetail!C51 -> 0 | S56: =EmpDetail!D51 -> 0 | T56: =EmpDetail!F51 -> 00:00:00 | U56: =EmpDetail!J51 -> 0 | V56: =EmpDetail!K51 -> 0
P57: 49 | Q57: =EmpDetail!B52 -> 0 | R57: =EmpDetail!C52 -> 0 | S57: =EmpDetail!D52 -> 0 | T57: =EmpDetail!F52 -> 00:00:00 | U57: =EmpDetail!J52 -> 0 | V57: =EmpDetail!K52 -> 0
P58: 50 | Q58: =EmpDetail!B53 -> 0 | R58: =EmpDetail!C53 -> 0 | S58: =EmpDetail!D53 -> 0 | T58: =EmpDetail!F53 -> 00:00:00 | U58: =EmpDetail!J53 -> 0 | V58: =EmpDetail!K53 -> 0
P59: 51 | Q59: =EmpDetail!B54 -> 0 | R59: =EmpDetail!C54 -> 0 | S59: =EmpDetail!D54 -> 0 | T59: =EmpDetail!F54 -> 00:00:00 | U59: =EmpDetail!J54 -> 0 | V59: =EmpDetail!K54 -> 0
P60: 52 | Q60: =EmpDetail!B55 -> 0 | R60: =EmpDetail!C55 -> 0 | S60: =EmpDetail!D55 -> 0 | T60: =EmpDetail!F55 -> 00:00:00 | U60: =EmpDetail!J55 -> 0 | V60: =EmpDetail!K55 -> 0
P61: 53 | Q61: =EmpDetail!B56 -> 0 | R61: =EmpDetail!C56 -> 0 | S61: =EmpDetail!D56 -> 0 | T61: =EmpDetail!F56 -> 00:00:00 | U61: =EmpDetail!J56 -> 0 | V61: =EmpDetail!K56 -> 0
P62: 54 | Q62: =EmpDetail!B57 -> 0 | R62: =EmpDetail!C57 -> 0 | S62: =EmpDetail!D57 -> 0 | T62: =EmpDetail!F57 -> 00:00:00 | U62: =EmpDetail!J57 -> 0 | V62: =EmpDetail!K57 -> 0
P63: 55 | Q63: =EmpDetail!B58 -> 0 | R63: =EmpDetail!C58 -> 0 | S63: =EmpDetail!D58 -> 0 | T63: =EmpDetail!F58 -> 00:00:00 | U63: =EmpDetail!J58 -> 0 | V63: =EmpDetail!K58 -> 0
P64: 56 | Q64: =EmpDetail!B59 -> 0 | R64: =EmpDetail!C59 -> 0 | S64: =EmpDetail!D59 -> 0 | T64: =EmpDetail!F59 -> 00:00:00 | U64: =EmpDetail!J59 -> 0 | V64: =EmpDetail!K59 -> 0
P65: 57 | Q65: =EmpDetail!B60 -> 0 | R65: =EmpDetail!C60 -> 0 | S65: =EmpDetail!D60 -> 0 | T65: =EmpDetail!F60 -> 00:00:00 | U65: =EmpDetail!J60 -> 0 | V65: =EmpDetail!K60 -> 0
P66: 58 | Q66: =EmpDetail!B61 -> 0 | R66: =EmpDetail!C61 -> 0 | S66: =EmpDetail!D61 -> 0 | T66: =EmpDetail!F61 -> 00:00:00 | U66: =EmpDetail!J61 -> 0 | V66: =EmpDetail!K61 -> 0
P67: 59 | Q67: =EmpDetail!B62 -> 0 | R67: =EmpDetail!C62 -> 0 | S67: =EmpDetail!D62 -> 0 | T67: =EmpDetail!F62 -> 00:00:00 | U67: =EmpDetail!J62 -> 0 | V67: =EmpDetail!K62 -> 0
P68: 60 | Q68: =EmpDetail!B63 -> 0 | R68: =EmpDetail!C63 -> 0 | S68: =EmpDetail!D63 -> 0 | T68: =EmpDetail!F63 -> 00:00:00 | U68: =EmpDetail!J63 -> 0 | V68: =EmpDetail!K63 -> 0
P69: 61 | Q69: =EmpDetail!B64 -> 0 | R69: =EmpDetail!C64 -> 0 | S69: =EmpDetail!D64 -> 0 | T69: =EmpDetail!F64 -> 00:00:00 | U69: =EmpDetail!J64 -> 0 | V69: =EmpDetail!K64 -> 0
P70: 62 | Q70: =EmpDetail!B65 -> 0 | R70: =EmpDetail!C65 -> 0 | S70: =EmpDetail!D65 -> 0 | T70: =EmpDetail!F65 -> 00:00:00 | U70: =EmpDetail!J65 -> 0 | V70: =EmpDetail!K65 -> 0
P71: 63 | Q71: =EmpDetail!B66 -> 0 | R71: =EmpDetail!C66 -> 0 | S71: =EmpDetail!D66 -> 0 | T71: =EmpDetail!F66 -> 00:00:00 | U71: =EmpDetail!J66 -> 0 | V71: =EmpDetail!K66 -> 0
P72: 64 | Q72: =EmpDetail!B67 -> 0 | R72: =EmpDetail!C67 -> 0 | S72: =EmpDetail!D67 -> 0 | T72: =EmpDetail!F67 -> 00:00:00 | U72: =EmpDetail!J67 -> 0 | V72: =EmpDetail!K67 -> 0
P73: 65 | Q73: =EmpDetail!B68 -> 0 | R73: =EmpDetail!C68 -> 0 | S73: =EmpDetail!D68 -> 0 | T73: =EmpDetail!F68 -> 00:00:00 | U73: =EmpDetail!J68 -> 0 | V73: =EmpDetail!K68 -> 0
P74: 66 | Q74: =EmpDetail!B69 -> 0 | R74: =EmpDetail!C69 -> 0 | S74: =EmpDetail!D69 -> 0 | T74: =EmpDetail!F69 -> 00:00:00 | U74: =EmpDetail!J69 -> 0 | V74: =EmpDetail!K69 -> 0
P75: 67 | Q75: =EmpDetail!B70 -> 0 | R75: =EmpDetail!C70 -> 0 | S75: =EmpDetail!D70 -> 0 | T75: =EmpDetail!F70 -> 00:00:00 | U75: =EmpDetail!J70 -> 0 | V75: =EmpDetail!K70 -> 0
P76: 68 | Q76: =EmpDetail!B71 -> 0 | R76: =EmpDetail!C71 -> 0 | S76: =EmpDetail!D71 -> 0 | T76: =EmpDetail!F71 -> 00:00:00 | U76: =EmpDetail!J71 -> 0 | V76: =EmpDetail!K71 -> 0
P77: 69 | Q77: =EmpDetail!B72 -> 0 | R77: =EmpDetail!C72 -> 0 | S77: =EmpDetail!D72 -> 0 | T77: =EmpDetail!F72 -> 00:00:00 | U77: =EmpDetail!J72 -> 0 | V77: =EmpDetail!K72 -> 0
P78: 70 | Q78: =EmpDetail!B73 -> 0 | R78: =EmpDetail!C73 -> 0 | S78: =EmpDetail!D73 -> 0 | T78: =EmpDetail!F73 -> 00:00:00 | U78: =EmpDetail!J73 -> 0 | V78: =EmpDetail!K73 -> 0
P79: 71 | Q79: =EmpDetail!B74 -> 0 | R79: =EmpDetail!C74 -> 0 | S79: =EmpDetail!D74 -> 0 | T79: =EmpDetail!F74 -> 00:00:00 | U79: =EmpDetail!J74 -> 0 | V79: =EmpDetail!K74 -> 0
P80: 72 | Q80: =EmpDetail!B75 -> 0 | R80: =EmpDetail!C75 -> 0 | S80: =EmpDetail!D75 -> 0 | T80: =EmpDetail!F75 -> 00:00:00 | U80: =EmpDetail!J75 -> 0 | V80: =EmpDetail!K75 -> 0
P81: 73 | Q81: =EmpDetail!B76 -> 0 | R81: =EmpDetail!C76 -> 0 | S81: =EmpDetail!D76 -> 0 | T81: =EmpDetail!F76 -> 00:00:00 | U81: =EmpDetail!J76 -> 0 | V81: =EmpDetail!K76 -> 0
P82: 74 | Q82: =EmpDetail!B77 -> 0 | R82: =EmpDetail!C77 -> 0 | S82: =EmpDetail!D77 -> 0 | T82: =EmpDetail!F77 -> 00:00:00 | U82: =EmpDetail!J77 -> 0 | V82: =EmpDetail!K77 -> 0
P83: 75 | Q83: =EmpDetail!B78 -> 0 | R83: =EmpDetail!C78 -> 0 | S83: =EmpDetail!D78 -> 0 | T83: =EmpDetail!F78 -> 00:00:00 | U83: =EmpDetail!J78 -> 0 | V83: =EmpDetail!K78 -> 0
P84: 76 | Q84: =EmpDetail!B79 -> 0 | R84: =EmpDetail!C79 -> 0 | S84: =EmpDetail!D79 -> 0 | T84: =EmpDetail!F79 -> 00:00:00 | U84: =EmpDetail!J79 -> 0 | V84: =EmpDetail!K79 -> 0
P85: 77 | Q85: =EmpDetail!B80 -> 0 | R85: =EmpDetail!C80 -> 0 | S85: =EmpDetail!D80 -> 0 | T85: =EmpDetail!F80 -> 00:00:00 | U85: =EmpDetail!J80 -> 0 | V85: =EmpDetail!K80 -> 0
P86: 78 | Q86: =EmpDetail!B81 -> 0 | R86: =EmpDetail!C81 -> 0 | S86: =EmpDetail!D81 -> 0 | T86: =EmpDetail!F81 -> 00:00:00 | U86: =EmpDetail!J81 -> 0 | V86: =EmpDetail!K81 -> 0
P87: 79 | Q87: =EmpDetail!B82 -> 0 | R87: =EmpDetail!C82 -> 0 | S87: =EmpDetail!D82 -> 0 | T87: =EmpDetail!F82 -> 00:00:00 | U87: =EmpDetail!J82 -> 0 | V87: =EmpDetail!K82 -> 0
P88: 80 | Q88: =EmpDetail!B83 -> 0 | R88: =EmpDetail!C83 -> 0 | S88: =EmpDetail!D83 -> 0 | T88: =EmpDetail!F83 -> 00:00:00 | U88: =EmpDetail!J83 -> 0 | V88: =EmpDetail!K83 -> 0
P89: 81 | Q89: =EmpDetail!B84 -> 0 | R89: =EmpDetail!C84 -> 0 | S89: =EmpDetail!D84 -> 0 | T89: =EmpDetail!F84 -> 00:00:00 | U89: =EmpDetail!J84 -> 0 | V89: =EmpDetail!K84 -> 0
P90: 82 | Q90: =EmpDetail!B85 -> 0 | R90: =EmpDetail!C85 -> 0 | S90: =EmpDetail!D85 -> 0 | T90: =EmpDetail!F85 -> 00:00:00 | U90: =EmpDetail!J85 -> 0 | V90: =EmpDetail!K85 -> 0
P91: 83 | Q91: =EmpDetail!B86 -> 0 | R91: =EmpDetail!C86 -> 0 | S91: =EmpDetail!D86 -> 0 | T91: =EmpDetail!F86 -> 00:00:00 | U91: =EmpDetail!J86 -> 0 | V91: =EmpDetail!K86 -> 0
P92: 84 | Q92: =EmpDetail!B87 -> 0 | R92: =EmpDetail!C87 -> 0 | S92: =EmpDetail!D87 -> 0 | T92: =EmpDetail!F87 -> 00:00:00 | U92: =EmpDetail!J87 -> 0 | V92: =EmpDetail!K87 -> 0
P93: 85 | Q93: =EmpDetail!B88 -> 0 | R93: =EmpDetail!C88 -> 0 | S93: =EmpDetail!D88 -> 0 | T93: =EmpDetail!F88 -> 00:00:00 | U93: =EmpDetail!J88 -> 0 | V93: =EmpDetail!K88 -> 0
P94: 86 | Q94: =EmpDetail!B89 -> 0 | R94: =EmpDetail!C89 -> 0 | S94: =EmpDetail!D89 -> 0 | T94: =EmpDetail!F89 -> 00:00:00 | U94: =EmpDetail!J89 -> 0 | V94: =EmpDetail!K89 -> 0
P95: 87 | Q95: =EmpDetail!B90 -> 0 | R95: =EmpDetail!C90 -> 0 | S95: =EmpDetail!D90 -> 0 | T95: =EmpDetail!F90 -> 00:00:00 | U95: =EmpDetail!J90 -> 0 | V95: =EmpDetail!K90 -> 0
P96: 88 | Q96: =EmpDetail!B91 -> 0 | R96: =EmpDetail!C91 -> 0 | S96: =EmpDetail!D91 -> 0 | T96: =EmpDetail!F91 -> 00:00:00 | U96: =EmpDetail!J91 -> 0 | V96: =EmpDetail!K91 -> 0
P97: 89 | Q97: =EmpDetail!B92 -> 0 | R97: =EmpDetail!C92 -> 0 | S97: =EmpDetail!D92 -> 0 | T97: =EmpDetail!F92 -> 00:00:00 | U97: =EmpDetail!J92 -> 0 | V97: =EmpDetail!K92 -> 0
P98: 90 | Q98: =EmpDetail!B93 -> 0 | R98: =EmpDetail!C93 -> 0 | S98: =EmpDetail!D93 -> 0 | T98: =EmpDetail!F93 -> 00:00:00 | U98: =EmpDetail!J93 -> 0 | V98: =EmpDetail!K93 -> 0
P99: 91 | Q99: =EmpDetail!B94 -> 0 | R99: =EmpDetail!C94 -> 0 | S99: =EmpDetail!D94 -> 0 | T99: =EmpDetail!F94 -> 00:00:00 | U99: =EmpDetail!J94 -> 0 | V99: =EmpDetail!K94 -> 0
P100: 92 | Q100: =EmpDetail!B95 -> 0 | R100: =EmpDetail!C95 -> 0 | S100: =EmpDetail!D95 -> 0 | T100: =EmpDetail!F95 -> 00:00:00 | U100: =EmpDetail!J95 -> 0 | V100: =EmpDetail!K95 -> 0
P101: 93 | Q101: =EmpDetail!B96 -> 0 | R101: =EmpDetail!C96 -> 0 | S101: =EmpDetail!D96 -> 0 | T101: =EmpDetail!F96 -> 00:00:00 | U101: =EmpDetail!J96 -> 0 | V101: =EmpDetail!K96 -> 0
P102: 94 | Q102: =EmpDetail!B97 -> 0 | R102: =EmpDetail!C97 -> 0 | S102: =EmpDetail!D97 -> 0 | T102: =EmpDetail!F97 -> 00:00:00 | U102: =EmpDetail!J97 -> 0 | V102: =EmpDetail!K97 -> 0
P103: 95 | Q103: =EmpDetail!B98 -> 0 | R103: =EmpDetail!C98 -> 0 | S103: =EmpDetail!D98 -> 0 | T103: =EmpDetail!F98 -> 00:00:00 | U103: =EmpDetail!J98 -> 0 | V103: =EmpDetail!K98 -> 0
P104: 96 | Q104: =EmpDetail!B99 -> 0 | R104: =EmpDetail!C99 -> 0 | S104: =EmpDetail!D99 -> 0 | T104: =EmpDetail!F99 -> 00:00:00 | U104: =EmpDetail!J99 -> 0 | V104: =EmpDetail!K99 -> 0
P105: 97 | Q105: =EmpDetail!B100 -> 0 | R105: =EmpDetail!C100 -> 0 | S105: =EmpDetail!D100 -> 0 | T105: =EmpDetail!F100 -> 00:00:00 | U105: =EmpDetail!J100 -> 0 | V105: =EmpDetail!K100 -> 0
P106: 98 | Q106: =EmpDetail!B101 -> 0 | R106: =EmpDetail!C101 -> 0 | S106: =EmpDetail!D101 -> 0 | T106: =EmpDetail!F101 -> 00:00:00 | U106: =EmpDetail!J101 -> 0 | V106: =EmpDetail!K101 -> 0
P107: 99 | Q107: =EmpDetail!B102 -> 0 | R107: =EmpDetail!C102 -> 0 | S107: =EmpDetail!D102 -> 0 | T107: =EmpDetail!F102 -> 00:00:00 | U107: =EmpDetail!J102 -> 0 | V107: =EmpDetail!K102 -> 0
P108: 100 | Q108: =EmpDetail!B103 -> 0 | R108: =EmpDetail!C103 -> 0 | S108: =EmpDetail!D103 -> 0 | T108: =EmpDetail!F103 -> 00:00:00 | U108: =EmpDetail!J103 -> 0 | V108: =EmpDetail!K103 -> 0

Sheet Pay Fixation (hidden)
B1: =Master!G2&Master!H2 -> कार्यालय&राजकीय उच्च माध्यमिक विद्यालय ]चौगाई]टोंक | X1: निदेशक माध्यमिक शिक्षा राजस्थान] बीकानेर के आदेश क्रमांक
F2: dk;kZy; vkns'k | X2: उप निदेशक माध्यमिक शिक्षा अजमेर] वृत अजमेर के आदेश क्रमांक
X3: जिला शिक्षा अधिकारी माध्यमिक शिक्षा टोंक के आदेश क्रमांक
C4: श्रीमान जिला शिक्षा अधिकारी मुख्यालय प्रा शि टोंक के आदेश क्रमांक | F4: ftf'kv@izkf'k@Vksad@laLFkk&2@2020&21@47 | L4: fnukad& | M4: 2021-02-15 | X4: जिला शिक्षा अधिकारी प्रारम्भिक शिक्षा टोंक के आदेश क्रमांक
B5: ds vuqlj.k esa fuEufyf[kr dkfeZdksa ds }kjk 2 o"kZ dh ifjfo{kkdky vof/k larks"kizn :i ls iw.kZ fd;s tkus ij jktLFkku lsok fu;e 1951 ds fu;e 24 o 26 ,oa jktLFkku flfoy lsok,a ¼iqujhf{kr osrueku½ fu;e | X5: श्रीमान जिला शिक्षा अधिकारी मुख्यालय प्रा शि टोंक के आदेश क्रमांक
B6: 2017 ds fu;e 05 ¼VI &VII½ ,oa vuqlwfp 1 esa vafdr izko/kkukuqlkj dkWye 11 esa vafdr fnukad ls osru fu;fefrdj.k dj fu;ekuqlkj vU; HkRrs vkgj.k djus dh Lohd`fr iznku dh tkrh gSA budh vkxkeh osru o`f} fnukad dkWye la[;k 15 esa vafdrkuqlkj jgsxh A
A7: dkfeZd Øe | B7: Ø-la- | C7: uke dfeZd | D7: in uke | E7: inLFkkiu LFkku | F7: is&ysoy | G7: ifjfo{kkdky esa fu;r ekuns; | H7: izFke fu;qfä fnukad | I7: ifjfo{kkdky iw.kZ djus dk fnukad | J7: osru fu;fefr dj.k fnukad | K7: osru fu;fefr dj.k ij is ysoy | L7: osru fu;fefr dj.k ij osru | M7: vkxkeh osru o`f) frfFk | N7: fo0fo0
B8: 1 | C8: 2 | D8: 3 | E8: 4 | F8: 5 | G8: 6 | H8: 7 | I8: 9 | J8: 11 | K8: 13 | L8: 14 | M8: 15 | N8: 14
A9: 34 | B9: =IF(C9="","",V9) -> 1 | C9: =IF(ISNA(VLOOKUP($A9,$O$9:$U$108,2,FALSE)),"",VLOOKUP($A9,$O$9:$U$108,2,FALSE)) -> n'kjFk dqekj ;kno | D9: =IF(ISNA(VLOOKUP($A9,$O$9:$U$108,3,FALSE)),"",VLOOKUP($A9,$O$9:$U$108,3,FALSE)) -> अध्यापक ग्रेड III | E9: =IF(ISNA(VLOOKUP($A9,$O$9:$U$108,4,FALSE)),"",VLOOKUP($A9,$O$9:$U$108,4,FALSE)) -> राउप्रावि सोंदीफल | F9: =IF(ISNA(VLOOKUP($A9,$O$9:$U$108,5,FALSE)),"",VLOOKUP($A9,$O$9:$U$108,5,FALSE)) -> L-10 | G9: =IF(ISNA(VLOOKUP($A9,$O$9:$U$108,6,FALSE)),"",VLOOKUP($A9,$O$9:$U$108,6,FALSE)) -> 23700 | H9: =IF(ISNA(VLOOKUP($A9,$O$9:$U$108,7,FALSE)),"",VLOOKUP($A9,$O$9:$U$108,7,FALSE)) -> 2018-09-29 | I9: 2020-04-03 | J9: 2020-04-03 | K9: L-10 | L9: 33800 | M9: 2020-07-01 | O9: 1 | P9: =EmpDetail!B4 -> fd'ku yky cSjok | Q9: =EmpDetail!C4 -> प्रधानाचार्य | R9: =EmpDetail!D4 -> राउमावि चौगाई | S9: =EmpDetail!J4 -> L-16 | T9: =EmpDetail!K4 -> 95900 | U9: =EmpDetail!F4 -> 00:00:00 | V9: =W9 -> 1 | W9: =IF(C9="",0,1) -> 1
B10: =IF(C10="","",V10) ->  | C10: =IF(ISNA(VLOOKUP($A10,$O$9:$U$108,2,FALSE)),"",VLOOKUP($A10,$O$9:$U$108,2,FALSE)) ->  | D10: =IF(ISNA(VLOOKUP($A10,$O$9:$U$108,3,FALSE)),"",VLOOKUP($A10,$O$9:$U$108,3,FALSE)) ->  | E10: =IF(ISNA(VLOOKUP($A10,$O$9:$U$108,4,FALSE)),"",VLOOKUP($A10,$O$9:$U$108,4,FALSE)) ->  | F10: =IF(ISNA(VLOOKUP($A10,$O$9:$U$108,5,FALSE)),"",VLOOKUP($A10,$O$9:$U$108,5,FALSE)) ->  | G10: =IF(ISNA(VLOOKUP($A10,$O$9:$U$108,6,FALSE)),"",VLOOKUP($A10,$O$9:$U$108,6,FALSE)) ->  | H10: =IF(ISNA(VLOOKUP($A10,$O$9:$U$108,7,FALSE)),"",VLOOKUP($A10,$O$9:$U$108,7,FALSE)) ->  | K10: L-10 | L10: 34800 | M10: 2021-07-01 | O10: 2 | P10: =EmpDetail!B5 -> iwj.k pUn y{kdkj | Q10: =EmpDetail!C5 -> व्याख्याता | R10: =EmpDetail!D5 -> राउमावि चौगाई | S10: =EmpDetail!J5 -> L-12 | T10: =EmpDetail!K5 -> 56100 | U10: =EmpDetail!F5 -> 00:00:00 | V10: =V9+W10 -> 1 | W10: =IF(C10="",0,1) -> 0
A11: 35 | B11: 2 | C11: d`".k yky tkV | D11: अध्यापक ग्रेड III | E11: राउप्रावि सोंदीफल | F11: L-10 | G11: 33800 | H11: 2018-10-02 | I11: 2020-12-21 | J11: 2020-12-21 | K11: L-10 | L11: 33800 | M11: 2021-07-01 | O11: 3 | P11: =EmpDetail!B6 -> jktsUnz dqekj tSu | Q11: =EmpDetail!C6 -> व्याख्याता | R11: =EmpDetail!D6 -> राउमावि चौगाई | S11: =EmpDetail!J6 -> L-12 | T11: =EmpDetail!K6 -> 63100 | U11: =EmpDetail!F6 -> 00:00:00 | V11: =V10+W11 -> 2 | W11: 1
A12: 37 | B12: 3 | C12: uohu dqekj | D12: अध्यापक ग्रेड III | E12: राउप्रावि मोहिनी | F12: L-10 | G12: 33800 | H12: 2018-12-21 | I12: 2020-10-02 | J12: 2020-10-02 | K12: L-10 | L12: 33800 | M12: 2021-07-01 | O12: 4 | P12: =EmpDetail!B7 -> fd'ku yky cSjok | Q12: =EmpDetail!C7 -> व्याख्याता | R12: =EmpDetail!D7 -> राउमावि चौगाई | S12: =EmpDetail!J7 -> L-12 | T12: =EmpDetail!K7 -> 54500 | U12: =EmpDetail!F7 -> 00:00:00 | V12: 3 | W12: 1
A13: 38 | B13: 4 | C13: ehrs'k dqekj 'kekZ | D13: अध्यापक ग्रेड III | E13: राउप्रावि मोहिनी | F13: L-10 | G13: 34800 | H13: 2020-04-02 | I13: 2020-12-28 | J13: 2020-12-28 | K13: L-10 | L13: 33800 | M13: 2021-07-01 | O13: 5 | P13: =EmpDetail!B8 -> lR;ukjk;.k 'kekZ | Q13: =EmpDetail!C8 -> वरिष्ठ अध्यापक | R13: =EmpDetail!D8 -> राउमावि चौगाई | S13: =EmpDetail!J8 -> L-13 | T13: =EmpDetail!K8 -> 71300 | U13: =EmpDetail!F8 -> 00:00:00 | V13: 4 | W13: 1
A14: 39 | B14: 5 | C14: eUtw eh.kk | D14: वरिष्ठ अध्यापक | E14: राउप्रावि गोरधनपुरा | F14: L-10 | G14: 33800 | H14: 2018-09-28 | I14: 2020-12-21 | J14: 2020-12-21 | K14: L-10 | L14: 33800 | M14: 2021-07-01 | O14: 6 | P14: =EmpDetail!B9 -> iq"ik tSu | Q14: =EmpDetail!C9 -> वरिष्ठ अध्यापक | R14: =EmpDetail!D9 -> राउमावि चौगाई | S14: =EmpDetail!J9 -> L-13 | T14: =EmpDetail!K9 -> 73400 | U14: =EmpDetail!F9 -> 00:00:00 | V14: 5 | W14: 1
A15: 40 | B15: 6 | C15: eatw pkS/kjh | D15: वरिष्ठ अध्यापक | E15: राउप्रावि सोंदीफल | F15: L-11 | G15: 26500 | H15: 2020-09-29 | I15: 2020-04-02 | J15: 2020-04-02 | K15: L-10 | L15: 33800 | M15: 2020-07-01 | O15: 7 | P15: =EmpDetail!B10 -> vk'kkjke eh.kk | Q15: =EmpDetail!C10 -> वरिष्ठ अध्यापक | R15: =EmpDetail!D10 -> राउमावि चौगाई | S15: =EmpDetail!J10 -> L-11 | T15: =EmpDetail!K10 -> 52300 | U15: =EmpDetail!F10 -> 00:00:00 | V15: 6 | W15: 1
K16: L-10 | L16: 34800 | M16: 2021-07-01 | O16: 8 | P16: =EmpDetail!B11 -> t;iky flag | Q16: =EmpDetail!C11 -> वरिष्ठ अध्यापक | R16: =EmpDetail!D11 -> राउमावि चौगाई | S16: =EmpDetail!J11 -> L-12 | T16: =EmpDetail!K11 -> 63100 | U16: =EmpDetail!F11 -> 00:00:00 | V16: 6 | W16: 0
O17: 9 | P17: =EmpDetail!B12 -> jkeizlkn jsxj | Q17: =EmpDetail!C12 -> वरिष्ठ अध्यापक | R17: =EmpDetail!D12 -> राउमावि चौगाई | S17: =EmpDetail!J12 -> L-11 | T17: =EmpDetail!K12 -> 46500 | U17: =EmpDetail!F12 -> 00:00:00 | V17: 6 | W17: 0
O18: 10 | P18: =EmpDetail!B13 -> egsUnz dqekj tkV | Q18: =EmpDetail!C13 -> शारीरिक शिक्षक | R18: =EmpDetail!D13 -> राउमावि चौगाई | S18: =EmpDetail!J13 -> L-12 | T18: =EmpDetail!K13 -> 61300 | U18: =EmpDetail!F13 -> 00:00:00
L19: =Master!B2 -> प्रधानाचार्य | O19: 11 | P19: =EmpDetail!B14 -> NksVw yky jsxj | Q19: =EmpDetail!C14 -> अध्यापक ग्रेड III | R19: =EmpDetail!D14 -> राउमावि चौगाई | S19: =EmpDetail!J14 -> L-13 | T19: =EmpDetail!K14 -> 65200 | U19: =EmpDetail!F14 -> 00:00:00
L20: =Master!B3 -> राजकीय उच्च माध्यमिक विद्यालय | O20: 12 | P20: =EmpDetail!B15 -> dUgS;k yky egkoj | Q20: =EmpDetail!C15 -> अध्यापक ग्रेड III | R20: =EmpDetail!D15 -> राउमावि चौगाई | S20: =EmpDetail!J15 -> L-13 | T20: =EmpDetail!K15 -> 65200 | U20: =EmpDetail!F15 -> 00:00:00
L21: =Master!B4 -> चौगाई]टोंक | O21: 13 | P21: =EmpDetail!B16 -> prqHkqZt tkV | Q21: =EmpDetail!C16 -> अध्यापक ग्रेड III | R21: =EmpDetail!D16 -> राउमावि चौगाई | S21: =EmpDetail!J16 -> L-11 | T21: =EmpDetail!K16 -> 52300 | U21: =EmpDetail!F16 -> 2005-04-13
B22: Øekad& | C22: =Master!H3&Master!I3&Master!J3&Master!E3&"/" -> राउमावि/चौगाई/संस्था/2021-22/ | M22: fnukad& | N22: =TODAY() -> 2021-06-19 | O22: 14 | P22: =EmpDetail!B17 -> vklsQk [kku | Q22: =EmpDetail!C17 -> अध्यापक ग्रेड III | R22: =EmpDetail!D17 -> राउमावि चौगाई | S22: =EmpDetail!J17 -> L-11 | T22: =EmpDetail!K17 -> 52300 | U22: =EmpDetail!F17 -> 00:00:00
C23: izfrfyfi lwpukFkZ ,oa ikyukFkZ | O23: 15 | P23: =EmpDetail!B18 -> lq'khyk cSjok | Q23: =EmpDetail!C18 -> कनिष्ठ सहायक | R23: =EmpDetail!D18 -> राउमावि चौगाई | S23: =EmpDetail!J18 -> L-5 | T23: =EmpDetail!K18 -> 14600 | U23: =EmpDetail!F18 -> 00:00:00
B24: 1 | C24: dks"kkf/kdkjh@mi dks"kkf/kdkjh | D24: =Master!H4 -> पीपलू | O24: 16 | P24: =EmpDetail!B19 -> txnh'k izlkn rsyh | Q24: =EmpDetail!C19 -> सहायक कर्मचारी | R24: =EmpDetail!D19 -> राउमावि चौगाई | S24: =EmpDetail!J19 -> L-5 | T24: =EmpDetail!K19 -> 34700 | U24: =EmpDetail!F19 -> 00:00:00
B25: 2 | C25: ys[kk 'kk[kk LFkkuh; dk;kZy; | O25: 17 | P25: =EmpDetail!B20 -> jfoUnz dqekj tSu | Q25: =EmpDetail!C20 -> अध्यापक ग्रेड III | R25: =EmpDetail!D20 -> राउप्रावि मोहिनी | S25: =EmpDetail!J20 -> L-12 | T25: =EmpDetail!K20 -> 65200 | U25: =EmpDetail!F20 -> 00:00:00
B26: 3 | C26: dkfeZd O;fDrxr iaftdk | O26: 18 | P26: =EmpDetail!B21 -> ';ke lqUnj ckxkSM | Q26: =EmpDetail!C21 -> अध्यापक ग्रेड III | R26: =EmpDetail!D21 -> राउप्रावि मोहिनी | S26: =EmpDetail!J21 -> L-10 | T26: =EmpDetail!K21 -> 40300 | U26: =EmpDetail!F21 -> 00:00:00
B27: 4 | C27: lEcfU/kr dkfeZd | L27: =L19 -> प्रधानाचार्य | O27: 19 | P27: =EmpDetail!B22 -> d`".kk 'kekZ | Q27: =EmpDetail!C22 -> प्रबोधक | R27: =EmpDetail!D22 -> राउप्रावि मोहिनी | S27: =EmpDetail!J22 -> L-11 | T27: =EmpDetail!K22 -> 45100 | U27: =EmpDetail!F22 -> 00:00:00
L28: =L20 -> राजकीय उच्च माध्यमिक विद्यालय | O28: 20 | P28: =EmpDetail!B23 -> /keZsUnz pkS/kjh | Q28: =EmpDetail!C23 -> अध्यापक ग्रेड III | R28: =EmpDetail!D23 -> राउप्रावि गोरधनपुरा | S28: =EmpDetail!J23 -> L-10 | T28: =EmpDetail!K23 -> 40300 | U28: =EmpDetail!F23 -> 00:00:00
L29: =L21 -> चौगाई]टोंक | O29: 21 | P29: =EmpDetail!B24 -> izgykn ekyh | Q29: =EmpDetail!C24 -> प्रबोधक | R29: =EmpDetail!D24 -> राउप्रावि गोरधनपुरा | S29: =EmpDetail!J24 -> L-11 | T29: =EmpDetail!K24 -> 46500 | U29: =EmpDetail!F24 -> 00:00:00
O30: 22 | P30: =EmpDetail!B25 -> jken;ky xqtZj | Q30: =EmpDetail!C25 -> प्रबोधक | R30: =EmpDetail!D25 -> राउप्रावि सोंदीफल | S30: =EmpDetail!J25 -> L-11 | T30: =EmpDetail!K25 -> 45100 | U30: =EmpDetail!F25 -> 00:00:00
O31: 23 | P31: =EmpDetail!B26 -> vkSeizdk'k tkV | Q31: =EmpDetail!C26 -> अध्यापक ग्रेड III | R31: =EmpDetail!D26 -> राउप्रावि सोंदीफल | S31: =EmpDetail!J26 -> L-11 | T31: =EmpDetail!K26 -> 45100 | U31: =EmpDetail!F26 -> 00:00:00
O32: 24 | P32: =EmpDetail!B27 -> vthr flag | Q32: =EmpDetail!C27 -> अध्यापक ग्रेड III | R32: =EmpDetail!D27 -> राप्रावि जानकीवल्लभपुरा | S32: =EmpDetail!J27 -> L-10 | T32: =EmpDetail!K27 -> 40300 | U32: =EmpDetail!F27 -> 00:00:00
O33: 25 | P33: =EmpDetail!B28 -> eq[rkj eha;k | Q33: =EmpDetail!C28 -> प्रबोधक | R33: =EmpDetail!D28 -> राप्रावि जानकीवल्लभपुरा | S33: =EmpDetail!J28 -> L-11 | T33: =EmpDetail!K28 -> 45100 | U33: =EmpDetail!F28 -> 00:00:00
O34: 26 | P34: =EmpDetail!B29 -> eks0 tehy | Q34: =EmpDetail!C29 -> प्रबोधक | R34: =EmpDetail!D29 -> राप्रावि रसूलपुरा | S34: =EmpDetail!J29 -> L-11 | T34: =EmpDetail!K29 -> 45100 | U34: =EmpDetail!F29 -> 00:00:00
O35: 27 | P35: =EmpDetail!B30 -> lkaojey tkV | Q35: =EmpDetail!C30 -> अध्यापक ग्रेड III | R35: =EmpDetail!D30 -> राप्रावि रसूलपुरा | S35: =EmpDetail!J30 -> L-10 | T35: =EmpDetail!K30 -> 38000 | U35: =EmpDetail!F30 -> 00:00:00
O36: 28 | P36: =EmpDetail!B31 -> pkS/kjh eksuk jkekorkj | Q36: =EmpDetail!C31 -> अध्यापक ग्रेड III | R36: =EmpDetail!D31 -> राप्रावि मोहिनी ढाणी बाढ | S36: =EmpDetail!J31 -> L-10 | T36: =EmpDetail!K31 -> 38000 | U36: =EmpDetail!F31 -> 00:00:00
O37: 29 | P37: =EmpDetail!B32 -> rkjkpUn tk;loky | Q37: =EmpDetail!C32 -> प्रबोधक | R37: =EmpDetail!D32 -> राप्रावि मोहिनी ढाणी बाढ | S37: =EmpDetail!J32 -> L-11 | T37: =EmpDetail!K32 -> 41300 | U37: =EmpDetail!F32 -> 00:00:00
O38: 30 | P38: =EmpDetail!B33 -> jketl ;kno | Q38: =EmpDetail!C33 -> अध्यापक ग्रेड III | R38: =EmpDetail!D33 -> राप्रावि बैरवा ढाणी सोन्दीफल | S38: =EmpDetail!J33 -> L-12 | T38: =EmpDetail!K33 -> 63100 | U38: =EmpDetail!F33 -> 00:00:00
O39: 31 | P39: =EmpDetail!B34 -> dtksMey eh.kk | Q39: =EmpDetail!C34 -> अध्यापक ग्रेड III | R39: =EmpDetail!D34 -> राप्रावि बैरवा ढाणी सोन्दीफल | S39: =EmpDetail!J34 -> L-10 | T39: =EmpDetail!K34 -> 38000 | U39: =EmpDetail!F34 -> 00:00:00
O40: 32 | P40: =EmpDetail!B35 -> /kaut; xkSRre | Q40: =EmpDetail!C35 -> अध्यापक ग्रेड III | R40: =EmpDetail!D35 -> राउप्रावि गोरधनपुरा | S40: =EmpDetail!J35 -> L-10 | T40: =EmpDetail!K35 -> 34800 | U40: =EmpDetail!F35 -> 2018-04-03
O41: 33 | P41: =EmpDetail!B36 -> d`".kk xaxoky | Q41: =EmpDetail!C36 -> अध्यापक ग्रेड III | R41: =EmpDetail!D36 -> राउप्रावि गोरधनपुरा | S41: =EmpDetail!J36 -> L-10 | T41: =EmpDetail!K36 -> 33800 | U41: =EmpDetail!F36 -> 2018-12-21
O42: 34 | P42: =EmpDetail!B37 -> n'kjFk dqekj ;kno | Q42: =EmpDetail!C37 -> अध्यापक ग्रेड III | R42: =EmpDetail!D37 -> राउप्रावि सोंदीफल | S42: =EmpDetail!J37 -> L-10 | T42: =EmpDetail!K37 -> 23700 | U42: =EmpDetail!F37 -> 2018-09-29
O43: 35 | P43: =EmpDetail!B38 -> d`".k yky tkV | Q43: =EmpDetail!C38 -> अध्यापक ग्रेड III | R43: =EmpDetail!D38 -> राउप्रावि सोंदीफल | S43: =EmpDetail!J38 -> L-10 | T43: =EmpDetail!K38 -> 33800 | U43: =EmpDetail!F38 -> 2018-10-02
O44: 36 | P44: =EmpDetail!B39 -> nhisUnz dqekj iztkir | Q44: =EmpDetail!C39 -> अध्यापक ग्रेड III | R44: =EmpDetail!D39 -> राउप्रावि सोंदीफल | S44: =EmpDetail!J39 -> L-10 | T44: =EmpDetail!K39 -> 33800 | U44: =EmpDetail!F39 -> 2018-12-28
O45: 37 | P45: =EmpDetail!B40 -> uohu dqekj | Q45: =EmpDetail!C40 -> अध्यापक ग्रेड III | R45: =EmpDetail!D40 -> राउप्रावि मोहिनी | S45: =EmpDetail!J40 -> L-10 | T45: =EmpDetail!K40 -> 33800 | U45: =EmpDetail!F40 -> 2018-12-21
O46: 38 | P46: =EmpDetail!B41 -> ehrs'k dqekj 'kekZ | Q46: =EmpDetail!C41 -> अध्यापक ग्रेड III | R46: =EmpDetail!D41 -> राउप्रावि मोहिनी | S46: =EmpDetail!J41 -> L-10 | T46: =EmpDetail!K41 -> 34800 | U46: =EmpDetail!G41 -> 2020-04-02
O47: 39 | P47: =EmpDetail!B42 -> eUtw eh.kk | Q47: =EmpDetail!C42 -> वरिष्ठ अध्यापक | R47: =EmpDetail!D42 -> राउप्रावि गोरधनपुरा | S47: =EmpDetail!J42 -> L-10 | T47: =EmpDetail!K42 -> 33800 | U47: =EmpDetail!F42 -> 2018-09-28
O48: 40 | P48: =EmpDetail!B43 -> eatw pkS/kjh | Q48: =EmpDetail!C43 -> वरिष्ठ अध्यापक | R48: =EmpDetail!D43 -> राउप्रावि सोंदीफल | S48: =EmpDetail!J43 -> L-11 | T48: =EmpDetail!K43 -> 26500 | U48: =EmpDetail!F43 -> 2020-09-29
O49: 41 | P49: =EmpDetail!B44 -> 0 | Q49: =EmpDetail!C44 -> 0 | R49: =EmpDetail!D44 -> 0 | S49: =EmpDetail!J44 -> 0 | T49: =EmpDetail!K44 -> 0 | U49: =EmpDetail!F44 -> 00:00:00
O50: 42 | P50: =EmpDetail!B45 -> 0 | Q50: =EmpDetail!C45 -> 0 | R50: =EmpDetail!D45 -> 0 | S50: =EmpDetail!J45 -> 0 | T50: =EmpDetail!K45 -> 0 | U50: =EmpDetail!F45 -> 00:00:00
O51: 43 | P51: =EmpDetail!B46 -> 0 | Q51: =EmpDetail!C46 -> 0 | R51: =EmpDetail!D46 -> 0 | S51: =EmpDetail!J46 -> 0 | T51: =EmpDetail!K46 -> 0 | U51: =EmpDetail!F46 -> 00:00:00
O52: 44 | P52: =EmpDetail!B47 -> 0 | Q52: =EmpDetail!C47 -> 0 | R52: =EmpDetail!D47 -> 0 | S52: =EmpDetail!J47 -> 0 | T52: =EmpDetail!K47 -> 0 | U52: =EmpDetail!F47 -> 00:00:00
O53: 45 | P53: =EmpDetail!B48 -> 0 | Q53: =EmpDetail!C48 -> 0 | R53: =EmpDetail!D48 -> 0 | S53: =EmpDetail!J48 -> 0 | T53: =EmpDetail!K48 -> 0 | U53: =EmpDetail!F48 -> 00:00:00
O54: 46 | P54: =EmpDetail!B49 -> 0 | Q54: =EmpDetail!C49 -> 0 | R54: =EmpDetail!D49 -> 0 | S54: =EmpDetail!J49 -> 0 | T54: =EmpDetail!K49 -> 0 | U54: =EmpDetail!F49 -> 00:00:00
O55: 47 | P55: =EmpDetail!B50 -> 0 | Q55: =EmpDetail!C50 -> 0 | R55: =EmpDetail!D50 -> 0 | S55: =EmpDetail!J50 -> 0 | T55: =EmpDetail!K50 -> 0 | U55: =EmpDetail!F50 -> 00:00:00
O56: 48 | P56: =EmpDetail!B51 -> 0 | Q56: =EmpDetail!C51 -> 0 | R56: =EmpDetail!D51 -> 0 | S56: =EmpDetail!J51 -> 0 | T56: =EmpDetail!K51 -> 0 | U56: =EmpDetail!F51 -> 00:00:00
O57: 49 | P57: =EmpDetail!B52 -> 0 | Q57: =EmpDetail!C52 -> 0 | R57: =EmpDetail!D52 -> 0 | S57: =EmpDetail!J52 -> 0 | T57: =EmpDetail!K52 -> 0 | U57: =EmpDetail!F52 -> 00:00:00
O58: 50 | P58: =EmpDetail!B53 -> 0 | Q58: =EmpDetail!C53 -> 0 | R58: =EmpDetail!D53 -> 0 | S58: =EmpDetail!J53 -> 0 | T58: =EmpDetail!K53 -> 0 | U58: =EmpDetail!F53 -> 00:00:00
O59: 51 | P59: =EmpDetail!B54 -> 0 | Q59: =EmpDetail!C54 -> 0 | R59: =EmpDetail!D54 -> 0 | S59: =EmpDetail!J54 -> 0 | T59: =EmpDetail!K54 -> 0 | U59: =EmpDetail!F54 -> 00:00:00
O60: 52 | P60: =EmpDetail!B55 -> 0 | Q60: =EmpDetail!C55 -> 0 | R60: =EmpDetail!D55 -> 0 | S60: =EmpDetail!J55 -> 0 | T60: =EmpDetail!K55 -> 0 | U60: =EmpDetail!F55 -> 00:00:00
O61: 53 | P61: =EmpDetail!B56 -> 0 | Q61: =EmpDetail!C56 -> 0 | R61: =EmpDetail!D56 -> 0 | S61: =EmpDetail!J56 -> 0 | T61: =EmpDetail!K56 -> 0 | U61: =EmpDetail!F56 -> 00:00:00
O62: 54 | P62: =EmpDetail!B57 -> 0 | Q62: =EmpDetail!C57 -> 0 | R62: =EmpDetail!D57 -> 0 | S62: =EmpDetail!J57 -> 0 | T62: =EmpDetail!K57 -> 0 | U62: =EmpDetail!F57 -> 00:00:00
O63: 55 | P63: =EmpDetail!B58 -> 0 | Q63: =EmpDetail!C58 -> 0 | R63: =EmpDetail!D58 -> 0 | S63: =EmpDetail!J58 -> 0 | T63: =EmpDetail!K58 -> 0 | U63: =EmpDetail!F58 -> 00:00:00
O64: 56 | P64: =EmpDetail!B59 -> 0 | Q64: =EmpDetail!C59 -> 0 | R64: =EmpDetail!D59 -> 0 | S64: =EmpDetail!J59 -> 0 | T64: =EmpDetail!K59 -> 0 | U64: =EmpDetail!F59 -> 00:00:00
O65: 57 | P65: =EmpDetail!B60 -> 0 | Q65: =EmpDetail!C60 -> 0 | R65: =EmpDetail!D60 -> 0 | S65: =EmpDetail!J60 -> 0 | T65: =EmpDetail!K60 -> 0 | U65: =EmpDetail!F60 -> 00:00:00
O66: 58 | P66: =EmpDetail!B61 -> 0 | Q66: =EmpDetail!C61 -> 0 | R66: =EmpDetail!D61 -> 0 | S66: =EmpDetail!J61 -> 0 | T66: =EmpDetail!K61 -> 0 | U66: =EmpDetail!F61 -> 00:00:00
O67: 59 | P67: =EmpDetail!B62 -> 0 | Q67: =EmpDetail!C62 -> 0 | R67: =EmpDetail!D62 -> 0 | S67: =EmpDetail!J62 -> 0 | T67: =EmpDetail!K62 -> 0 | U67: =EmpDetail!F62 -> 00:00:00
O68: 60 | P68: =EmpDetail!B63 -> 0 | Q68: =EmpDetail!C63 -> 0 | R68: =EmpDetail!D63 -> 0 | S68: =EmpDetail!J63 -> 0 | T68: =EmpDetail!K63 -> 0 | U68: =EmpDetail!F63 -> 00:00:00
O69: 61 | P69: =EmpDetail!B64 -> 0 | Q69: =EmpDetail!C64 -> 0 | R69: =EmpDetail!D64 -> 0 | S69: =EmpDetail!J64 -> 0 | T69: =EmpDetail!K64 -> 0 | U69: =EmpDetail!F64 -> 00:00:00
O70: 62 | P70: =EmpDetail!B65 -> 0 | Q70: =EmpDetail!C65 -> 0 | R70: =EmpDetail!D65 -> 0 | S70: =EmpDetail!J65 -> 0 | T70: =EmpDetail!K65 -> 0 | U70: =EmpDetail!F65 -> 00:00:00
O71: 63 | P71: =EmpDetail!B66 -> 0 | Q71: =EmpDetail!C66 -> 0 | R71: =EmpDetail!D66 -> 0 | S71: =EmpDetail!J66 -> 0 | T71: =EmpDetail!K66 -> 0 | U71: =EmpDetail!F66 -> 00:00:00
O72: 64 | P72: =EmpDetail!B67 -> 0 | Q72: =EmpDetail!C67 -> 0 | R72: =EmpDetail!D67 -> 0 | S72: =EmpDetail!J67 -> 0 | T72: =EmpDetail!K67 -> 0 | U72: =EmpDetail!F67 -> 00:00:00
O73: 65 | P73: =EmpDetail!B68 -> 0 | Q73: =EmpDetail!C68 -> 0 | R73: =EmpDetail!D68 -> 0 | S73: =EmpDetail!J68 -> 0 | T73: =EmpDetail!K68 -> 0 | U73: =EmpDetail!F68 -> 00:00:00
O74: 66 | P74: =EmpDetail!B69 -> 0 | Q74: =EmpDetail!C69 -> 0 | R74: =EmpDetail!D69 -> 0 | S74: =EmpDetail!J69 -> 0 | T74: =EmpDetail!K69 -> 0 | U74: =EmpDetail!F69 -> 00:00:00
O75: 67 | P75: =EmpDetail!B70 -> 0 | Q75: =EmpDetail!C70 -> 0 | R75: =EmpDetail!D70 -> 0 | S75: =EmpDetail!J70 -> 0 | T75: =EmpDetail!K70 -> 0 | U75: =EmpDetail!F70 -> 00:00:00
O76: 68 | P76: =EmpDetail!B71 -> 0 | Q76: =EmpDetail!C71 -> 0 | R76: =EmpDetail!D71 -> 0 | S76: =EmpDetail!J71 -> 0 | T76: =EmpDetail!K71 -> 0 | U76: =EmpDetail!F71 -> 00:00:00
O77: 69 | P77: =EmpDetail!B72 -> 0 | Q77: =EmpDetail!C72 -> 0 | R77: =EmpDetail!D72 -> 0 | S77: =EmpDetail!J72 -> 0 | T77: =EmpDetail!K72 -> 0 | U77: =EmpDetail!F72 -> 00:00:00
O78: 70 | P78: =EmpDetail!B73 -> 0 | Q78: =EmpDetail!C73 -> 0 | R78: =EmpDetail!D73 -> 0 | S78: =EmpDetail!J73 -> 0 | T78: =EmpDetail!K73 -> 0 | U78: =EmpDetail!F73 -> 00:00:00
O79: 71 | P79: =EmpDetail!B74 -> 0 | Q79: =EmpDetail!C74 -> 0 | R79: =EmpDetail!D74 -> 0 | S79: =EmpDetail!J74 -> 0 | T79: =EmpDetail!K74 -> 0 | U79: =EmpDetail!F74 -> 00:00:00
O80: 72 | P80: =EmpDetail!B75 -> 0 | Q80: =EmpDetail!C75 -> 0 | R80: =EmpDetail!D75 -> 0 | S80: =EmpDetail!J75 -> 0 | T80: =EmpDetail!K75 -> 0 | U80: =EmpDetail!F75 -> 00:00:00
O81: 73 | P81: =EmpDetail!B76 -> 0 | Q81: =EmpDetail!C76 -> 0 | R81: =EmpDetail!D76 -> 0 | S81: =EmpDetail!J76 -> 0 | T81: =EmpDetail!K76 -> 0 | U81: =EmpDetail!F76 -> 00:00:00
O82: 74 | P82: =EmpDetail!B77 -> 0 | Q82: =EmpDetail!C77 -> 0 | R82: =EmpDetail!D77 -> 0 | S82: =EmpDetail!J77 -> 0 | T82: =EmpDetail!K77 -> 0 | U82: =EmpDetail!F77 -> 00:00:00
O83: 75 | P83: =EmpDetail!B78 -> 0 | Q83: =EmpDetail!C78 -> 0 | R83: =EmpDetail!D78 -> 0 | S83: =EmpDetail!J78 -> 0 | T83: =EmpDetail!K78 -> 0 | U83: =EmpDetail!F78 -> 00:00:00
O84: 76 | P84: =EmpDetail!B79 -> 0 | Q84: =EmpDetail!C79 -> 0 | R84: =EmpDetail!D79 -> 0 | S84: =EmpDetail!J79 -> 0 | T84: =EmpDetail!K79 -> 0 | U84: =EmpDetail!F79 -> 00:00:00
O85: 77 | P85: =EmpDetail!B80 -> 0 | Q85: =EmpDetail!C80 -> 0 | R85: =EmpDetail!D80 -> 0 | S85: =EmpDetail!J80 -> 0 | T85: =EmpDetail!K80 -> 0 | U85: =EmpDetail!F80 -> 00:00:00
O86: 78 | P86: =EmpDetail!B81 -> 0 | Q86: =EmpDetail!C81 -> 0 | R86: =EmpDetail!D81 -> 0 | S86: =EmpDetail!J81 -> 0 | T86: =EmpDetail!K81 -> 0 | U86: =EmpDetail!F81 -> 00:00:00
O87: 79 | P87: =EmpDetail!B82 -> 0 | Q87: =EmpDetail!C82 -> 0 | R87: =EmpDetail!D82 -> 0 | S87: =EmpDetail!J82 -> 0 | T87: =EmpDetail!K82 -> 0 | U87: =EmpDetail!F82 -> 00:00:00
O88: 80 | P88: =EmpDetail!B83 -> 0 | Q88: =EmpDetail!C83 -> 0 | R88: =EmpDetail!D83 -> 0 | S88: =EmpDetail!J83 -> 0 | T88: =EmpDetail!K83 -> 0 | U88: =EmpDetail!F83 -> 00:00:00
O89: 81 | P89: =EmpDetail!B84 -> 0 | Q89: =EmpDetail!C84 -> 0 | R89: =EmpDetail!D84 -> 0 | S89: =EmpDetail!J84 -> 0 | T89: =EmpDetail!K84 -> 0 | U89: =EmpDetail!F84 -> 00:00:00
O90: 82 | P90: =EmpDetail!B85 -> 0 | Q90: =EmpDetail!C85 -> 0 | R90: =EmpDetail!D85 -> 0 | S90: =EmpDetail!J85 -> 0 | T90: =EmpDetail!K85 -> 0 | U90: =EmpDetail!F85 -> 00:00:00
O91: 83 | P91: =EmpDetail!B86 -> 0 | Q91: =EmpDetail!C86 -> 0 | R91: =EmpDetail!D86 -> 0 | S91: =EmpDetail!J86 -> 0 | T91: =EmpDetail!K86 -> 0 | U91: =EmpDetail!F86 -> 00:00:00
O92: 84 | P92: =EmpDetail!B87 -> 0 | Q92: =EmpDetail!C87 -> 0 | R92: =EmpDetail!D87 -> 0 | S92: =EmpDetail!J87 -> 0 | T92: =EmpDetail!K87 -> 0 | U92: =EmpDetail!F87 -> 00:00:00
O93: 85 | P93: =EmpDetail!B88 -> 0 | Q93: =EmpDetail!C88 -> 0 | R93: =EmpDetail!D88 -> 0 | S93: =EmpDetail!J88 -> 0 | T93: =EmpDetail!K88 -> 0 | U93: =EmpDetail!F88 -> 00:00:00
O94: 86 | P94: =EmpDetail!B89 -> 0 | Q94: =EmpDetail!C89 -> 0 | R94: =EmpDetail!D89 -> 0 | S94: =EmpDetail!J89 -> 0 | T94: =EmpDetail!K89 -> 0 | U94: =EmpDetail!F89 -> 00:00:00
O95: 87 | P95: =EmpDetail!B90 -> 0 | Q95: =EmpDetail!C90 -> 0 | R95: =EmpDetail!D90 -> 0 | S95: =EmpDetail!J90 -> 0 | T95: =EmpDetail!K90 -> 0 | U95: =EmpDetail!F90 -> 00:00:00
O96: 88 | P96: =EmpDetail!B91 -> 0 | Q96: =EmpDetail!C91 -> 0 | R96: =EmpDetail!D91 -> 0 | S96: =EmpDetail!J91 -> 0 | T96: =EmpDetail!K91 -> 0 | U96: =EmpDetail!F91 -> 00:00:00
O97: 89 | P97: =EmpDetail!B92 -> 0 | Q97: =EmpDetail!C92 -> 0 | R97: =EmpDetail!D92 -> 0 | S97: =EmpDetail!J92 -> 0 | T97: =EmpDetail!K92 -> 0 | U97: =EmpDetail!F92 -> 00:00:00
O98: 90 | P98: =EmpDetail!B93 -> 0 | Q98: =EmpDetail!C93 -> 0 | R98: =EmpDetail!D93 -> 0 | S98: =EmpDetail!J93 -> 0 | T98: =EmpDetail!K93 -> 0 | U98: =EmpDetail!F93 -> 00:00:00
O99: 91 | P99: =EmpDetail!B94 -> 0 | Q99: =EmpDetail!C94 -> 0 | R99: =EmpDetail!D94 -> 0 | S99: =EmpDetail!J94 -> 0 | T99: =EmpDetail!K94 -> 0 | U99: =EmpDetail!F94 -> 00:00:00
O100: 92 | P100: =EmpDetail!B95 -> 0 | Q100: =EmpDetail!C95 -> 0 | R100: =EmpDetail!D95 -> 0 | S100: =EmpDetail!J95 -> 0 | T100: =EmpDetail!K95 -> 0 | U100: =EmpDetail!F95 -> 00:00:00
O101: 93 | P101: =EmpDetail!B96 -> 0 | Q101: =EmpDetail!C96 -> 0 | R101: =EmpDetail!D96 -> 0 | S101: =EmpDetail!J96 -> 0 | T101: =EmpDetail!K96 -> 0 | U101: =EmpDetail!F96 -> 00:00:00
O102: 94 | P102: =EmpDetail!B97 -> 0 | Q102: =EmpDetail!C97 -> 0 | R102: =EmpDetail!D97 -> 0 | S102: =EmpDetail!J97 -> 0 | T102: =EmpDetail!K97 -> 0 | U102: =EmpDetail!F97 -> 00:00:00
O103: 95 | P103: =EmpDetail!B98 -> 0 | Q103: =EmpDetail!C98 -> 0 | R103: =EmpDetail!D98 -> 0 | S103: =EmpDetail!J98 -> 0 | T103: =EmpDetail!K98 -> 0 | U103: =EmpDetail!F98 -> 00:00:00
O104: 96 | P104: =EmpDetail!B99 -> 0 | Q104: =EmpDetail!C99 -> 0 | R104: =EmpDetail!D99 -> 0 | S104: =EmpDetail!J99 -> 0 | T104: =EmpDetail!K99 -> 0 | U104: =EmpDetail!F99 -> 00:00:00
O105: 97 | P105: =EmpDetail!B100 -> 0 | Q105: =EmpDetail!C100 -> 0 | R105: =EmpDetail!D100 -> 0 | S105: =EmpDetail!J100 -> 0 | T105: =EmpDetail!K100 -> 0 | U105: =EmpDetail!F100 -> 00:00:00
O106: 98 | P106: =EmpDetail!B101 -> 0 | Q106: =EmpDetail!C101 -> 0 | R106: =EmpDetail!D101 -> 0 | S106: =EmpDetail!J101 -> 0 | T106: =EmpDetail!K101 -> 0 | U106: =EmpDetail!F101 -> 00:00:00
O107: 99 | P107: =EmpDetail!B102 -> 0 | Q107: =EmpDetail!C102 -> 0 | R107: =EmpDetail!D102 -> 0 | S107: =EmpDetail!J102 -> 0 | T107: =EmpDetail!K102 -> 0 | U107: =EmpDetail!F102 -> 00:00:00
O108: 100 | P108: =EmpDetail!B103 -> 0 | Q108: =EmpDetail!C103 -> 0 | R108: =EmpDetail!D103 -> 0 | S108: =EmpDetail!J103 -> 0 | T108: =EmpDetail!K103 -> 0 | U108: =EmpDetail!F103 -> 00:00:00

Sheet DPC Pay (hidden)
B1: =Master!G2&Master!H2 -> कार्यालय&राजकीय उच्च माध्यमिक विद्यालय ]चौगाई]टोंक | Y1: निदेशक माध्यमिक शिक्षा राजस्थान] बीकानेर के आदेश क्रमांक
I2: dk;kZy; vkns'k | Y2: उप निदेशक माध्यमिक शिक्षा अजमेर] वृत अजमेर के आदेश क्रमांक
Y3: जिला शिक्षा अधिकारी माध्यमिक शिक्षा टोंक के आदेश क्रमांक
E4: निदेशक माध्यमिक शिक्षा राजस्थान] बीकानेर के आदेश क्रमांक | F4: f'kfojk@ek@laLFkk@lh&5@Mhihlh@Hkwxks vU;@2020&21@Hkwxksy@1&412 | L4: fnukad& | M4: 2021-02-02 | N4: dh vuqikyuk esa | Y4: जिला शिक्षा अधिकारी प्रारम्भिक शिक्षा टोंक के आदेश क्रमांक
B5: fuEukafdr dkfeZdksa dks inksUur fd;k x;k gSA vkns'kksa dh vuqikyuk esa dk;Zxzg.kksijkUr] foÙk foHkkx dh foKfIr la- ,Q-1¼4½,QMh¼:Yl½@2017&A t;iqj fnukad 30 vDVwcj]2017 ds vuqlj.k esa jktLFkku lsok fu;eksa ds | Y5: मुख्य जिला शिक्षा अधिकारी मुख्यालय टोंक के आदेश क्रमांक
B6: fu;e 26 , ¼A½ ds vuqlj.k esa budk osru buds uke ds lEeq[k vafdr fooj.kkuqlkj fu/kkZj.k dj] osru vkgj.k dh Lohd`fr iznku dh tkrh gSA budh vkxkeh osru o`f) fnukad dkWye la[;k 15 esa vafdrkuqlkj jgsxhA | Y6: eq
A7: dkfeZd Øe | B7: Ø-la- | C7: uke dfeZd | D7: in uke | E7: inLFkkiu LFkku | F7: inksUufr iwoZ dk in | G7: Mhihlh in dk fo"k; | H7: Mhihlh o"kZ | I7: dkYifud osru fu/kkZj.k frfFk | J7: inksUufr ij dk;Z xzg.k fnukad | K7: orZeku osru dk ysoy | L7: inksUufr ij ns; ysoy | M7: orZeku in dk osru | N7: orZeku osru ij ,d osru o`f) | O7: inksUufr ij fu/kkZfjr osru | P7: vkxkeh osru o`f) frfFk | Q7: fo0fo0
B8: 1 | C8: 2 | D8: 3 | E8: 4 | F8: 5 | G8: 6 | H8: 7 | I8: 8 | J8: 9 | K8: 10 | L8: 11 | M8: 12 | N8: 13 | O8: 14 | P8: 15 | Q8: 16
A9: 7 | B9: =IF(C9="","",1) -> 1 | C9: =IF(ISNA(VLOOKUP($A9,$R$9:$W$108,2,FALSE)),"",VLOOKUP($A9,$R$9:$W$108,2,FALSE)) -> vk'kkjke eh.kk | D9: =IF(ISNA(VLOOKUP($A9,$R$9:$W$108,3,FALSE)),"",VLOOKUP($A9,$R$9:$W$108,3,FALSE)) -> वरिष्ठ अध्यापक | E9: =IF(ISNA(VLOOKUP($A9,$R$9:$W$108,4,FALSE)),"",VLOOKUP($A9,$R$9:$W$108,4,FALSE)) -> राउमावि चौगाई | F9: वरिष्ठ अध्यापक | G9: भूगोल | H9: 2020-21 | I9: 2020-04-01 | J9: 2021-02-03 | K9: =IF(ISNA(VLOOKUP($A9,$R$9:$W$108,5,FALSE)),"",VLOOKUP($A9,$R$9:$W$108,5,FALSE)) -> L-11 | L9: L-12 | M9: =IF(ISNA(VLOOKUP($A9,$R$9:$W$108,6,FALSE)),"",VLOOKUP($A9,$R$9:$W$108,6,FALSE)) -> 52300 | N9: =IF(AND(M9=""),"",ROUND(ROUND(M9*3%,0),-2)) -> 1600 | O9: 45600 | P9: 2020-07-01 | Q9: dkYifud | R9: 1 | S9: =EmpDetail!B4 -> fd'ku yky cSjok | T9: =EmpDetail!C4 -> प्रधानाचार्य | U9: =EmpDetail!D4 -> राउमावि चौगाई | V9: =EmpDetail!J4 -> L-16 | W9: =EmpDetail!K4 -> 95900
B10: =IF(C10="","",B9+1) ->  | C10: =IF(ISNA(VLOOKUP($A10,$R$9:$W$108,2,FALSE)),"",VLOOKUP($A10,$R$9:$W$108,2,FALSE)) ->  | D10: =IF(ISNA(VLOOKUP($A10,$R$9:$W$108,3,FALSE)),"",VLOOKUP($A10,$R$9:$W$108,3,FALSE)) ->  | E10: =IF(ISNA(VLOOKUP($A10,$R$9:$W$108,4,FALSE)),"",VLOOKUP($A10,$R$9:$W$108,4,FALSE)) ->  | K10: =IF(ISNA(VLOOKUP($A10,$R$9:$W$108,5,FALSE)),"",VLOOKUP($A10,$R$9:$W$108,5,FALSE)) ->  | L10: L-12 | M10: =IF(ISNA(VLOOKUP($A10,$R$9:$W$108,6,FALSE)),"",VLOOKUP($A10,$R$9:$W$108,6,FALSE)) ->  | N10: =IF(AND(M10=""),"",ROUND(ROUND(M10*3%,0),-2)) ->  | O10: 47000 | P10: 2021-07-01 | Q10: dkYifud okoso`- | R10: 2 | S10: =EmpDetail!B5 -> iwj.k pUn y{kdkj | T10: =EmpDetail!C5 -> व्याख्याता | U10: =EmpDetail!D5 -> राउमावि चौगाई | V10: =EmpDetail!J5 -> L-12 | W10: =EmpDetail!K5 -> 56100
B11: =IF(C11="","",B10+1) ->  | R11: 3 | S11: =EmpDetail!B6 -> jktsUnz dqekj tSu | T11: =EmpDetail!C6 -> व्याख्याता | U11: =EmpDetail!D6 -> राउमावि चौगाई | V11: =EmpDetail!J6 -> L-12 | W11: =EmpDetail!K6 -> 63100
R12: 4 | S12: =EmpDetail!B7 -> fd'ku yky cSjok | T12: =EmpDetail!C7 -> व्याख्याता | U12: =EmpDetail!D7 -> राउमावि चौगाई | V12: =EmpDetail!J7 -> L-12 | W12: =EmpDetail!K7 -> 54500
R13: 5 | S13: =EmpDetail!B8 -> lR;ukjk;.k 'kekZ | T13: =EmpDetail!C8 -> वरिष्ठ अध्यापक | U13: =EmpDetail!D8 -> राउमावि चौगाई | V13: =EmpDetail!J8 -> L-13 | W13: =EmpDetail!K8 -> 71300
R14: 6 | S14: =EmpDetail!B9 -> iq"ik tSu | T14: =EmpDetail!C9 -> वरिष्ठ अध्यापक | U14: =EmpDetail!D9 -> राउमावि चौगाई | V14: =EmpDetail!J9 -> L-13 | W14: =EmpDetail!K9 -> 73400
R15: 7 | S15: =EmpDetail!B10 -> vk'kkjke eh.kk | T15: =EmpDetail!C10 -> वरिष्ठ अध्यापक | U15: =EmpDetail!D10 -> राउमावि चौगाई | V15: =EmpDetail!J10 -> L-11 | W15: =EmpDetail!K10 -> 52300
R16: 8 | S16: =EmpDetail!B11 -> t;iky flag | T16: =EmpDetail!C11 -> वरिष्ठ अध्यापक | U16: =EmpDetail!D11 -> राउमावि चौगाई | V16: =EmpDetail!J11 -> L-12 | W16: =EmpDetail!K11 -> 63100
R17: 9 | S17: =EmpDetail!B12 -> jkeizlkn jsxj | T17: =EmpDetail!C12 -> वरिष्ठ अध्यापक | U17: =EmpDetail!D12 -> राउमावि चौगाई | V17: =EmpDetail!J12 -> L-11 | W17: =EmpDetail!K12 -> 46500
C18: uksV& | D18: vkfFkZd ykHk inksUufr ij dk;Zxzg.k fnukad ls ns; gksxkA | R18: 10 | S18: =EmpDetail!B13 -> egsUnz dqekj tkV | T18: =EmpDetail!C13 -> शारीरिक शिक्षक | U18: =EmpDetail!D13 -> राउमावि चौगाई | V18: =EmpDetail!J13 -> L-12 | W18: =EmpDetail!K13 -> 61300
O19: =Master!B2 -> प्रधानाचार्य | R19: 11 | S19: =EmpDetail!B14 -> NksVw yky jsxj | T19: =EmpDetail!C14 -> अध्यापक ग्रेड III | U19: =EmpDetail!D14 -> राउमावि चौगाई | V19: =EmpDetail!J14 -> L-13 | W19: =EmpDetail!K14 -> 65200
O20: =Master!B3 -> राजकीय उच्च माध्यमिक विद्यालय | R20: 12 | S20: =EmpDetail!B15 -> dUgS;k yky egkoj | T20: =EmpDetail!C15 -> अध्यापक ग्रेड III | U20: =EmpDetail!D15 -> राउमावि चौगाई | V20: =EmpDetail!J15 -> L-13 | W20: =EmpDetail!K15 -> 65200
O21: =Master!B4 -> चौगाई]टोंक | R21: 13 | S21: =EmpDetail!B16 -> prqHkqZt tkV | T21: =EmpDetail!C16 -> अध्यापक ग्रेड III | U21: =EmpDetail!D16 -> राउमावि चौगाई | V21: =EmpDetail!J16 -> L-11 | W21: =EmpDetail!K16 -> 52300
B22: dzekad& | C22: =Master!H3&Master!I3&Master!J3&Master!E3&"/" -> राउमावि/चौगाई/संस्था/2021-22/ | P22: fnukad& | Q22: =TODAY() -> 2021-06-19 | R22: 14 | S22: =EmpDetail!B17 -> vklsQk [kku | T22: =EmpDetail!C17 -> अध्यापक ग्रेड III | U22: =EmpDetail!D17 -> राउमावि चौगाई | V22: =EmpDetail!J17 -> L-11 | W22: =EmpDetail!K17 -> 52300
C23: izfrfyfi lwpukFkZ ,oa ikyukFkZ | R23: 15 | S23: =EmpDetail!B18 -> lq'khyk cSjok | T23: =EmpDetail!C18 -> कनिष्ठ सहायक | U23: =EmpDetail!D18 -> राउमावि चौगाई | V23: =EmpDetail!J18 -> L-5 | W23: =EmpDetail!K18 -> 14600
B24: 1 | C24: dks"kkf/kdkjh@mi dks"kkf/kdkjh | D24: =Master!H4 -> पीपलू | R24: 16 | S24: =EmpDetail!B19 -> txnh'k izlkn rsyh | T24: =EmpDetail!C19 -> सहायक कर्मचारी | U24: =EmpDetail!D19 -> राउमावि चौगाई | V24: =EmpDetail!J19 -> L-5 | W24: =EmpDetail!K19 -> 34700
B25: 2 | C25: ys[kk 'kk[kk LFkkuh; dk;kZy; | R25: 17 | S25: =EmpDetail!B20 -> jfoUnz dqekj tSu | T25: =EmpDetail!C20 -> अध्यापक ग्रेड III | U25: =EmpDetail!D20 -> राउप्रावि मोहिनी | V25: =EmpDetail!J20 -> L-12 | W25: =EmpDetail!K20 -> 65200
B26: 3 | C26: dkfeZd O;fDrxr iaftdk | R26: 18 | S26: =EmpDetail!B21 -> ';ke lqUnj ckxkSM | T26: =EmpDetail!C21 -> अध्यापक ग्रेड III | U26: =EmpDetail!D21 -> राउप्रावि मोहिनी | V26: =EmpDetail!J21 -> L-10 | W26: =EmpDetail!K21 -> 40300
B27: 4 | C27: lEcfU/kr dkfeZd | O27: =Master!B2 -> प्रधानाचार्य | R27: 19 | S27: =EmpDetail!B22 -> d`".kk 'kekZ | T27: =EmpDetail!C22 -> प्रबोधक | U27: =EmpDetail!D22 -> राउप्रावि मोहिनी | V27: =EmpDetail!J22 -> L-11 | W27: =EmpDetail!K22 -> 45100
O28: =Master!B3 -> राजकीय उच्च माध्यमिक विद्यालय | R28: 20 | S28: =EmpDetail!B23 -> /keZsUnz pkS/kjh | T28: =EmpDetail!C23 -> अध्यापक ग्रेड III | U28: =EmpDetail!D23 -> राउप्रावि गोरधनपुरा | V28: =EmpDetail!J23 -> L-10 | W28: =EmpDetail!K23 -> 40300
O29: =Master!B4 -> चौगाई]टोंक | R29: 21 | S29: =EmpDetail!B24 -> izgykn ekyh | T29: =EmpDetail!C24 -> प्रबोधक | U29: =EmpDetail!D24 -> राउप्रावि गोरधनपुरा | V29: =EmpDetail!J24 -> L-11 | W29: =EmpDetail!K24 -> 46500
R30: 22 | S30: =EmpDetail!B25 -> jken;ky xqtZj | T30: =EmpDetail!C25 -> प्रबोधक | U30: =EmpDetail!D25 -> राउप्रावि सोंदीफल | V30: =EmpDetail!J25 -> L-11 | W30: =EmpDetail!K25 -> 45100
R31: 23 | S31: =EmpDetail!B26 -> vkSeizdk'k tkV | T31: =EmpDetail!C26 -> अध्यापक ग्रेड III | U31: =EmpDetail!D26 -> राउप्रावि सोंदीफल | V31: =EmpDetail!J26 -> L-11 | W31: =EmpDetail!K26 -> 45100
R32: 24 | S32: =EmpDetail!B27 -> vthr flag | T32: =EmpDetail!C27 -> अध्यापक ग्रेड III | U32: =EmpDetail!D27 -> राप्रावि जानकीवल्लभपुरा | V32: =EmpDetail!J27 -> L-10 | W32: =EmpDetail!K27 -> 40300
R33: 25 | S33: =EmpDetail!B28 -> eq[rkj eha;k | T33: =EmpDetail!C28 -> प्रबोधक | U33: =EmpDetail!D28 -> राप्रावि जानकीवल्लभपुरा | V33: =EmpDetail!J28 -> L-11 | W33: =EmpDetail!K28 -> 45100
R34: 26 | S34: =EmpDetail!B29 -> eks0 tehy | T34: =EmpDetail!C29 -> प्रबोधक | U34: =EmpDetail!D29 -> राप्रावि रसूलपुरा | V34: =EmpDetail!J29 -> L-11 | W34: =EmpDetail!K29 -> 45100
R35: 27 | S35: =EmpDetail!B30 -> lkaojey tkV | T35: =EmpDetail!C30 -> अध्यापक ग्रेड III | U35: =EmpDetail!D30 -> राप्रावि रसूलपुरा | V35: =EmpDetail!J30 -> L-10 | W35: =EmpDetail!K30 -> 38000
R36: 28 | S36: =EmpDetail!B31 -> pkS/kjh eksuk jkekorkj | T36: =EmpDetail!C31 -> अध्यापक ग्रेड III | U36: =EmpDetail!D31 -> राप्रावि मोहिनी ढाणी बाढ | V36: =EmpDetail!J31 -> L-10 | W36: =EmpDetail!K31 -> 38000
R37: 29 | S37: =EmpDetail!B32 -> rkjkpUn tk;loky | T37: =EmpDetail!C32 -> प्रबोधक | U37: =EmpDetail!D32 -> राप्रावि मोहिनी ढाणी बाढ | V37: =EmpDetail!J32 -> L-11 | W37: =EmpDetail!K32 -> 41300
R38: 30 | S38: =EmpDetail!B33 -> jketl ;kno | T38: =EmpDetail!C33 -> अध्यापक ग्रेड III | U38: =EmpDetail!D33 -> राप्रावि बैरवा ढाणी सोन्दीफल | V38: =EmpDetail!J33 -> L-12 | W38: =EmpDetail!K33 -> 63100
R39: 31 | S39: =EmpDetail!B34 -> dtksMey eh.kk | T39: =EmpDetail!C34 -> अध्यापक ग्रेड III | U39: =EmpDetail!D34 -> राप्रावि बैरवा ढाणी सोन्दीफल | V39: =EmpDetail!J34 -> L-10 | W39: =EmpDetail!K34 -> 38000
R40: 32 | S40: =EmpDetail!B35 -> /kaut; xkSRre | T40: =EmpDetail!C35 -> अध्यापक ग्रेड III | U40: =EmpDetail!D35 -> राउप्रावि गोरधनपुरा | V40: =EmpDetail!J35 -> L-10 | W40: =EmpDetail!K35 -> 34800
R41: 33 | S41: =EmpDetail!B36 -> d`".kk xaxoky | T41: =EmpDetail!C36 -> अध्यापक ग्रेड III | U41: =EmpDetail!D36 -> राउप्रावि गोरधनपुरा | V41: =EmpDetail!J36 -> L-10 | W41: =EmpDetail!K36 -> 33800
R42: 34 | S42: =EmpDetail!B37 -> n'kjFk dqekj ;kno | T42: =EmpDetail!C37 -> अध्यापक ग्रेड III | U42: =EmpDetail!D37 -> राउप्रावि सोंदीफल | V42: =EmpDetail!J37 -> L-10 | W42: =EmpDetail!K37 -> 23700
R43: 35 | S43: =EmpDetail!B38 -> d`".k yky tkV | T43: =EmpDetail!C38 -> अध्यापक ग्रेड III | U43: =EmpDetail!D38 -> राउप्रावि सोंदीफल | V43: =EmpDetail!J38 -> L-10 | W43: =EmpDetail!K38 -> 33800
R44: 36 | S44: =EmpDetail!B39 -> nhisUnz dqekj iztkir | T44: =EmpDetail!C39 -> अध्यापक ग्रेड III | U44: =EmpDetail!D39 -> राउप्रावि सोंदीफल | V44: =EmpDetail!J39 -> L-10 | W44: =EmpDetail!K39 -> 33800
R45: 37 | S45: =EmpDetail!B40 -> uohu dqekj | T45: =EmpDetail!C40 -> अध्यापक ग्रेड III | U45: =EmpDetail!D40 -> राउप्रावि मोहिनी | V45: =EmpDetail!J40 -> L-10 | W45: =EmpDetail!K40 -> 33800
R46: 38 | S46: =EmpDetail!B41 -> ehrs'k dqekj 'kekZ | T46: =EmpDetail!C41 -> अध्यापक ग्रेड III | U46: =EmpDetail!D41 -> राउप्रावि मोहिनी | V46: =EmpDetail!J41 -> L-10 | W46: =EmpDetail!K41 -> 34800
R47: 39 | S47: =EmpDetail!B42 -> eUtw eh.kk | T47: =EmpDetail!C42 -> वरिष्ठ अध्यापक | U47: =EmpDetail!D42 -> राउप्रावि गोरधनपुरा | V47: =EmpDetail!J42 -> L-10 | W47: =EmpDetail!K42 -> 33800
R48: 40 | S48: =EmpDetail!B43 -> eatw pkS/kjh | T48: =EmpDetail!C43 -> वरिष्ठ अध्यापक | U48: =EmpDetail!D43 -> राउप्रावि सोंदीफल | V48: =EmpDetail!J43 -> L-11 | W48: =EmpDetail!K43 -> 26500
R49: 41 | S49: =EmpDetail!B44 -> 0 | T49: =EmpDetail!C44 -> 0 | U49: =EmpDetail!D44 -> 0 | V49: =EmpDetail!J44 -> 0 | W49: =EmpDetail!K44 -> 0
R50: 42 | S50: =EmpDetail!B45 -> 0 | T50: =EmpDetail!C45 -> 0 | U50: =EmpDetail!D45 -> 0 | V50: =EmpDetail!J45 -> 0 | W50: =EmpDetail!K45 -> 0
R51: 43 | S51: =EmpDetail!B46 -> 0 | T51: =EmpDetail!#REF! ->  | U51: =EmpDetail!#REF! ->  | V51: =EmpDetail!J46 -> 0 | W51: =EmpDetail!K46 -> 0
R52: 44 | S52: =EmpDetail!B47 -> 0 | T52: =EmpDetail!C47 -> 0 | U52: =EmpDetail!D47 -> 0 | V52: =EmpDetail!J47 -> 0 | W52: =EmpDetail!K47 -> 0
R53: 45 | S53: =EmpDetail!B48 -> 0 | T53: =EmpDetail!C48 -> 0 | U53: =EmpDetail!D48 -> 0 | V53: =EmpDetail!J48 -> 0 | W53: =EmpDetail!K48 -> 0
R54: 46 | S54: =EmpDetail!B49 -> 0 | T54: =EmpDetail!C49 -> 0 | U54: =EmpDetail!D49 -> 0 | V54: =EmpDetail!J49 -> 0 | W54: =EmpDetail!K49 -> 0
R55: 47 | S55: =EmpDetail!B50 -> 0 | T55: =EmpDetail!C50 -> 0 | U55: =EmpDetail!D50 -> 0 | V55: =EmpDetail!J50 -> 0 | W55: =EmpDetail!K50 -> 0
R56: 48 | S56: =EmpDetail!B51 -> 0 | T56: =EmpDetail!C51 -> 0 | U56: =EmpDetail!D51 -> 0 | V56: =EmpDetail!J51 -> 0 | W56: =EmpDetail!K51 -> 0
R57: 49 | S57: =EmpDetail!B52 -> 0 | T57: =EmpDetail!C52 -> 0 | U57: =EmpDetail!D52 -> 0 | V57: =EmpDetail!J52 -> 0 | W57: =EmpDetail!K52 -> 0
R58: 50 | S58: =EmpDetail!B53 -> 0 | T58: =EmpDetail!C53 -> 0 | U58: =EmpDetail!D53 -> 0 | V58: =EmpDetail!J53 -> 0 | W58: =EmpDetail!K53 -> 0
R59: 51 | S59: =EmpDetail!B54 -> 0 | T59: =EmpDetail!C54 -> 0 | U59: =EmpDetail!D54 -> 0 | V59: =EmpDetail!J54 -> 0 | W59: =EmpDetail!K54 -> 0
R60: 52 | S60: =EmpDetail!B55 -> 0 | T60: =EmpDetail!C55 -> 0 | U60: =EmpDetail!D55 -> 0 | V60: =EmpDetail!J55 -> 0 | W60: =EmpDetail!K55 -> 0
R61: 53 | S61: =EmpDetail!B56 -> 0 | T61: =EmpDetail!C56 -> 0 | U61: =EmpDetail!D56 -> 0 | V61: =EmpDetail!J56 -> 0 | W61: =EmpDetail!K56 -> 0
R62: 54 | S62: =EmpDetail!B57 -> 0 | T62: =EmpDetail!C57 -> 0 | U62: =EmpDetail!D57 -> 0 | V62: =EmpDetail!J57 -> 0 | W62: =EmpDetail!K57 -> 0
R63: 55 | S63: =EmpDetail!B58 -> 0 | T63: =EmpDetail!C58 -> 0 | U63: =EmpDetail!D58 -> 0 | V63: =EmpDetail!J58 -> 0 | W63: =EmpDetail!K58 -> 0
R64: 56 | S64: =EmpDetail!B59 -> 0 | T64: =EmpDetail!C59 -> 0 | U64: =EmpDetail!D59 -> 0 | V64: =EmpDetail!J59 -> 0 | W64: =EmpDetail!K59 -> 0
R65: 57 | S65: =EmpDetail!B60 -> 0 | T65: =EmpDetail!C60 -> 0 | U65: =EmpDetail!D60 -> 0 | V65: =EmpDetail!J60 -> 0 | W65: =EmpDetail!K60 -> 0
R66: 58 | S66: =EmpDetail!B61 -> 0 | T66: =EmpDetail!C61 -> 0 | U66: =EmpDetail!D61 -> 0 | V66: =EmpDetail!J61 -> 0 | W66: =EmpDetail!K61 -> 0
R67: 59 | S67: =EmpDetail!B62 -> 0 | T67: =EmpDetail!C62 -> 0 | U67: =EmpDetail!D62 -> 0 | V67: =EmpDetail!J62 -> 0 | W67: =EmpDetail!K62 -> 0
R68: 60 | S68: =EmpDetail!B63 -> 0 | T68: =EmpDetail!C63 -> 0 | U68: =EmpDetail!D63 -> 0 | V68: =EmpDetail!J63 -> 0 | W68: =EmpDetail!K63 -> 0
R69: 61 | S69: =EmpDetail!B64 -> 0 | T69: =EmpDetail!C64 -> 0 | U69: =EmpDetail!D64 -> 0 | V69: =EmpDetail!J64 -> 0 | W69: =EmpDetail!K64 -> 0
R70: 62 | S70: =EmpDetail!B65 -> 0 | T70: =EmpDetail!C65 -> 0 | U70: =EmpDetail!D65 -> 0 | V70: =EmpDetail!J65 -> 0 | W70: =EmpDetail!K65 -> 0
R71: 63 | S71: =EmpDetail!B66 -> 0 | T71: =EmpDetail!C66 -> 0 | U71: =EmpDetail!D66 -> 0 | V71: =EmpDetail!J66 -> 0 | W71: =EmpDetail!K66 -> 0
R72: 64 | S72: =EmpDetail!B67 -> 0 | T72: =EmpDetail!C67 -> 0 | U72: =EmpDetail!D67 -> 0 | V72: =EmpDetail!J67 -> 0 | W72: =EmpDetail!K67 -> 0
R73: 65 | S73: =EmpDetail!B68 -> 0 | T73: =EmpDetail!C68 -> 0 | U73: =EmpDetail!D68 -> 0 | V73: =EmpDetail!J68 -> 0 | W73: =EmpDetail!K68 -> 0
R74: 66 | S74: =EmpDetail!B69 -> 0 | T74: =EmpDetail!C69 -> 0 | U74: =EmpDetail!D69 -> 0 | V74: =EmpDetail!J69 -> 0 | W74: =EmpDetail!K69 -> 0
R75: 67 | S75: =EmpDetail!B70 -> 0 | T75: =EmpDetail!C70 -> 0 | U75: =EmpDetail!D70 -> 0 | V75: =EmpDetail!J70 -> 0 | W75: =EmpDetail!K70 -> 0
R76: 68 | S76: =EmpDetail!B71 -> 0 | T76: =EmpDetail!C71 -> 0 | U76: =EmpDetail!D71 -> 0 | V76: =EmpDetail!J71 -> 0 | W76: =EmpDetail!K71 -> 0
R77: 69 | S77: =EmpDetail!B72 -> 0 | T77: =EmpDetail!C72 -> 0 | U77: =EmpDetail!D72 -> 0 | V77: =EmpDetail!J72 -> 0 | W77: =EmpDetail!K72 -> 0
R78: 70 | S78: =EmpDetail!B73 -> 0 | T78: =EmpDetail!C73 -> 0 | U78: =EmpDetail!D73 -> 0 | V78: =EmpDetail!J73 -> 0 | W78: =EmpDetail!K73 -> 0
R79: 71 | S79: =EmpDetail!B74 -> 0 | T79: =EmpDetail!C74 -> 0 | U79: =EmpDetail!D74 -> 0 | V79: =EmpDetail!J74 -> 0 | W79: =EmpDetail!K74 -> 0
R80: 72 | S80: =EmpDetail!B75 -> 0 | T80: =EmpDetail!C75 -> 0 | U80: =EmpDetail!D75 -> 0 | V80: =EmpDetail!J75 -> 0 | W80: =EmpDetail!K75 -> 0
R81: 73 | S81: =EmpDetail!B76 -> 0 | T81: =EmpDetail!C76 -> 0 | U81: =EmpDetail!D76 -> 0 | V81: =EmpDetail!J76 -> 0 | W81: =EmpDetail!K76 -> 0
R82: 74 | S82: =EmpDetail!B77 -> 0 | T82: =EmpDetail!C77 -> 0 | U82: =EmpDetail!D77 -> 0 | V82: =EmpDetail!J77 -> 0 | W82: =EmpDetail!K77 -> 0
R83: 75 | S83: =EmpDetail!B78 -> 0 | T83: =EmpDetail!C78 -> 0 | U83: =EmpDetail!D78 -> 0 | V83: =EmpDetail!J78 -> 0 | W83: =EmpDetail!K78 -> 0
R84: 76 | S84: =EmpDetail!B79 -> 0 | T84: =EmpDetail!C79 -> 0 | U84: =EmpDetail!D79 -> 0 | V84: =EmpDetail!J79 -> 0 | W84: =EmpDetail!K79 -> 0
R85: 77 | S85: =EmpDetail!B80 -> 0 | T85: =EmpDetail!C80 -> 0 | U85: =EmpDetail!D80 -> 0 | V85: =EmpDetail!J80 -> 0 | W85: =EmpDetail!K80 -> 0
R86: 78 | S86: =EmpDetail!B81 -> 0 | T86: =EmpDetail!C81 -> 0 | U86: =EmpDetail!D81 -> 0 | V86: =EmpDetail!J81 -> 0 | W86: =EmpDetail!K81 -> 0
R87: 79 | S87: =EmpDetail!B82 -> 0 | T87: =EmpDetail!C82 -> 0 | U87: =EmpDetail!D82 -> 0 | V87: =EmpDetail!J82 -> 0 | W87: =EmpDetail!K82 -> 0
R88: 80 | S88: =EmpDetail!B83 -> 0 | T88: =EmpDetail!C83 -> 0 | U88: =EmpDetail!D83 -> 0 | V88: =EmpDetail!J83 -> 0 | W88: =EmpDetail!K83 -> 0
R89: 81 | S89: =EmpDetail!B84 -> 0 | T89: =EmpDetail!C84 -> 0 | U89: =EmpDetail!D84 -> 0 | V89: =EmpDetail!J84 -> 0 | W89: =EmpDetail!K84 -> 0
R90: 82 | S90: =EmpDetail!B85 -> 0 | T90: =EmpDetail!C85 -> 0 | U90: =EmpDetail!D85 -> 0 | V90: =EmpDetail!J85 -> 0 | W90: =EmpDetail!K85 -> 0
R91: 83 | S91: =EmpDetail!B86 -> 0 | T91: =EmpDetail!C86 -> 0 | U91: =EmpDetail!D86 -> 0 | V91: =EmpDetail!J86 -> 0 | W91: =EmpDetail!K86 -> 0
R92: 84 | S92: =EmpDetail!B87 -> 0 | T92: =EmpDetail!C87 -> 0 | U92: =EmpDetail!D87 -> 0 | V92: =EmpDetail!J87 -> 0 | W92: =EmpDetail!K87 -> 0
R93: 85 | S93: =EmpDetail!B88 -> 0 | T93: =EmpDetail!C88 -> 0 | U93: =EmpDetail!D88 -> 0 | V93: =EmpDetail!J88 -> 0 | W93: =EmpDetail!K88 -> 0
R94: 86 | S94: =EmpDetail!B89 -> 0 | T94: =EmpDetail!C89 -> 0 | U94: =EmpDetail!D89 -> 0 | V94: =EmpDetail!J89 -> 0 | W94: =EmpDetail!K89 -> 0
R95: 87 | S95: =EmpDetail!B90 -> 0 | T95: =EmpDetail!C90 -> 0 | U95: =EmpDetail!D90 -> 0 | V95: =EmpDetail!J90 -> 0 | W95: =EmpDetail!K90 -> 0
R96: 88 | S96: =EmpDetail!B91 -> 0 | T96: =EmpDetail!C91 -> 0 | U96: =EmpDetail!D91 -> 0 | V96: =EmpDetail!J91 -> 0 | W96: =EmpDetail!K91 -> 0
R97: 89 | S97: =EmpDetail!B92 -> 0 | T97: =EmpDetail!C92 -> 0 | U97: =EmpDetail!D92 -> 0 | V97: =EmpDetail!J92 -> 0 | W97: =EmpDetail!K92 -> 0
R98: 90 | S98: =EmpDetail!B93 -> 0 | T98: =EmpDetail!C93 -> 0 | U98: =EmpDetail!D93 -> 0 | V98: =EmpDetail!J93 -> 0 | W98: =EmpDetail!K93 -> 0
R99: 91 | S99: =EmpDetail!B94 -> 0 | T99: =EmpDetail!C94 -> 0 | U99: =EmpDetail!D94 -> 0 | V99: =EmpDetail!J94 -> 0 | W99: =EmpDetail!K94 -> 0
R100: 92 | S100: =EmpDetail!B95 -> 0 | T100: =EmpDetail!C95 -> 0 | U100: =EmpDetail!D95 -> 0 | V100: =EmpDetail!J95 -> 0 | W100: =EmpDetail!K95 -> 0
R101: 93 | S101: =EmpDetail!B96 -> 0 | T101: =EmpDetail!C96 -> 0 | U101: =EmpDetail!D96 -> 0 | V101: =EmpDetail!J96 -> 0 | W101: =EmpDetail!K96 -> 0
R102: 94 | S102: =EmpDetail!B97 -> 0 | T102: =EmpDetail!C97 -> 0 | U102: =EmpDetail!D97 -> 0 | V102: =EmpDetail!J97 -> 0 | W102: =EmpDetail!K97 -> 0
R103: 95 | S103: =EmpDetail!B98 -> 0 | T103: =EmpDetail!C98 -> 0 | U103: =EmpDetail!D98 -> 0 | V103: =EmpDetail!J98 -> 0 | W103: =EmpDetail!K98 -> 0
R104: 96 | S104: =EmpDetail!B99 -> 0 | T104: =EmpDetail!C99 -> 0 | U104: =EmpDetail!D99 -> 0 | V104: =EmpDetail!J99 -> 0 | W104: =EmpDetail!K99 -> 0
R105: 97 | S105: =EmpDetail!B100 -> 0 | T105: =EmpDetail!C100 -> 0 | U105: =EmpDetail!D100 -> 0 | V105: =EmpDetail!J100 -> 0 | W105: =EmpDetail!K100 -> 0
R106: 98 | S106: =EmpDetail!B101 -> 0 | T106: =EmpDetail!C101 -> 0 | U106: =EmpDetail!D101 -> 0 | V106: =EmpDetail!J101 -> 0 | W106: =EmpDetail!K101 -> 0
R107: 99 | S107: =EmpDetail!B102 -> 0 | T107: =EmpDetail!C102 -> 0 | U107: =EmpDetail!D102 -> 0 | V107: =EmpDetail!J102 -> 0 | W107: =EmpDetail!K102 -> 0
R108: 100 | S108: =EmpDetail!B103 -> 0 | T108: =EmpDetail!C103 -> 0 | U108: =EmpDetail!D103 -> 0 | V108: =EmpDetail!J103 -> 0 | W108: =EmpDetail!K103 -> 0

Sheet PL on Retirement (hidden)
B1: =Master!G2&Master!H2 -> कार्यालय&राजकीय उच्च माध्यमिक विद्यालय ]चौगाई]टोंक
F3: dk;kZy; vkns'k
C5: jktLFkku lsok fu;eksa ds fu;e 91 , ds vUrxZr jktLFkku ljdkj foÙk foHkkx ds vkns'k Øekad % ,Q&1¼12½@,QMh@:Yl@2005@¼vkj-,l-vkj-&18@10½ fnukad 06-02-2009
B6: ,oe~ lela[;d vkns'k fnukad 18-06-2010 ds vuqlj.k esa vf/kokf"kZdh vk;q iw.kZ gksus@e`R;q ds dkj.k lsokfuo`Ùk@lsokeqDr gksus ij muds uke ds lEeq[k vafdr fooj.kkuqlkj buds vodk'k
B7: [kkrs esa vuqi;ksftr mikftZr vodk'k ds ,ot esa udn Hkqxrku fd;s tkus dh ,r~r }kjk Lohd`fr iznku dh tkrh gSA
A9: dkfeZd Øe | B9: Ø-la- | C9: uke dfeZd | D9: in uke | E9: inLFkkiu LFkku | F9: is&eSfVªDl ysoy | G9: vkosnu fnukad dks ewy osru | H9: lsok fuo`fÙk vkns'k Øekad | I9: [kkrs esa miyC/k mikftZr vodk'k | J9: lsok fuo`fÙk fnukad
A10: 33 | B10: =IF(C10="","",1) -> 1 | C10: =IF(ISNA(VLOOKUP($A10,$K$10:$P$109,2,FALSE)),"",VLOOKUP($A10,$K$10:$P$109,2,FALSE)) -> d`".kk xaxoky | D10: =IF(ISNA(VLOOKUP($A10,$K$10:$P$109,3,FALSE)),"",VLOOKUP($A10,$K$10:$P$109,3,FALSE)) -> अध्यापक ग्रेड III | E10: =IF(ISNA(VLOOKUP($A10,$K$10:$P$109,4,FALSE)),"",VLOOKUP($A10,$K$10:$P$109,4,FALSE)) -> राउप्रावि गोरधनपुरा | F10: =IF(ISNA(VLOOKUP($A10,$K$10:$P$109,5,FALSE)),"",VLOOKUP($A10,$K$10:$P$109,5,FALSE)) -> L-10 | G10: =IF(ISNA(VLOOKUP($A10,$K$10:$P$109,6,FALSE)),"",VLOOKUP($A10,$K$10:$P$109,6,FALSE)) -> 33800 | H10: lafu@Ldwy f'k-@vt@laLFkk&4@Qk- ls-fu@2019@109 fn 14-02-2020 | I10: 253 | J10: 2021-01-31 | K10: 1 | L10: =EmpDetail!B4 -> fd'ku yky cSjok | M10: =EmpDetail!C4 -> प्रधानाचार्य | N10: =EmpDetail!D4 -> राउमावि चौगाई | O10: =EmpDetail!J4 -> L-16 | P10: =EmpDetail!K4 -> 95900
B11: =IF(C11="","",B10+1) ->  | C11: =IF(ISNA(VLOOKUP($A11,$K$10:$P$109,2,FALSE)),"",VLOOKUP($A11,$K$10:$P$109,2,FALSE)) ->  | D11: =IF(ISNA(VLOOKUP($A11,$K$10:$P$109,3,FALSE)),"",VLOOKUP($A11,$K$10:$P$109,3,FALSE)) ->  | E11: =IF(ISNA(VLOOKUP($A11,$K$10:$P$109,4,FALSE)),"",VLOOKUP($A11,$K$10:$P$109,4,FALSE)) ->  | F11: =IF(ISNA(VLOOKUP($A11,$K$10:$P$109,5,FALSE)),"",VLOOKUP($A11,$K$10:$P$109,5,FALSE)) ->  | G11: =IF(ISNA(VLOOKUP($A11,$K$10:$P$109,6,FALSE)),"",VLOOKUP($A11,$K$10:$P$109,6,FALSE)) ->  | K11: 2 | L11: =EmpDetail!B5 -> iwj.k pUn y{kdkj | M11: =EmpDetail!C5 -> व्याख्याता | N11: =EmpDetail!D5 -> राउमावि चौगाई | O11: =EmpDetail!J5 -> L-12 | P11: =EmpDetail!K5 -> 56100
K12: 3 | L12: =EmpDetail!B6 -> jktsUnz dqekj tSu | M12: =EmpDetail!C6 -> व्याख्याता | N12: =EmpDetail!D6 -> राउमावि चौगाई | O12: =EmpDetail!J6 -> L-12 | P12: =EmpDetail!K6 -> 63100
K13: 4 | L13: =EmpDetail!B7 -> fd'ku yky cSjok | M13: =EmpDetail!C7 -> व्याख्याता | N13: =EmpDetail!D7 -> राउमावि चौगाई | O13: =EmpDetail!J7 -> L-12 | P13: =EmpDetail!K7 -> 54500
K14: 5 | L14: =EmpDetail!B8 -> lR;ukjk;.k 'kekZ | M14: =EmpDetail!C8 -> वरिष्ठ अध्यापक | N14: =EmpDetail!D8 -> राउमावि चौगाई | O14: =EmpDetail!J8 -> L-13 | P14: =EmpDetail!K8 -> 71300
K15: 6 | L15: =EmpDetail!B9 -> iq"ik tSu | M15: =EmpDetail!C9 -> वरिष्ठ अध्यापक | N15: =EmpDetail!D9 -> राउमावि चौगाई | O15: =EmpDetail!J9 -> L-13 | P15: =EmpDetail!K9 -> 73400
K16: 7 | L16: =EmpDetail!B10 -> vk'kkjke eh.kk | M16: =EmpDetail!C10 -> वरिष्ठ अध्यापक | N16: =EmpDetail!D10 -> राउमावि चौगाई | O16: =EmpDetail!J10 -> L-11 | P16: =EmpDetail!K10 -> 52300
C17: uksV& | D17: mikftZr vodk'k ds vnys esa udn Hkxrku lsok fuo`fÙk fnukad ls iwoZ ns; ugha gksxkA | K17: 8 | L17: =EmpDetail!B11 -> t;iky flag | M17: =EmpDetail!C11 -> वरिष्ठ अध्यापक | N17: =EmpDetail!D11 -> राउमावि चौगाई | O17: =EmpDetail!J11 -> L-12 | P17: =EmpDetail!K11 -> 63100
I18: =Master!B2 -> प्रधानाचार्य | K18: 9 | L18: =EmpDetail!B12 -> jkeizlkn jsxj | M18: =EmpDetail!C12 -> वरिष्ठ अध्यापक | N18: =EmpDetail!D12 -> राउमावि चौगाई | O18: =EmpDetail!J12 -> L-11 | P18: =EmpDetail!K12 -> 46500
I19: =Master!B3 -> राजकीय उच्च माध्यमिक विद्यालय | K19: 10 | L19: =EmpDetail!B13 -> egsUnz dqekj tkV | M19: =EmpDetail!C13 -> शारीरिक शिक्षक | N19: =EmpDetail!D13 -> राउमावि चौगाई | O19: =EmpDetail!J13 -> L-12 | P19: =EmpDetail!K13 -> 61300
I20: =Master!B4 -> चौगाई]टोंक | K20: 11 | L20: =EmpDetail!B14 -> NksVw yky jsxj | M20: =EmpDetail!C14 -> अध्यापक ग्रेड III | N20: =EmpDetail!D14 -> राउमावि चौगाई | O20: =EmpDetail!J14 -> L-13 | P20: =EmpDetail!K14 -> 65200
K21: 12 | L21: =EmpDetail!B15 -> dUgS;k yky egkoj | M21: =EmpDetail!C15 -> अध्यापक ग्रेड III | N21: =EmpDetail!D15 -> राउमावि चौगाई | O21: =EmpDetail!J15 -> L-13 | P21: =EmpDetail!K15 -> 65200
B22: Øekad& | C22: =Master!H3&Master!I3&Master!J3&Master!E3&"/" -> राउमावि/चौगाई/संस्था/2021-22/ | I22: fnukad& | J22: =TODAY() -> 2021-06-19 | K22: 13 | L22: =EmpDetail!B16 -> prqHkqZt tkV | M22: =EmpDetail!C16 -> अध्यापक ग्रेड III | N22: =EmpDetail!D16 -> राउमावि चौगाई | O22: =EmpDetail!J16 -> L-11 | P22: =EmpDetail!K16 -> 52300
C23: izfrfyfi lwpukFkZ ,oa ikyukFkZ | K23: 14 | L23: =EmpDetail!B17 -> vklsQk [kku | M23: =EmpDetail!C17 -> अध्यापक ग्रेड III | N23: =EmpDetail!D17 -> राउमावि चौगाई | O23: =EmpDetail!J17 -> L-11 | P23: =EmpDetail!K17 -> 52300
B24: 1 | C24: dks"kkf/kdkjh@mi dks"kkf/kdkjh | D24: =Master!H4 -> पीपलू | K24: 15 | L24: =EmpDetail!B18 -> lq'khyk cSjok | M24: =EmpDetail!C18 -> कनिष्ठ सहायक | N24: =EmpDetail!D18 -> राउमावि चौगाई | O24: =EmpDetail!J18 -> L-5 | P24: =EmpDetail!K18 -> 14600
B25: 2 | C25: ys[kk 'kk[kk LFkkuh; dk;kZy; | K25: 16 | L25: =EmpDetail!B19 -> txnh'k izlkn rsyh | M25: =EmpDetail!C19 -> सहायक कर्मचारी | N25: =EmpDetail!D19 -> राउमावि चौगाई | O25: =EmpDetail!J19 -> L-5 | P25: =EmpDetail!K19 -> 34700
B26: 3 | C26: dkfeZd O;fDrxr iaftdk | K26: 17 | L26: =EmpDetail!B20 -> jfoUnz dqekj tSu | M26: =EmpDetail!C20 -> अध्यापक ग्रेड III | N26: =EmpDetail!D20 -> राउप्रावि मोहिनी | O26: =EmpDetail!J20 -> L-12 | P26: =EmpDetail!K20 -> 65200
B27: 4 | C27: lEcfU/kr dkfeZd | I27: =I18 -> प्रधानाचार्य | K27: 18 | L27: =EmpDetail!B21 -> ';ke lqUnj ckxkSM | M27: =EmpDetail!C21 -> अध्यापक ग्रेड III | N27: =EmpDetail!D21 -> राउप्रावि मोहिनी | O27: =EmpDetail!J21 -> L-10 | P27: =EmpDetail!K21 -> 40300
I28: =I19 -> राजकीय उच्च माध्यमिक विद्यालय | K28: 19 | L28: =EmpDetail!B22 -> d`".kk 'kekZ | M28: =EmpDetail!C22 -> प्रबोधक | N28: =EmpDetail!D22 -> राउप्रावि मोहिनी | O28: =EmpDetail!J22 -> L-11 | P28: =EmpDetail!K22 -> 45100
I29: =I20 -> चौगाई]टोंक | K29: 20 | L29: =EmpDetail!B23 -> /keZsUnz pkS/kjh | M29: =EmpDetail!C23 -> अध्यापक ग्रेड III | N29: =EmpDetail!D23 -> राउप्रावि गोरधनपुरा | O29: =EmpDetail!J23 -> L-10 | P29: =EmpDetail!K23 -> 40300
K30: 21 | L30: =EmpDetail!B24 -> izgykn ekyh | M30: =EmpDetail!C24 -> प्रबोधक | N30: =EmpDetail!D24 -> राउप्रावि गोरधनपुरा | O30: =EmpDetail!J24 -> L-11 | P30: =EmpDetail!K24 -> 46500
K31: 22 | L31: =EmpDetail!B25 -> jken;ky xqtZj | M31: =EmpDetail!C25 -> प्रबोधक | N31: =EmpDetail!D25 -> राउप्रावि सोंदीफल | O31: =EmpDetail!J25 -> L-11 | P31: =EmpDetail!K25 -> 45100
K32: 23 | L32: =EmpDetail!B26 -> vkSeizdk'k tkV | M32: =EmpDetail!C26 -> अध्यापक ग्रेड III | N32: =EmpDetail!D26 -> राउप्रावि सोंदीफल | O32: =EmpDetail!J26 -> L-11 | P32: =EmpDetail!K26 -> 45100
K33: 24 | L33: =EmpDetail!B27 -> vthr flag | M33: =EmpDetail!C27 -> अध्यापक ग्रेड III | N33: =EmpDetail!D27 -> राप्रावि जानकीवल्लभपुरा | O33: =EmpDetail!J27 -> L-10 | P33: =EmpDetail!K27 -> 40300
K34: 25 | L34: =EmpDetail!B28 -> eq[rkj eha;k | M34: =EmpDetail!C28 -> प्रबोधक | N34: =EmpDetail!D28 -> राप्रावि जानकीवल्लभपुरा | O34: =EmpDetail!J28 -> L-11 | P34: =EmpDetail!K28 -> 45100
K35: 26 | L35: =EmpDetail!B29 -> eks0 tehy | M35: =EmpDetail!C29 -> प्रबोधक | N35: =EmpDetail!D29 -> राप्रावि रसूलपुरा | O35: =EmpDetail!J29 -> L-11 | P35: =EmpDetail!K29 -> 45100
K36: 27 | L36: =EmpDetail!B30 -> lkaojey tkV | M36: =EmpDetail!C30 -> अध्यापक ग्रेड III | N36: =EmpDetail!D30 -> राप्रावि रसूलपुरा | O36: =EmpDetail!J30 -> L-10 | P36: =EmpDetail!K30 -> 38000
K37: 28 | L37: =EmpDetail!B31 -> pkS/kjh eksuk jkekorkj | M37: =EmpDetail!C31 -> अध्यापक ग्रेड III | N37: =EmpDetail!D31 -> राप्रावि मोहिनी ढाणी बाढ | O37: =EmpDetail!J31 -> L-10 | P37: =EmpDetail!K31 -> 38000
K38: 29 | L38: =EmpDetail!B32 -> rkjkpUn tk;loky | M38: =EmpDetail!C32 -> प्रबोधक | N38: =EmpDetail!D32 -> राप्रावि मोहिनी ढाणी बाढ | O38: =EmpDetail!J32 -> L-11 | P38: =EmpDetail!K32 -> 41300
K39: 30 | L39: =EmpDetail!B33 -> jketl ;kno | M39: =EmpDetail!C33 -> अध्यापक ग्रेड III | N39: =EmpDetail!D33 -> राप्रावि बैरवा ढाणी सोन्दीफल | O39: =EmpDetail!J33 -> L-12 | P39: =EmpDetail!K33 -> 63100
K40: 31 | L40: =EmpDetail!B34 -> dtksMey eh.kk | M40: =EmpDetail!C34 -> अध्यापक ग्रेड III | N40: =EmpDetail!D34 -> राप्रावि बैरवा ढाणी सोन्दीफल | O40: =EmpDetail!J34 -> L-10 | P40: =EmpDetail!K34 -> 38000
K41: 32 | L41: =EmpDetail!B35 -> /kaut; xkSRre | M41: =EmpDetail!C35 -> अध्यापक ग्रेड III | N41: =EmpDetail!D35 -> राउप्रावि गोरधनपुरा | O41: =EmpDetail!J35 -> L-10 | P41: =EmpDetail!K35 -> 34800
K42: 33 | L42: =EmpDetail!B36 -> d`".kk xaxoky | M42: =EmpDetail!C36 -> अध्यापक ग्रेड III | N42: =EmpDetail!D36 -> राउप्रावि गोरधनपुरा | O42: =EmpDetail!J36 -> L-10 | P42: =EmpDetail!K36 -> 33800
K43: 34 | L43: =EmpDetail!B37 -> n'kjFk dqekj ;kno | M43: =EmpDetail!C37 -> अध्यापक ग्रेड III | N43: =EmpDetail!D37 -> राउप्रावि सोंदीफल | O43: =EmpDetail!J37 -> L-10 | P43: =EmpDetail!K37 -> 23700
K44: 35 | L44: =EmpDetail!B38 -> d`".k yky tkV | M44: =EmpDetail!C38 -> अध्यापक ग्रेड III | N44: =EmpDetail!D38 -> राउप्रावि सोंदीफल | O44: =EmpDetail!J38 -> L-10 | P44: =EmpDetail!K38 -> 33800
K45: 36 | L45: =EmpDetail!B39 -> nhisUnz dqekj iztkir | M45: =EmpDetail!C39 -> अध्यापक ग्रेड III | N45: =EmpDetail!D39 -> राउप्रावि सोंदीफल | O45: =EmpDetail!J39 -> L-10 | P45: =EmpDetail!K39 -> 33800
K46: 37 | L46: =EmpDetail!B40 -> uohu dqekj | M46: =EmpDetail!C40 -> अध्यापक ग्रेड III | N46: =EmpDetail!D40 -> राउप्रावि मोहिनी | O46: =EmpDetail!J40 -> L-10 | P46: =EmpDetail!K40 -> 33800
K47: 38 | L47: =EmpDetail!B41 -> ehrs'k dqekj 'kekZ | M47: =EmpDetail!C41 -> अध्यापक ग्रेड III | N47: =EmpDetail!D41 -> राउप्रावि मोहिनी | O47: =EmpDetail!J41 -> L-10 | P47: =EmpDetail!K41 -> 34800
K48: 39 | L48: =EmpDetail!B42 -> eUtw eh.kk | M48: =EmpDetail!C42 -> वरिष्ठ अध्यापक | N48: =EmpDetail!D42 -> राउप्रावि गोरधनपुरा | O48: =EmpDetail!J42 -> L-10 | P48: =EmpDetail!K42 -> 33800
K49: 40 | L49: =EmpDetail!B43 -> eatw pkS/kjh | M49: =EmpDetail!C43 -> वरिष्ठ अध्यापक | N49: =EmpDetail!D43 -> राउप्रावि सोंदीफल | O49: =EmpDetail!J43 -> L-11 | P49: =EmpDetail!K43 -> 26500
K50: 41 | L50: =EmpDetail!B44 -> 0 | M50: =EmpDetail!C44 -> 0 | N50: =EmpDetail!D44 -> 0 | O50: =EmpDetail!J44 -> 0 | P50: =EmpDetail!K44 -> 0
K51: 42 | L51: =EmpDetail!B45 -> 0 | M51: =EmpDetail!C45 -> 0 | N51: =EmpDetail!D45 -> 0 | O51: =EmpDetail!J45 -> 0 | P51: =EmpDetail!K45 -> 0
K52: 43 | L52: =EmpDetail!B46 -> 0 | M52: =EmpDetail!#REF! ->  | N52: =EmpDetail!#REF! ->  | O52: =EmpDetail!J46 -> 0 | P52: =EmpDetail!K46 -> 0
K53: 44 | L53: =EmpDetail!B47 -> 0 | M53: =EmpDetail!C47 -> 0 | N53: =EmpDetail!D47 -> 0 | O53: =EmpDetail!J47 -> 0 | P53: =EmpDetail!K47 -> 0
K54: 45 | L54: =EmpDetail!B48 -> 0 | M54: =EmpDetail!C48 -> 0 | N54: =EmpDetail!D48 -> 0 | O54: =EmpDetail!J48 -> 0 | P54: =EmpDetail!K48 -> 0
K55: 46 | L55: =EmpDetail!B49 -> 0 | M55: =EmpDetail!C49 -> 0 | N55: =EmpDetail!D49 -> 0 | O55: =EmpDetail!J49 -> 0 | P55: =EmpDetail!K49 -> 0
K56: 47 | L56: =EmpDetail!B50 -> 0 | M56: =EmpDetail!C50 -> 0 | N56: =EmpDetail!D50 -> 0 | O56: =EmpDetail!J50 -> 0 | P56: =EmpDetail!K50 -> 0
K57: 48 | L57: =EmpDetail!B51 -> 0 | M57: =EmpDetail!C51 -> 0 | N57: =EmpDetail!D51 -> 0 | O57: =EmpDetail!J51 -> 0 | P57: =EmpDetail!K51 -> 0
K58: 49 | L58: =EmpDetail!B52 -> 0 | M58: =EmpDetail!C52 -> 0 | N58: =EmpDetail!D52 -> 0 | O58: =EmpDetail!J52 -> 0 | P58: =EmpDetail!K52 -> 0
K59: 50 | L59: =EmpDetail!B53 -> 0 | M59: =EmpDetail!C53 -> 0 | N59: =EmpDetail!D53 -> 0 | O59: =EmpDetail!J53 -> 0 | P59: =EmpDetail!K53 -> 0
K60: 51 | L60: =EmpDetail!B54 -> 0 | M60: =EmpDetail!C54 -> 0 | N60: =EmpDetail!D54 -> 0 | O60: =EmpDetail!J54 -> 0 | P60: =EmpDetail!K54 -> 0
K61: 52 | L61: =EmpDetail!B55 -> 0 | M61: =EmpDetail!C55 -> 0 | N61: =EmpDetail!D55 -> 0 | O61: =EmpDetail!J55 -> 0 | P61: =EmpDetail!K55 -> 0
K62: 53 | L62: =EmpDetail!B56 -> 0 | M62: =EmpDetail!C56 -> 0 | N62: =EmpDetail!D56 -> 0 | O62: =EmpDetail!J56 -> 0 | P62: =EmpDetail!K56 -> 0
K63: 54 | L63: =EmpDetail!B57 -> 0 | M63: =EmpDetail!C57 -> 0 | N63: =EmpDetail!D57 -> 0 | O63: =EmpDetail!J57 -> 0 | P63: =EmpDetail!K57 -> 0
K64: 55 | L64: =EmpDetail!B58 -> 0 | M64: =EmpDetail!C58 -> 0 | N64: =EmpDetail!D58 -> 0 | O64: =EmpDetail!J58 -> 0 | P64: =EmpDetail!K58 -> 0
K65: 56 | L65: =EmpDetail!B59 -> 0 | M65: =EmpDetail!C59 -> 0 | N65: =EmpDetail!D59 -> 0 | O65: =EmpDetail!J59 -> 0 | P65: =EmpDetail!K59 -> 0
K66: 57 | L66: =EmpDetail!B60 -> 0 | M66: =EmpDetail!C60 -> 0 | N66: =EmpDetail!D60 -> 0 | O66: =EmpDetail!J60 -> 0 | P66: =EmpDetail!K60 -> 0
K67: 58 | L67: =EmpDetail!B61 -> 0 | M67: =EmpDetail!C61 -> 0 | N67: =EmpDetail!D61 -> 0 | O67: =EmpDetail!J61 -> 0 | P67: =EmpDetail!K61 -> 0
K68: 59 | L68: =EmpDetail!B62 -> 0 | M68: =EmpDetail!C62 -> 0 | N68: =EmpDetail!D62 -> 0 | O68: =EmpDetail!J62 -> 0 | P68: =EmpDetail!K62 -> 0
K69: 60 | L69: =EmpDetail!B63 -> 0 | M69: =EmpDetail!C63 -> 0 | N69: =EmpDetail!D63 -> 0 | O69: =EmpDetail!J63 -> 0 | P69: =EmpDetail!K63 -> 0
K70: 61 | L70: =EmpDetail!B64 -> 0 | M70: =EmpDetail!C64 -> 0 | N70: =EmpDetail!D64 -> 0 | O70: =EmpDetail!J64 -> 0 | P70: =EmpDetail!K64 -> 0
K71: 62 | L71: =EmpDetail!B65 -> 0 | M71: =EmpDetail!C65 -> 0 | N71: =EmpDetail!D65 -> 0 | O71: =EmpDetail!J65 -> 0 | P71: =EmpDetail!K65 -> 0
K72: 63 | L72: =EmpDetail!B66 -> 0 | M72: =EmpDetail!C66 -> 0 | N72: =EmpDetail!D66 -> 0 | O72: =EmpDetail!J66 -> 0 | P72: =EmpDetail!K66 -> 0
K73: 64 | L73: =EmpDetail!B67 -> 0 | M73: =EmpDetail!C67 -> 0 | N73: =EmpDetail!D67 -> 0 | O73: =EmpDetail!J67 -> 0 | P73: =EmpDetail!K67 -> 0
K74: 65 | L74: =EmpDetail!B68 -> 0 | M74: =EmpDetail!C68 -> 0 | N74: =EmpDetail!D68 -> 0 | O74: =EmpDetail!J68 -> 0 | P74: =EmpDetail!K68 -> 0
K75: 66 | L75: =EmpDetail!B69 -> 0 | M75: =EmpDetail!C69 -> 0 | N75: =EmpDetail!D69 -> 0 | O75: =EmpDetail!J69 -> 0 | P75: =EmpDetail!K69 -> 0
K76: 67 | L76: =EmpDetail!B70 -> 0 | M76: =EmpDetail!C70 -> 0 | N76: =EmpDetail!D70 -> 0 | O76: =EmpDetail!J70 -> 0 | P76: =EmpDetail!K70 -> 0
K77: 68 | L77: =EmpDetail!B71 -> 0 | M77: =EmpDetail!C71 -> 0 | N77: =EmpDetail!D71 -> 0 | O77: =EmpDetail!J71 -> 0 | P77: =EmpDetail!K71 -> 0
K78: 69 | L78: =EmpDetail!B72 -> 0 | M78: =EmpDetail!C72 -> 0 | N78: =EmpDetail!D72 -> 0 | O78: =EmpDetail!J72 -> 0 | P78: =EmpDetail!K72 -> 0
K79: 70 | L79: =EmpDetail!B73 -> 0 | M79: =EmpDetail!C73 -> 0 | N79: =EmpDetail!D73 -> 0 | O79: =EmpDetail!J73 -> 0 | P79: =EmpDetail!K73 -> 0
K80: 71 | L80: =EmpDetail!B74 -> 0 | M80: =EmpDetail!C74 -> 0 | N80: =EmpDetail!D74 -> 0 | O80: =EmpDetail!J74 -> 0 | P80: =EmpDetail!K74 -> 0
K81: 72 | L81: =EmpDetail!B75 -> 0 | M81: =EmpDetail!C75 -> 0 | N81: =EmpDetail!D75 -> 0 | O81: =EmpDetail!J75 -> 0 | P81: =EmpDetail!K75 -> 0
K82: 73 | L82: =EmpDetail!B76 -> 0 | M82: =EmpDetail!C76 -> 0 | N82: =EmpDetail!D76 -> 0 | O82: =EmpDetail!J76 -> 0 | P82: =EmpDetail!K76 -> 0
K83: 74 | L83: =EmpDetail!B77 -> 0 | M83: =EmpDetail!C77 -> 0 | N83: =EmpDetail!D77 -> 0 | O83: =EmpDetail!J77 -> 0 | P83: =EmpDetail!K77 -> 0
K84: 75 | L84: =EmpDetail!B78 -> 0 | M84: =EmpDetail!C78 -> 0 | N84: =EmpDetail!D78 -> 0 | O84: =EmpDetail!J78 -> 0 | P84: =EmpDetail!K78 -> 0
K85: 76 | L85: =EmpDetail!B79 -> 0 | M85: =EmpDetail!C79 -> 0 | N85: =EmpDetail!D79 -> 0 | O85: =EmpDetail!J79 -> 0 | P85: =EmpDetail!K79 -> 0
K86: 77 | L86: =EmpDetail!B80 -> 0 | M86: =EmpDetail!C80 -> 0 | N86: =EmpDetail!D80 -> 0 | O86: =EmpDetail!J80 -> 0 | P86: =EmpDetail!K80 -> 0
K87: 78 | L87: =EmpDetail!B81 -> 0 | M87: =EmpDetail!C81 -> 0 | N87: =EmpDetail!D81 -> 0 | O87: =EmpDetail!J81 -> 0 | P87: =EmpDetail!K81 -> 0
K88: 79 | L88: =EmpDetail!B82 -> 0 | M88: =EmpDetail!C82 -> 0 | N88: =EmpDetail!D82 -> 0 | O88: =EmpDetail!J82 -> 0 | P88: =EmpDetail!K82 -> 0
K89: 80 | L89: =EmpDetail!B83 -> 0 | M89: =EmpDetail!C83 -> 0 | N89: =EmpDetail!D83 -> 0 | O89: =EmpDetail!J83 -> 0 | P89: =EmpDetail!K83 -> 0
K90: 81 | L90: =EmpDetail!B84 -> 0 | M90: =EmpDetail!C84 -> 0 | N90: =EmpDetail!D84 -> 0 | O90: =EmpDetail!J84 -> 0 | P90: =EmpDetail!K84 -> 0
K91: 82 | L91: =EmpDetail!B85 -> 0 | M91: =EmpDetail!C85 -> 0 | N91: =EmpDetail!D85 -> 0 | O91: =EmpDetail!J85 -> 0 | P91: =EmpDetail!K85 -> 0
K92: 83 | L92: =EmpDetail!B86 -> 0 | M92: =EmpDetail!C86 -> 0 | N92: =EmpDetail!D86 -> 0 | O92: =EmpDetail!J86 -> 0 | P92: =EmpDetail!K86 -> 0
K93: 84 | L93: =EmpDetail!B87 -> 0 | M93: =EmpDetail!C87 -> 0 | N93: =EmpDetail!D87 -> 0 | O93: =EmpDetail!J87 -> 0 | P93: =EmpDetail!K87 -> 0
K94: 85 | L94: =EmpDetail!B88 -> 0 | M94: =EmpDetail!C88 -> 0 | N94: =EmpDetail!D88 -> 0 | O94: =EmpDetail!J88 -> 0 | P94: =EmpDetail!K88 -> 0
K95: 86 | L95: =EmpDetail!B89 -> 0 | M95: =EmpDetail!C89 -> 0 | N95: =EmpDetail!D89 -> 0 | O95: =EmpDetail!J89 -> 0 | P95: =EmpDetail!K89 -> 0
K96: 87 | L96: =EmpDetail!B90 -> 0 | M96: =EmpDetail!C90 -> 0 | N96: =EmpDetail!D90 -> 0 | O96: =EmpDetail!J90 -> 0 | P96: =EmpDetail!K90 -> 0
K97: 88 | L97: =EmpDetail!B91 -> 0 | M97: =EmpDetail!C91 -> 0 | N97: =EmpDetail!D91 -> 0 | O97: =EmpDetail!J91 -> 0 | P97: =EmpDetail!K91 -> 0
K98: 89 | L98: =EmpDetail!B92 -> 0 | M98: =EmpDetail!C92 -> 0 | N98: =EmpDetail!D92 -> 0 | O98: =EmpDetail!J92 -> 0 | P98: =EmpDetail!K92 -> 0
K99: 90 | L99: =EmpDetail!B93 -> 0 | M99: =EmpDetail!C93 -> 0 | N99: =EmpDetail!D93 -> 0 | O99: =EmpDetail!J93 -> 0 | P99: =EmpDetail!K93 -> 0
K100: 91 | L100: =EmpDetail!B94 -> 0 | M100: =EmpDetail!C94 -> 0 | N100: =EmpDetail!D94 -> 0 | O100: =EmpDetail!J94 -> 0 | P100: =EmpDetail!K94 -> 0
K101: 92 | L101: =EmpDetail!B95 -> 0 | M101: =EmpDetail!C95 -> 0 | N101: =EmpDetail!D95 -> 0 | O101: =EmpDetail!J95 -> 0 | P101: =EmpDetail!K95 -> 0
K102: 93 | L102: =EmpDetail!B96 -> 0 | M102: =EmpDetail!C96 -> 0 | N102: =EmpDetail!D96 -> 0 | O102: =EmpDetail!J96 -> 0 | P102: =EmpDetail!K96 -> 0
K103: 94 | L103: =EmpDetail!B97 -> 0 | M103: =EmpDetail!C97 -> 0 | N103: =EmpDetail!D97 -> 0 | O103: =EmpDetail!J97 -> 0 | P103: =EmpDetail!K97 -> 0
K104: 95 | L104: =EmpDetail!B98 -> 0 | M104: =EmpDetail!C98 -> 0 | N104: =EmpDetail!D98 -> 0 | O104: =EmpDetail!J98 -> 0 | P104: =EmpDetail!K98 -> 0
K105: 96 | L105: =EmpDetail!B99 -> 0 | M105: =EmpDetail!C99 -> 0 | N105: =EmpDetail!D99 -> 0 | O105: =EmpDetail!J99 -> 0 | P105: =EmpDetail!K99 -> 0
K106: 97 | L106: =EmpDetail!B100 -> 0 | M106: =EmpDetail!C100 -> 0 | N106: =EmpDetail!D100 -> 0 | O106: =EmpDetail!J100 -> 0 | P106: =EmpDetail!K100 -> 0
K107: 98 | L107: =EmpDetail!B101 -> 0 | M107: =EmpDetail!C101 -> 0 | N107: =EmpDetail!D101 -> 0 | O107: =EmpDetail!J101 -> 0 | P107: =EmpDetail!K101 -> 0
K108: 99 | L108: =EmpDetail!B102 -> 0 | M108: =EmpDetail!C102 -> 0 | N108: =EmpDetail!D102 -> 0 | O108: =EmpDetail!J102 -> 0 | P108: =EmpDetail!K102 -> 0
K109: 100 | L109: =EmpDetail!B103 -> 0 | M109: =EmpDetail!C103 -> 0 | N109: =EmpDetail!D103 -> 0 | O109: =EmpDetail!J103 -> 0 | P109: =EmpDetail!K103 -> 0

Sheet Releave Letter (hidden)
B1: =Master!G2&Master!H2 -> कार्यालय&राजकीय उच्च माध्यमिक विद्यालय ]चौगाई]टोंक | L1: श्रीमान निदेशक माध्यमिक शिक्षा राजस्थान] बीकानेर के आदेश क्रमांक&
A2: dkfeZd dk dzekad | L2: श्रीमान उप निदेशक माध्यमिक शिक्षा अजमेर] वृत अजमेर के आदेश क्रमांक&
B3: dzekad& | C3: =Master!H3&Master!I3&Master!J3&Master!E3&"/" -> राउमावि/चौगाई/संस्था/2021-22/ | J3: fnukad& | K3: =TODAY() -> 2021-06-19 | L3: श्रीमान जिला शिक्षा अधिकारी माध्यमिक शिक्षा टोंक के आदेश क्रमांक&
A4: 31 | B4: dk;ZeqfDr vkns'k | L4: श्रीमान जिला शिक्षा अधिकारी प्रारम्भिक शिक्षा टोंक के आदेश क्रमांक&
F5: श्रीमान मुख्य ब्लाक शिक्षा अधिकारी टोंक के आदेश क्रमांक& | G5: lhchbZvks@lelk@Vksad@2020&21@902 | J5: fnukad& | K5: 2021-01-12 | L5: श्रीमान मुख्य जिला शिक्षा अधिकारी मुख्यालय टोंक के आदेश क्रमांक&
B6: dh vuqikyuk esa | C6: =IF(ISNA(VLOOKUP($A4,$T$6:$W$105,2,FALSE)),"",VLOOKUP($A4,$T$6:$W$105,2,FALSE)) -> dtksMey eh.kk | D6: =IF(ISNA(VLOOKUP($A4,$T$6:$W$105,3,FALSE)),"",VLOOKUP($A4,$T$6:$W$105,3,FALSE)) -> अध्यापक ग्रेड III | E6: =IF(ISNA(VLOOKUP($A4,$T$6:$W$105,4,FALSE)),"",VLOOKUP($A4,$T$6:$W$105,4,FALSE)) -> राप्रावि बैरवा ढाणी सोन्दीफल | F6: dks vkt fnukad& | H6: =TODAY() -> 2021-06-19 | I6: dks bl dk;kZy; ls | J6: मध्यान्ह पश्चात | L6: श्रीमान मुख्य ब्लाक शिक्षा अधिकारी टोंक के आदेश क्रमांक& | T6: 1 | U6: =EmpDetail!B4 -> fd'ku yky cSjok | V6: =EmpDetail!C4 -> प्रधानाचार्य | W6: =EmpDetail!D4 -> राउमावि चौगाई
B7: dk;Z iqfLrdk forj.k gsrw O;oLFkkFkZ | D7: eq[; CykWd f'k{kk f'k{kk vf/kdkjh Vksad | G7: ds fy, dk;ZeqDr fd;k tkrk gS A | L7: अन्य | T7: 2 | U7: =EmpDetail!B5 -> iwj.k pUn y{kdkj | V7: =EmpDetail!C5 -> व्याख्याता | W7: =EmpDetail!D5 -> राउमावि चौगाई
L8: अन्य | T8: 3 | U8: =EmpDetail!B6 -> jktsUnz dqekj tSu | V8: =EmpDetail!C6 -> व्याख्याता | W8: =EmpDetail!D6 -> राउमावि चौगाई
I9: =Master!B2 -> प्रधानाचार्य | L9: अन्य | T9: 4 | U9: =EmpDetail!B7 -> fd'ku yky cSjok | V9: =EmpDetail!C7 -> व्याख्याता | W9: =EmpDetail!D7 -> राउमावि चौगाई
I10: =Master!B3 -> राजकीय उच्च माध्यमिक विद्यालय | T10: 5 | U10: =EmpDetail!B8 -> lR;ukjk;.k 'kekZ | V10: =EmpDetail!C8 -> वरिष्ठ अध्यापक | W10: =EmpDetail!D8 -> राउमावि चौगाई
I11: =Master!B4 -> चौगाई]टोंक | T11: 6 | U11: =EmpDetail!B9 -> iq"ik tSu | V11: =EmpDetail!C9 -> वरिष्ठ अध्यापक | W11: =EmpDetail!D9 -> राउमावि चौगाई
T12: 7 | U12: =EmpDetail!B10 -> vk'kkjke eh.kk | V12: =EmpDetail!C10 -> वरिष्ठ अध्यापक | W12: =EmpDetail!D10 -> राउमावि चौगाई
L13: LFkkukUrj.k@lsokfuo`fRr@vU; gsrw ;gka fDyd djsa | T13: 8 | U13: =EmpDetail!B11 -> t;iky flag | V13: =EmpDetail!C11 -> वरिष्ठ अध्यापक | W13: =EmpDetail!D11 -> राउमावि चौगाई
T14: 9 | U14: =EmpDetail!B12 -> jkeizlkn jsxj | V14: =EmpDetail!C12 -> वरिष्ठ अध्यापक | W14: =EmpDetail!D12 -> राउमावि चौगाई
T15: 10 | U15: =EmpDetail!B13 -> egsUnz dqekj tkV | V15: =EmpDetail!C13 -> शारीरिक शिक्षक | W15: =EmpDetail!D13 -> राउमावि चौगाई
T16: 11 | U16: =EmpDetail!B14 -> NksVw yky jsxj | V16: =EmpDetail!C14 -> अध्यापक ग्रेड III | W16: =EmpDetail!D14 -> राउमावि चौगाई
T17: 12 | U17: =EmpDetail!B15 -> dUgS;k yky egkoj | V17: =EmpDetail!C15 -> अध्यापक ग्रेड III | W17: =EmpDetail!D15 -> राउमावि चौगाई
T18: 13 | U18: =EmpDetail!B16 -> prqHkqZt tkV | V18: =EmpDetail!C16 -> अध्यापक ग्रेड III | W18: =EmpDetail!D16 -> राउमावि चौगाई
T19: 14 | U19: =EmpDetail!B17 -> vklsQk [kku | V19: =EmpDetail!C17 -> अध्यापक ग्रेड III | W19: =EmpDetail!D17 -> राउमावि चौगाई
T20: 15 | U20: =EmpDetail!B18 -> lq'khyk cSjok | V20: =EmpDetail!C18 -> कनिष्ठ सहायक | W20: =EmpDetail!D18 -> राउमावि चौगाई
T21: 16 | U21: =EmpDetail!B19 -> txnh'k izlkn rsyh | V21: =EmpDetail!C19 -> सहायक कर्मचारी | W21: =EmpDetail!D19 -> राउमावि चौगाई
T22: 17 | U22: =EmpDetail!B20 -> jfoUnz dqekj tSu | V22: =EmpDetail!C20 -> अध्यापक ग्रेड III | W22: =EmpDetail!D20 -> राउप्रावि मोहिनी
T23: 18 | U23: =EmpDetail!B21 -> ';ke lqUnj ckxkSM | V23: =EmpDetail!C21 -> अध्यापक ग्रेड III | W23: =EmpDetail!D21 -> राउप्रावि मोहिनी
T24: 19 | U24: =EmpDetail!B22 -> d`".kk 'kekZ | V24: =EmpDetail!C22 -> प्रबोधक | W24: =EmpDetail!D22 -> राउप्रावि मोहिनी
T25: 20 | U25: =EmpDetail!B23 -> /keZsUnz pkS/kjh | V25: =EmpDetail!C23 -> अध्यापक ग्रेड III | W25: =EmpDetail!D23 -> राउप्रावि गोरधनपुरा
T26: 21 | U26: =EmpDetail!B24 -> izgykn ekyh | V26: =EmpDetail!C24 -> प्रबोधक | W26: =EmpDetail!D24 -> राउप्रावि गोरधनपुरा
T27: 22 | U27: =EmpDetail!B25 -> jken;ky xqtZj | V27: =EmpDetail!C25 -> प्रबोधक | W27: =EmpDetail!D25 -> राउप्रावि सोंदीफल
T28: 23 | U28: =EmpDetail!B26 -> vkSeizdk'k tkV | V28: =EmpDetail!C26 -> अध्यापक ग्रेड III | W28: =EmpDetail!D26 -> राउप्रावि सोंदीफल
T29: 24 | U29: =EmpDetail!B27 -> vthr flag | V29: =EmpDetail!C27 -> अध्यापक ग्रेड III | W29: =EmpDetail!D27 -> राप्रावि जानकीवल्लभपुरा
T30: 25 | U30: =EmpDetail!B28 -> eq[rkj eha;k | V30: =EmpDetail!C28 -> प्रबोधक | W30: =EmpDetail!D28 -> राप्रावि जानकीवल्लभपुरा
T31: 26 | U31: =EmpDetail!B29 -> eks0 tehy | V31: =EmpDetail!C29 -> प्रबोधक | W31: =EmpDetail!D29 -> राप्रावि रसूलपुरा
T32: 27 | U32: =EmpDetail!B30 -> lkaojey tkV | V32: =EmpDetail!C30 -> अध्यापक ग्रेड III | W32: =EmpDetail!D30 -> राप्रावि रसूलपुरा
T33: 28 | U33: =EmpDetail!B31 -> pkS/kjh eksuk jkekorkj | V33: =EmpDetail!C31 -> अध्यापक ग्रेड III | W33: =EmpDetail!D31 -> राप्रावि मोहिनी ढाणी बाढ
T34: 29 | U34: =EmpDetail!B32 -> rkjkpUn tk;loky | V34: =EmpDetail!C32 -> प्रबोधक | W34: =EmpDetail!D32 -> राप्रावि मोहिनी ढाणी बाढ
T35: 30 | U35: =EmpDetail!B33 -> jketl ;kno | V35: =EmpDetail!C33 -> अध्यापक ग्रेड III | W35: =EmpDetail!D33 -> राप्रावि बैरवा ढाणी सोन्दीफल
T36: 31 | U36: =EmpDetail!B34 -> dtksMey eh.kk | V36: =EmpDetail!C34 -> अध्यापक ग्रेड III | W36: =EmpDetail!D34 -> राप्रावि बैरवा ढाणी सोन्दीफल
T37: 32 | U37: =EmpDetail!B35 -> /kaut; xkSRre | V37: =EmpDetail!C35 -> अध्यापक ग्रेड III | W37: =EmpDetail!D35 -> राउप्रावि गोरधनपुरा
T38: 33 | U38: =EmpDetail!B36 -> d`".kk xaxoky | V38: =EmpDetail!C36 -> अध्यापक ग्रेड III | W38: =EmpDetail!D36 -> राउप्रावि गोरधनपुरा
T39: 34 | U39: =EmpDetail!B37 -> n'kjFk dqekj ;kno | V39: =EmpDetail!C37 -> अध्यापक ग्रेड III | W39: =EmpDetail!D37 -> राउप्रावि सोंदीफल
T40: 35 | U40: =EmpDetail!B38 -> d`".k yky tkV | V40: =EmpDetail!C38 -> अध्यापक ग्रेड III | W40: =EmpDetail!D38 -> राउप्रावि सोंदीफल
T41: 36 | U41: =EmpDetail!B39 -> nhisUnz dqekj iztkir | V41: =EmpDetail!C39 -> अध्यापक ग्रेड III | W41: =EmpDetail!D39 -> राउप्रावि सोंदीफल
T42: 37 | U42: =EmpDetail!B40 -> uohu dqekj | V42: =EmpDetail!C40 -> अध्यापक ग्रेड III | W42: =EmpDetail!D40 -> राउप्रावि मोहिनी
T43: 38 | U43: =EmpDetail!B41 -> ehrs'k dqekj 'kekZ | V43: =EmpDetail!C41 -> अध्यापक ग्रेड III | W43: =EmpDetail!D41 -> राउप्रावि मोहिनी
T44: 39 | U44: =EmpDetail!B42 -> eUtw eh.kk | V44: =EmpDetail!C42 -> वरिष्ठ अध्यापक | W44: =EmpDetail!D42 -> राउप्रावि गोरधनपुरा
T45: 40 | U45: =EmpDetail!B43 -> eatw pkS/kjh | V45: =EmpDetail!C43 -> वरिष्ठ अध्यापक | W45: =EmpDetail!D43 -> राउप्रावि सोंदीफल
T46: 41 | U46: =EmpDetail!B44 -> 0 | V46: =EmpDetail!C44 -> 0 | W46: =EmpDetail!D44 -> 0
T47: 42 | U47: =EmpDetail!B45 -> 0 | V47: =EmpDetail!C45 -> 0 | W47: =EmpDetail!D45 -> 0
T48: 43 | U48: =EmpDetail!B46 -> 0 | V48: =EmpDetail!#REF! ->  | W48: =EmpDetail!#REF! -> 
T49: 44 | U49: =EmpDetail!B47 -> 0 | V49: =EmpDetail!C47 -> 0 | W49: =EmpDetail!D47 -> 0
T50: 45 | U50: =EmpDetail!B48 -> 0 | V50: =EmpDetail!C48 -> 0 | W50: =EmpDetail!D48 -> 0
T51: 46 | U51: =EmpDetail!B49 -> 0 | V51: =EmpDetail!C49 -> 0 | W51: =EmpDetail!D49 -> 0
T52: 47 | U52: =EmpDetail!B50 -> 0 | V52: =EmpDetail!C50 -> 0 | W52: =EmpDetail!D50 -> 0
T53: 48 | U53: =EmpDetail!B51 -> 0 | V53: =EmpDetail!C51 -> 0 | W53: =EmpDetail!D51 -> 0
T54: 49 | U54: =EmpDetail!B52 -> 0 | V54: =EmpDetail!C52 -> 0 | W54: =EmpDetail!D52 -> 0
T55: 50 | U55: =EmpDetail!B53 -> 0 | V55: =EmpDetail!C53 -> 0 | W55: =EmpDetail!D53 -> 0
T56: 51 | U56: =EmpDetail!B54 -> 0 | V56: =EmpDetail!C54 -> 0 | W56: =EmpDetail!D54 -> 0
T57: 52 | U57: =EmpDetail!B55 -> 0 | V57: =EmpDetail!C55 -> 0 | W57: =EmpDetail!D55 -> 0
T58: 53 | U58: =EmpDetail!B56 -> 0 | V58: =EmpDetail!C56 -> 0 | W58: =EmpDetail!D56 -> 0
T59: 54 | U59: =EmpDetail!B57 -> 0 | V59: =EmpDetail!C57 -> 0 | W59: =EmpDetail!D57 -> 0
T60: 55 | U60: =EmpDetail!B58 -> 0 | V60: =EmpDetail!C58 -> 0 | W60: =EmpDetail!D58 -> 0
T61: 56 | U61: =EmpDetail!B59 -> 0 | V61: =EmpDetail!C59 -> 0 | W61: =EmpDetail!D59 -> 0
T62: 57 | U62: =EmpDetail!B60 -> 0 | V62: =EmpDetail!C60 -> 0 | W62: =EmpDetail!D60 -> 0
T63: 58 | U63: =EmpDetail!B61 -> 0 | V63: =EmpDetail!C61 -> 0 | W63: =EmpDetail!D61 -> 0
T64: 59 | U64: =EmpDetail!B62 -> 0 | V64: =EmpDetail!C62 -> 0 | W64: =EmpDetail!D62 -> 0
T65: 60 | U65: =EmpDetail!B63 -> 0 | V65: =EmpDetail!C63 -> 0 | W65: =EmpDetail!D63 -> 0
T66: 61 | U66: =EmpDetail!B64 -> 0 | V66: =EmpDetail!C64 -> 0 | W66: =EmpDetail!D64 -> 0
T67: 62 | U67: =EmpDetail!B65 -> 0 | V67: =EmpDetail!C65 -> 0 | W67: =EmpDetail!D65 -> 0
T68: 63 | U68: =EmpDetail!B66 -> 0 | V68: =EmpDetail!C66 -> 0 | W68: =EmpDetail!D66 -> 0
T69: 64 | U69: =EmpDetail!B67 -> 0 | V69: =EmpDetail!C67 -> 0 | W69: =EmpDetail!D67 -> 0
T70: 65 | U70: =EmpDetail!B68 -> 0 | V70: =EmpDetail!C68 -> 0 | W70: =EmpDetail!D68 -> 0
T71: 66 | U71: =EmpDetail!B69 -> 0 | V71: =EmpDetail!C69 -> 0 | W71: =EmpDetail!D69 -> 0
T72: 67 | U72: =EmpDetail!B70 -> 0 | V72: =EmpDetail!C70 -> 0 | W72: =EmpDetail!D70 -> 0
T73: 68 | U73: =EmpDetail!B71 -> 0 | V73: =EmpDetail!C71 -> 0 | W73: =EmpDetail!D71 -> 0
T74: 69 | U74: =EmpDetail!B72 -> 0 | V74: =EmpDetail!C72 -> 0 | W74: =EmpDetail!D72 -> 0
T75: 70 | U75: =EmpDetail!B73 -> 0 | V75: =EmpDetail!C73 -> 0 | W75: =EmpDetail!D73 -> 0
T76: 71 | U76: =EmpDetail!B74 -> 0 | V76: =EmpDetail!C74 -> 0 | W76: =EmpDetail!D74 -> 0
T77: 72 | U77: =EmpDetail!B75 -> 0 | V77: =EmpDetail!C75 -> 0 | W77: =EmpDetail!D75 -> 0
T78: 73 | U78: =EmpDetail!B76 -> 0 | V78: =EmpDetail!C76 -> 0 | W78: =EmpDetail!D76 -> 0
T79: 74 | U79: =EmpDetail!B77 -> 0 | V79: =EmpDetail!C77 -> 0 | W79: =EmpDetail!D77 -> 0
T80: 75 | U80: =EmpDetail!B78 -> 0 | V80: =EmpDetail!C78 -> 0 | W80: =EmpDetail!D78 -> 0
T81: 76 | U81: =EmpDetail!B79 -> 0 | V81: =EmpDetail!C79 -> 0 | W81: =EmpDetail!D79 -> 0
T82: 77 | U82: =EmpDetail!B80 -> 0 | V82: =EmpDetail!C80 -> 0 | W82: =EmpDetail!D80 -> 0
T83: 78 | U83: =EmpDetail!B81 -> 0 | V83: =EmpDetail!C81 -> 0 | W83: =EmpDetail!D81 -> 0
T84: 79 | U84: =EmpDetail!B82 -> 0 | V84: =EmpDetail!C82 -> 0 | W84: =EmpDetail!D82 -> 0
T85: 80 | U85: =EmpDetail!B83 -> 0 | V85: =EmpDetail!C83 -> 0 | W85: =EmpDetail!D83 -> 0
T86: 81 | U86: =EmpDetail!B84 -> 0 | V86: =EmpDetail!C84 -> 0 | W86: =EmpDetail!D84 -> 0
T87: 82 | U87: =EmpDetail!B85 -> 0 | V87: =EmpDetail!C85 -> 0 | W87: =EmpDetail!D85 -> 0
T88: 83 | U88: =EmpDetail!B86 -> 0 | V88: =EmpDetail!C86 -> 0 | W88: =EmpDetail!D86 -> 0
T89: 84 | U89: =EmpDetail!B87 -> 0 | V89: =EmpDetail!C87 -> 0 | W89: =EmpDetail!D87 -> 0
T90: 85 | U90: =EmpDetail!B88 -> 0 | V90: =EmpDetail!C88 -> 0 | W90: =EmpDetail!D88 -> 0
T91: 86 | U91: =EmpDetail!B89 -> 0 | V91: =EmpDetail!C89 -> 0 | W91: =EmpDetail!D89 -> 0
T92: 87 | U92: =EmpDetail!B90 -> 0 | V92: =EmpDetail!C90 -> 0 | W92: =EmpDetail!D90 -> 0
T93: 88 | U93: =EmpDetail!B91 -> 0 | V93: =EmpDetail!C91 -> 0 | W93: =EmpDetail!D91 -> 0
T94: 89 | U94: =EmpDetail!B92 -> 0 | V94: =EmpDetail!C92 -> 0 | W94: =EmpDetail!D92 -> 0
T95: 90 | U95: =EmpDetail!B93 -> 0 | V95: =EmpDetail!C93 -> 0 | W95: =EmpDetail!D93 -> 0
T96: 91 | U96: =EmpDetail!B94 -> 0 | V96: =EmpDetail!C94 -> 0 | W96: =EmpDetail!D94 -> 0
T97: 92 | U97: =EmpDetail!B95 -> 0 | V97: =EmpDetail!C95 -> 0 | W97: =EmpDetail!D95 -> 0
T98: 93 | U98: =EmpDetail!B96 -> 0 | V98: =EmpDetail!C96 -> 0 | W98: =EmpDetail!D96 -> 0
T99: 94 | U99: =EmpDetail!B97 -> 0 | V99: =EmpDetail!C97 -> 0 | W99: =EmpDetail!D97 -> 0
T100: 95 | U100: =EmpDetail!B98 -> 0 | V100: =EmpDetail!C98 -> 0 | W100: =EmpDetail!D98 -> 0
T101: 96 | U101: =EmpDetail!B99 -> 0 | V101: =EmpDetail!C99 -> 0 | W101: =EmpDetail!D99 -> 0
T102: 97 | U102: =EmpDetail!B100 -> 0 | V102: =EmpDetail!C100 -> 0 | W102: =EmpDetail!D100 -> 0
T103: 98 | U103: =EmpDetail!B101 -> 0 | V103: =EmpDetail!C101 -> 0 | W103: =EmpDetail!D101 -> 0
T104: 99 | U104: =EmpDetail!B102 -> 0 | V104: =EmpDetail!C102 -> 0 | W104: =EmpDetail!D102 -> 0
T105: 100 | U105: =EmpDetail!B103 -> 0 | V105: =EmpDetail!C103 -> 0 | W105: =EmpDetail!D103 -> 0

Sheet Duty Cert I (hidden)
B1: =Master!G2&Master!H2 -> कार्यालय&राजकीय उच्च माध्यमिक विद्यालय ]चौगाई]टोंक
A2: dkfeZd dk dzekad fy[ksa&
B3: dzekad& | C3: =Master!H3&Master!I3&Master!J3&Master!E3&"/" -> राउमावि/चौगाई/संस्था/2021-22/ | J3: fnukad& | K3: =TODAY() -> 2021-06-19
A4: 7 | B4: mifLFkfr izek.k i=
A5: TA Y/N | E5: izekf.kr fd;k tkrk gS fd Jh@Jhefr | F5: =IF(ISNA(VLOOKUP($A4,$L$6:$O$105,2,FALSE)),"",VLOOKUP($A4,$L$6:$O$105,2,FALSE)) -> vk'kkjke eh.kk | G5: =IF(ISNA(VLOOKUP($A4,$L$6:$O$105,3,FALSE)),"",VLOOKUP($A4,$L$6:$O$105,3,FALSE)) -> वरिष्ठ अध्यापक | H5: =IF(ISNA(VLOOKUP($A4,$L$6:$O$105,4,FALSE)),"",VLOOKUP($A4,$L$6:$O$105,4,FALSE)) -> राउमावि चौगाई | I5: us | J5: fnukad& | K5: 2021-04-05
A6: N | B6: ls fnukad& | C6: 2021-04-05 | D6: rd v/kksgLrk{kjdrkZ ds dk;kZy; esa | G6: izHkkj gLrkarj.k dk;Z gsrw | I6: viuh mifLFkfr nh A | L6: 1 | M6: =EmpDetail!B4 -> fd'ku yky cSjok | N6: =EmpDetail!C4 -> प्रधानाचार्य | O6: =EmpDetail!D4 -> राउमावि चौगाई
B7: vr% Jh@Jhefr | C7: =IF(ISNA(VLOOKUP($A4,$L$6:$O$105,2,FALSE)),"",VLOOKUP($A4,$L$6:$O$105,2,FALSE)) -> vk'kkjke eh.kk | E7: dh mifLFkfr izekf.kr dh tkrh gS A | H7: =IF(A6="Y","bUgs ;k=k o nSfud HkRrk ns; gS A","") ->  | L7: 2 | M7: =EmpDetail!B5 -> iwj.k pUn y{kdkj | N7: =EmpDetail!C5 -> व्याख्याता | O7: =EmpDetail!D5 -> राउमावि चौगाई
L8: 3 | M8: =EmpDetail!B6 -> jktsUnz dqekj tSu | N8: =EmpDetail!C6 -> व्याख्याता | O8: =EmpDetail!D6 -> राउमावि चौगाई
I9: =Master!B2 -> प्रधानाचार्य | L9: 4 | M9: =EmpDetail!B7 -> fd'ku yky cSjok | N9: =EmpDetail!C7 -> व्याख्याता | O9: =EmpDetail!D7 -> राउमावि चौगाई
I10: =Master!B3 -> राजकीय उच्च माध्यमिक विद्यालय | L10: 5 | M10: =EmpDetail!B8 -> lR;ukjk;.k 'kekZ | N10: =EmpDetail!C8 -> वरिष्ठ अध्यापक | O10: =EmpDetail!D8 -> राउमावि चौगाई
I11: =Master!B4 -> चौगाई]टोंक | L11: 6 | M11: =EmpDetail!B9 -> iq"ik tSu | N11: =EmpDetail!C9 -> वरिष्ठ अध्यापक | O11: =EmpDetail!D9 -> राउमावि चौगाई
L12: 7 | M12: =EmpDetail!B10 -> vk'kkjke eh.kk | N12: =EmpDetail!C10 -> वरिष्ठ अध्यापक | O12: =EmpDetail!D10 -> राउमावि चौगाई
L13: 8 | M13: =EmpDetail!B11 -> t;iky flag | N13: =EmpDetail!C11 -> वरिष्ठ अध्यापक | O13: =EmpDetail!D11 -> राउमावि चौगाई
L14: 9 | M14: =EmpDetail!B12 -> jkeizlkn jsxj | N14: =EmpDetail!C12 -> वरिष्ठ अध्यापक | O14: =EmpDetail!D12 -> राउमावि चौगाई
L15: 10 | M15: =EmpDetail!B13 -> egsUnz dqekj tkV | N15: =EmpDetail!C13 -> शारीरिक शिक्षक | O15: =EmpDetail!D13 -> राउमावि चौगाई
L16: 11 | M16: =EmpDetail!B14 -> NksVw yky jsxj | N16: =EmpDetail!C14 -> अध्यापक ग्रेड III | O16: =EmpDetail!D14 -> राउमावि चौगाई
L17: 12 | M17: =EmpDetail!B15 -> dUgS;k yky egkoj | N17: =EmpDetail!C15 -> अध्यापक ग्रेड III | O17: =EmpDetail!D15 -> राउमावि चौगाई
L18: 13 | M18: =EmpDetail!B16 -> prqHkqZt tkV | N18: =EmpDetail!C16 -> अध्यापक ग्रेड III | O18: =EmpDetail!D16 -> राउमावि चौगाई
L19: 14 | M19: =EmpDetail!B17 -> vklsQk [kku | N19: =EmpDetail!C17 -> अध्यापक ग्रेड III | O19: =EmpDetail!D17 -> राउमावि चौगाई
L20: 15 | M20: =EmpDetail!B18 -> lq'khyk cSjok | N20: =EmpDetail!C18 -> कनिष्ठ सहायक | O20: =EmpDetail!D18 -> राउमावि चौगाई
L21: 16 | M21: =EmpDetail!B19 -> txnh'k izlkn rsyh | N21: =EmpDetail!C19 -> सहायक कर्मचारी | O21: =EmpDetail!D19 -> राउमावि चौगाई
L22: 17 | M22: =EmpDetail!B20 -> jfoUnz dqekj tSu | N22: =EmpDetail!C20 -> अध्यापक ग्रेड III | O22: =EmpDetail!D20 -> राउप्रावि मोहिनी
L23: 18 | M23: =EmpDetail!B21 -> ';ke lqUnj ckxkSM | N23: =EmpDetail!C21 -> अध्यापक ग्रेड III | O23: =EmpDetail!D21 -> राउप्रावि मोहिनी
L24: 19 | M24: =EmpDetail!B22 -> d`".kk 'kekZ | N24: =EmpDetail!C22 -> प्रबोधक | O24: =EmpDetail!D22 -> राउप्रावि मोहिनी
L25: 20 | M25: =EmpDetail!B23 -> /keZsUnz pkS/kjh | N25: =EmpDetail!C23 -> अध्यापक ग्रेड III | O25: =EmpDetail!D23 -> राउप्रावि गोरधनपुरा
L26: 21 | M26: =EmpDetail!B24 -> izgykn ekyh | N26: =EmpDetail!C24 -> प्रबोधक | O26: =EmpDetail!D24 -> राउप्रावि गोरधनपुरा
L27: 22 | M27: =EmpDetail!B25 -> jken;ky xqtZj | N27: =EmpDetail!C25 -> प्रबोधक | O27: =EmpDetail!D25 -> राउप्रावि सोंदीफल
L28: 23 | M28: =EmpDetail!B26 -> vkSeizdk'k tkV | N28: =EmpDetail!C26 -> अध्यापक ग्रेड III | O28: =EmpDetail!D26 -> राउप्रावि सोंदीफल
L29: 24 | M29: =EmpDetail!B27 -> vthr flag | N29: =EmpDetail!C27 -> अध्यापक ग्रेड III | O29: =EmpDetail!D27 -> राप्रावि जानकीवल्लभपुरा
L30: 25 | M30: =EmpDetail!B28 -> eq[rkj eha;k | N30: =EmpDetail!C28 -> प्रबोधक | O30: =EmpDetail!D28 -> राप्रावि जानकीवल्लभपुरा
L31: 26 | M31: =EmpDetail!B29 -> eks0 tehy | N31: =EmpDetail!C29 -> प्रबोधक | O31: =EmpDetail!D29 -> राप्रावि रसूलपुरा
L32: 27 | M32: =EmpDetail!B30 -> lkaojey tkV | N32: =EmpDetail!C30 -> अध्यापक ग्रेड III | O32: =EmpDetail!D30 -> राप्रावि रसूलपुरा
L33: 28 | M33: =EmpDetail!B31 -> pkS/kjh eksuk jkekorkj | N33: =EmpDetail!C31 -> अध्यापक ग्रेड III | O33: =EmpDetail!D31 -> राप्रावि मोहिनी ढाणी बाढ
L34: 29 | M34: =EmpDetail!B32 -> rkjkpUn tk;loky | N34: =EmpDetail!C32 -> प्रबोधक | O34: =EmpDetail!D32 -> राप्रावि मोहिनी ढाणी बाढ
L35: 30 | M35: =EmpDetail!B33 -> jketl ;kno | N35: =EmpDetail!C33 -> अध्यापक ग्रेड III | O35: =EmpDetail!D33 -> राप्रावि बैरवा ढाणी सोन्दीफल
L36: 31 | M36: =EmpDetail!B34 -> dtksMey eh.kk | N36: =EmpDetail!C34 -> अध्यापक ग्रेड III | O36: =EmpDetail!D34 -> राप्रावि बैरवा ढाणी सोन्दीफल
L37: 32 | M37: =EmpDetail!B35 -> /kaut; xkSRre | N37: =EmpDetail!C35 -> अध्यापक ग्रेड III | O37: =EmpDetail!D35 -> राउप्रावि गोरधनपुरा
L38: 33 | M38: =EmpDetail!B36 -> d`".kk xaxoky | N38: =EmpDetail!C36 -> अध्यापक ग्रेड III | O38: =EmpDetail!D36 -> राउप्रावि गोरधनपुरा
L39: 34 | M39: =EmpDetail!B37 -> n'kjFk dqekj ;kno | N39: =EmpDetail!C37 -> अध्यापक ग्रेड III | O39: =EmpDetail!D37 -> राउप्रावि सोंदीफल
L40: 35 | M40: =EmpDetail!B38 -> d`".k yky tkV | N40: =EmpDetail!C38 -> अध्यापक ग्रेड III | O40: =EmpDetail!D38 -> राउप्रावि सोंदीफल
L41: 36 | M41: =EmpDetail!B39 -> nhisUnz dqekj iztkir | N41: =EmpDetail!C39 -> अध्यापक ग्रेड III | O41: =EmpDetail!D39 -> राउप्रावि सोंदीफल
L42: 37 | M42: =EmpDetail!B40 -> uohu dqekj | N42: =EmpDetail!C40 -> अध्यापक ग्रेड III | O42: =EmpDetail!D40 -> राउप्रावि मोहिनी
L43: 38 | M43: =EmpDetail!B41 -> ehrs'k dqekj 'kekZ | N43: =EmpDetail!C41 -> अध्यापक ग्रेड III | O43: =EmpDetail!D41 -> राउप्रावि मोहिनी
L44: 39 | M44: =EmpDetail!B42 -> eUtw eh.kk | N44: =EmpDetail!C42 -> वरिष्ठ अध्यापक | O44: =EmpDetail!D42 -> राउप्रावि गोरधनपुरा
L45: 40 | M45: =EmpDetail!B43 -> eatw pkS/kjh | N45: =EmpDetail!C43 -> वरिष्ठ अध्यापक | O45: =EmpDetail!D43 -> राउप्रावि सोंदीफल
L46: 41 | M46: =EmpDetail!B44 -> 0 | N46: =EmpDetail!C44 -> 0 | O46: =EmpDetail!D44 -> 0
L47: 42 | M47: =EmpDetail!B45 -> 0 | N47: =EmpDetail!C45 -> 0 | O47: =EmpDetail!D45 -> 0
L48: 43 | M48: =EmpDetail!B46 -> 0 | N48: =EmpDetail!#REF! ->  | O48: =EmpDetail!#REF! -> 
L49: 44 | M49: =EmpDetail!B47 -> 0 | N49: =EmpDetail!C47 -> 0 | O49: =EmpDetail!D47 -> 0
L50: 45 | M50: =EmpDetail!B48 -> 0 | N50: =EmpDetail!C48 -> 0 | O50: =EmpDetail!D48 -> 0
L51: 46 | M51: =EmpDetail!B49 -> 0 | N51: =EmpDetail!C49 -> 0 | O51: =EmpDetail!D49 -> 0
L52: 47 | M52: =EmpDetail!B50 -> 0 | N52: =EmpDetail!C50 -> 0 | O52: =EmpDetail!D50 -> 0
L53: 48 | M53: =EmpDetail!B51 -> 0 | N53: =EmpDetail!C51 -> 0 | O53: =EmpDetail!D51 -> 0
L54: 49 | M54: =EmpDetail!B52 -> 0 | N54: =EmpDetail!C52 -> 0 | O54: =EmpDetail!D52 -> 0
L55: 50 | M55: =EmpDetail!B53 -> 0 | N55: =EmpDetail!C53 -> 0 | O55: =EmpDetail!D53 -> 0
L56: 51 | M56: =EmpDetail!B54 -> 0 | N56: =EmpDetail!C54 -> 0 | O56: =EmpDetail!D54 -> 0
L57: 52 | M57: =EmpDetail!B55 -> 0 | N57: =EmpDetail!C55 -> 0 | O57: =EmpDetail!D55 -> 0
L58: 53 | M58: =EmpDetail!B56 -> 0 | N58: =EmpDetail!C56 -> 0 | O58: =EmpDetail!D56 -> 0
L59: 54 | M59: =EmpDetail!B57 -> 0 | N59: =EmpDetail!C57 -> 0 | O59: =EmpDetail!D57 -> 0
L60: 55 | M60: =EmpDetail!B58 -> 0 | N60: =EmpDetail!C58 -> 0 | O60: =EmpDetail!D58 -> 0
L61: 56 | M61: =EmpDetail!B59 -> 0 | N61: =EmpDetail!C59 -> 0 | O61: =EmpDetail!D59 -> 0
L62: 57 | M62: =EmpDetail!B60 -> 0 | N62: =EmpDetail!C60 -> 0 | O62: =EmpDetail!D60 -> 0
L63: 58 | M63: =EmpDetail!B61 -> 0 | N63: =EmpDetail!C61 -> 0 | O63: =EmpDetail!D61 -> 0
L64: 59 | M64: =EmpDetail!B62 -> 0 | N64: =EmpDetail!C62 -> 0 | O64: =EmpDetail!D62 -> 0
L65: 60 | M65: =EmpDetail!B63 -> 0 | N65: =EmpDetail!C63 -> 0 | O65: =EmpDetail!D63 -> 0
L66: 61 | M66: =EmpDetail!B64 -> 0 | N66: =EmpDetail!C64 -> 0 | O66: =EmpDetail!D64 -> 0
L67: 62 | M67: =EmpDetail!B65 -> 0 | N67: =EmpDetail!C65 -> 0 | O67: =EmpDetail!D65 -> 0
L68: 63 | M68: =EmpDetail!B66 -> 0 | N68: =EmpDetail!C66 -> 0 | O68: =EmpDetail!D66 -> 0
L69: 64 | M69: =EmpDetail!B67 -> 0 | N69: =EmpDetail!C67 -> 0 | O69: =EmpDetail!D67 -> 0
L70: 65 | M70: =EmpDetail!B68 -> 0 | N70: =EmpDetail!C68 -> 0 | O70: =EmpDetail!D68 -> 0
L71: 66 | M71: =EmpDetail!B69 -> 0 | N71: =EmpDetail!C69 -> 0 | O71: =EmpDetail!D69 -> 0
L72: 67 | M72: =EmpDetail!B70 -> 0 | N72: =EmpDetail!C70 -> 0 | O72: =EmpDetail!D70 -> 0
L73: 68 | M73: =EmpDetail!B71 -> 0 | N73: =EmpDetail!C71 -> 0 | O73: =EmpDetail!D71 -> 0
L74: 69 | M74: =EmpDetail!B72 -> 0 | N74: =EmpDetail!C72 -> 0 | O74: =EmpDetail!D72 -> 0
L75: 70 | M75: =EmpDetail!B73 -> 0 | N75: =EmpDetail!C73 -> 0 | O75: =EmpDetail!D73 -> 0
L76: 71 | M76: =EmpDetail!B74 -> 0 | N76: =EmpDetail!C74 -> 0 | O76: =EmpDetail!D74 -> 0
L77: 72 | M77: =EmpDetail!B75 -> 0 | N77: =EmpDetail!C75 -> 0 | O77: =EmpDetail!D75 -> 0
L78: 73 | M78: =EmpDetail!B76 -> 0 | N78: =EmpDetail!C76 -> 0 | O78: =EmpDetail!D76 -> 0
L79: 74 | M79: =EmpDetail!B77 -> 0 | N79: =EmpDetail!C77 -> 0 | O79: =EmpDetail!D77 -> 0
L80: 75 | M80: =EmpDetail!B78 -> 0 | N80: =EmpDetail!C78 -> 0 | O80: =EmpDetail!D78 -> 0
L81: 76 | M81: =EmpDetail!B79 -> 0 | N81: =EmpDetail!C79 -> 0 | O81: =EmpDetail!D79 -> 0
L82: 77 | M82: =EmpDetail!B80 -> 0 | N82: =EmpDetail!C80 -> 0 | O82: =EmpDetail!D80 -> 0
L83: 78 | M83: =EmpDetail!B81 -> 0 | N83: =EmpDetail!C81 -> 0 | O83: =EmpDetail!D81 -> 0
L84: 79 | M84: =EmpDetail!B82 -> 0 | N84: =EmpDetail!C82 -> 0 | O84: =EmpDetail!D82 -> 0
L85: 80 | M85: =EmpDetail!B83 -> 0 | N85: =EmpDetail!C83 -> 0 | O85: =EmpDetail!D83 -> 0
L86: 81 | M86: =EmpDetail!B84 -> 0 | N86: =EmpDetail!C84 -> 0 | O86: =EmpDetail!D84 -> 0
L87: 82 | M87: =EmpDetail!B85 -> 0 | N87: =EmpDetail!C85 -> 0 | O87: =EmpDetail!D85 -> 0
L88: 83 | M88: =EmpDetail!B86 -> 0 | N88: =EmpDetail!C86 -> 0 | O88: =EmpDetail!D86 -> 0
L89: 84 | M89: =EmpDetail!B87 -> 0 | N89: =EmpDetail!C87 -> 0 | O89: =EmpDetail!D87 -> 0
L90: 85 | M90: =EmpDetail!B88 -> 0 | N90: =EmpDetail!C88 -> 0 | O90: =EmpDetail!D88 -> 0
L91: 86 | M91: =EmpDetail!B89 -> 0 | N91: =EmpDetail!C89 -> 0 | O91: =EmpDetail!D89 -> 0
L92: 87 | M92: =EmpDetail!B90 -> 0 | N92: =EmpDetail!C90 -> 0 | O92: =EmpDetail!D90 -> 0
L93: 88 | M93: =EmpDetail!B91 -> 0 | N93: =EmpDetail!C91 -> 0 | O93: =EmpDetail!D91 -> 0
L94: 89 | M94: =EmpDetail!B92 -> 0 | N94: =EmpDetail!C92 -> 0 | O94: =EmpDetail!D92 -> 0
L95: 90 | M95: =EmpDetail!B93 -> 0 | N95: =EmpDetail!C93 -> 0 | O95: =EmpDetail!D93 -> 0
L96: 91 | M96: =EmpDetail!B94 -> 0 | N96: =EmpDetail!C94 -> 0 | O96: =EmpDetail!D94 -> 0
L97: 92 | M97: =EmpDetail!B95 -> 0 | N97: =EmpDetail!C95 -> 0 | O97: =EmpDetail!D95 -> 0
L98: 93 | M98: =EmpDetail!B96 -> 0 | N98: =EmpDetail!C96 -> 0 | O98: =EmpDetail!D96 -> 0
L99: 94 | M99: =EmpDetail!B97 -> 0 | N99: =EmpDetail!C97 -> 0 | O99: =EmpDetail!D97 -> 0
L100: 95 | M100: =EmpDetail!B98 -> 0 | N100: =EmpDetail!C98 -> 0 | O100: =EmpDetail!D98 -> 0
L101: 96 | M101: =EmpDetail!B99 -> 0 | N101: =EmpDetail!C99 -> 0 | O101: =EmpDetail!D99 -> 0
L102: 97 | M102: =EmpDetail!B100 -> 0 | N102: =EmpDetail!C100 -> 0 | O102: =EmpDetail!D100 -> 0
L103: 98 | M103: =EmpDetail!B101 -> 0 | N103: =EmpDetail!C101 -> 0 | O103: =EmpDetail!D101 -> 0
L104: 99 | M104: =EmpDetail!B102 -> 0 | N104: =EmpDetail!C102 -> 0 | O104: =EmpDetail!D102 -> 0
L105: 100 | M105: =EmpDetail!B103 -> 0 | N105: =EmpDetail!C103 -> 0 | O105: =EmpDetail!D103 -> 0

Sheet Duty Cert II (hidden)
B1: =Master!G2&Master!H2 -> कार्यालय&राजकीय उच्च माध्यमिक विद्यालय ]चौगाई]टोंक
A2: TA Y/N | B2: dzekad& | C2: =Master!H3&Master!I3&Master!J3&Master!E3&"/" -> राउमावि/चौगाई/संस्था/2021-22/ | H2: fnukad& | I2: =TODAY() -> 2021-06-19
A3: No | B3: mifLFkfr izek.k i=
B4: Jheku~ lhchbZvks Vksad ds vkns'k dzekad& | E4: lhchbZvks@Vksad@2020&21@890 | G4: fnukad& | H4: 2021-01-07 | I4: dh vuqikyuk esa
B5: fuEu dkfeZdksa us 02 fnolh; xSj vkoklh; izf'k{k.k esa | E5: n{k izf'k{kd ds :i esa | G5: viuh mifLFkfr nh gS A | I5: vr% fuEu
B6: dkfeZdksa dks muds uke ds lEeq[k vafdr frfFk ls mifLFkfr izekf.kr dh tkrh gSA
A7: dkfeZd dz0la0 | B7: dz0la0 | C7: uke dkfeZd | D7: in uke | E7: inLFkkiu | F7: mifLFkfr | H7: dqy fnol | I7: fo0fo0
F8: fnukad ls | G8: fnukad rd
A9: 32 | B9: =IF(C9="","",1) -> 1 | C9: =IF(ISNA(VLOOKUP($A9,$J$9:$M$108,2,FALSE)),"",VLOOKUP($A9,$J$9:$M$108,2,FALSE)) -> /kaut; xkSRre | D9: =IF(ISNA(VLOOKUP($A9,$J$9:$M$108,3,FALSE)),"",VLOOKUP($A9,$J$9:$M$108,3,FALSE)) -> अध्यापक ग्रेड III | E9: =IF(ISNA(VLOOKUP($A9,$J$9:$M$108,4,FALSE)),"",VLOOKUP($A9,$J$9:$M$108,4,FALSE)) -> राउप्रावि गोरधनपुरा | F9: 2021-01-13 | G9: 2021-01-14 | H9: =IF(O9="","",O9+1) -> 2 | J9: 1 | K9: =EmpDetail!B4 -> fd'ku yky cSjok | L9: =EmpDetail!C4 -> प्रधानाचार्य | M9: =EmpDetail!D4 -> राउमावि चौगाई | O9: =IF(G9="","",G9-F9) -> 1
A10: 33 | B10: =IF(C10="","",B9+1) -> 2 | C10: =IF(ISNA(VLOOKUP($A10,$J$9:$M$108,2,FALSE)),"",VLOOKUP($A10,$J$9:$M$108,2,FALSE)) -> d`".kk xaxoky | D10: =IF(ISNA(VLOOKUP($A10,$J$9:$M$108,3,FALSE)),"",VLOOKUP($A10,$J$9:$M$108,3,FALSE)) -> अध्यापक ग्रेड III | E10: =IF(ISNA(VLOOKUP($A10,$J$9:$M$108,4,FALSE)),"",VLOOKUP($A10,$J$9:$M$108,4,FALSE)) -> राउप्रावि गोरधनपुरा | F10: 2021-01-13 | G10: 2021-01-14 | H10: =IF(O10="","",O10+1) -> 2 | J10: 2 | K10: =EmpDetail!B5 -> iwj.k pUn y{kdkj | L10: =EmpDetail!C5 -> व्याख्याता | M10: =EmpDetail!D5 -> राउमावि चौगाई | O10: =IF(G10="","",G10-F10) -> 1
H11: =IF(O11="","",O11+1) ->  | J11: 3 | K11: =EmpDetail!B6 -> jktsUnz dqekj tSu | L11: =EmpDetail!C6 -> व्याख्याता | M11: =EmpDetail!D6 -> राउमावि चौगाई
J12: 4 | K12: =EmpDetail!B7 -> fd'ku yky cSjok | L12: =EmpDetail!C7 -> व्याख्याता | M12: =EmpDetail!D7 -> राउमावि चौगाई
J13: 5 | K13: =EmpDetail!B8 -> lR;ukjk;.k 'kekZ | L13: =EmpDetail!C8 -> वरिष्ठ अध्यापक | M13: =EmpDetail!D8 -> राउमावि चौगाई
J14: 6 | K14: =EmpDetail!B9 -> iq"ik tSu | L14: =EmpDetail!C9 -> वरिष्ठ अध्यापक | M14: =EmpDetail!D9 -> राउमावि चौगाई
J15: 7 | K15: =EmpDetail!B10 -> vk'kkjke eh.kk | L15: =EmpDetail!C10 -> वरिष्ठ अध्यापक | M15: =EmpDetail!D10 -> राउमावि चौगाई
J16: 8 | K16: =EmpDetail!B11 -> t;iky flag | L16: =EmpDetail!C11 -> वरिष्ठ अध्यापक | M16: =EmpDetail!D11 -> राउमावि चौगाई
J17: 9 | K17: =EmpDetail!B12 -> jkeizlkn jsxj | L17: =EmpDetail!C12 -> वरिष्ठ अध्यापक | M17: =EmpDetail!D12 -> राउमावि चौगाई
J18: 10 | K18: =EmpDetail!B13 -> egsUnz dqekj tkV | L18: =EmpDetail!C13 -> शारीरिक शिक्षक | M18: =EmpDetail!D13 -> राउमावि चौगाई
J19: 11 | K19: =EmpDetail!B14 -> NksVw yky jsxj | L19: =EmpDetail!C14 -> अध्यापक ग्रेड III | M19: =EmpDetail!D14 -> राउमावि चौगाई
J20: 12 | K20: =EmpDetail!B15 -> dUgS;k yky egkoj | L20: =EmpDetail!C15 -> अध्यापक ग्रेड III | M20: =EmpDetail!D15 -> राउमावि चौगाई
J21: 13 | K21: =EmpDetail!B16 -> prqHkqZt tkV | L21: =EmpDetail!C16 -> अध्यापक ग्रेड III | M21: =EmpDetail!D16 -> राउमावि चौगाई
J22: 14 | K22: =EmpDetail!B17 -> vklsQk [kku | L22: =EmpDetail!C17 -> अध्यापक ग्रेड III | M22: =EmpDetail!D17 -> राउमावि चौगाई
J23: 15 | K23: =EmpDetail!B18 -> lq'khyk cSjok | L23: =EmpDetail!C18 -> कनिष्ठ सहायक | M23: =EmpDetail!D18 -> राउमावि चौगाई
J24: 16 | K24: =EmpDetail!B19 -> txnh'k izlkn rsyh | L24: =EmpDetail!C19 -> सहायक कर्मचारी | M24: =EmpDetail!D19 -> राउमावि चौगाई
J25: 17 | K25: =EmpDetail!B20 -> jfoUnz dqekj tSu | L25: =EmpDetail!C20 -> अध्यापक ग्रेड III | M25: =EmpDetail!D20 -> राउप्रावि मोहिनी
J26: 18 | K26: =EmpDetail!B21 -> ';ke lqUnj ckxkSM | L26: =EmpDetail!C21 -> अध्यापक ग्रेड III | M26: =EmpDetail!D21 -> राउप्रावि मोहिनी
J27: 19 | K27: =EmpDetail!B22 -> d`".kk 'kekZ | L27: =EmpDetail!C22 -> प्रबोधक | M27: =EmpDetail!D22 -> राउप्रावि मोहिनी
J28: 20 | K28: =EmpDetail!B23 -> /keZsUnz pkS/kjh | L28: =EmpDetail!C23 -> अध्यापक ग्रेड III | M28: =EmpDetail!D23 -> राउप्रावि गोरधनपुरा
B29: =IF(C29="","","uksV&") ->  | C29: =IF(A3="Yes","bUgs fu;ekuqlkj ;k=k o nSfud HkRrk ns; gS A","") ->  | J29: 21 | K29: =EmpDetail!B24 -> izgykn ekyh | L29: =EmpDetail!C24 -> प्रबोधक | M29: =EmpDetail!D24 -> राउप्रावि गोरधनपुरा
H30: =Master!B2 -> प्रधानाचार्य | J30: 22 | K30: =EmpDetail!B25 -> jken;ky xqtZj | L30: =EmpDetail!C25 -> प्रबोधक | M30: =EmpDetail!D25 -> राउप्रावि सोंदीफल
H31: =Master!B3 -> राजकीय उच्च माध्यमिक विद्यालय | J31: 23 | K31: =EmpDetail!B26 -> vkSeizdk'k tkV | L31: =EmpDetail!C26 -> अध्यापक ग्रेड III | M31: =EmpDetail!D26 -> राउप्रावि सोंदीफल
H32: =Master!B4 -> चौगाई]टोंक | J32: 24 | K32: =EmpDetail!B27 -> vthr flag | L32: =EmpDetail!C27 -> अध्यापक ग्रेड III | M32: =EmpDetail!D27 -> राप्रावि जानकीवल्लभपुरा
J33: 25 | K33: =EmpDetail!B28 -> eq[rkj eha;k | L33: =EmpDetail!C28 -> प्रबोधक | M33: =EmpDetail!D28 -> राप्रावि जानकीवल्लभपुरा
J34: 26 | K34: =EmpDetail!B29 -> eks0 tehy | L34: =EmpDetail!C29 -> प्रबोधक | M34: =EmpDetail!D29 -> राप्रावि रसूलपुरा
J35: 27 | K35: =EmpDetail!B30 -> lkaojey tkV | L35: =EmpDetail!C30 -> अध्यापक ग्रेड III | M35: =EmpDetail!D30 -> राप्रावि रसूलपुरा
J36: 28 | K36: =EmpDetail!B31 -> pkS/kjh eksuk jkekorkj | L36: =EmpDetail!C31 -> अध्यापक ग्रेड III | M36: =EmpDetail!D31 -> राप्रावि मोहिनी ढाणी बाढ
J37: 29 | K37: =EmpDetail!B32 -> rkjkpUn tk;loky | L37: =EmpDetail!C32 -> प्रबोधक | M37: =EmpDetail!D32 -> राप्रावि मोहिनी ढाणी बाढ
J38: 30 | K38: =EmpDetail!B33 -> jketl ;kno | L38: =EmpDetail!C33 -> अध्यापक ग्रेड III | M38: =EmpDetail!D33 -> राप्रावि बैरवा ढाणी सोन्दीफल
J39: 31 | K39: =EmpDetail!B34 -> dtksMey eh.kk | L39: =EmpDetail!C34 -> अध्यापक ग्रेड III | M39: =EmpDetail!D34 -> राप्रावि बैरवा ढाणी सोन्दीफल
J40: 32 | K40: =EmpDetail!B35 -> /kaut; xkSRre | L40: =EmpDetail!C35 -> अध्यापक ग्रेड III | M40: =EmpDetail!D35 -> राउप्रावि गोरधनपुरा
J41: 33 | K41: =EmpDetail!B36 -> d`".kk xaxoky | L41: =EmpDetail!C36 -> अध्यापक ग्रेड III | M41: =EmpDetail!D36 -> राउप्रावि गोरधनपुरा
J42: 34 | K42: =EmpDetail!B37 -> n'kjFk dqekj ;kno | L42: =EmpDetail!C37 -> अध्यापक ग्रेड III | M42: =EmpDetail!D37 -> राउप्रावि सोंदीफल
J43: 35 | K43: =EmpDetail!B38 -> d`".k yky tkV | L43: =EmpDetail!C38 -> अध्यापक ग्रेड III | M43: =EmpDetail!D38 -> राउप्रावि सोंदीफल
J44: 36 | K44: =EmpDetail!B39 -> nhisUnz dqekj iztkir | L44: =EmpDetail!C39 -> अध्यापक ग्रेड III | M44: =EmpDetail!D39 -> राउप्रावि सोंदीफल
J45: 37 | K45: =EmpDetail!B40 -> uohu dqekj | L45: =EmpDetail!C40 -> अध्यापक ग्रेड III | M45: =EmpDetail!D40 -> राउप्रावि मोहिनी
J46: 38 | K46: =EmpDetail!B41 -> ehrs'k dqekj 'kekZ | L46: =EmpDetail!C41 -> अध्यापक ग्रेड III | M46: =EmpDetail!D41 -> राउप्रावि मोहिनी
J47: 39 | K47: =EmpDetail!B42 -> eUtw eh.kk | L47: =EmpDetail!C42 -> वरिष्ठ अध्यापक | M47: =EmpDetail!D42 -> राउप्रावि गोरधनपुरा
J48: 40 | K48: =EmpDetail!B43 -> eatw pkS/kjh | L48: =EmpDetail!C43 -> वरिष्ठ अध्यापक | M48: =EmpDetail!D43 -> राउप्रावि सोंदीफल
J49: 41 | K49: =EmpDetail!B44 -> 0 | L49: =EmpDetail!C44 -> 0 | M49: =EmpDetail!D44 -> 0
J50: 42 | K50: =EmpDetail!B45 -> 0 | L50: =EmpDetail!C45 -> 0 | M50: =EmpDetail!D45 -> 0
J51: 43 | K51: =EmpDetail!B46 -> 0 | L51: =EmpDetail!#REF! ->  | M51: =EmpDetail!#REF! -> 
J52: 44 | K52: =EmpDetail!B47 -> 0 | L52: =EmpDetail!C47 -> 0 | M52: =EmpDetail!D47 -> 0
J53: 45 | K53: =EmpDetail!B48 -> 0 | L53: =EmpDetail!C48 -> 0 | M53: =EmpDetail!D48 -> 0
J54: 46 | K54: =EmpDetail!B49 -> 0 | L54: =EmpDetail!C49 -> 0 | M54: =EmpDetail!D49 -> 0
J55: 47 | K55: =EmpDetail!B50 -> 0 | L55: =EmpDetail!C50 -> 0 | M55: =EmpDetail!D50 -> 0
J56: 48 | K56: =EmpDetail!B51 -> 0 | L56: =EmpDetail!C51 -> 0 | M56: =EmpDetail!D51 -> 0
J57: 49 | K57: =EmpDetail!B52 -> 0 | L57: =EmpDetail!C52 -> 0 | M57: =EmpDetail!D52 -> 0
J58: 50 | K58: =EmpDetail!B53 -> 0 | L58: =EmpDetail!C53 -> 0 | M58: =EmpDetail!D53 -> 0
J59: 51 | K59: =EmpDetail!B54 -> 0 | L59: =EmpDetail!C54 -> 0 | M59: =EmpDetail!D54 -> 0
J60: 52 | K60: =EmpDetail!B55 -> 0 | L60: =EmpDetail!C55 -> 0 | M60: =EmpDetail!D55 -> 0
J61: 53 | K61: =EmpDetail!B56 -> 0 | L61: =EmpDetail!C56 -> 0 | M61: =EmpDetail!D56 -> 0
J62: 54 | K62: =EmpDetail!B57 -> 0 | L62: =EmpDetail!C57 -> 0 | M62: =EmpDetail!D57 -> 0
J63: 55 | K63: =EmpDetail!B58 -> 0 | L63: =EmpDetail!C58 -> 0 | M63: =EmpDetail!D58 -> 0
J64: 56 | K64: =EmpDetail!B59 -> 0 | L64: =EmpDetail!C59 -> 0 | M64: =EmpDetail!D59 -> 0
J65: 57 | K65: =EmpDetail!B60 -> 0 | L65: =EmpDetail!C60 -> 0 | M65: =EmpDetail!D60 -> 0
J66: 58 | K66: =EmpDetail!B61 -> 0 | L66: =EmpDetail!C61 -> 0 | M66: =EmpDetail!D61 -> 0
J67: 59 | K67: =EmpDetail!B62 -> 0 | L67: =EmpDetail!C62 -> 0 | M67: =EmpDetail!D62 -> 0
J68: 60 | K68: =EmpDetail!B63 -> 0 | L68: =EmpDetail!C63 -> 0 | M68: =EmpDetail!D63 -> 0
J69: 61 | K69: =EmpDetail!B64 -> 0 | L69: =EmpDetail!C64 -> 0 | M69: =EmpDetail!D64 -> 0
J70: 62 | K70: =EmpDetail!B65 -> 0 | L70: =EmpDetail!C65 -> 0 | M70: =EmpDetail!D65 -> 0
J71: 63 | K71: =EmpDetail!B66 -> 0 | L71: =EmpDetail!C66 -> 0 | M71: =EmpDetail!D66 -> 0
J72: 64 | K72: =EmpDetail!B67 -> 0 | L72: =EmpDetail!C67 -> 0 | M72: =EmpDetail!D67 -> 0
J73: 65 | K73: =EmpDetail!B68 -> 0 | L73: =EmpDetail!C68 -> 0 | M73: =EmpDetail!D68 -> 0
J74: 66 | K74: =EmpDetail!B69 -> 0 | L74: =EmpDetail!C69 -> 0 | M74: =EmpDetail!D69 -> 0
J75: 67 | K75: =EmpDetail!B70 -> 0 | L75: =EmpDetail!C70 -> 0 | M75: =EmpDetail!D70 -> 0
J76: 68 | K76: =EmpDetail!B71 -> 0 | L76: =EmpDetail!C71 -> 0 | M76: =EmpDetail!D71 -> 0
J77: 69 | K77: =EmpDetail!B72 -> 0 | L77: =EmpDetail!C72 -> 0 | M77: =EmpDetail!D72 -> 0
J78: 70 | K78: =EmpDetail!B73 -> 0 | L78: =EmpDetail!C73 -> 0 | M78: =EmpDetail!D73 -> 0
J79: 71 | K79: =EmpDetail!B74 -> 0 | L79: =EmpDetail!C74 -> 0 | M79: =EmpDetail!D74 -> 0
J80: 72 | K80: =EmpDetail!B75 -> 0 | L80: =EmpDetail!C75 -> 0 | M80: =EmpDetail!D75 -> 0
J81: 73 | K81: =EmpDetail!B76 -> 0 | L81: =EmpDetail!C76 -> 0 | M81: =EmpDetail!D76 -> 0
J82: 74 | K82: =EmpDetail!B77 -> 0 | L82: =EmpDetail!C77 -> 0 | M82: =EmpDetail!D77 -> 0
J83: 75 | K83: =EmpDetail!B78 -> 0 | L83: =EmpDetail!C78 -> 0 | M83: =EmpDetail!D78 -> 0
J84: 76 | K84: =EmpDetail!B79 -> 0 | L84: =EmpDetail!C79 -> 0 | M84: =EmpDetail!D79 -> 0
J85: 77 | K85: =EmpDetail!B80 -> 0 | L85: =EmpDetail!C80 -> 0 | M85: =EmpDetail!D80 -> 0
J86: 78 | K86: =EmpDetail!B81 -> 0 | L86: =EmpDetail!C81 -> 0 | M86: =EmpDetail!D81 -> 0
J87: 79 | K87: =EmpDetail!B82 -> 0 | L87: =EmpDetail!C82 -> 0 | M87: =EmpDetail!D82 -> 0
J88: 80 | K88: =EmpDetail!B83 -> 0 | L88: =EmpDetail!C83 -> 0 | M88: =EmpDetail!D83 -> 0
J89: 81 | K89: =EmpDetail!B84 -> 0 | L89: =EmpDetail!C84 -> 0 | M89: =EmpDetail!D84 -> 0
J90: 82 | K90: =EmpDetail!B85 -> 0 | L90: =EmpDetail!C85 -> 0 | M90: =EmpDetail!D85 -> 0
J91: 83 | K91: =EmpDetail!B86 -> 0 | L91: =EmpDetail!C86 -> 0 | M91: =EmpDetail!D86 -> 0
J92: 84 | K92: =EmpDetail!B87 -> 0 | L92: =EmpDetail!C87 -> 0 | M92: =EmpDetail!D87 -> 0
J93: 85 | K93: =EmpDetail!B88 -> 0 | L93: =EmpDetail!C88 -> 0 | M93: =EmpDetail!D88 -> 0
J94: 86 | K94: =EmpDetail!B89 -> 0 | L94: =EmpDetail!C89 -> 0 | M94: =EmpDetail!D89 -> 0
J95: 87 | K95: =EmpDetail!B90 -> 0 | L95: =EmpDetail!C90 -> 0 | M95: =EmpDetail!D90 -> 0
J96: 88 | K96: =EmpDetail!B91 -> 0 | L96: =EmpDetail!C91 -> 0 | M96: =EmpDetail!D91 -> 0
J97: 89 | K97: =EmpDetail!B92 -> 0 | L97: =EmpDetail!C92 -> 0 | M97: =EmpDetail!D92 -> 0
J98: 90 | K98: =EmpDetail!B93 -> 0 | L98: =EmpDetail!C93 -> 0 | M98: =EmpDetail!D93 -> 0
J99: 91 | K99: =EmpDetail!B94 -> 0 | L99: =EmpDetail!C94 -> 0 | M99: =EmpDetail!D94 -> 0
J100: 92 | K100: =EmpDetail!B95 -> 0 | L100: =EmpDetail!C95 -> 0 | M100: =EmpDetail!D95 -> 0
J101: 93 | K101: =EmpDetail!B96 -> 0 | L101: =EmpDetail!C96 -> 0 | M101: =EmpDetail!D96 -> 0
J102: 94 | K102: =EmpDetail!B97 -> 0 | L102: =EmpDetail!C97 -> 0 | M102: =EmpDetail!D97 -> 0
J103: 95 | K103: =EmpDetail!B98 -> 0 | L103: =EmpDetail!C98 -> 0 | M103: =EmpDetail!D98 -> 0
J104: 96 | K104: =EmpDetail!B99 -> 0 | L104: =EmpDetail!C99 -> 0 | M104: =EmpDetail!D99 -> 0
J105: 97 | K105: =EmpDetail!B100 -> 0 | L105: =EmpDetail!C100 -> 0 | M105: =EmpDetail!D100 -> 0
J106: 98 | K106: =EmpDetail!B101 -> 0 | L106: =EmpDetail!C101 -> 0 | M106: =EmpDetail!D101 -> 0
J107: 99 | K107: =EmpDetail!B102 -> 0 | L107: =EmpDetail!C102 -> 0 | M107: =EmpDetail!D102 -> 0
J108: 100 | K108: =EmpDetail!B103 -> 0 | L108: =EmpDetail!C103 -> 0 | M108: =EmpDetail!D103 -> 0

Sheet Annual Result (hidden)
B1: =Master!G2&Master!H2 -> कार्यालय&राजकीय उच्च माध्यमिक विद्यालय ]चौगाई]टोंक
B2: v/;kidokj ijh{kk ijh.kke
D3: l=& | F3: =Master!E3 -> 2021-22
B4: dzekad& | C4: =Master!H3&Master!I3&Master!J3&Master!E3&"/" -> राउमावि/चौगाई/संस्था/2021-22/ | I4: fnukad& | J4: =TODAY() -> 2021-06-19
A5: zdkfeZd dz0la0 | B5: dz0la0 | C5: uke dkfeZd | D5: inuke | E5: fo"k; | F5: d{kk | G5: dqy ukekafdr Nk= | H5: ijh{kk esa izfo"B | I5: dqy mRrh.kZ | J5: mRrh.kZrk izfr'kr
A6: 2 | B6: =IF(C6="","",1) -> 1 | C6: =IF(ISNA(VLOOKUP($A6,$K$6:$M$105,2,FALSE)),"",VLOOKUP($A6,$K$6:$M$105,2,FALSE)) -> iwj.k pUn y{kdkj | D6: =IF(ISNA(VLOOKUP($A6,$K$6:$M$105,3,FALSE)),"",VLOOKUP($A6,$K$6:$M$105,3,FALSE)) -> व्याख्याता | E6: इतिहास | F6: 12,A | G6: 45 | H6: 45 | I6: 41 | J6: =IF(G6="","",ROUNDUP(I6*100/H6,0)) -> 92 | K6: 1 | L6: =EmpDetail!B4 -> fd'ku yky cSjok | M6: =EmpDetail!C4 -> प्रधानाचार्य
A7: 2 | B7: =IF(C7="","",B6+1) -> 2 | C7: =IF(ISNA(VLOOKUP($A7,$K$6:$M$105,2,FALSE)),"",VLOOKUP($A7,$K$6:$M$105,2,FALSE)) -> iwj.k pUn y{kdkj | D7: =IF(ISNA(VLOOKUP($A7,$K$6:$M$105,3,FALSE)),"",VLOOKUP($A7,$K$6:$M$105,3,FALSE)) -> व्याख्याता | E7: इतिहास | F7: 11,A | G7: 45 | H7: 45 | I7: 40 | J7: =IF(G7="","",ROUNDUP(I7*100/H7,0)) -> 89 | K7: 2 | L7: =EmpDetail!B5 -> iwj.k pUn y{kdkj | M7: =EmpDetail!C5 -> व्याख्याता
A8: 2 | B8: =IF(C8="","",B7+1) -> 3 | C8: iwj.k pUn y{kdkj | D8: व्याख्याता | E8: सामाजिक विज्ञान | F8: 10,A | K8: 3 | L8: =EmpDetail!B6 -> jktsUnz dqekj tSu | M8: =EmpDetail!C6 -> व्याख्याता
A9: 3 | B9: 4 | C9: jktsUnz dqekj tSu | D9: व्याख्याता | E9: हिंदी अनिवार्य | F9: 12,A | K9: 4 | L9: =EmpDetail!B7 -> fd'ku yky cSjok | M9: =EmpDetail!C7 -> व्याख्याता
A10: 3 | B10: 5 | C10: jktsUnz dqekj tSu | D10: व्याख्याता | E10: हिंदी साहित्य | F10: 11,A | K10: 5 | L10: =EmpDetail!B8 -> lR;ukjk;.k 'kekZ | M10: =EmpDetail!C8 -> वरिष्ठ अध्यापक
A11: 4 | B11: 6 | C11: fd'ku yky cSjok | D11: व्याख्याता | E11: संस्कृत | F11: 10,A | K11: 6 | L11: =EmpDetail!B9 -> iq"ik tSu | M11: =EmpDetail!C9 -> वरिष्ठ अध्यापक
A12: 4 | B12: 7 | C12: fd'ku yky cSjok | D12: व्याख्याता | E12: संस्कृत | F12: 9,A | K12: 7 | L12: =EmpDetail!B10 -> vk'kkjke eh.kk | M12: =EmpDetail!C10 -> वरिष्ठ अध्यापक
A13: 5 | B13: 8 | C13: lR;ukjk;.k 'kekZ | D13: वरिष्ठ अध्यापक | E13: हिंदी | F13: 10,A | K13: 8 | L13: =EmpDetail!B11 -> t;iky flag | M13: =EmpDetail!C11 -> वरिष्ठ अध्यापक
A14: 5 | B14: 9 | C14: lR;ukjk;.k 'kekZ | D14: वरिष्ठ अध्यापक | E14: हिंदी | F14: 9,A | K14: 9 | L14: =EmpDetail!B12 -> jkeizlkn jsxj | M14: =EmpDetail!C12 -> वरिष्ठ अध्यापक
A15: 7 | B15: 10 | C15: vk'kkjke eh.kk | D15: वरिष्ठ अध्यापक | E15: अंग्रेजी | K15: 10 | L15: =EmpDetail!B13 -> egsUnz dqekj tkV | M15: =EmpDetail!C13 -> शारीरिक शिक्षक
K16: 11 | L16: =EmpDetail!B14 -> NksVw yky jsxj | M16: =EmpDetail!C14 -> अध्यापक ग्रेड III
K17: 12 | L17: =EmpDetail!B15 -> dUgS;k yky egkoj | M17: =EmpDetail!C15 -> अध्यापक ग्रेड III
K18: 13 | L18: =EmpDetail!B16 -> prqHkqZt tkV | M18: =EmpDetail!C16 -> अध्यापक ग्रेड III
K19: 14 | L19: =EmpDetail!B17 -> vklsQk [kku | M19: =EmpDetail!C17 -> अध्यापक ग्रेड III
K20: 15 | L20: =EmpDetail!B18 -> lq'khyk cSjok | M20: =EmpDetail!C18 -> कनिष्ठ सहायक
K21: 16 | L21: =EmpDetail!B19 -> txnh'k izlkn rsyh | M21: =EmpDetail!C19 -> सहायक कर्मचारी
H22: =Master!B2 -> प्रधानाचार्य | K22: 17 | L22: =EmpDetail!B20 -> jfoUnz dqekj tSu | M22: =EmpDetail!C20 -> अध्यापक ग्रेड III
H23: =Master!B3 -> राजकीय उच्च माध्यमिक विद्यालय | K23: 18 | L23: =EmpDetail!B21 -> ';ke lqUnj ckxkSM | M23: =EmpDetail!C21 -> अध्यापक ग्रेड III
H24: =Master!B4 -> चौगाई]टोंक | K24: 19 | L24: =EmpDetail!B22 -> d`".kk 'kekZ | M24: =EmpDetail!C22 -> प्रबोधक
K25: 20 | L25: =EmpDetail!B23 -> /keZsUnz pkS/kjh | M25: =EmpDetail!C23 -> अध्यापक ग्रेड III
K26: 21 | L26: =EmpDetail!B24 -> izgykn ekyh | M26: =EmpDetail!C24 -> प्रबोधक
K27: 22 | L27: =EmpDetail!B25 -> jken;ky xqtZj | M27: =EmpDetail!C25 -> प्रबोधक
K28: 23 | L28: =EmpDetail!B26 -> vkSeizdk'k tkV | M28: =EmpDetail!C26 -> अध्यापक ग्रेड III
K29: 24 | L29: =EmpDetail!B27 -> vthr flag | M29: =EmpDetail!C27 -> अध्यापक ग्रेड III
K30: 25 | L30: =EmpDetail!B28 -> eq[rkj eha;k | M30: =EmpDetail!C28 -> प्रबोधक
K31: 26 | L31: =EmpDetail!B29 -> eks0 tehy | M31: =EmpDetail!C29 -> प्रबोधक
K32: 27 | L32: =EmpDetail!B30 -> lkaojey tkV | M32: =EmpDetail!C30 -> अध्यापक ग्रेड III
K33: 28 | L33: =EmpDetail!B31 -> pkS/kjh eksuk jkekorkj | M33: =EmpDetail!C31 -> अध्यापक ग्रेड III
K34: 29 | L34: =EmpDetail!B32 -> rkjkpUn tk;loky | M34: =EmpDetail!C32 -> प्रबोधक
K35: 30 | L35: =EmpDetail!B33 -> jketl ;kno | M35: =EmpDetail!C33 -> अध्यापक ग्रेड III
K36: 31 | L36: =EmpDetail!B34 -> dtksMey eh.kk | M36: =EmpDetail!C34 -> अध्यापक ग्रेड III
K37: 32 | L37: =EmpDetail!B35 -> /kaut; xkSRre | M37: =EmpDetail!C35 -> अध्यापक ग्रेड III
K38: 33 | L38: =EmpDetail!B36 -> d`".kk xaxoky | M38: =EmpDetail!C36 -> अध्यापक ग्रेड III
K39: 34 | L39: =EmpDetail!B37 -> n'kjFk dqekj ;kno | M39: =EmpDetail!C37 -> अध्यापक ग्रेड III
K40: 35 | L40: =EmpDetail!B38 -> d`".k yky tkV | M40: =EmpDetail!C38 -> अध्यापक ग्रेड III
K41: 36 | L41: =EmpDetail!B39 -> nhisUnz dqekj iztkir | M41: =EmpDetail!C39 -> अध्यापक ग्रेड III
K42: 37 | L42: =EmpDetail!B40 -> uohu dqekj | M42: =EmpDetail!C40 -> अध्यापक ग्रेड III
K43: 38 | L43: =EmpDetail!B41 -> ehrs'k dqekj 'kekZ | M43: =EmpDetail!C41 -> अध्यापक ग्रेड III
K44: 39 | L44: =EmpDetail!B42 -> eUtw eh.kk | M44: =EmpDetail!C42 -> वरिष्ठ अध्यापक
K45: 40 | L45: =EmpDetail!B43 -> eatw pkS/kjh | M45: =EmpDetail!C43 -> वरिष्ठ अध्यापक
K46: 41 | L46: =EmpDetail!B44 -> 0 | M46: =EmpDetail!C44 -> 0
K47: 42 | L47: =EmpDetail!B45 -> 0 | M47: =EmpDetail!C45 -> 0
K48: 43 | L48: =EmpDetail!B46 -> 0 | M48: =EmpDetail!#REF! -> 
K49: 44 | L49: =EmpDetail!B47 -> 0 | M49: =EmpDetail!C47 -> 0
K50: 45 | L50: =EmpDetail!B48 -> 0 | M50: =EmpDetail!C48 -> 0
K51: 46 | L51: =EmpDetail!B49 -> 0 | M51: =EmpDetail!C49 -> 0
K52: 47 | L52: =EmpDetail!B50 -> 0 | M52: =EmpDetail!C50 -> 0
K53: 48 | L53: =EmpDetail!B51 -> 0 | M53: =EmpDetail!C51 -> 0
K54: 49 | L54: =EmpDetail!B52 -> 0 | M54: =EmpDetail!C52 -> 0
K55: 50 | L55: =EmpDetail!B53 -> 0 | M55: =EmpDetail!C53 -> 0
K56: 51 | L56: =EmpDetail!B54 -> 0 | M56: =EmpDetail!C54 -> 0
K57: 52 | L57: =EmpDetail!B55 -> 0 | M57: =EmpDetail!C55 -> 0
K58: 53 | L58: =EmpDetail!B56 -> 0 | M58: =EmpDetail!C56 -> 0
K59: 54 | L59: =EmpDetail!B57 -> 0 | M59: =EmpDetail!C57 -> 0
K60: 55 | L60: =EmpDetail!B58 -> 0 | M60: =EmpDetail!C58 -> 0
K61: 56 | L61: =EmpDetail!B59 -> 0 | M61: =EmpDetail!C59 -> 0
K62: 57 | L62: =EmpDetail!B60 -> 0 | M62: =EmpDetail!C60 -> 0
K63: 58 | L63: =EmpDetail!B61 -> 0 | M63: =EmpDetail!C61 -> 0
K64: 59 | L64: =EmpDetail!B62 -> 0 | M64: =EmpDetail!C62 -> 0
K65: 60 | L65: =EmpDetail!B63 -> 0 | M65: =EmpDetail!C63 -> 0
K66: 61 | L66: =EmpDetail!B64 -> 0 | M66: =EmpDetail!C64 -> 0
K67: 62 | L67: =EmpDetail!B65 -> 0 | M67: =EmpDetail!C65 -> 0
K68: 63 | L68: =EmpDetail!B66 -> 0 | M68: =EmpDetail!C66 -> 0
K69: 64 | L69: =EmpDetail!B67 -> 0 | M69: =EmpDetail!C67 -> 0
K70: 65 | L70: =EmpDetail!B68 -> 0 | M70: =EmpDetail!C68 -> 0
K71: 66 | L71: =EmpDetail!B69 -> 0 | M71: =EmpDetail!C69 -> 0
K72: 67 | L72: =EmpDetail!B70 -> 0 | M72: =EmpDetail!C70 -> 0
K73: 68 | L73: =EmpDetail!B71 -> 0 | M73: =EmpDetail!C71 -> 0
K74: 69 | L74: =EmpDetail!B72 -> 0 | M74: =EmpDetail!C72 -> 0
K75: 70 | L75: =EmpDetail!B73 -> 0 | M75: =EmpDetail!C73 -> 0
K76: 71 | L76: =EmpDetail!B74 -> 0 | M76: =EmpDetail!C74 -> 0
K77: 72 | L77: =EmpDetail!B75 -> 0 | M77: =EmpDetail!C75 -> 0
K78: 73 | L78: =EmpDetail!B76 -> 0 | M78: =EmpDetail!C76 -> 0
K79: 74 | L79: =EmpDetail!B77 -> 0 | M79: =EmpDetail!C77 -> 0
K80: 75 | L80: =EmpDetail!B78 -> 0 | M80: =EmpDetail!C78 -> 0
K81: 76 | L81: =EmpDetail!B79 -> 0 | M81: =EmpDetail!C79 -> 0
K82: 77 | L82: =EmpDetail!B80 -> 0 | M82: =EmpDetail!C80 -> 0
K83: 78 | L83: =EmpDetail!B81 -> 0 | M83: =EmpDetail!C81 -> 0
K84: 79 | L84: =EmpDetail!B82 -> 0 | M84: =EmpDetail!C82 -> 0
K85: 80 | L85: =EmpDetail!B83 -> 0 | M85: =EmpDetail!C83 -> 0
K86: 81 | L86: =EmpDetail!B84 -> 0 | M86: =EmpDetail!C84 -> 0
K87: 82 | L87: =EmpDetail!B85 -> 0 | M87: =EmpDetail!C85 -> 0
K88: 83 | L88: =EmpDetail!B86 -> 0 | M88: =EmpDetail!C86 -> 0
K89: 84 | L89: =EmpDetail!B87 -> 0 | M89: =EmpDetail!C87 -> 0
K90: 85 | L90: =EmpDetail!B88 -> 0 | M90: =EmpDetail!C88 -> 0
K91: 86 | L91: =EmpDetail!B89 -> 0 | M91: =EmpDetail!C89 -> 0
K92: 87 | L92: =EmpDetail!B90 -> 0 | M92: =EmpDetail!C90 -> 0
K93: 88 | L93: =EmpDetail!B91 -> 0 | M93: =EmpDetail!C91 -> 0
K94: 89 | L94: =EmpDetail!B92 -> 0 | M94: =EmpDetail!C92 -> 0
K95: 90 | L95: =EmpDetail!B93 -> 0 | M95: =EmpDetail!C93 -> 0
K96: 91 | L96: =EmpDetail!B94 -> 0 | M96: =EmpDetail!C94 -> 0
K97: 92 | L97: =EmpDetail!B95 -> 0 | M97: =EmpDetail!C95 -> 0
K98: 93 | L98: =EmpDetail!B96 -> 0 | M98: =EmpDetail!C96 -> 0
K99: 94 | L99: =EmpDetail!B97 -> 0 | M99: =EmpDetail!C97 -> 0
K100: 95 | L100: =EmpDetail!B98 -> 0 | M100: =EmpDetail!C98 -> 0
K101: 96 | L101: =EmpDetail!B99 -> 0 | M101: =EmpDetail!C99 -> 0
K102: 97 | L102: =EmpDetail!B100 -> 0 | M102: =EmpDetail!C100 -> 0
K103: 98 | L103: =EmpDetail!B101 -> 0 | M103: =EmpDetail!C101 -> 0
K104: 99 | L104: =EmpDetail!B102 -> 0 | M104: =EmpDetail!C102 -> 0
K105: 100 | L105: =EmpDetail!B103 -> 0 | M105: =EmpDetail!C103 -> 0

Sheet ChargeHandover (hidden)
B1: GOVERNMENT OF RAJASTHAN GA-13
B2: jktLFkku ljdkj
B3: GF&AR
B4: Certificate oF Transfer of charge
B5: dk;ZHkkj gLrkUrj.k&i= | L5: 1 | M5: =Master!L6 -> राउमावि चौगाई
F6: 1 | L6: 2 | M6: =Master!L7 -> राउप्रावि मोहिनी
B7: Certificate That I have handed over/taken over Charge of The Office | L7: 3 | M7: =Master!L8 -> राउप्रावि सोंदीफल
B8: =IF(ISNA(VLOOKUP(F6,$L$5:$M$19,2,FALSE)),"",VLOOKUP($F6,$L$5:$M$19,2,FALSE)) -> राउमावि चौगाई | D8: In the Fore-noon/Afternoon of this day of | I8: 2021-04-27 | L8: 4 | M8: =Master!L9 -> राउप्रावि गोरधनपुरा
L9: 5 | M9: =Master!L10 -> राप्रावि रसूलपुरा
C10: izekf.kr fd;k tkrk gS fd eSusa | G10: =IF(ISNA(VLOOKUP($F6,$L$5:$M$19,2,FALSE)),"",VLOOKUP($F6,$L$5:$M$19,2,FALSE)) -> राउमावि चौगाई | I10: foHkkx frfFk | L10: 6 | M10: =Master!L11 -> राप्रावि जहूरपुरा
B11: =I8 -> 2021-04-27 | D11: e/;kUrj ds igys@ckn dk;ZHkkj ns fn;k@ys fy;k gSA | L11: 7 | M11: =Master!L12 -> राप्रावि जानकीवल्लभपुरा
L12: 8 | M12: =Master!L13 -> राप्रावि बैरवा ढाणी सोन्दीफल
L13: 9 | M13: =Master!L14 -> राप्रावि मोहिनी ढाणी बाढ
B14: Relieved officer | G14: Relieving officer | L14: 10 | M14: =Master!L15 -> तहसीलदार भू अभिलेख निवाई
B15: dk;ZHkkj nsus okyk vf/kdkjh | G15: dk;ZHkkj ysus okyk vf/kdkjh | L15: 11 | M15: =Master!L16 -> राउमावि बोरखंडी कला
B16: uke& | C16: Jh fd'ku yky cSjok] iz/kkukpk;Z | G16: uke& | H16: Jh iwj.k pUn y{kdkj] O;k[;krk | L16: 12 | M16: =Master!L17 -> रामावि नयाटीला
B17: Memo of the Balance for which responsibility is accepted by the officer receivinf charge- | L17: 13 | M17: =Master!L18 -> राउमावि बगडवा
B18: vo'ks"k ftudk mRkjnkf;Ro dk;ZHkkj lEHkkyus okyk vf/kdkjh Lohdkj djrk gSA | L18: 14 | M18: =Master!L19 -> राउमावि बरोनी टोंक
L19: 15 | M19: =Master!L20 -> 0
B20: 1- General Cash(Amount) udn jde&
C21: jktdh; jksdM+ iaftdk | E21: Nk=dks"k jksdM+ iaftdk | G21: fodkldks"k jksdM+ iaftdk | I21: dkjijk Q.M
B22: udn
B23: cSad
B24: dqy | C24: =SUM(C22:C23) -> 0 | E24: =SUM(E22:E23) -> 0 | G24: =SUM(G22:G23) -> 0 | I24: =SUM(I22:I23) -> 0
B25: 2- Imprest(Amount) isa'kxh&
B26: 3- Stamps(Value) LVkEi ewY;&
B27: 4- Stores(Book Value)fdrkch dher&
B28: 5- Unused Cheques(Number)iz;ksx esa u yk;s gq, pSd u-&
C29: jktdh; jksdM+ iaftdk | E29: Nk=dks"k jksdM+ iaftdk | G29: fodkldks"k jksdM+ iaftdk | I29: dkjijk Q.M
B30: pSd u-
B32: dqy la[;k | C32: =SUM(C30:C31) -> 0 | E32: =SUM(E30:E31) -> 0 | G32: =SUM(G30:G31) -> 0 | I32: =SUM(I30:I31) -> 0
B33: 6- Receipt Book(Number& Value)- jlhn dh fdrkcsa& | F33: 1- dk;kZy; cqd u0
F34: 2- ijh{kk cqd u0
F35: 3- fodkl 'kqYd cqd u0
F36: 4- Nk=dks"k cqd u0
B37: 7- Service Book (Number&Value )s dk;kZy; esa&
B38: 8- Service Rolls (Number&Value )dk;kZy; esa&
B39: 9-Personal Files (Number&Value ) dk;kZy; esa&
B41: Relieved officer | G41: Relieving officer
B42: dk;ZHkkj nsus okyk vf/kdkjh | G42: dk;ZHkkj ysus okyk vf/kdkjh

Sheet HRA (hidden)
B1: =Master!G2&Master!H2 -> कार्यालय&राजकीय उच्च माध्यमिक विद्यालय ]चौगाई]टोंक
B2: dk;kZy; vkns'k
B4: fuEufyf[kr dkfeZdks dks muds }kjk çLrqr vkosnu i= ds vkèkkj ij jktLFkku ljdkj ds vkns'k Øekad& ,Q-6 ¼4½ ,Q- Mh-@:Yl@07 fnuk¡d& 12-09-2008 o fnuk¡d 06-02-2009 ¼la'kksfèkr nj½ ,oa jktLFkku flfoy lsok ¼iqujhf{kr osrueku ½ 2017 ds foÙk foHkkx ds vkns'kkad ,Q-Mh-15¼1½ ,Q-Mh-@¼:Yl½ 2017 t;iqj fnukad 31&10&2017 ,oa lela[;d la'kksfèkr vkns'k fnukad 09&12&2017 ds çkoèkkukuqlkj jktLFkku lsok fu;eksa ds fu;e 7 ¼24½¼1½ esa ifjHkkf"kr osru ds fu;ekuqlkj edku fdjk;k HkÙkk muds uke ds lkeus vafdr fnuk¡d ls jktLFkku ljdkj ds vkns'kkuqlkj izfrekg Loh—r fd;k tkrk gS&
A5: dkfeZd dz0la0 | B5: Ø-l- | C5: uke dkfeZd | D5: in | E5: ysoy | F5: uke dk;kZy; | G5: edku fdjk;k HkÙkk ns; frfFk | H5: ewy osru | I5: edku fdjk;k HkÙkk
I6: 0.08
A7: 35 | B7: =IF(C7="","",1) -> 1 | C7: =IF(ISNA(VLOOKUP($A7,$J$7:$O$106,2,FALSE)),"",VLOOKUP($A7,$J$7:$O$106,2,FALSE)) -> d`".k yky tkV | D7: =IF(ISNA(VLOOKUP($A7,$J$7:$O$106,3,FALSE)),"",VLOOKUP($A7,$J$7:$O$106,3,FALSE)) -> अध्यापक ग्रेड III | E7: =IF(ISNA(VLOOKUP($A7,$J$7:$O$106,5,FALSE)),"",VLOOKUP($A7,$J$7:$O$106,5,FALSE)) -> L-10 | F7: =IF(ISNA(VLOOKUP($A7,$J$7:$O$106,4,FALSE)),"",VLOOKUP($A7,$J$7:$O$106,4,FALSE)) -> राउप्रावि सोंदीफल | G7: 2020-01-01 | H7: =IF(ISNA(VLOOKUP($A7,$J$7:$O$106,6,FALSE)),"",VLOOKUP($A7,$J$7:$O$106,6,FALSE)) -> 33800 | I7: =IF(H7="","",ROUNDUP(H7*I$6,0)) -> 2704 | J7: 1 | K7: =EmpDetail!B4 -> fd'ku yky cSjok | L7: =EmpDetail!C4 -> प्रधानाचार्य | M7: =EmpDetail!D4 -> राउमावि चौगाई | N7: =EmpDetail!J4 -> L-16 | O7: =EmpDetail!K4 -> 95900
B8: =IF(C8="","",B7+1) ->  | C8: =IF(ISNA(VLOOKUP($A8,$J$7:$O$106,2,FALSE)),"",VLOOKUP($A8,$J$7:$O$106,2,FALSE)) ->  | D8: =IF(ISNA(VLOOKUP($A8,$J$7:$O$106,3,FALSE)),"",VLOOKUP($A8,$J$7:$O$106,3,FALSE)) ->  | E8: =IF(ISNA(VLOOKUP($A8,$J$7:$O$106,5,FALSE)),"",VLOOKUP($A8,$J$7:$O$106,5,FALSE)) ->  | F8: =IF(ISNA(VLOOKUP($A8,$J$7:$O$106,4,FALSE)),"",VLOOKUP($A8,$J$7:$O$106,4,FALSE)) ->  | H8: =IF(ISNA(VLOOKUP($A8,$J$7:$O$106,6,FALSE)),"",VLOOKUP($A8,$J$7:$O$106,6,FALSE)) ->  | I8: =IF(H8="","",ROUNDUP(H8*I$6,0)) ->  | J8: 2 | K8: =EmpDetail!B5 -> iwj.k pUn y{kdkj | L8: =EmpDetail!C5 -> व्याख्याता | M8: =EmpDetail!D5 -> राउमावि चौगाई | N8: =EmpDetail!J5 -> L-12 | O8: =EmpDetail!K5 -> 56100
B9: =IF(C9="","",B8+1) ->  | J9: 3 | K9: =EmpDetail!B6 -> jktsUnz dqekj tSu | L9: =EmpDetail!C6 -> व्याख्याता | M9: =EmpDetail!D6 -> राउमावि चौगाई | N9: =EmpDetail!J6 -> L-12 | O9: =EmpDetail!K6 -> 63100
J10: 4 | K10: =EmpDetail!B7 -> fd'ku yky cSjok | L10: =EmpDetail!C7 -> व्याख्याता | M10: =EmpDetail!D7 -> राउमावि चौगाई | N10: =EmpDetail!J7 -> L-12 | O10: =EmpDetail!K7 -> 54500
J11: 5 | K11: =EmpDetail!B8 -> lR;ukjk;.k 'kekZ | L11: =EmpDetail!C8 -> वरिष्ठ अध्यापक | M11: =EmpDetail!D8 -> राउमावि चौगाई | N11: =EmpDetail!J8 -> L-13 | O11: =EmpDetail!K8 -> 71300
J12: 6 | K12: =EmpDetail!B9 -> iq"ik tSu | L12: =EmpDetail!C9 -> वरिष्ठ अध्यापक | M12: =EmpDetail!D9 -> राउमावि चौगाई | N12: =EmpDetail!J9 -> L-13 | O12: =EmpDetail!K9 -> 73400
J13: 7 | K13: =EmpDetail!B10 -> vk'kkjke eh.kk | L13: =EmpDetail!C10 -> वरिष्ठ अध्यापक | M13: =EmpDetail!D10 -> राउमावि चौगाई | N13: =EmpDetail!J10 -> L-11 | O13: =EmpDetail!K10 -> 52300
J14: 8 | K14: =EmpDetail!B11 -> t;iky flag | L14: =EmpDetail!C11 -> वरिष्ठ अध्यापक | M14: =EmpDetail!D11 -> राउमावि चौगाई | N14: =EmpDetail!J11 -> L-12 | O14: =EmpDetail!K11 -> 63100
J15: 9 | K15: =EmpDetail!B12 -> jkeizlkn jsxj | L15: =EmpDetail!C12 -> वरिष्ठ अध्यापक | M15: =EmpDetail!D12 -> राउमावि चौगाई | N15: =EmpDetail!J12 -> L-11 | O15: =EmpDetail!K12 -> 46500
J16: 10 | K16: =EmpDetail!B13 -> egsUnz dqekj tkV | L16: =EmpDetail!C13 -> शारीरिक शिक्षक | M16: =EmpDetail!D13 -> राउमावि चौगाई | N16: =EmpDetail!J13 -> L-12 | O16: =EmpDetail!K13 -> 61300
J17: 11 | K17: =EmpDetail!B14 -> NksVw yky jsxj | L17: =EmpDetail!C14 -> अध्यापक ग्रेड III | M17: =EmpDetail!D14 -> राउमावि चौगाई | N17: =EmpDetail!J14 -> L-13 | O17: =EmpDetail!K14 -> 65200
J18: 12 | K18: =EmpDetail!B15 -> dUgS;k yky egkoj | L18: =EmpDetail!C15 -> अध्यापक ग्रेड III | M18: =EmpDetail!D15 -> राउमावि चौगाई | N18: =EmpDetail!J15 -> L-13 | O18: =EmpDetail!K15 -> 65200
H19: =Master!B2 -> प्रधानाचार्य | J19: 13 | K19: =EmpDetail!B16 -> prqHkqZt tkV | L19: =EmpDetail!C16 -> अध्यापक ग्रेड III | M19: =EmpDetail!D16 -> राउमावि चौगाई | N19: =EmpDetail!J16 -> L-11 | O19: =EmpDetail!K16 -> 52300
H20: =Master!B3 -> राजकीय उच्च माध्यमिक विद्यालय | J20: 14 | K20: =EmpDetail!B17 -> vklsQk [kku | L20: =EmpDetail!C17 -> अध्यापक ग्रेड III | M20: =EmpDetail!D17 -> राउमावि चौगाई | N20: =EmpDetail!J17 -> L-11 | O20: =EmpDetail!K17 -> 52300
H21: =Master!B4 -> चौगाई]टोंक | J21: 15 | K21: =EmpDetail!B18 -> lq'khyk cSjok | L21: =EmpDetail!C18 -> कनिष्ठ सहायक | M21: =EmpDetail!D18 -> राउमावि चौगाई | N21: =EmpDetail!J18 -> L-5 | O21: =EmpDetail!K18 -> 14600
B22: Øekad& | C22: =Master!H3&Master!I3&Master!J3&Master!E3&"/" -> राउमावि/चौगाई/संस्था/2021-22/ | H22: fnukad& | I22: 2020-12-21 | J22: 16 | K22: =EmpDetail!B19 -> txnh'k izlkn rsyh | L22: =EmpDetail!C19 -> सहायक कर्मचारी | M22: =EmpDetail!D19 -> राउमावि चौगाई | N22: =EmpDetail!J19 -> L-5 | O22: =EmpDetail!K19 -> 34700
C23: izfrfyfi lwpukFkZ ,oa ikyukFkZ | J23: 17 | K23: =EmpDetail!B20 -> jfoUnz dqekj tSu | L23: =EmpDetail!C20 -> अध्यापक ग्रेड III | M23: =EmpDetail!D20 -> राउप्रावि मोहिनी | N23: =EmpDetail!J20 -> L-12 | O23: =EmpDetail!K20 -> 65200
B24: 1 | C24: dks"kkf/kdkjh@mi dks"kkf/kdkjh | D24: =Master!H4 -> पीपलू | J24: 18 | K24: =EmpDetail!B21 -> ';ke lqUnj ckxkSM | L24: =EmpDetail!C21 -> अध्यापक ग्रेड III | M24: =EmpDetail!D21 -> राउप्रावि मोहिनी | N24: =EmpDetail!J21 -> L-10 | O24: =EmpDetail!K21 -> 40300
B25: 2 | C25: ys[kk 'kk[kk LFkkuh; dk;kZy; | J25: 19 | K25: =EmpDetail!B22 -> d`".kk 'kekZ | L25: =EmpDetail!C22 -> प्रबोधक | M25: =EmpDetail!D22 -> राउप्रावि मोहिनी | N25: =EmpDetail!J22 -> L-11 | O25: =EmpDetail!K22 -> 45100
B26: 3 | C26: dkfeZd O;fDrxr iaftdk | J26: 20 | K26: =EmpDetail!B23 -> /keZsUnz pkS/kjh | L26: =EmpDetail!C23 -> अध्यापक ग्रेड III | M26: =EmpDetail!D23 -> राउप्रावि गोरधनपुरा | N26: =EmpDetail!J23 -> L-10 | O26: =EmpDetail!K23 -> 40300
B27: 4 | C27: lEcfU/kr dkfeZd | H27: =H19 -> प्रधानाचार्य | J27: 21 | K27: =EmpDetail!B24 -> izgykn ekyh | L27: =EmpDetail!C24 -> प्रबोधक | M27: =EmpDetail!D24 -> राउप्रावि गोरधनपुरा | N27: =EmpDetail!J24 -> L-11 | O27: =EmpDetail!K24 -> 46500
H28: =H20 -> राजकीय उच्च माध्यमिक विद्यालय | J28: 22 | K28: =EmpDetail!B25 -> jken;ky xqtZj | L28: =EmpDetail!C25 -> प्रबोधक | M28: =EmpDetail!D25 -> राउप्रावि सोंदीफल | N28: =EmpDetail!J25 -> L-11 | O28: =EmpDetail!K25 -> 45100
H29: =H21 -> चौगाई]टोंक | J29: 23 | K29: =EmpDetail!B26 -> vkSeizdk'k tkV | L29: =EmpDetail!C26 -> अध्यापक ग्रेड III | M29: =EmpDetail!D26 -> राउप्रावि सोंदीफल | N29: =EmpDetail!J26 -> L-11 | O29: =EmpDetail!K26 -> 45100
J30: 24 | K30: =EmpDetail!B27 -> vthr flag | L30: =EmpDetail!C27 -> अध्यापक ग्रेड III | M30: =EmpDetail!D27 -> राप्रावि जानकीवल्लभपुरा | N30: =EmpDetail!J27 -> L-10 | O30: =EmpDetail!K27 -> 40300
J31: 25 | K31: =EmpDetail!B28 -> eq[rkj eha;k | L31: =EmpDetail!C28 -> प्रबोधक | M31: =EmpDetail!D28 -> राप्रावि जानकीवल्लभपुरा | N31: =EmpDetail!J28 -> L-11 | O31: =EmpDetail!K28 -> 45100
J32: 26 | K32: =EmpDetail!B29 -> eks0 tehy | L32: =EmpDetail!C29 -> प्रबोधक | M32: =EmpDetail!D29 -> राप्रावि रसूलपुरा | N32: =EmpDetail!J29 -> L-11 | O32: =EmpDetail!K29 -> 45100
J33: 27 | K33: =EmpDetail!B30 -> lkaojey tkV | L33: =EmpDetail!C30 -> अध्यापक ग्रेड III | M33: =EmpDetail!D30 -> राप्रावि रसूलपुरा | N33: =EmpDetail!J30 -> L-10 | O33: =EmpDetail!K30 -> 38000
J34: 28 | K34: =EmpDetail!B31 -> pkS/kjh eksuk jkekorkj | L34: =EmpDetail!C31 -> अध्यापक ग्रेड III | M34: =EmpDetail!D31 -> राप्रावि मोहिनी ढाणी बाढ | N34: =EmpDetail!J31 -> L-10 | O34: =EmpDetail!K31 -> 38000
J35: 29 | K35: =EmpDetail!B32 -> rkjkpUn tk;loky | L35: =EmpDetail!C32 -> प्रबोधक | M35: =EmpDetail!D32 -> राप्रावि मोहिनी ढाणी बाढ | N35: =EmpDetail!J32 -> L-11 | O35: =EmpDetail!K32 -> 41300
J36: 30 | K36: =EmpDetail!B33 -> jketl ;kno | L36: =EmpDetail!C33 -> अध्यापक ग्रेड III | M36: =EmpDetail!D33 -> राप्रावि बैरवा ढाणी सोन्दीफल | N36: =EmpDetail!J33 -> L-12 | O36: =EmpDetail!K33 -> 63100
J37: 31 | K37: =EmpDetail!B34 -> dtksMey eh.kk | L37: =EmpDetail!C34 -> अध्यापक ग्रेड III | M37: =EmpDetail!D34 -> राप्रावि बैरवा ढाणी सोन्दीफल | N37: =EmpDetail!J34 -> L-10 | O37: =EmpDetail!K34 -> 38000
J38: 32 | K38: =EmpDetail!B35 -> /kaut; xkSRre | L38: =EmpDetail!C35 -> अध्यापक ग्रेड III | M38: =EmpDetail!D35 -> राउप्रावि गोरधनपुरा | N38: =EmpDetail!J35 -> L-10 | O38: =EmpDetail!K35 -> 34800
J39: 33 | K39: =EmpDetail!B36 -> d`".kk xaxoky | L39: =EmpDetail!C36 -> अध्यापक ग्रेड III | M39: =EmpDetail!D36 -> राउप्रावि गोरधनपुरा | N39: =EmpDetail!J36 -> L-10 | O39: =EmpDetail!K36 -> 33800
J40: 34 | K40: =EmpDetail!B37 -> n'kjFk dqekj ;kno | L40: =EmpDetail!C37 -> अध्यापक ग्रेड III | M40: =EmpDetail!D37 -> राउप्रावि सोंदीफल | N40: =EmpDetail!J37 -> L-10 | O40: =EmpDetail!K37 -> 23700
J41: 35 | K41: =EmpDetail!B38 -> d`".k yky tkV | L41: =EmpDetail!C38 -> अध्यापक ग्रेड III | M41: =EmpDetail!D38 -> राउप्रावि सोंदीफल | N41: =EmpDetail!J38 -> L-10 | O41: =EmpDetail!K38 -> 33800
J42: 36 | K42: =EmpDetail!B39 -> nhisUnz dqekj iztkir | L42: =EmpDetail!C39 -> अध्यापक ग्रेड III | M42: =EmpDetail!D39 -> राउप्रावि सोंदीफल | N42: =EmpDetail!J39 -> L-10 | O42: =EmpDetail!K39 -> 33800
J43: 37 | K43: =EmpDetail!B40 -> uohu dqekj | L43: =EmpDetail!C40 -> अध्यापक ग्रेड III | M43: =EmpDetail!D40 -> राउप्रावि मोहिनी | N43: =EmpDetail!J40 -> L-10 | O43: =EmpDetail!K40 -> 33800
J44: 38 | K44: =EmpDetail!B41 -> ehrs'k dqekj 'kekZ | L44: =EmpDetail!C41 -> अध्यापक ग्रेड III | M44: =EmpDetail!D41 -> राउप्रावि मोहिनी | N44: =EmpDetail!J41 -> L-10 | O44: =EmpDetail!K41 -> 34800
J45: 39 | K45: =EmpDetail!B42 -> eUtw eh.kk | L45: =EmpDetail!C42 -> वरिष्ठ अध्यापक | M45: =EmpDetail!D42 -> राउप्रावि गोरधनपुरा | N45: =EmpDetail!J42 -> L-10 | O45: =EmpDetail!K42 -> 33800
J46: 40 | K46: =EmpDetail!B43 -> eatw pkS/kjh | L46: =EmpDetail!C43 -> वरिष्ठ अध्यापक | M46: =EmpDetail!D43 -> राउप्रावि सोंदीफल | N46: =EmpDetail!J43 -> L-11 | O46: =EmpDetail!K43 -> 26500
J47: 41 | K47: =EmpDetail!B44 -> 0 | L47: =EmpDetail!C44 -> 0 | M47: =EmpDetail!D44 -> 0 | N47: =EmpDetail!J44 -> 0 | O47: =EmpDetail!K44 -> 0
J48: 42 | K48: =EmpDetail!B45 -> 0 | L48: =EmpDetail!C45 -> 0 | M48: =EmpDetail!D45 -> 0 | N48: =EmpDetail!J45 -> 0 | O48: =EmpDetail!K45 -> 0
J49: 43 | K49: =EmpDetail!B46 -> 0 | L49: =EmpDetail!#REF! ->  | M49: =EmpDetail!#REF! ->  | N49: =EmpDetail!J46 -> 0 | O49: =EmpDetail!K46 -> 0
